Workbook

Sheet 説明
B2: 【目次】
B3: 項 目 | H3: 計算ツールの場所（シート名） | L3: 参 照
L4: 「漁港・漁場の施設の設計参考図書」
L5: ページ | M5: 図または式番号
B6: 非線形長波理論による浅水係数の算定 | H6: 3.5.2 浅水変形 | L6: 60 | M6: 図 2-3-10
B7: 微小振幅波理論による浅水係数の算定 | H7: 3.5.2 浅水変形 | L7: 61-62 | M7: 式 2-3-28、図 2-3-11
B8: 不規則波砕波を考慮した水深のみによる波高の変化 | H8: 3.5.3 水深のみによる波高の変化 | L8: 63-64 | M8: 図 2-3-12
B9: 非線形長波理論による浅水係数の近似式による算定 | H9: 3.5.3 水深のみによる波高の変化 | L9: 65 | M9: 式 2-3-30
B10: 有義波高の最大値およびその出現水深の算定 | H10: 3.5.3 水深のみによる波高の変化 | L10: 66 | M10: 図 2-3-13、図 2-3-14
B11: 波による平均水位の上昇量の算定 | H11: 3.6 波による平均水位の上昇 | L11: 68-69 | M11: 図 2-3-15
B12: 砕波領域での流速算定係数 K値の算定 | H12: 16.2 設計流速の算定 | L12: 814 | M12: 図 16-2-3
H13: ※下線部分をクリックすると各計算ツールの場所に移動します
B15: 【使用方法】
B16: ①計算ツール内の黄色のセルに各パラメータを入力すると、算定値が出力されます。
B17: ②グラフは「グラフ更新」ボタンを押すと更新されます。（自動で更新されません）
B18: ※※※グラフ更新に関して※※※
B19: 「グラフ更新」ボタンを押すと「エラーが発生しました」というメッセージが表示される場合があります。
B20: その際はお手数ですが再度更新ボタンを押してください。

Sheet 3.5.2 浅水変形
B2: 非線形長波理論による浅水係数の算定 （p.60、図 2-3-10）
C3: [使用方法]
C4: ・ 黄色のセルに算定条件（Ho'/Lo、h/Lo、（海底勾配））を入力すると Ks が算定されます。
C5: ・ 海底勾配は 1/10、 1/15、 1/20、 1/30、 1/50、 1/100 から選択してください。
C6: （海底勾配はグラフの「H1/32%減衰線」の表示にのみ使用しています。）
C7: ・ 図は「グラフ更新」ボタンを押すと更新されます。
C8: ただし、エラーが発生した場合は、再度更新ボタンを押してください。
C9: ※ 図中の2％減衰線より上の領域は本算定の適用範囲外になりますのでご注意ください。
C11: 海底勾配 | D11: Ho'/Lo | E11: h/Lo | F11: Ks
C12: 0.02 | D12: 0.0005 | E12: 0.02 | F12: =ROUND(KSN_M(D12, E12),3) -> 1.226
B35: 微小振幅波理論による浅水係数の算定 （pp.61-62、式 2-3-28、図 2-3-11）
C36: [使用方法]
C37: ・ 黄色のセルに算定条件（h/Lo）を入力すると Ks（=H/Ho'） が算定されます。
C38: ・ 参考として h/L、C/Co、L/Lo、n、(H/L)/(Ho/Lo) の値も出力されます。
C39: ・ 図は「グラフ更新」ボタンを押すと更新されます。
C40: ただし、エラーが発生した場合は、再度更新ボタンを押してください。
C42: h/Lo | D42: Ks (=H/Ho') | E42: h/L | F42: C/Co, L/Lo | G42: n
C44: 0.002 | D44: =ROUND(Ks0_M(C44),3) -> 2.119 | E44: =ROUND((9.8*8^2/(8*ATAN(1))) * C44/WAVELV3( (9.8*8^2/(8*ATAN(1))) * C44,8),3) -> 0.018 | F44: =ROUND(C44*(1/E44),3) -> 0.111 | G44: =ROUND((1+(4*4*ATAN(1)*E44)/SINH(4*4*ATAN(1)*E44))/2,3) -> 0.996 | H44: =ROUND(D44*(E44*(1/C44)),3) -> 19.071

Sheet 3.5.3 水深のみによる波高の変化
B2: 不規則波砕波を考慮した水深のみによる波高の変化 （pp.63-64、図 2-3-12）
C3: [使用方法]
C4: ・ 黄色のセルに算定条件（海底勾配、Ho'/Lo、h/Ho'）を入力すると H/Ho' が算定されます。
C5: ・ 海底勾配は 1/10、 1/15、 1/20、 1/30、 1/50、 1/100 から選択してください。
C6: ・ 図は「グラフ更新」ボタンを押すと更新されます。
C7: ただし、エラーが発生した場合は、再度更新ボタンを押してください。
C8: ※ 図中の2％減衰線より右の領域は本算定の適用範囲外になりますのでご注意ください。
C10: 海底勾配 | D10: Ho'/Lo | E10: h/Ho' | F10: H/Ho'
C11: 0.06666666667 | D11: 0.02 | E11: 1 | F11: =合田H13算定(C11, D11, E11) -> 0.883
B34: 非線形長波理論による浅水係数の近似式による算定 （p.65、式 2-3-30）
C35: [使用方法]
C36: ・ 黄色のセルに算定条件（Ho'/Lo、h/Lo）を入力すると Ks が算定されます。
C38: Ho'/Lo | D38: h/Lo | E38: Ks
C39: 0.002 | D39: 0.015 | E39: =ROUND(KSN_Map(C39, D39),3) -> 1.403
B45: 有義波高の最大値およびその出現水深の算定 （p.66、図 2-3-13、図 2-3-14）
C46: [使用方法]
C47: ・ 黄色のセルに算定条件（海底勾配、Ho'/Lo）を入力すると h/Ho' および H/Ho' が算定されます。
C48: ・ 海底勾配は 1/10、 1/15、 1/20、 1/30、 1/50、 1/100 から選択してください。
C49: ・ 図は「グラフ更新」ボタンを押すと更新されます。
C50: ただし、エラーが発生した場合は、再度更新ボタンを押してください。
C51: ※ 海底勾配 1/15 及び 1/50 の結果は内挿により算定した値です。
C53: 海底勾配 | D53: Ho'/Lo | E53: h/Ho' | F53: H/Ho'
C54: 0.02 | D54: 0.005 | E54: =IF(OR(C54="",D54=""),"",VLOOKUP(ROUND(D54,4),砕波高data!A3:G684,MATCH(C54,砕波高data!A2:G2,0),FALSE)) -> 2.715 | F54: =IF(OR(C54="",D54=""),"",VLOOKUP(ROUND(D54,4),砕波高data!I3:O783,MATCH(C54,砕波高data!I2:O2,0),FALSE)) -> 1.613

Sheet 3.6 波による平均水位の上昇
B2: 波による平均水位の上昇量の算定 （pp.68-69、図 2-3-15）
C3: [使用方法]
C4: ・ 黄色のセルに算定条件（海底勾配、Ho'/Lo、h/Ho'）を入力すると η/Ho' が算定されます。
C5: ・ 海底勾配は 1/10、 1/15、 1/20、 1/30、 1/50、 1/100 から選択してください。
C6: ・ 図は「グラフ更新」ボタンを押すと更新されます。
C7: ただし、エラーが発生した場合は、再度更新ボタンを押してください。
C9: 海底勾配 | D9: Ho'/Lo | E9: h/Ho' | F9: η/Ho'
C10: 0.05 | D10: 0.01 | E10: 0.6 | F10: =Wsetup(C10, D10, E10) -> 0.09

Sheet 16.2 設計流速の算定
B2: 砕波領域での流速算定係数 K値の算定 （p.814、図 16-2-3）
C3: [使用方法]
C4: ・ 黄色のセルに算定条件（海底勾配、h/Lo）を入力すると K が算定されます。
C5: ・ 海底勾配は 1/10、 1/15、 1/20、 1/30、 1/50 から選択してください。
C6: ・ 図は「グラフ更新」ボタンを押すと更新されます。
C7: ただし、エラーが発生した場合は、再度更新ボタンを押してください。
C9: 海底勾配 | D9: ｈ/Lo | E9: K
C10: 0.06666666667 | D10: 0.0075 | E10: =ROUND(calK(C10,D10),3) -> 0.5

Sheet 浅水変形data (hidden)
A1: 非線形長波 | L1: 微小振幅波 | M1: T | N1: L0
A2: h/Lo | B2: H/Ho' | M2: 8 | N2: =9.8*M2^2/(8*ATAN(1)) -> 99.82198031 | V2: 2%減衰線 | AE2: グラフ表示用（浅水係数の算定図） | AH2: 1/θ=10 | AJ2: グループ化して名前を付ける「図_1_10」 | AQ2: 1/θ=15 | AS2: グループ化して名前を付ける「図_1_15」
B3: 0 | C3: 0.0005 | D3: 0.001 | E3: 0.002 | F3: 0.005 | G3: 0.01 | H3: 0.02 | I3: 0.04 | L3: h/L0 | M3: H/Ho' | N3: C/C0,L/L0 | O3: h/L | P3: (H/L)/(H0'/L0) | Q3: n | R3: ｈ | U3: 1/θ=10 | X3: 1/θ=20 | AA3: 1/θ=100 | AE3: ① 0.004≦h/Lo＜0.1
A4: 0.004 | B4: =Ks0_M($A4) -> 1.787143443 | C4: =KSN_M(C$3,$A4) -> 2.51336217 | D4: =KSN_M(D$3,$A4) -> 3.062012302 | L4: 0.001 | M4: =Ks0_M($L4) -> 2.515489906 | N4: =L4*(1/O4) -> 0.07918352951 | O4: =R4/WAVELV3(R4,8) -> 0.01262888894 | P4: =M4*(O4*(1/L4)) -> 31.76784266 | Q4: =(1+(4*4*ATAN(1)*O4)/SINH(4*4*ATAN(1)*O4))/2 -> 0.9979073616 | R4: =$N$2*L4 -> 0.09982198031 | T4: Ho'/Lo | U4: h/Ho' | V4: h/Lo | W4: Ks | X4: h/Ho' | Y4: h/Lo | Z4: Ks | AA4: h/Ho' | AB4: h/Lo | AC4: Ks | AE4: h/Lo | AF4: H/Ho'
A5: 0.0041 | B5: 1.776425287 | C5: 2.462828855 | D5: 2.99538774 | L5: 0.0011 | M5: 2.456646687 | N5: 0.08303967854 | O5: 0.01324667941 | P5: 29.58401008 | Q5: 0.9976982912 | R5: 0.1098041783 | T5: 0.0005 | U5: 4.85 | V5: =T5*U5 -> 0.002425 | W5: 3.903 | X5: 5.6 | Y5: =T5*X5 -> 0.0028 | Z5: 3.423753875 | AA5: 6.25 | AB5: =T5*AA5 -> 0.003125 | AC5: 3.10454956 | AE5: 0.004 | AF5: =IF('3.5.2 浅水変形'!E12<0.1,'3.5.2 浅水変形'!F12,NA()) -> 1.226
A6: 0.0042 | B6: 1.766034144 | C6: 2.41489878 | D6: 2.93208338 | L6: 0.0012 | M6: 2.404162735 | N6: 0.08672302032 | O6: 0.01383715645 | P6: 27.72231325 | Q6: 0.9974892561 | R6: 0.1197863764 | T6: 0.001 | U6: 3.9 | V6: 0.0039 | W6: 3.132 | X6: 4.5 | Y6: 0.0045 | Z6: 2.759708762 | AA6: 5.05 | AB6: 0.00505 | AC6: 2.499400189 | AE6: =IF('3.5.2 浅水変形'!E12<0.1,'3.5.2 浅水変形'!E12,NA()) -> 0.02 | AF6: =IF('3.5.2 浅水変形'!E12<0.1,'3.5.2 浅水変形'!F12,NA()) -> 1.226
A7: 0.0043 | B7: 1.755952724 | C7: 2.369391657 | D7: 2.871826626 | L7: 0.0013 | M7: 2.356902636 | N7: 0.09025471458 | O7: 0.0144036797 | P7: 26.1139005 | Q7: 0.9972802562 | R7: 0.1297685744 | T7: 0.002 | U7: 3.15 | V7: 0.0063 | W7: 2.523 | X7: 3.65 | Y7: 0.0073 | Z7: 2.226392422 | AA7: 4.1 | AB7: 0.0082 | AC7: 2.025016647 | AE7: =IF('3.5.2 浅水変形'!E12<0.1,'3.5.2 浅水変形'!E12,NA()) -> 0.02 | AF7: 0.8
A8: 0.0044 | B8: 1.746165025 | C8: 2.326143664 | D8: 2.814431981 | L8: 0.0014 | M8: 2.314002297 | N8: 0.09365191934 | O8: 0.01494897285 | P8: 24.70854109 | Q8: 0.9970712916 | R8: 0.1397507724 | T8: 0.005 | U8: 2.4 | V8: 0.012 | W8: 1.912 | X8: 2.8 | Y8: 0.014 | Z8: 1.694246721 | AA8: 3.15 | AB8: 0.01575 | AC8: 1.554504089
A9: 0.0045 | B9: 1.736656211 | C9: 2.28500562 | D9: 2.759708762 | L9: 0.0015 | M9: 2.274789953 | N9: 0.09692877675 | O9: 0.01547528041 | P9: 23.46867493 | Q9: 0.9968623623 | R9: 0.1497329705 | T9: 0.01 | U9: 2 | V9: 0.02 | W9: 1.551 | X9: 2.35 | Y9: 0.0235 | Z9: 1.384608408 | AA9: 2.7 | AB9: 0.027 | AC9: 1.270370888 | AE9: ② 0.1≦h/Lo＜1.0
A10: 0.0046 | B10: 1.727412505 | C10: 2.245841388 | D10: 2.70748292 | L10: 0.0016 | M10: 2.238733763 | N10: 0.100097107 | O10: 0.01598447795 | P10: 22.36561904 | Q10: 0.9966534682 | R10: 0.1597151685 | T10: 0.02 | U10: 1.75 | V10: 0.035 | W10: 1.251 | X10: 2.05 | Y10: 0.041 | Z10: 1.144877472 | AA10: 2.35 | AB10: 0.047 | AC10: 1.07819278 | AE10: h/Lo | AF10: H/Ho'
A11: 0.0047 | B11: 1.718421091 | C11: 2.208526484 | D11: 2.657595266 | L11: 0.0017 | M11: 2.20540599 | N11: 0.1031669097 | O11: 0.01647815181 | P11: 21.37706748 | Q11: 0.9964446094 | R11: 0.1696973665 | T11: 0.03 | U11: 1.65 | V11: 0.0495 | W11: 1.117 | X11: 1.95 | Y11: 0.0585 | Z11: 1.040006853 | AA11: 2.3 | AB11: 0.069 | AC11: 0.9910099115 | AE11: 1 | AF11: =IF('3.5.2 浅水変形'!E12>=0.1,'3.5.2 浅水変形'!F12,NA()) -> 
A12: 0.0048 | B12: 1.709659597 | C12: 2.172946867 | D12: 2.609899921 | L12: 0.0018 | M12: 2.174457864 | N12: 0.1061467336 | O12: 0.01695765795 | P12: 20.48539593 | Q12: 0.9962357859 | R12: 0.1796795646 | T12: 0.04 | U12: 1.6 | V12: 0.064 | W12: 1.041 | X12: 1.95 | Y12: 0.078 | Z12: 0.9793693973 | AA12: 2.3 | AB12: 0.092 | AC12: 0.9400933071 | AE12: =IF('3.5.2 浅水変形'!E12>=0.1,'3.5.2 浅水変形'!E12,NA()) ->  | AF12: =IF('3.5.2 浅水変形'!E12>=0.1,'3.5.2 浅水変形'!F12,NA()) -> 
A13: 0.0049 | B13: 1.701137363 | C13: 2.138997866 | D13: 2.564262955 | L13: 0.0019 | M13: 2.145601538 | N13: 0.1090439556 | O13: 0.01742416615 | P13: 19.676483 | Q13: 0.9960269978 | R13: 0.1896617626 | T13: 0.05 | U13: 1.6 | V13: 0.08 | W13: 0.992 | X13: 1.95 | Y13: 0.0975 | Z13: 0.9374305423 | AA13: 2.35 | AB13: 0.1175 | AC13: 0.9216093786 | AE13: =IF('3.5.2 浅水変形'!E12>=0.1,'3.5.2 浅水変形'!E12,NA()) ->  | AF13: 1
A14: 0.005 | B14: 1.692833919 | C14: 2.106583244 | D14: 2.520561188 | L14: 0.002 | M14: 2.118596886 | N14: 0.111864994 | O14: 0.01787869402 | P14: 18.93887274 | Q14: 0.995818245 | R14: 0.1996439606
A15: 0.0051 | B15: 1.684739522 | C15: 2.075614374 | D15: 2.478681139 | L15: 0.0021 | M15: 2.093241654 | N15: 0.1146154745 | O15: 0.01832213327 | P15: 18.26316789 | Q15: 0.9956095275 | R15: 0.2096261586 | T15: 追加
A16: 0.0052 | B16: 1.676845043 | C16: 2.046009499 | D16: 2.438518085 | L16: 0.0022 | M16: 2.069364013 | N16: 0.1173003608 | O16: 0.01875527054 | P16: 17.64158268 | Q16: 0.9954008454 | R16: 0.2196083567 | U16: 1/θ=15 | X16: 1/θ=30 | AA16: 1/θ=50
A17: 0.0053 | B17: 1.669141917 | C17: 2.01769309 | D17: 2.39997524 | L17: 0.0023 | M17: 2.046816837 | N17: 0.1199240585 | O17: 0.0191788039 | P17: 17.06760814 | Q17: 0.9951921986 | R17: 0.2295905547 | T17: Ho'/Lo | U17: h/Ho' | V17: h/Lo | W17: Ks | X17: h/Ho' | Y17: h/Lo | Z17: Ks | AA17: h/Ho' | AB17: h/Lo | AC17: Ks
A18: 0.0054 | B18: 1.661622099 | C18: 1.990595264 | D18: 2.362963014 | L18: 0.0024 | M18: 2.025473258 | N18: 0.1224904998 | O18: 0.01959335625 | P18: 16.53575797 | Q18: 0.9949835873 | R18: 0.2395727527 | T18: 0.0005 | U18: 5.35 | V18: =T18*U18 -> 0.002675 | W18: =KSN_M(T18,V18) -> 3.568014956 | X18: 5.85 | Y18: =T18*X18 -> 0.002925 | Z18: =KSN_M(T18,Y18) -> 3.292243915 | AA18: 6.1 | AB18: =T18*AA18 -> 0.00305 | AC18: =KSN_M(T18,AB18) -> 3.17191735
A19: 0.0055 | B19: 1.654278022 | C19: 1.964651274 | D19: 2.327398359 | L19: 0.0025 | M19: 2.005223165 | N19: 0.1250032116 | O19: 0.01999948616 | P19: 16.04137318 | Q19: 0.9947750113 | R19: 0.2495549508 | T19: 0.001 | U19: 4.3 | V19: =T19*U19 -> 0.0043 | W19: =KSN_M(T19,V19) -> 2.871826626 | X19: 4.75 | Y19: =T19*X19 -> 0.00475 | Z19: =KSN_M(T19,Y19) -> 2.633482191 | AA19: 4.9 | AB19: =T19*AA19 -> 0.0049 | AC19: =KSN_M(T19,AB19) -> 2.564262955
A20: 0.0056 | B20: 1.647102563 | C20: 1.939801047 | D20: 2.293204186 | L20: 0.0026 | M20: 1.985970424 | N20: 0.1274653714 | O20: 0.02039769682 | P20: 15.58047023 | Q20: 0.9945664707 | R20: 0.2595371488 | T20: 0.002 | U20: 3.5 | V20: 0.007 | W20: 2.306011766 | X20: 3.85 | Y20: 0.0077 | Z20: 2.130577887 | AA20: 4 | AB20: 0.008 | AC20: 2.065511357
A21: 0.0057 | B21: 1.640089008 | C21: 1.915988776 | D21: 2.260308841 | L21: 0.0027 | M21: 1.967630643 | N21: 0.1298798544 | O21: 0.02078844339 | P21: 15.14962157 | Q21: 0.9943579656 | R21: 0.2695193468 | T21: 0.005 | U21: 2.7 | V21: 0.0135 | W21: 1.741886804 | X21: 2.95 | Y21: 0.01475 | Z21: 1.629641052 | AA21: 3.1 | AB21: 0.0155 | AC21: 1.572220609
A22: 0.0058 | B22: 1.633231021 | C22: 1.893162548 | D22: 2.228645632 | E22: =KSN_M(E$3,$A22) -> 2.71267646 | L22: 0.0028 | M22: 1.950129368 | N22: 0.132249272 | O22: 0.02117213923 | P22: 14.74586089 | Q22: 0.9941494958 | R22: 0.2795015449 | T22: 0.01 | U22: 2.25 | V22: 0.0225 | W22: 1.425757479 | X22: 2.5 | Y22: 0.025 | Z22: 1.330513303 | AA22: 2.6 | AB22: 0.026 | AC22: 1.298884457
A23: 0.0059 | B23: 1.626522617 | C23: 1.871274019 | D23: 2.198152412 | E23: 2.672122804 | L23: 0.0029 | M23: 1.933400604 | N23: 0.1345760048 | O23: 0.02154916104 | P23: 14.36660723 | Q23: 0.9939410616 | R23: 0.2894837429 | T23: 0.02 | U23: 1.95 | V23: 0.039 | W23: 1.175113857 | X23: 2.2 | Y23: 0.044 | Z23: 1.107471891 | AA23: 2.3 | AB23: 0.046 | AC23: 1.08713179
A24: 0.006 | B24: 1.619958141 | C24: 1.850278114 | D24: 2.168771199 | E24: 2.63298266 | L24: 0.003 | M24: 1.9173856 | N24: 0.1368622299 | O24: 0.02191985328 | P24: 14.00960368 | Q24: 0.9937326628 | R24: 0.2994659409 | T24: 0.03 | U24: 1.85 | V24: 0.0555 | W24: 1.060444031 | X24: 2.1 | Y24: 0.063 | Z24: 1.017105851 | AA24: 2.2 | AB24: 0.066 | AC24: 1.003676502
A25: 0.0061 | B25: 1.613532237 | C25: 1.830132757 | D25: 2.140447832 | E25: 2.595186557 | L25: 0.0031 | M25: 1.902031847 | N25: 0.1391099447 | O25: 0.02228453191 | P25: 13.67286754 | Q25: 0.9935242994 | R25: 0.309448139 | T25: 0.04 | U25: 1.8 | V25: 0.072 | W25: 1.002025006 | X25: 2.1 | Y25: 0.084 | Z25: 0.9588505142 | AA25: 2.2 | AB25: 0.088 | AC25: 0.9461903392
A26: 0.0062 | B26: 1.607239836 | C26: 1.810798631 | D26: 2.113131666 | E26: 2.558669523 | L26: 0.0032 | M26: 1.887292233 | N26: 0.1413209866 | O26: 0.02264348754 | P26: 13.35464943 | Q26: 0.9933159716 | R26: 0.319430337 | T26: 0.05 | U26: 1.85 | V26: 0.0925 | W26: 0.9516370704 | X26: 2.15 | Y26: 0.1075 | Z26: 0.9272181524 | AA26: 2.25 | AB26: 0.1125 | AC26: 0.9241868527
A27: 0.0063 | B27: 1.601076128 | C27: 1.79223896 | D27: 2.086775289 | E27: 2.52337072 | L27: 0.0033 | M27: 1.873124346 | N27: 0.1434970512 | O27: 0.02299698825 | P27: 13.05339957 | Q27: 0.9931076792 | R27: 0.329412535 | AH27: 1/θ=20 | AJ27: グループ化して名前を付ける「図_1_20」 | AQ27: 1/θ=30 | AS27: グループ化して名前を付ける「図_1_30」
A28: 0.0064 | B28: 1.595036552 | C28: 1.774419308 | D28: 2.06133427 | E28: 2.489233131 | L28: 0.0034 | M28: 1.859489874 | N28: 0.1456397063 | O28: 0.0233452819 | P28: 12.76773979 | Q28: 0.9928994224 | R28: 0.339394733
A29: 0.0065 | B29: 1.589116777 | C29: 1.7573074 | D29: 2.036766932 | E29: 2.456203253 | L29: 0.0035 | M29: 1.846354103 | N29: 0.1477504056 | O29: 0.02368859826 | P29: 12.49644017 | Q29: 0.992691201 | R29: 0.3493769311
A30: 0.0066 | B30: 1.583312683 | C30: 1.740872958 | D30: 2.01303414 | E30: 2.424230842 | L30: 0.0036 | M30: 1.833685491 | N30: 0.1498304997 | O30: 0.02402715074 | P30: 12.23839936 | Q30: 0.9924830152 | R30: 0.3593591291
A31: 0.0067 | B31: 1.577620356 | C31: 1.725087554 | D31: 1.990099111 | E31: 2.393268661 | L31: 0.0037 | M31: 1.821455295 | N31: 0.1518812461 | O31: 0.02436113803 | P31: 11.99262807 | Q31: 0.992274865 | R31: 0.3693413271
A32: 0.0068 | B32: 1.572036067 | C32: 1.70992447 | D32: 1.967927244 | E32: 2.363272262 | L32: 0.0038 | M32: 1.809637257 | N32: 0.1539038182 | O32: 0.02469074546 | P32: 11.75823497 | Q32: 0.9920667503 | R32: 0.3793235252
A33: 0.0069 | B33: 1.566556265 | C33: 1.695358577 | D33: 1.946485958 | E33: 2.334199784 | L33: 0.0039 | M33: 1.798207331 | N33: 0.1558993126 | O33: 0.02501614622 | P33: 11.53441475 | Q33: 0.9918586712 | R33: 0.3893057232
A34: 0.007 | B34: 1.561177564 | C34: 1.681366223 | D34: 1.925744551 | E34: 2.306011766 | L34: 0.004 | M34: 1.787143443 | N34: 0.1578687563 | O34: 0.02533750246 | P34: 11.32043784 | Q34: 0.9916506276 | R34: 0.3992879212
A35: 0.0071 | B35: 1.555896735 | C35: 1.667936722 | D35: 1.905674064 | E35: 2.278670979 | L35: 0.0041 | M35: 1.776425287 | N35: 0.1598131124 | O35: 0.02565496622 | P35: 11.11564164 | Q35: 0.9914426197 | R35: 0.4092701193
A36: 0.0072 | B36: 1.550710696 | C36: 1.655023228 | D36: 1.886247162 | E36: 2.252142271 | L36: 0.0042 | M36: 1.766034144 | N36: 0.1617332859 | O36: 0.02596868033 | P36: 10.91942289 | Q36: 0.9912346474 | R36: 0.4192523173
A37: 0.0073 | B37: 1.545616502 | C37: 1.6426207 | D37: 1.867438024 | E37: 2.226392422 | L37: 0.0043 | M37: 1.755952724 | N37: 0.1636301282 | O37: 0.02627877915 | P37: 10.73123112 | Q37: 0.9910267107 | R37: 0.4292345153
A38: 0.0074 | B38: 1.540611339 | C38: 1.630710331 | D38: 1.849222236 | E38: 2.201390016 | L38: 0.0044 | M38: 1.746165025 | N38: 0.1655044416 | O38: 0.02658538924 | P38: 10.55056292 | Q38: 0.9908188096 | R38: 0.4392167134
A39: 0.0075 | B39: 1.535692515 | C39: 1.619274365 | D39: 1.831576703 | E39: 2.177105321 | L39: 0.0045 | M39: 1.736656211 | N39: 0.1673569831 | O39: 0.02688863002 | P39: 10.37695696 | Q39: 0.9906109442 | R39: 0.4491989114
A40: 0.0076 | B40: 1.530857454 | C40: 1.608296023 | D40: 1.814479555 | E40: 2.153510176 | L40: 0.0046 | M40: 1.727412505 | N40: 0.1691884681 | O40: 0.02718861428 | P40: 10.20998963 | Q40: 0.9904031144 | R40: 0.4591811094
A41: 0.0077 | B41: 1.526103689 | C41: 1.597759445 | D41: 1.797910075 | E41: 2.130577887 | L41: 0.0047 | M41: 1.718421091 | N41: 0.1709995732 | O41: 0.02748544872 | P41: 10.04927123 | Q41: 0.9901953203 | R41: 0.4691633074
A42: 0.0078 | B42: 1.521428858 | C42: 1.587649623 | D42: 1.781848621 | E42: 2.108283139 | L42: 0.0048 | M42: 1.709659597 | N42: 0.1727909393 | O42: 0.02777923437 | P42: 9.894382215 | Q42: 0.9899875619 | R42: 0.4791455055
A43: 0.0079 | B43: 1.516830696 | C43: 1.577952351 | D43: 1.766276557 | E43: 2.086601903 | L43: 0.0049 | M43: 1.701137363 | N43: 0.1745631742 | O43: 0.02807006702 | P43: 9.74511016 | Q43: 0.9897798392 | R43: 0.4891277035
A44: 0.008 | B44: 1.512307029 | C44: 1.568654173 | D44: 1.751176193 | E44: 2.065511357 | L44: 0.005 | M44: 1.692833919 | N44: 0.176316855 | O44: 0.02835803759 | P44: 9.601089578 | Q44: 0.9895721522 | R44: 0.4991099015
A45: 0.0081 | B45: 1.507855772 | C45: 1.559742336 | D45: 1.736530723 | E45: 2.044989814 | L45: 0.0051 | M45: 1.684739522 | N45: 0.1780525298 | O45: 0.02864323245 | P45: 9.462036418 | Q45: 0.989364501 | R45: 0.5090920996
A46: 0.0082 | B46: 1.503474924 | C46: 1.551204746 | D46: 1.722324175 | E46: 2.025016647 | L46: 0.0052 | M46: 1.676845043 | N46: 0.1797707205 | O46: 0.02892573377 | P46: 9.327687168 | Q46: 0.9891568854 | R46: 0.5190742976
A47: 0.0083 | B47: 1.499162562 | C47: 1.54302993 | D47: 1.708541359 | E47: 2.005572232 | L47: 0.0053 | M47: 1.669141917 | N47: 0.1814719236 | O47: 0.02920561977 | P47: 9.197797011 | Q47: 0.9889493057 | R47: 0.5290564956
A48: 0.0084 | B48: 1.494916837 | C48: 1.535206996 | D48: 1.695167817 | E48: 1.986637883 | L48: 0.0054 | M48: 1.661622099 | N48: 0.1831566127 | O48: 0.02948296499 | P48: 9.072138177 | Q48: 0.9887417616 | R48: 0.5390386937
A49: 0.0085 | B49: 1.490735973 | C49: 1.527725601 | D49: 1.682189788 | E49: 1.968195799 | L49: 0.0055 | M49: 1.654278022 | N49: 0.1848252394 | O49: 0.02975784053 | P49: 8.950498468 | Q49: 0.9885342534 | R49: 0.5490208917
A50: 0.0086 | B50: 1.486618259 | C50: 1.520575915 | D50: 1.66959416 | E50: 1.950229011 | L50: 0.0056 | M50: 1.647102563 | N50: 0.186478235 | O50: 0.03003031427 | P50: 8.83267993 | Q50: 0.9883267809 | R50: 0.5590030897
A51: 0.0087 | B51: 1.48256205 | C51: 1.513748598 | D51: 1.657368434 | E51: 1.932721337 | L51: 0.0057 | M51: 1.640089008 | N51: 0.1881160116 | O51: 0.03030045105 | P51: 8.718497667 | Q51: 0.9881193443 | R51: 0.5689852878
A52: 0.0088 | B52: 1.478565763 | C52: 1.507234764 | D52: 1.645500693 | E52: 1.915657333 | L52: 0.0058 | M52: 1.633231021 | N52: 0.1897389634 | O52: 0.03056831289 | P52: 8.607778769 | Q52: 0.9879119435 | R52: 0.5789674858 | AH52: 1/θ=100 | AJ52: グループ化して名前を付ける「図_1_100」 | AQ52: 1/θ=50 | AS52: グループ化して名前を付ける「図_1_50」
A53: 0.0089 | B53: 1.47462787 | C53: 1.50102596 | D53: 1.633979566 | E53: 1.899022256 | L53: 0.0059 | M53: 1.626522617 | N53: 0.1913474677 | O53: 0.03083395913 | P53: 8.500361341 | Q53: 0.9877045784 | R53: 0.5889496838
A54: 0.009 | B54: 1.470746902 | C54: 1.495114142 | D54: 1.622794198 | E54: 1.882802022 | L54: 0.006 | M54: 1.619958141 | N54: 0.192941886 | O54: 0.03109744661 | P54: 8.396093634 | Q54: 0.9874972493 | R54: 0.5989318818
A55: 0.0091 | B55: 1.46692144 | C55: 1.489491651 | D55: 1.611934222 | E55: 1.86698317 | L55: 0.0061 | M55: 1.613532237 | N55: 0.1945225647 | O55: 0.0313588298 | P55: 8.294833248 | Q55: 0.9872899559 | R55: 0.6089140799
A56: 0.0092 | B56: 1.463150117 | C56: 1.48415691 | D56: 1.601389733 | E56: 1.85155283 | L56: 0.0062 | M56: 1.607239836 | N56: 0.1960898362 | O56: 0.03161816094 | P56: 8.196446418 | Q56: 0.9870826985 | R56: 0.6188962779
A57: 0.0093 | B57: 1.459431614 | C57: 1.479104629 | D57: 1.591151263 | E57: 1.836498687 | L57: 0.0063 | M57: 1.601076128 | N57: 0.1976440195 | O57: 0.03187549017 | P57: 8.100807361 | Q57: 0.9868754769 | R57: 0.6288784759
A58: 0.0094 | B58: 1.455764656 | C58: 1.474591685 | D58: 1.581209757 | E58: 1.821808958 | L58: 0.0064 | M58: 1.595036552 | N58: 0.199185421 | O58: 0.03213086564 | P58: 8.00779768 | Q58: 0.9866682912 | R58: 0.638860674
A59: 0.0095 | B59: 1.452148015 | C59: 1.470140049 | D59: 1.571556552 | E59: 1.807472359 | L59: 0.0065 | M59: 1.589116777 | N59: 0.2007143353 | O59: 0.03238433363 | P59: 7.917305826 | Q59: 0.9864611414 | R59: 0.648842872
A60: 0.0096 | B60: 1.448580502 | C60: 1.465748257 | D60: 1.562183356 | E60: 1.793478078 | L60: 0.0066 | M60: 1.583312683 | N60: 0.2022310458 | O60: 0.03263593863 | P60: 7.8292266 | Q60: 0.9862540275 | R60: 0.65882507
A61: 0.0097 | B61: 1.445060969 | C61: 1.461414893 | D61: 1.553092866 | E61: 1.779815757 | L61: 0.0067 | M61: 1.577620356 | N61: 0.203735825 | O61: 0.03288572345 | P61: 7.743460708 | Q61: 0.9860469496 | R61: 0.6688072681
A62: 0.0098 | B62: 1.441588307 | C62: 1.45713859 | D62: 1.544254374 | E62: 1.76647546 | L62: 0.0068 | M62: 1.572036067 | N62: 0.2052289356 | O62: 0.03313372932 | P62: 7.659914342 | Q62: 0.9858399076 | R62: 0.6787894661
A63: 0.0099 | B63: 1.438161443 | C63: 1.452918025 | D63: 1.535673337 | E63: 1.753447661 | L63: 0.0069 | M63: 1.566556265 | N63: 0.2067106303 | O63: 0.03337999594 | P63: 7.578498804 | Q63: 0.9856329015 | R63: 0.6887716641
A64: 0.01 | B64: 1.434779339 | C64: 1.44875192 | D64: 1.527342732 | E64: 1.740723215 | L64: 0.007 | M64: 1.561177564 | N64: 0.2081811531 | O64: 0.03362456157 | P64: 7.499130158 | Q64: 0.9854259315 | R64: 0.6987538622
A65: 0.0101 | B65: 1.43144099 | C65: 1.444639037 | D65: 1.519255827 | E65: 1.728293345 | L65: 0.0071 | M65: 1.555896735 | N65: 0.2096407392 | O65: 0.03386746311 | P65: 7.421728913 | Q65: 0.9852189974 | R65: 0.7087360602
A66: 0.0102 | B66: 1.428145425 | C66: 1.44057818 | D66: 1.511406164 | E66: 1.716149622 | L66: 0.0072 | M66: 1.550710696 | N66: 0.2110896154 | O66: 0.03410873617 | P66: 7.346219723 | Q66: 0.9850120992 | R66: 0.7187182582
A67: 0.0103 | B67: 1.424891701 | C67: 1.436568191 | D67: 1.503787552 | E67: 1.704283947 | L67: 0.0073 | M67: 1.545616502 | N67: 0.212528001 | O67: 0.03434841511 | P67: 7.272531126 | Q67: 0.9848052371 | R67: 0.7287004562
A68: 0.0104 | B68: 1.421678907 | C68: 1.432607947 | D68: 1.496394047 | E68: 1.692688538 | L68: 0.0074 | M68: 1.540611339 | N68: 0.2139561075 | O68: 0.03458653313 | P68: 7.200595286 | Q68: 0.984598411 | R68: 0.7386826543
A69: 0.0105 | B69: 1.41850616 | C69: 1.428696362 | D69: 1.489219943 | E69: 1.68135591 | F69: =KSN_M(F$3,$A69) -> 2.135045098 | L69: 0.0075 | M69: 1.535692515 | N69: 0.2153741395 | O69: 0.03482312229 | P69: 7.130347766 | Q69: 0.984391621 | R69: 0.7486648523
A70: 0.0106 | B70: 1.415372604 | C70: 1.424832384 | D70: 1.482259763 | E70: 1.670278866 | F70: 2.118034717 | L70: 0.0076 | M70: 1.530857454 | N70: 0.2167822949 | O70: 0.03505821361 | P70: 7.061727316 | Q70: 0.9841848669 | R70: 0.7586470503
A71: 0.0107 | B71: 1.412277408 | C71: 1.42101499 | D71: 1.475508243 | E71: 1.659450481 | F71: 2.101363679 | L71: 0.0077 | M71: 1.526103689 | N71: 0.2181807649 | O71: 0.03529183705 | P71: 6.994675676 | Q71: 0.983978149 | R71: 0.7686292484 | AD71: グラフ表示用（浅水における波の特性）
A72: 0.0108 | B72: 1.409219768 | C72: 1.417243194 | D72: 1.468960326 | E72: 1.648864091 | F72: 2.085022597 | L72: 0.0078 | M72: 1.521428858 | N72: 0.2195697346 | O72: 0.03552402162 | P72: 6.929137392 | Q72: 0.9837714671 | R72: 0.7786114464 | AD72: h/Lo | AE72: H/Ho'
A73: 0.0109 | B73: 1.406198902 | C73: 1.413516034 | D73: 1.462611152 | E73: 1.638513279 | F73: 2.069002428 | L73: 0.0079 | M73: 1.516830696 | N73: 0.2209493833 | O73: 0.03575479542 | P73: 6.865059647 | Q73: 0.9835648213 | R73: 0.7885936444 | AD73: 0.001 | AE73: ='3.5.2 浅水変形'!D44 -> 2.119
A74: 0.011 | B74: 1.403214054 | C74: 1.409832581 | D74: 1.456456047 | E74: 1.628391863 | F74: 2.053294463 | L74: 0.008 | M74: 1.512307029 | N74: 0.2223198847 | O74: 0.03598418563 | P74: 6.802392105 | Q74: 0.9833582115 | R74: 0.7985758425 | AD74: ='3.5.2 浅水変形'!C44 -> 0.002 | AE74: ='3.5.2 浅水変形'!D44 -> 2.119
A75: 0.0111 | B75: 1.400264487 | C75: 1.406191932 | D75: 1.450490516 | E75: 1.618493891 | F75: 2.037890306 | L75: 0.0081 | M75: 1.507855772 | N75: 0.2236814069 | O75: 0.03621221859 | P75: 6.741086767 | Q75: 0.9831516379 | R75: 0.8085580405 | AD75: ='3.5.2 浅水変形'!C44 -> 0.002 | AE75: 0.01
A76: 0.0112 | B76: 1.397349488 | C76: 1.40259321 | D76: 1.444710234 | E76: 1.608813624 | F76: 2.022781861 | L76: 0.0082 | M76: 1.503474924 | N76: 0.225034113 | O76: 0.03643891982 | P76: 6.681097832 | Q76: 0.9829451004 | R76: 0.8185402385
A77: 0.0113 | B77: 1.394468363 | C77: 1.399035565 | D77: 1.43911104 | E77: 1.599345529 | F77: 2.007961322 | L77: 0.0083 | M77: 1.499162562 | N77: 0.226378161 | O77: 0.03666431409 | P77: 6.622381572 | Q77: 0.9827385991 | R77: 0.8285224366
A78: 0.0114 | B78: 1.39162044 | C78: 1.39551817 | D78: 1.433688928 | E78: 1.590084273 | F78: 1.993421158 | L78: 0.0084 | M78: 1.494916837 | N78: 0.2277137045 | O78: 0.03688842539 | P78: 6.564896217 | Q78: 0.9825321338 | R78: 0.8385046346 | AC78: 0.01 | AD78: 0.001
A79: 0.0115 | B79: 1.388805064 | C79: 1.392040223 | D79: 1.42844004 | E79: 1.581024709 | F79: 1.979154099 | L79: 0.0085 | M79: 1.490735973 | N79: 0.2290408922 | O79: 0.03711127702 | P79: 6.508601841 | Q79: 0.9823257048 | R79: 0.8484868326 | AC79: 100 | AD79: 100 | AE79: 100
A80: 0.0116 | B80: 1.386021599 | C80: 1.388600944 | D80: 1.423360663 | E80: 1.572161873 | F80: 1.965153128 | L80: 0.0086 | M80: 1.486618259 | N80: 0.2303598687 | O80: 0.03733289158 | P80: 6.453460265 | Q80: 0.9821193119 | R80: 0.8584690306 | AC80: =AC79 -> 100 | AD80: =AD79 -> 100 | AE80: =AE79 -> 100
A81: 0.0117 | B81: 1.383269426 | C81: 1.385199575 | D81: 1.418447218 | E81: 1.563490971 | F81: 1.951411471 | L81: 0.0087 | M81: 1.48256205 | N81: 0.2316707741 | O81: 0.03755329101 | P81: 6.399434956 | Q81: 0.9819129552 | R81: 0.8684512287 | AC81: =AC78 -> 0.01 | AD81: =AD78 -> 0.001 | AE81: =AE79-(AE$79*0.05) -> 95
A82: 0.0118 | B82: 1.380547946 | C82: 1.38183538 | D82: 1.413696258 | E82: 1.555007377 | F82: 1.937922581 | L82: 0.0088 | M82: 1.478565763 | N82: 0.232973745 | O82: 0.03777249664 | P82: 6.346490943 | Q82: 0.9817066346 | R82: 0.8784334267 | AC82: =AC78 -> 0.01 | AD82: =AD78 -> 0.001 | AE82: =AE81 -> 95
A83: 0.0119 | B83: 1.377856574 | C83: 1.378507643 | D83: 1.409104458 | E83: 1.546706623 | F83: 1.924680136 | L83: 0.0089 | M83: 1.47462787 | N83: 0.2342689137 | O83: 0.03799052917 | P83: 6.294594732 | Q83: 0.9815003503 | R83: 0.8884156247 | AC83: =AC79 -> 100 | AD83: 100 | AE83: =AE81-(AE$79*0.05) -> 90
A84: 0.012 | B84: 1.37519474 | C84: 1.375215667 | D84: 1.404668617 | E84: 1.538584392 | F84: 1.911678022 | L84: 0.009 | M84: 1.470746902 | N84: 0.235556409 | O84: 0.03820740873 | P84: 6.243714225 | Q84: 0.9812941022 | R84: 0.8983978228 | AC84: 100 | AD84: 100 | AE84: =AE83 -> 90
A85: 0.0121 | B85: 1.372561892 | C85: 1.372561892 | D85: 1.400385644 | E85: 1.530636514 | F85: 1.89891033 | L85: 0.0091 | M85: 1.46692144 | N85: 0.2368363562 | O85: 0.0384231549 | P85: 6.19381865 | Q85: 0.9810878904 | R85: 0.9083800208 | AC85: 0.01 | AD85: 0.001 | AE85: =AE83-(AE$79*0.05) -> 85
A86: 0.0122 | B86: 1.369957491 | C86: 1.369957491 | D86: 1.396252563 | E86: 1.522858958 | F86: 1.886371348 | L86: 0.0092 | M86: 1.463150117 | N86: 0.238108877 | O86: 0.0386377867 | P86: 6.144878493 | Q86: 0.9808817148 | R86: 0.9183622188 | AC86: 0.01 | AD86: 0.001 | AE86: =AE85 -> 85
A87: 0.0123 | B87: 1.367381014 | C87: 1.367381014 | D87: 1.392266499 | E87: 1.515247827 | F87: 1.874055546 | L87: 0.0093 | M87: 1.459431614 | N87: 0.2393740899 | O87: 0.03885132265 | P87: 6.096865431 | Q87: 0.9806755754 | R87: 0.9283444169 | AC87: 100 | AD87: 100 | AE87: =AE85-(AE$79*0.05) -> 80
A88: 0.0124 | B88: 1.364831949 | C88: 1.364831949 | D88: 1.38842468 | E88: 1.507799353 | F88: 1.861957577 | L88: 0.0094 | M88: 1.455764656 | N88: 0.2406321103 | O88: 0.03906378076 | P88: 6.049752273 | Q88: 0.9804694724 | R88: 0.9383266149 | AC88: 100 | AD88: 100 | AE88: =AE87 -> 80
A89: 0.0125 | B89: 1.3623098 | C89: 1.3623098 | D89: 1.384735817 | E89: 1.500509892 | F89: 1.850072266 | L89: 0.0095 | M89: 1.452148015 | N89: 0.2418830505 | O89: 0.03927517857 | P89: 6.003512905 | Q89: 0.9802634056 | R89: 0.9483088129 | AC89: 0.01 | AD89: 0.001 | AE89: =AE87-(AE$79*0.05) -> 75
A90: 0.0126 | B90: 1.359814083 | C90: 1.359814083 | D90: 1.38116558 | E90: 1.493375917 | F90: 1.8383946 | L90: 0.0096 | M90: 1.448580502 | N90: 0.2431270198 | O90: 0.03948553316 | P90: 5.958122233 | Q90: 0.9800573751 | R90: 0.9582910109 | AC90: 0.01 | AD90: 0.001 | AE90: =AE89 -> 75
A91: 0.0127 | B91: 1.357344326 | C91: 1.357344326 | D91: 1.377770051 | E91: 1.486394017 | F91: 1.826919728 | L91: 0.0097 | M91: 1.445060969 | N91: 0.2443641247 | O91: 0.03969486114 | P91: 5.913556136 | Q91: 0.9798513809 | R91: 0.968273209 | AC91: 100 | AD91: 100 | AE91: =AE89-(AE$79*0.05) -> 70
A92: 0.0128 | B92: 1.35490007 | C92: 1.35490007 | D92: 1.374686052 | E92: 1.479560887 | F92: 1.81564295 | L92: 0.0098 | M92: 1.441588307 | N92: 0.2455944692 | O92: 0.03990317873 | P92: 5.869791417 | Q92: 0.9796454231 | R92: 0.978255407 | AC92: 100 | AD92: 100 | AE92: =AE91 -> 70
A93: 0.0129 | B93: 1.352480866 | C93: 1.352480866 | D93: 1.371632876 | E93: 1.472873333 | F93: 1.804559714 | L93: 0.0099 | M93: 1.438161443 | N93: 0.2468181543 | O93: 0.04011050171 | P93: 5.826805761 | Q93: 0.9794395015 | R93: 0.988237605 | AC93: 0.01 | AD93: 0.001 | AE93: =AE91-(AE$79*0.05) -> 65
A94: 0.013 | B94: 1.350086278 | C94: 1.350086278 | D94: 1.36860998 | E94: 1.466328256 | F94: 1.793665607 | L94: 0.01 | M94: 1.434779339 | N94: 0.2480352786 | O94: 0.04031684547 | P94: 5.784577689 | Q94: 0.9792336164 | R94: 0.9982198031 | AC94: 0.01 | AD94: 0.001 | AE94: =AE93 -> 65
A95: 0.0131 | B95: 1.34771588 | C95: 1.34771588 | D95: 1.365616834 | E95: 1.459922658 | F95: 1.782956353 | L95: 0.0101 | M95: 1.43144099 | N95: 0.2492459384 | O95: 0.04052222501 | P95: 5.743086524 | Q95: 0.9790277676 | R95: 1.008202001 | AC95: 100 | AD95: 100 | AE95: =AE93-(AE$79*0.05) -> 60
A96: 0.0132 | B96: 1.345369256 | C96: 1.345369256 | D96: 1.362652921 | E96: 1.453664348 | F96: 1.772427806 | L96: 0.0102 | M96: 1.428145425 | N96: 0.2504502275 | O96: 0.04072665496 | P96: 5.702312346 | Q96: 0.9788219551 | R96: 1.018184199 | AC96: 100 | AD96: 100 | AE96: =AE95 -> 60
A97: 0.0133 | B97: 1.343046002 | C97: 1.343046002 | D97: 1.359717737 | E97: 1.447527718 | F97: 1.762075946 | L97: 0.0103 | M97: 1.424891701 | N97: 0.2516482374 | O97: 0.04093014958 | P97: 5.662235967 | Q97: 0.9786161791 | R97: 1.028166397 | AC97: 0.01 | AD97: 0.001 | AE97: =AE95-(AE$79*0.05) -> 55
A98: 0.0134 | B98: 1.340745723 | C98: 1.340745723 | D98: 1.356810792 | E98: 1.441522271 | F98: 1.751896873 | L98: 0.0104 | M98: 1.421678907 | N98: 0.2528400574 | O98: 0.04113272282 | P98: 5.622838888 | Q98: 0.9784104394 | R98: 1.038148595 | AC98: 0.01 | AD98: 0.001 | AE98: =AE97 -> 55
A99: 0.0135 | B99: 1.338468032 | C99: 1.338468032 | D99: 1.353931606 | E99: 1.435645348 | F99: 1.741886804 | L99: 0.0105 | M99: 1.41850616 | N99: 0.2540257748 | O99: 0.04133438825 | P99: 5.584103273 | Q99: 0.9782047362 | R99: 1.048130793 | AC99: 100 | AD99: 100 | AE99: =AE97-(AE$79*0.05) -> 50
A100: 0.0136 | B100: 1.336212553 | C100: 1.336212553 | D100: 1.351079711 | E100: 1.429894371 | F100: 1.732042067 | L100: 0.0106 | M100: 1.415372604 | N100: 0.2552054746 | O100: 0.04153515914 | P100: 5.54601192 | Q100: 0.9779990694 | R100: 1.058112991 | AC100: 100 | AD100: 100 | AE100: =AE99 -> 50
A101: 0.0137 | B101: 1.333978919 | C101: 1.333978919 | D101: 1.34825465 | E101: 1.42426684 | F101: 1.7223591 | L101: 0.0107 | M101: 1.412277408 | N101: 0.25637924 | O101: 0.04173504844 | P101: 5.508548229 | Q101: 0.977793439 | R101: 1.068095189 | AC101: 0.01 | AD101: 0.001 | AE101: =AE99-(AE$79*0.05) -> 45
A102: 0.0138 | B102: 1.331766771 | C102: 1.331766771 | D102: 1.345455979 | E102: 1.418760331 | F102: 1.712834443 | L102: 0.0108 | M102: 1.409219768 | N102: 0.2575471522 | O102: 0.0419340688 | P102: 5.471696177 | Q102: 0.9775878451 | R102: 1.078077387 | AC102: 0.01 | AD102: 0.001 | AE102: =AE101 -> 45
A103: 0.0139 | B103: 1.329575758 | C103: 1.329575758 | D103: 1.342683261 | E103: 1.413372496 | F103: 1.703464737 | L103: 0.0109 | M103: 1.406198902 | N103: 0.2587092905 | O103: 0.04213223259 | P103: 5.435440295 | Q103: 0.9773822876 | R103: 1.088059585 | AC103: 100 | AD103: 100 | AE103: =AE101-(AE$79*0.05) -> 40
A104: 0.014 | B104: 1.327405539 | C104: 1.327405539 | D104: 1.339936072 | E104: 1.408101053 | F104: 1.694246721 | L104: 0.011 | M104: 1.403214054 | N104: 0.2598657325 | O104: 0.04232955186 | P104: 5.399765641 | Q104: 0.9771767667 | R104: 1.098041783 | AC104: 100 | AD104: 100 | AE104: =AE103 -> 40
A105: 0.0141 | B105: 1.32525578 | C105: 1.32525578 | D105: 1.337213997 | E105: 1.402943791 | F105: 1.685177225 | L105: 0.0111 | M105: 1.400264487 | N105: 0.261016554 | O105: 0.04252603841 | P105: 5.36465778 | Q105: 0.9769712822 | R105: 1.108023981 | AC105: 0.01 | AD105: 0.001 | AE105: =AE103-(AE$79*0.05) -> 35
A106: 0.0142 | B106: 1.323126153 | C106: 1.323126153 | D106: 1.334516631 | E106: 1.397898562 | F106: 1.676253171 | L106: 0.0112 | M106: 1.397349488 | N106: 0.2621618289 | O106: 0.04272170379 | P106: 5.330102759 | Q106: 0.9767658342 | R106: 1.118006179 | AC106: 0.01 | AD106: 0.001 | AE106: =AE105 -> 35
A107: 0.0143 | B107: 1.32101634 | C107: 1.32101634 | D107: 1.331843578 | E107: 1.392963284 | F107: 1.667471566 | L107: 0.0113 | M107: 1.394468363 | N107: 0.2633016299 | O107: 0.04291655925 | P107: 5.296087092 | Q107: 0.9765604227 | R107: 1.127988377 | AC107: 100 | AD107: 100 | AE107: =AE105-(AE$79*0.05) -> 30
A108: 0.0144 | B108: 1.318926029 | C108: 1.318926029 | D108: 1.329194452 | E108: 1.388135934 | F108: 1.658829503 | L108: 0.0114 | M108: 1.39162044 | N108: 0.2644360277 | O108: 0.04311061583 | P108: 5.262597734 | Q108: 0.9763550478 | R108: 1.137970576 | AC108: 100 | AD108: 100 | AE108: =AE107 -> 30
A109: 0.0145 | B109: 1.316854915 | C109: 1.316854915 | D109: 1.326568873 | E109: 1.383414548 | F109: 1.650324154 | L109: 0.0115 | M109: 1.388805064 | N109: 0.2655650916 | O109: 0.0433038843 | P109: 5.229622069 | Q109: 0.9761497094 | R109: 1.147952774 | AC109: 0.01 | AD109: 0.001 | AE109: =AE107-(AE$79*0.05) -> 25
A110: 0.0146 | B110: 1.3148027 | C110: 1.3148027 | D110: 1.323966472 | E110: 1.378797219 | F110: 1.641952771 | L110: 0.0116 | M110: 1.386021599 | N110: 0.2666888895 | O110: 0.04349637521 | P110: 5.197147888 | Q110: 0.9759444075 | R110: 1.157934972 | AC110: 0.01 | AD110: 0.001 | AE110: =AE109 -> 25
A111: 0.0147 | B111: 1.312769093 | C111: 1.312769093 | D111: 1.321386889 | E111: 1.374282095 | F111: 1.633712679 | L111: 0.0117 | M111: 1.383269426 | N111: 0.2678074877 | O111: 0.04368809887 | P111: 5.165163374 | Q111: 0.9757391423 | R111: 1.16791717 | AC111: 100 | AD111: 100 | AE111: =AE109-(AE$79*0.05) -> 20
A112: 0.0148 | B112: 1.310753809 | C112: 1.310753809 | D112: 1.318829769 | E112: 1.369867376 | F112: 1.625601279 | L112: 0.0118 | M112: 1.380547946 | N112: 0.2689209511 | O112: 0.0438790654 | P112: 5.133657086 | Q112: 0.9755339136 | R112: 1.177899368 | AC112: 100 | AD112: 100 | AE112: =AE111 -> 20
A113: 0.0149 | B113: 1.308756568 | C113: 1.308756568 | D113: 1.316294768 | E113: 1.365551315 | F113: 1.617616039 | L113: 0.0119 | M113: 1.377856574 | N113: 0.2700293434 | O113: 0.04406928466 | P113: 5.102617947 | Q113: 0.9753287214 | R113: 1.187881566 | AC113: 0.01 | AD113: 0.001 | AE113: =AE111-(AE$79*0.05) -> 15
A114: 0.015 | B114: 1.306777099 | C114: 1.306777099 | D114: 1.313781548 | E114: 1.361332213 | F114: 1.609754499 | L114: 0.012 | M114: 1.37519474 | N114: 0.2711327268 | O114: 0.04425876634 | P114: 5.072035222 | Q114: 0.9751235659 | R114: 1.197863764 | AC114: 0.01 | AD114: 0.001 | AE114: =AE113 -> 15
A115: 0.0151 | B115: 1.304815135 | C115: 1.304815135 | D115: 1.311289777 | E115: 1.357208418 | F115: 1.602014262 | L115: 0.0121 | M115: 1.372561892 | N115: 0.2722311622 | O115: 0.0444475199 | P115: 5.041898513 | Q115: 0.9749184471 | R115: 1.207845962 | AC115: 100 | AD115: 100 | AE115: =AE79/10 -> 10
A116: 0.0152 | B116: 1.302870414 | C116: 1.302870414 | D116: 1.308819133 | E116: 1.353178326 | F116: 1.594392995 | L116: 0.0122 | M116: 1.369957491 | N116: 0.2733247095 | O116: 0.04463555463 | P116: 5.012197741 | Q116: 0.9747133648 | R116: 1.21782816 | AC116: 100 | AD116: 100 | AE116: =AE80/10 -> 10
A117: 0.0153 | B117: 1.300942681 | C117: 1.300942681 | D117: 1.3063693 | E117: 1.349240376 | F117: 1.586888429 | L117: 0.0123 | M117: 1.367381014 | N117: 0.274413427 | O117: 0.0448228796 | P117: 4.982923134 | Q117: 0.9745083192 | R117: 1.227810358 | AC117: 0.01 | AD117: 0.001 | AE117: 9.5
A118: 0.0154 | B118: 1.299031687 | C118: 1.299031687 | D118: 1.303939968 | E118: 1.345393052 | F118: 1.579498351 | L118: 0.0124 | M118: 1.364831949 | N118: 0.2754973722 | O118: 0.04500950373 | P118: 4.954065218 | Q118: 0.9743033102 | R118: 1.237792556 | AC118: 0.01 | AD118: 0.001 | AE118: 9.5
A119: 0.0155 | B119: 1.297137186 | C119: 1.297137186 | D119: 1.301530833 | E119: 1.341634878 | F119: 1.572220609 | L119: 0.0125 | M119: 1.3623098 | N119: 0.2765766011 | O119: 0.04519543573 | P119: 4.925614802 | Q119: 0.974098338 | R119: 1.247774754 | AC119: 100 | AD119: 100 | AE119: 9
A120: 0.0156 | B120: 1.295258939 | C120: 1.295258939 | D120: 1.299141599 | E120: 1.337964419 | F120: 1.565053105 | L120: 0.0126 | M120: 1.359814083 | N120: 0.2776511689 | O120: 0.04538068415 | P120: 4.897562969 | Q120: 0.9738934024 | R120: 1.257756952 | AC120: 100 | AD120: 100 | AE120: 9
A121: 0.0157 | B121: 1.293396711 | C121: 1.293396711 | D121: 1.296771977 | E121: 1.33438028 | F121: 1.557993795 | L121: 0.0127 | M121: 1.357344326 | N121: 0.2787211296 | O121: 0.04556525736 | P121: 4.869901067 | Q121: 0.9736885035 | R121: 1.26773915 | AC121: 0.01 | AD121: 0.001 | AE121: 8.5
A122: 0.0158 | B122: 1.291550272 | C122: 1.291550272 | D122: 1.29442168 | E122: 1.330881101 | F122: 1.551040689 | L122: 0.0128 | M122: 1.35490007 | N122: 0.2797865359 | O122: 0.04574916358 | P122: 4.842620698 | Q122: 0.9734836413 | R122: 1.277721348 | AC122: 0.01 | AD122: 0.001 | AE122: 8.5
A123: 0.0159 | B123: 1.289719397 | C123: 1.289719397 | D123: 1.292090432 | E123: 1.327465563 | F123: 1.544191846 | L123: 0.0129 | M123: 1.352480866 | N123: 0.28084744 | O123: 0.04593241085 | P123: 4.815713706 | Q123: 0.9732788158 | R123: 1.287703546 | AC123: 100 | AD123: 100 | AE123: 8
A124: 0.016 | B124: 1.287903867 | C124: 1.287903867 | D124: 1.289777959 | E124: 1.32413238 | F124: 1.537445374 | L124: 0.013 | M124: 1.350086278 | N124: 0.2819038925 | O124: 0.04611500708 | P124: 4.789172174 | Q124: 0.973074027 | R124: 1.297685744 | AC124: 100 | AD124: 100 | AE124: 8
A125: 0.0161 | B125: 1.286103463 | C125: 1.286103463 | D125: 1.287483994 | E125: 1.320880299 | F125: 1.530799431 | L125: 0.0131 | M125: 1.34771588 | N125: 0.2829559436 | O125: 0.04629696 | P125: 4.76298841 | Q125: 0.972869275 | R125: 1.307667942 | AC125: 0.01 | AD125: 0.001 | AE125: 7.5
A126: 0.0162 | B126: 1.284317977 | C126: 1.284317977 | D126: 1.285208276 | E126: 1.317708103 | F126: 1.524252218 | L126: 0.0132 | M126: 1.345369256 | N126: 0.284003642 | O126: 0.0464782772 | P126: 4.737154942 | Q126: 0.9726645598 | R126: 1.31765014 | AC126: 0.01 | AD126: 0.001 | AE126: 7.5
A127: 0.0163 | B127: 1.282547198 | C127: 1.282547198 | D127: 1.282950547 | E127: 1.314614606 | F127: 1.517801984 | L127: 0.0133 | M127: 1.343046002 | N127: 0.285047036 | O127: 0.04665896614 | P127: 4.711664507 | Q127: 0.9724598813 | R127: 1.327632338 | AC127: 100 | AD127: 100 | AE127: 7
A128: 0.0164 | B128: 1.280790925 | C128: 1.280790925 | D128: 1.280790925 | E128: 1.311598654 | F128: 1.511447017 | L128: 0.0134 | M128: 1.340745723 | N128: 0.2860861726 | O128: 0.04683903413 | P128: 4.686510049 | Q128: 0.9722552396 | R128: 1.337614536 | AC128: 100 | AD128: 100 | AE128: 7
A129: 0.0165 | B129: 1.279048959 | C129: 1.279048959 | D129: 1.279048959 | E129: 1.308659122 | F129: 1.505185651 | L129: 0.0135 | M129: 1.338468032 | N129: 0.2871210981 | O129: 0.04701848833 | P129: 4.661684705 | Q129: 0.9720506348 | R129: 1.347596734 | AC129: 0.01 | AD129: 0.001 | AE129: 6.5
A130: 0.0166 | B130: 1.277321102 | C130: 1.277321102 | D130: 1.277321102 | E130: 1.305794916 | F130: 1.499016259 | L130: 0.0136 | M130: 1.336212553 | N130: 0.288151858 | O130: 0.04719733578 | P130: 4.637181803 | Q130: 0.9718460667 | R130: 1.357578932 | AC130: 0.01 | AD130: 0.001 | AE130: 6.5
A131: 0.0167 | B131: 1.275607166 | C131: 1.275607166 | D131: 1.275607166 | E131: 1.30300497 | F131: 1.492937254 | L131: 0.0137 | M131: 1.333978919 | N131: 0.289178497 | O131: 0.0473755834 | P131: 4.612994855 | Q131: 0.9716415354 | R131: 1.36756113 | AC131: 100 | AD131: 100 | AE131: 6
A132: 0.0168 | B132: 1.27390696 | C132: 1.27390696 | D132: 1.27390696 | E132: 1.300288245 | F132: 1.486947088 | L132: 0.0138 | M132: 1.331766771 | N132: 0.2902010586 | O132: 0.04755323797 | P132: 4.589117548 | Q132: 0.971437041 | R132: 1.377543328 | AC132: 100 | AD132: 100 | AE132: 6
A133: 0.0169 | B133: 1.272220302 | C133: 1.272220302 | D133: 1.272220302 | E133: 1.297643729 | F133: 1.481044248 | L133: 0.0139 | M133: 1.329575758 | N133: 0.2912195861 | O133: 0.04773030614 | P133: 4.565543739 | Q133: 0.9712325835 | R133: 1.387525526 | AC133: 0.01 | AD133: 0.001 | AE133: 5.5
A134: 0.017 | B134: 1.270547011 | C134: 1.270547011 | D134: 1.270547011 | E134: 1.295070438 | F134: 1.47522726 | L134: 0.014 | M134: 1.327405539 | N134: 0.2922341216 | O134: 0.04790679446 | P134: 4.542267453 | Q134: 0.9710281627 | R134: 1.397507724 | AC134: 0.01 | AD134: 0.001 | AE134: 5.5
A135: 0.0171 | B135: 1.268886909 | C135: 1.268886909 | D135: 1.268886909 | E135: 1.292576589 | F135: 1.469494682 | L135: 0.0141 | M135: 1.32525578 | N135: 0.2932447067 | O135: 0.04808270935 | P135: 4.519282871 | Q135: 0.9708237789 | R135: 1.407489922 | AC135: 100 | AD135: 100 | AE135: 5
A136: 0.0172 | B136: 1.267239822 | C136: 1.267239822 | D136: 1.267239822 | E136: 1.29013674 | F136: 1.46384511 | L136: 0.0142 | M136: 1.323126153 | N136: 0.294251382 | O136: 0.04825805712 | P136: 4.496584329 | Q136: 0.970619432 | R136: 1.41747212 | AC136: 100 | AD136: 100 | AE136: 5
A137: 0.0173 | B137: 1.265605581 | C137: 1.265605581 | D137: 1.265605581 | E137: 1.28776866 | F137: 1.458277168 | L137: 0.0143 | M137: 1.32101634 | N137: 0.2952541877 | O137: 0.04843284395 | P137: 4.474166313 | Q137: 0.9704151219 | R137: 1.427454318 | AC137: 0.01 | AD137: 0.001 | AE137: 4.5
A138: 0.0174 | B138: 1.263984017 | C138: 1.263984017 | D138: 1.263984017 | E138: 1.285573192 | F138: 1.452789518 | G138: =KSN_M(G$3,$A138) -> 1.725366292 | L138: 0.0144 | M138: 1.318926029 | N138: 0.2962531631 | O138: 0.04860707595 | P138: 4.45202345 | Q138: 0.9702108488 | R138: 1.437436516 | AC138: 0.01 | AD138: 0.001 | AE138: 4.5
A139: 0.0175 | B139: 1.262374967 | C139: 1.262374967 | D139: 1.262374967 | E139: 1.28347 | F139: 1.447380847 | G139: 1.717567552 | L139: 0.0145 | M139: 1.316854915 | N139: 0.2972483468 | O139: 0.0487807591 | P139: 4.43015051 | Q139: 0.9700066126 | R139: 1.447418714 | AC139: 100 | AD139: 100 | AE139: 4
A140: 0.0176 | B140: 1.260778269 | C140: 1.260778269 | D140: 1.260778269 | E140: 1.281382203 | F140: 1.442049878 | G140: 1.709866832 | L140: 0.0146 | M140: 1.3148027 | N140: 0.298239777 | O140: 0.04895389926 | P140: 4.408542394 | Q140: 0.9698024133 | R140: 1.457400912 | AC140: 100 | AD140: 100 | AE140: 4
A141: 0.0177 | B141: 1.259193765 | C141: 1.259193765 | D141: 1.259193765 | E141: 1.279309602 | F141: 1.43679536 | G141: 1.702262492 | L141: 0.0147 | M141: 1.312769093 | N141: 0.2992274909 | O141: 0.04912650223 | P141: 4.387194135 | Q141: 0.969598251 | R141: 1.467383111 | AC141: 0.01 | AD141: 0.001 | AE141: 3.5
A142: 0.0178 | B142: 1.2576213 | C142: 1.2576213 | D142: 1.2576213 | E142: 1.277252002 | F142: 1.431616072 | G142: 1.694752927 | L142: 0.0148 | M142: 1.310753809 | N142: 0.3002115254 | O142: 0.04929857367 | P142: 4.366100892 | Q142: 0.9693941257 | R142: 1.477365309 | AC142: 0.01 | AD142: 0.001 | AE142: 3.5
A143: 0.0179 | B143: 1.256060722 | C143: 1.256060722 | D143: 1.256060722 | E143: 1.275209211 | F143: 1.426510819 | G143: 1.687336569 | L143: 0.0149 | M143: 1.308756568 | N143: 0.3011919164 | O143: 0.04947011918 | P143: 4.345257947 | Q143: 0.9691900373 | R143: 1.487347507 | AC143: 100 | AD143: 100 | AE143: 3
A144: 0.018 | B144: 1.25451188 | C144: 1.25451188 | D144: 1.25451188 | E144: 1.273181041 | F144: 1.421478436 | G144: 1.680011884 | L144: 0.015 | M144: 1.306777099 | N144: 0.3021686996 | O144: 0.04964114423 | P144: 4.324660697 | Q144: 0.9689859859 | R144: 1.497329705 | AC144: 100 | AD144: 100 | AE144: 3
A145: 0.0181 | B145: 1.252974628 | C145: 1.252974628 | D145: 1.252974628 | E145: 1.271167305 | F145: 1.416517782 | G145: 1.672777372 | L145: 0.0151 | M145: 1.304815135 | N145: 0.3031419099 | O145: 0.04981165423 | P145: 4.304304658 | Q145: 0.9687819716 | R145: 1.507311903 | AC145: 0.01 | AD145: 0.001 | AE145: 2.5
A146: 0.0182 | B146: 1.251448821 | C146: 1.251448821 | D146: 1.251448821 | E146: 1.269167824 | F146: 1.411627742 | G146: 1.665631569 | L146: 0.0152 | M146: 1.302870414 | N146: 0.3041115817 | O146: 0.04998165448 | P146: 4.284185452 | Q146: 0.9685779942 | R146: 1.517294101 | AC146: 0.01 | AD146: 0.001 | AE146: 2.5
A147: 0.0183 | B147: 1.249934317 | C147: 1.249934317 | D147: 1.249934317 | E147: 1.267182418 | F147: 1.406807227 | G147: 1.658573039 | L147: 0.0153 | M147: 1.300942681 | N147: 0.3050777487 | O147: 0.05015115021 | P147: 4.264298812 | Q147: 0.9683740539 | R147: 1.527276299 | AC147: =AC143 -> 100 | AD147: 100 | AE147: 2
A148: 0.0184 | B148: 1.248430978 | C148: 1.248430978 | D148: 1.248430978 | E148: 1.265210913 | F148: 1.402055172 | G148: 1.651600381 | L148: 0.0154 | M148: 1.299031687 | N148: 0.3060404442 | O148: 0.05032014654 | P148: 4.244640575 | Q148: 0.9681701506 | R148: 1.537258497 | AC148: 100 | AD148: 100 | AE148: 2
A149: 0.0185 | B149: 1.246938667 | C149: 1.246938667 | D149: 1.246938667 | E149: 1.263253135 | F149: 1.397370533 | G149: 1.644712223 | L149: 0.0155 | M149: 1.297137186 | N149: 0.3069997009 | O149: 0.05048864854 | P149: 4.225206676 | Q149: 0.9679662844 | R149: 1.547240695 | AC149: 0.01 | AD149: 0.001 | AE149: 1.5
A150: 0.0186 | B150: 1.245457248 | C150: 1.245457248 | D150: 1.245457248 | E150: 1.261308916 | F150: 1.392752292 | G150: 1.637907222 | L150: 0.0156 | M150: 1.295258939 | N150: 0.3079555511 | O150: 0.05065666115 | P150: 4.205993152 | Q150: 0.9677624552 | R150: 1.557222893 | AC150: 0.01 | AD150: 0.001 | AE150: 1.5
A151: 0.0187 | B151: 1.243986591 | C151: 1.243986591 | D151: 1.243986591 | E151: 1.259378091 | F151: 1.388199453 | G151: 1.631184066 | L151: 0.0157 | M151: 1.293396711 | N151: 0.3089080263 | O151: 0.05082418929 | P151: 4.18699613 | Q151: 0.9675586631 | R151: 1.567205091 | AC151: 100 | AD151: 100 | AE151: 1
A152: 0.0188 | B152: 1.242526564 | C152: 1.242526564 | D152: 1.242526564 | E152: 1.257460496 | F152: 1.38371104 | G152: 1.624541469 | L152: 0.0158 | M152: 1.291550272 | N152: 0.3098571578 | O152: 0.05099123774 | P152: 4.168211834 | Q152: 0.9673549081 | R152: 1.577187289 | AC152: 100 | AD152: 100 | AE152: 1
A153: 0.0189 | B153: 1.241077042 | C153: 1.241077042 | D153: 1.241077042 | E153: 1.25555597 | F153: 1.3792861 | G153: 1.617978174 | L153: 0.0159 | M153: 1.289719397 | N153: 0.3108029763 | O153: 0.05115781126 | P153: 4.149636573 | Q153: 0.9671511902 | R153: 1.587169487 | AC153: 0.01 | AD153: 0.001 | AE153: =AE117/10 -> 0.95
A154: 0.019 | B154: 1.239637897 | C154: 1.239637897 | D154: 1.239637897 | E154: 1.253664356 | F154: 1.374923699 | G154: 1.61149295 | L154: 0.016 | M154: 1.287903867 | N154: 0.3117455119 | O154: 0.0513239145 | P154: 4.131266746 | Q154: 0.9669475095 | R154: 1.597151685 | AC154: 0.01 | AD154: 0.001 | AE154: 0.95
A155: 0.0191 | B155: 1.238209008 | C155: 1.238209008 | D155: 1.238209008 | E155: 1.251785499 | F155: 1.370622923 | G155: 1.605084591 | L155: 0.0161 | M155: 1.286103463 | N155: 0.3126847945 | O155: 0.05148955204 | P155: 4.113098833 | Q155: 0.9667438658 | R155: 1.607133883 | AC155: 100 | AD155: 100 | AE155: 0.9
A156: 0.0192 | B156: 1.236790253 | C156: 1.236790253 | D156: 1.236790253 | E156: 1.249919248 | F156: 1.36638288 | G156: 1.598751917 | L156: 0.0162 | M156: 1.284317977 | N156: 0.3136208533 | O156: 0.05165472841 | P156: 4.095129399 | Q156: 0.9665402593 | R156: 1.617116081 | AC156: 100 | AD156: 100 | AE156: 0.9
A157: 0.0193 | B157: 1.235381513 | C157: 1.235381513 | D157: 1.235381513 | E157: 1.248065452 | F157: 1.362202694 | G157: 1.592493775 | L157: 0.0163 | M157: 1.282547198 | N157: 0.3145537171 | O157: 0.05181944804 | P157: 4.077355085 | Q157: 0.96633669 | R157: 1.627098279 | AC157: 0.01 | AD157: 0.001 | AE157: 0.85
A158: 0.0194 | B158: 1.233982671 | C158: 1.233982671 | D158: 1.233982671 | E158: 1.246223965 | F158: 1.358081509 | G158: 1.586309032 | L158: 0.0164 | M158: 1.280790925 | N158: 0.3154834144 | O158: 0.05198371531 | P158: 4.059772612 | Q158: 0.9661331578 | R158: 1.637080477 | AC158: 0.01 | AD158: 0.001 | AE158: 0.85
A159: 0.0195 | B159: 1.232593612 | C159: 1.232593612 | D159: 1.232593612 | E159: 1.244394642 | F159: 1.354018488 | G159: 1.580196582 | L159: 0.0165 | M159: 1.279048959 | N159: 0.3164099731 | O159: 0.05214753453 | P159: 4.042378771 | Q159: 0.9659296629 | R159: 1.647062675 | AC159: 100 | AD159: 100 | AE159: 0.8
A160: 0.0196 | B160: 1.231214223 | C160: 1.231214223 | D160: 1.231214223 | E160: 1.24257734 | F160: 1.350012809 | G160: 1.574155339 | L160: 0.0166 | M160: 1.277321102 | N160: 0.3173334208 | O160: 0.05231090995 | P160: 4.025170432 | Q160: 0.9657262051 | R160: 1.657044873 | AC160: 100 | AD160: 100 | AE160: 0.8
A161: 0.0197 | B161: 1.229844392 | C161: 1.229844392 | D161: 1.229844392 | E161: 1.240771921 | F161: 1.34606367 | G161: 1.56818424 | L161: 0.0167 | M161: 1.275607166 | N161: 0.3182537846 | O161: 0.05247384574 | P161: 4.008144529 | Q161: 0.9655227845 | R161: 1.667027071 | AC161: 0.01 | AD161: 0.001 | AE161: 0.75
A162: 0.0198 | B162: 1.22848401 | C162: 1.22848401 | D162: 1.22848401 | E162: 1.238978247 | F162: 1.342170283 | G162: 1.562282245 | L162: 0.0168 | M162: 1.27390696 | N162: 0.3191710912 | O162: 0.05263634603 | P162: 3.991298069 | Q162: 0.9653194012 | R162: 1.677009269 | AC162: 0.01 | AD162: 0.001 | AE162: 0.75
A163: 0.0199 | B163: 1.22713297 | C163: 1.22713297 | D163: 1.22713297 | E163: 1.237196182 | F163: 1.338342611 | G163: 1.556448334 | L163: 0.0169 | M163: 1.272220302 | N163: 0.3200853671 | O163: 0.05279841486 | P163: 3.974628124 | Q163: 0.9651160551 | R163: 1.686991467 | AC163: 100 | AD163: 100 | AE163: 0.7
A164: 0.02 | B164: 1.225791165 | C164: 1.225791165 | D164: 1.225791165 | E164: 1.235425593 | F164: 1.334557524 | G164: 1.550681507 | L164: 0.017 | M164: 1.270547011 | N164: 0.320996638 | O164: 0.05296005623 | P164: 3.958131831 | Q164: 0.9649127462 | R164: 1.696973665 | AC164: 100 | AD164: 100 | AE164: 0.7
A165: 0.0201 | B165: 1.224458491 | C165: 1.224458491 | D165: 1.224458491 | E165: 1.233666351 | F165: 1.330825993 | G165: 1.544980785 | L165: 0.0171 | M165: 1.268886909 | N165: 0.3219049297 | O165: 0.05312127409 | P165: 3.941806389 | Q165: 0.9647094746 | R165: 1.706955863 | AC165: 0.01 | AD165: 0.001 | AE165: 0.65
A166: 0.0202 | B166: 1.223134847 | C166: 1.223134847 | D166: 1.223134847 | E166: 1.231918326 | F166: 1.327147291 | G166: 1.539345209 | L166: 0.0172 | M166: 1.267239822 | N166: 0.3228102673 | O166: 0.0532820723 | P166: 3.92564906 | Q166: 0.9645062402 | R166: 1.716938061 | AC166: 0.01 | AD166: 0.001 | AE166: 0.65
A167: 0.0203 | B167: 1.22182013 | C167: 1.22182013 | D167: 1.22182013 | E167: 1.230181392 | F167: 1.323520704 | G167: 1.533773838 | L167: 0.0173 | M167: 1.265605581 | N167: 0.3237126756 | O167: 0.05344245469 | P167: 3.909657162 | Q167: 0.9643030432 | R167: 1.726920259 | AC167: 100 | AD167: 100 | AE167: 0.6
A168: 0.0204 | B168: 1.220514241 | C168: 1.220514241 | D168: 1.220514241 | E168: 1.228455424 | F168: 1.319945533 | G168: 1.528265751 | L168: 0.0174 | M168: 1.263984017 | N168: 0.3246121792 | O168: 0.05360242503 | P168: 3.893828075 | Q168: 0.9640998835 | R168: 1.736902457 | AC168: 100 | AD168: 100 | AE168: 0.6
A169: 0.0205 | B169: 1.219217084 | C169: 1.219217084 | D169: 1.219217084 | E169: 1.2267403 | F169: 1.316421094 | G169: 1.522820042 | L169: 0.0175 | M169: 1.262374967 | N169: 0.3255088022 | O169: 0.05376198703 | P169: 3.878159234 | Q169: 0.963896761 | R169: 1.746884655 | AC169: 0.01 | AD169: 0.001 | AE169: 0.55
A170: 0.0206 | B170: 1.217928562 | C170: 1.217928562 | D170: 1.217928562 | E170: 1.225035899 | F170: 1.312946717 | G170: 1.517435827 | L170: 0.0176 | M170: 1.260778269 | N170: 0.3264025683 | O170: 0.05392114434 | P170: 3.862648126 | Q170: 0.9636936759 | R170: 1.756866853 | AC170: 0.01 | AD170: 0.001 | AE170: 0.55
A171: 0.0207 | B171: 1.216648581 | C171: 1.216648581 | D171: 1.216648581 | E171: 1.223342103 | F171: 1.309521745 | G171: 1.512112237 | L171: 0.0177 | M171: 1.259193765 | N171: 0.3272935011 | O171: 0.05407990058 | P171: 3.847292295 | Q171: 0.9634906281 | R171: 1.766849051 | AC171: 100 | AD171: 100 | AE171: 0.5
A172: 0.0208 | B172: 1.215377046 | C172: 1.215377046 | D172: 1.215377046 | E172: 1.221658794 | F172: 1.306145533 | G172: 1.50684842 | L172: 0.0178 | M172: 1.2576213 | N172: 0.3281816237 | O172: 0.05423825929 | P172: 3.832089336 | Q172: 0.9632876177 | R172: 1.776831249 | AC172: 100 | AD172: 100 | AE172: 0.5
A173: 0.0209 | B173: 1.214113868 | C173: 1.214113868 | D173: 1.214113868 | E173: 1.219985859 | F173: 1.302817452 | G173: 1.501643539 | L173: 0.0179 | M173: 1.256060722 | N173: 0.3290669588 | O173: 0.05439622399 | P173: 3.817036892 | Q173: 0.9630846447 | R173: 1.786813447 | AC173: 0.01 | AD173: 0.001 | AE173: =AE137/10 -> 0.45
A174: 0.021 | B174: 1.212858954 | C174: 1.212858954 | D174: 1.212858954 | E174: 1.218323184 | F174: 1.299536882 | G174: 1.496496778 | L174: 0.018 | M174: 1.25451188 | N174: 0.329949529 | O174: 0.05455379813 | P174: 3.802132658 | Q174: 0.962881709 | R174: 1.796795646 | AC174: 0.01 | AD174: 0.001 | AE174: 0.45
A175: 0.0211 | B175: 1.211612218 | C175: 1.211612218 | D175: 1.211612218 | E175: 1.216670657 | F175: 1.296303219 | G175: 1.49140733 | L175: 0.0181 | M175: 1.252974628 | N175: 0.3308293565 | O175: 0.05471098512 | P175: 3.787374376 | Q175: 0.9626788107 | R175: 1.806777844 | AC175: 100 | AD175: 100 | AE175: 0.4
A176: 0.0212 | B176: 1.21037357 | C176: 1.21037357 | D176: 1.21037357 | E176: 1.215028169 | F176: 1.293115867 | G176: 1.486374409 | L176: 0.0182 | M176: 1.251448821 | N176: 0.3317064631 | O176: 0.05486778831 | P176: 3.772759834 | Q176: 0.9624759498 | R176: 1.816760042 | AC176: 100 | AD176: 100 | AE176: 0.4
A177: 0.0213 | B177: 1.209142926 | C177: 1.209142926 | D177: 1.209142926 | E177: 1.213395613 | F177: 1.289974246 | G177: 1.481397241 | L177: 0.0183 | M177: 1.249934317 | N177: 0.3325808704 | O177: 0.05502421103 | P177: 3.758286866 | Q177: 0.9622731264 | R177: 1.82674224 | AC177: 0.01 | AD177: 0.001 | AE177: 0.35
A178: 0.0214 | B178: 1.207920199 | C178: 1.207920199 | D178: 1.207920199 | E178: 1.211772881 | F178: 1.286877783 | G178: 1.476475068 | L178: 0.0184 | M178: 1.248430978 | N178: 0.3334525998 | O178: 0.05518025654 | P178: 3.743953351 | Q178: 0.9620703403 | R178: 1.836724438 | AC178: 0.01 | AD178: 0.001 | AE178: 0.35
A179: 0.0215 | B179: 1.206705308 | C179: 1.206705308 | D179: 1.206705308 | E179: 1.21015987 | F179: 1.283825921 | G179: 1.471607145 | L179: 0.0185 | M179: 1.246938667 | N179: 0.3343216721 | O179: 0.05533592806 | P179: 3.729757209 | Q179: 0.9618675917 | R179: 1.846706636 | AC179: 100 | AD179: 100 | AE179: 0.3
A180: 0.0216 | B180: 1.205498169 | C180: 1.205498169 | D180: 1.205498169 | E180: 1.208556475 | F180: 1.280818109 | G180: 1.466792741 | L180: 0.0186 | M180: 1.245457248 | N180: 0.3351881082 | O180: 0.05549122879 | P180: 3.715696403 | Q180: 0.9616648806 | R180: 1.856688834 | AC180: 100 | AD180: 100 | AE180: =AE144/10 -> 0.3
A181: 0.0217 | B181: 1.204298702 | C181: 1.204298702 | D181: 1.204298702 | E181: 1.206962597 | F181: 1.27785381 | G181: 1.46203114 | L181: 0.0187 | M181: 1.243986591 | N181: 0.3360519285 | O181: 0.05564616184 | P181: 3.701768938 | Q181: 0.9614622069 | R181: 1.866671032 | AC181: 0.01 | AD181: 0.001 | AE181: 0.25
A182: 0.0218 | B182: 1.203106826 | C182: 1.203106826 | D182: 1.203106826 | E182: 1.205378134 | F182: 1.274932496 | G182: 1.457321638 | L182: 0.0188 | M182: 1.242526564 | N182: 0.3369131531 | O182: 0.05580073032 | P182: 3.687972858 | Q182: 0.9612595707 | R182: 1.87665323 | AC182: 0.01 | AD182: 0.001 | AE182: 0.25
A183: 0.0219 | B183: 1.201922463 | C183: 1.201922463 | D183: 1.201922463 | E183: 1.203802988 | F183: 1.27205365 | G183: 1.452663546 | L183: 0.0189 | M183: 1.241077042 | N183: 0.337771802 | O183: 0.05595493729 | P183: 3.674306245 | Q183: 0.961056972 | R183: 1.886635428 | AC183: 100 | AD183: 100 | AE183: 0.2
A184: 0.022 | B184: 1.200745536 | C184: 1.200745536 | D184: 1.200745536 | E184: 1.202237063 | F184: 1.269216763 | G184: 1.448056184 | L184: 0.019 | M184: 1.239637897 | N184: 0.3386278948 | O184: 0.05610878575 | P184: 3.66076722 | Q184: 0.9608544108 | R184: 1.896617626 | AC184: 100 | AD184: 100 | AE184: 0.2
A185: 0.0221 | B185: 1.199575968 | C185: 1.199575968 | D185: 1.199575968 | E185: 1.200680263 | F185: 1.26642134 | G185: 1.443498889 | L185: 0.0191 | M185: 1.238209008 | N185: 0.3394814509 | O185: 0.05626227868 | P185: 3.647353942 | Q185: 0.9606518871 | R185: 1.906599824 | AC185: 0.01 | AD185: 0.001 | AE185: =AE149/10 -> 0.15
A186: 0.0222 | B186: 1.198413685 | C186: 1.198413685 | D186: 1.198413685 | E186: 1.199132494 | F186: 1.26366689 | G186: 1.438991006 | L186: 0.0192 | M186: 1.236790253 | N186: 0.3403324895 | O186: 0.05641541902 | P186: 3.634064602 | Q186: 0.960449401 | R186: 1.916582022 | AC186: 0.01 | AD186: 0.001 | AE186: =AE150/10 -> 0.15
A187: 0.0223 | B187: 1.197258611 | C187: 1.197258611 | D187: 1.197258611 | E187: 1.197593662 | F187: 1.260952935 | G187: 1.434531895 | L187: 0.0193 | M187: 1.235381513 | N187: 0.3411810294 | O187: 0.05656820965 | P187: 3.620897432 | Q187: 0.9602469524 | R187: 1.92656422 | AC187: 100 | AD187: 100 | AE187: 0.1
A188: 0.0224 | B188: 1.196110675 | C188: 1.196110675 | D188: 1.196110675 | E188: 1.196110675 | F188: 1.258279004 | G188: 1.430120925 | L188: 0.0194 | M188: 1.233982671 | N188: 0.3420270893 | O188: 0.05672065344 | P188: 3.607850693 | Q188: 0.9600445413 | R188: 1.936546418 | AC188: 100 | AD188: 100 | AE188: 0.1
A189: 0.0225 | B189: 1.194969804 | C189: 1.194969804 | D189: 1.194969804 | E189: 1.194969804 | F189: 1.255644637 | G189: 1.425757479 | L189: 0.0195 | M189: 1.232593612 | N189: 0.3428706876 | O189: 0.05687275322 | P189: 3.594922683 | Q189: 0.9598421679 | R189: 1.946528616 | AC189: 0.01 | AD189: 0.001 | AE189: 0.095
A190: 0.0226 | B190: 1.193835927 | C190: 1.193835927 | D190: 1.193835927 | E190: 1.193835927 | F190: 1.253049381 | G190: 1.421440949 | L190: 0.0196 | M190: 1.231214223 | N190: 0.3437118425 | O190: 0.05702451175 | P190: 3.582111731 | Q190: 0.959639832 | R190: 1.956510814 | AC190: 0.01 | AD190: 0.001 | AE190: 0.095
A191: 0.0227 | B191: 1.192708974 | C191: 1.192708974 | D191: 1.192708974 | E191: 1.192708974 | F191: 1.250492792 | G191: 1.417170739 | L191: 0.0197 | M191: 1.229844392 | N191: 0.3445505719 | O191: 0.0571759318 | P191: 3.569416197 | Q191: 0.9594375337 | R191: 1.966493012 | AC191: 100 | AD191: 100 | AE191: 0.09
A192: 0.0228 | B192: 1.191588877 | C192: 1.191588877 | D192: 1.191588877 | E192: 1.191588877 | F192: 1.247974433 | G192: 1.412946263 | L192: 0.0198 | M192: 1.22848401 | N192: 0.3453868935 | O192: 0.05732701608 | P192: 3.556834475 | Q192: 0.959235273 | R192: 1.97647521 | AC192: 100 | AD192: 100 | AE192: 0.09
A193: 0.0229 | B193: 1.190475568 | C193: 1.190475568 | D193: 1.190475568 | E193: 1.190475568 | F193: 1.245493878 | G193: 1.408766945 | L193: 0.0199 | M193: 1.22713297 | N193: 0.346220825 | O193: 0.05747776727 | P193: 3.544364987 | Q193: 0.9590330499 | R193: 1.986457408 | AC193: 0.01 | AD193: 0.001 | AE193: 0.085
A194: 0.023 | B194: 1.18936898 | C194: 1.18936898 | D194: 1.18936898 | E194: 1.18936898 | F194: 1.243050706 | G194: 1.404632222 | L194: 0.02 | M194: 1.225791165 | N194: 0.3470523834 | O194: 0.05762818801 | P194: 3.532006186 | Q194: 0.9588308645 | R194: 1.996439606 | AC194: 0.01 | AD194: 0.001 | AE194: 0.085
A195: 0.0231 | B195: 1.188269046 | C195: 1.188269046 | D195: 1.188269046 | E195: 1.188269046 | F195: 1.240644506 | G195: 1.400541536 | L195: 0.0201 | M195: 1.224458491 | N195: 0.347881586 | O195: 0.05777828091 | P195: 3.519756551 | Q195: 0.9586287167 | R195: 2.006421804 | AC195: 100 | AD195: 100 | AE195: 0.08
A196: 0.0232 | B196: 1.187175702 | C196: 1.187175702 | D196: 1.187175702 | E196: 1.187175702 | F196: 1.238274872 | G196: 1.396494343 | L196: 0.0202 | M196: 1.223134847 | N196: 0.3487084496 | O196: 0.05792804856 | P196: 3.507614593 | Q196: 0.9584266066 | R196: 2.016404002 | AC196: 100 | AD196: 100 | AE196: 0.08
A197: 0.0233 | B197: 1.186088883 | C197: 1.186088883 | D197: 1.186088883 | E197: 1.186088883 | F197: 1.235941408 | G197: 1.392490107 | L197: 0.0203 | M197: 1.22182013 | N197: 0.3495329907 | O197: 0.05807749351 | P197: 3.49557885 | Q197: 0.9582245342 | R197: 2.0263862 | AC197: 0.01 | AD197: 0.001 | AE197: 0.075
A198: 0.0234 | B198: 1.185008527 | C198: 1.185008527 | D198: 1.185008527 | E198: 1.185008527 | F198: 1.233643723 | G198: 1.388528301 | L198: 0.0204 | M198: 1.220514241 | N198: 0.350355226 | O198: 0.05822661826 | P198: 3.483647884 | Q198: 0.9580224994 | R198: 2.036368398 | AC198: 0.01 | AD198: 0.001 | AE198: =AE162/10 -> 0.075
A199: 0.0235 | B199: 1.183934571 | C199: 1.183934571 | D199: 1.183934571 | E199: 1.183934571 | F199: 1.231381435 | G199: 1.384608408 | L199: 0.0205 | M199: 1.219217084 | N199: 0.3511751715 | O199: 0.05837542532 | P199: 3.471820286 | Q199: 0.9578205024 | R199: 2.046350596 | AC199: 100 | AD199: 100 | AE199: 0.07
A200: 0.0236 | B200: 1.182866953 | C200: 1.182866953 | D200: 1.182866953 | E200: 1.182866953 | F200: 1.229154169 | G200: 1.380729918 | L200: 0.0206 | M200: 1.217928562 | N200: 0.3519928435 | O200: 0.05852391712 | P200: 3.460094672 | Q200: 0.957618543 | R200: 2.056332794 | AC200: 100 | AD200: 100 | AE200: 0.07
... 1694 more rows

Sheet 波高変化data (hidden)
A1: 海底勾配逆数 | B1: 10 | I1: 海底勾配逆数 | J1: 15 | Q1: 海底勾配逆数 | R1: 20 | Y1: 海底勾配逆数 | Z1: 30 | AG1: 海底勾配逆数 | AH1: 50 | AO1: 海底勾配逆数 | AP1: 100 | AY1: 2%減衰線 | BK1: グラフ表示用
A2: h/Ho' | B2: H1/3/Ho' | I2: h/Ho' | J2: H1/3/Ho' | Q2: h/Ho' | R2: H1/3/Ho' | Y2: h/Ho' | Z2: H1/3/Ho' | AG2: h/Ho' | AH2: H1/3/Ho' | AO2: h/Ho' | AP2: H1/3/Ho' | AX2: 1/θ=10 | AZ2: 1/θ=15 | BB2: 1/θ=20 | BD2: 1/θ=30 | BF2: 1/θ=50 | BH2: 1/θ=100 | BK2: 0 | BL2: ='3.5.3 水深のみによる波高の変化'!F11 -> 0.883
B3: 0.005 | C3: 0.01 | D3: 0.02 | E3: 0.03 | F3: 0.04 | G3: 0.05 | J3: 0.005 | K3: 0.01 | L3: 0.02 | M3: 0.03 | N3: 0.04 | O3: 0.05 | R3: 0.005 | S3: 0.01 | T3: 0.02 | U3: 0.03 | V3: 0.04 | W3: 0.05 | Z3: 0.005 | AA3: 0.01 | AB3: 0.02 | AC3: 0.03 | AD3: 0.04 | AE3: 0.05 | AH3: 0.005 | AI3: 0.01 | AJ3: 0.02 | AK3: 0.03 | AL3: 0.04 | AM3: 0.05 | AP3: 0.005 | AQ3: 0.01 | AR3: 0.02 | AS3: 0.03 | AT3: 0.04 | AU3: 0.05 | AX3: h/Ho' | AY3: H13 | AZ3: h/Ho' | BA3: H13 | BB3: h/Ho' | BC3: H13 | BD3: h/Ho' | BE3: H13 | BF3: h/Ho' | BG3: H13 | BH3: h/Ho' | BI3: H13 | BK3: ='3.5.3 水深のみによる波高の変化'!E11 -> 1 | BL3: ='3.5.3 水深のみによる波高の変化'!F11 -> 0.883
A4: 0.005 | B4: =合田H13算定(1/$B$1,B$3,$A4) -> 0.464 | C4: =合田H13算定(1/$B$1,C$3,$A4) -> 0.355 | D4: 0.275 | E4: 0.238 | F4: 0.214 | G4: 0.198 | I4: 0.005 | J4: =合田H13算定(1/$J$1,J$3,$I4) -> 0.357 | K4: =合田H13算定(1/$J$1,K$3,$I4) -> 0.272 | L4: 0.209 | M4: 0.18 | N4: 0.163 | O4: 0.15 | Q4: 0.005 | R4: =合田H13算定(1/$R$1,R$3,$Q4) -> 0.313 | S4: =合田H13算定(1/$R$1,S$3,$Q4) -> 0.237 | T4: 0.182 | U4: 0.157 | V4: 0.141 | W4: 0.13 | Y4: 0.005 | Z4: =合田H13算定(1/$Z$1,Z$3,$Y4) -> 0.276 | AA4: =合田H13算定(1/$Z$1,AA$3,$Y4) -> 0.208 | AB4: 0.159 | AC4: 0.136 | AD4: 0.123 | AE4: 0.113 | AG4: 0.005 | AH4: =合田H13算定(1/$AH$1,AH$3,$AG4) -> 0.251 | AI4: =合田H13算定(1/$AH$1,AI$3,$AG4) -> 0.188 | AJ4: 0.144 | AK4: 0.123 | AL4: 0.111 | AM4: 0.102 | AO4: 0.005 | AP4: =合田H13算定(1/$AP$1,AP$3,$AO4) -> 0.236 | AQ4: =合田H13算定(1/$AP$1,AQ$3,$AO4) -> 0.177 | AR4: 0.135 | AS4: 0.115 | AT4: 0.104 | AU4: 0.095 | AW4: 0.0005 | AX4: 4.85 | AY4: 3.818 | BK4: ='3.5.3 水深のみによる波高の変化'!E11 -> 1 | BL4: 0
A5: 0.01 | B5: 0.467 | C5: 0.358 | D5: 0.278 | E5: 0.241 | F5: 0.218 | G5: 0.201 | I5: 0.01 | J5: 0.36 | K5: 0.274 | L5: 0.212 | M5: 0.183 | N5: 0.166 | O5: 0.153 | Q5: 0.01 | R5: 0.315 | S5: 0.239 | T5: 0.184 | U5: 0.159 | V5: 0.144 | W5: 0.133 | Y5: 0.01 | Z5: 0.278 | AA5: 0.21 | AB5: 0.161 | AC5: 0.139 | AD5: 0.125 | AE5: 0.116 | AG5: 0.01 | AH5: 0.253 | AI5: 0.19 | AJ5: 0.146 | AK5: 0.125 | AL5: 0.113 | AM5: 0.104 | AO5: 0.01 | AP5: 0.238 | AQ5: 0.179 | AR5: 0.137 | AS5: 0.117 | AT5: 0.106 | AU5: 0.098 | AW5: 0.001 | AX5: 3.9 | AY5: 3.064
A6: 0.015 | B6: 0.47 | C6: 0.361 | D6: 0.281 | E6: 0.244 | F6: 0.221 | G6: 0.205 | I6: 0.015 | J6: 0.362 | K6: 0.277 | L6: 0.215 | M6: 0.186 | N6: 0.168 | O6: 0.156 | Q6: 0.015 | R6: 0.317 | S6: 0.242 | T6: 0.187 | U6: 0.162 | V6: 0.147 | W6: 0.136 | Y6: 0.015 | Z6: 0.279 | AA6: 0.212 | AB6: 0.163 | AC6: 0.141 | AD6: 0.128 | AE6: 0.118 | AG6: 0.015 | AH6: 0.254 | AI6: 0.192 | AJ6: 0.148 | AK6: 0.128 | AL6: 0.115 | AM6: 0.107 | AO6: 0.015 | AP6: 0.239 | AQ6: 0.181 | AR6: 0.139 | AS6: 0.12 | AT6: 0.108 | AU6: 0.1 | AW6: 0.002 | AX6: 3.15 | AY6: 2.467 | AZ6: 3.5 | BA6: 2.263 | BB6: 3.65 | BC6: 2.179 | BD6: 3.85 | BE6: 2.088 | BF6: 4 | BG6: 2.025
A7: 0.02 | B7: 0.472 | C7: 0.364 | D7: 0.285 | E7: 0.248 | F7: 0.225 | G7: 0.208 | I7: 0.02 | J7: 0.364 | K7: 0.279 | L7: 0.217 | M7: 0.189 | N7: 0.171 | O7: 0.159 | Q7: 0.02 | R7: 0.319 | S7: 0.244 | T7: 0.189 | U7: 0.164 | V7: 0.149 | W7: 0.138 | Y7: 0.02 | Z7: 0.281 | AA7: 0.214 | AB7: 0.166 | AC7: 0.144 | AD7: 0.13 | AE7: 0.121 | AG7: 0.02 | AH7: 0.256 | AI7: 0.194 | AJ7: 0.15 | AK7: 0.13 | AL7: 0.118 | AM7: 0.109 | AO7: 0.02 | AP7: 0.241 | AQ7: 0.182 | AR7: 0.141 | AS7: 0.122 | AT7: 0.11 | AU7: 0.102 | AW7: 0.005 | AX7: 2.4 | AY7: 1.865 | AZ7: 2.7 | BA7: 1.711 | BB7: 2.8 | BC7: 1.656 | BD7: 2.95 | BE7: 1.593 | BF7: 3.1 | BG7: 1.542 | BH7: 3.15 | BI7: 1.52
A8: 0.025 | B8: 0.475 | C8: 0.367 | D8: 0.288 | E8: 0.251 | F8: 0.228 | G8: 0.212 | I8: 0.025 | J8: 0.366 | K8: 0.282 | L8: 0.22 | M8: 0.192 | N8: 0.174 | O8: 0.162 | Q8: 0.025 | R8: 0.321 | S8: 0.246 | T8: 0.192 | U8: 0.167 | V8: 0.152 | W8: 0.141 | Y8: 0.025 | Z8: 0.283 | AA8: 0.216 | AB8: 0.168 | AC8: 0.146 | AD8: 0.133 | AE8: 0.123 | AG8: 0.025 | AH8: 0.258 | AI8: 0.196 | AJ8: 0.152 | AK8: 0.132 | AL8: 0.12 | AM8: 0.111 | AO8: 0.025 | AP8: 0.243 | AQ8: 0.184 | AR8: 0.143 | AS8: 0.124 | AT8: 0.112 | AU8: 0.104 | AW8: 0.01 | AX8: 2 | AY8: 1.514 | AZ8: 2.25 | BA8: 1.399 | BB8: 2.35 | BC8: 1.354 | BD8: 2.5 | BE8: 1.304 | BF8: 2.6 | BG8: 1.272 | BH8: 2.65 | BI8: 1.255
A9: 0.03 | B9: 0.478 | C9: 0.37 | D9: 0.291 | E9: 0.254 | F9: 0.232 | G9: 0.215 | I9: 0.03 | J9: 0.369 | K9: 0.284 | L9: 0.223 | M9: 0.195 | N9: 0.177 | O9: 0.165 | Q9: 0.03 | R9: 0.324 | S9: 0.249 | T9: 0.195 | U9: 0.17 | V9: 0.155 | W9: 0.144 | Y9: 0.03 | Z9: 0.285 | AA9: 0.218 | AB9: 0.17 | AC9: 0.149 | AD9: 0.135 | AE9: 0.126 | AG9: 0.03 | AH9: 0.259 | AI9: 0.198 | AJ9: 0.154 | AK9: 0.135 | AL9: 0.122 | AM9: 0.114 | AO9: 0.03 | AP9: 0.244 | AQ9: 0.186 | AR9: 0.145 | AS9: 0.126 | AT9: 0.115 | AU9: 0.107 | AW9: 0.02 | AX9: 1.75 | AY9: 1.229 | AZ9: 1.95 | BA9: 1.154 | BB9: 2.05 | BC9: 1.121 | BD9: 2.2 | BE9: 1.087 | BF9: 2.3 | BG9: 1.067 | BH9: 2.35 | BI9: 1.055
A10: 0.035 | B10: 0.48 | C10: 0.373 | D10: 0.294 | E10: 0.258 | F10: 0.235 | G10: 0.219 | I10: 0.035 | J10: 0.371 | K10: 0.287 | L10: 0.226 | M10: 0.198 | N10: 0.18 | O10: 0.168 | Q10: 0.035 | R10: 0.326 | S10: 0.251 | T10: 0.197 | U10: 0.173 | V10: 0.157 | W10: 0.147 | Y10: 0.035 | Z10: 0.287 | AA10: 0.22 | AB10: 0.173 | AC10: 0.151 | AD10: 0.138 | AE10: 0.128 | AG10: 0.035 | AH10: 0.261 | AI10: 0.2 | AJ10: 0.157 | AK10: 0.137 | AL10: 0.125 | AM10: 0.116 | AO10: 0.035 | AP10: 0.246 | AQ10: 0.188 | AR10: 0.147 | AS10: 0.128 | AT10: 0.117 | AU10: 0.109 | AW10: 0.03 | AX10: 1.65 | AY10: 1.098 | AZ10: 1.85 | BA10: 1.041 | BB10: 1.95 | BC10: 1.019 | BD10: 2.1 | BE10: 0.997 | BF10: 2.2 | BG10: 0.938 | BH10: 2.3 | BI10: 0.972
A11: 0.04 | B11: 0.483 | C11: 0.376 | D11: 0.298 | E11: 0.261 | F11: 0.238 | G11: 0.222 | I11: 0.04 | J11: 0.374 | K11: 0.29 | L11: 0.229 | M11: 0.201 | N11: 0.183 | O11: 0.171 | Q11: 0.04 | R11: 0.328 | S11: 0.253 | T11: 0.2 | U11: 0.175 | V11: 0.16 | W11: 0.15 | Y11: 0.04 | Z11: 0.289 | AA11: 0.223 | AB11: 0.175 | AC11: 0.154 | AD11: 0.14 | AE11: 0.131 | AG11: 0.04 | AH11: 0.263 | AI11: 0.202 | AJ11: 0.159 | AK11: 0.139 | AL11: 0.127 | AM11: 0.119 | AO11: 0.04 | AP11: 0.247 | AQ11: 0.19 | AR11: 0.149 | AS11: 0.131 | AT11: 0.119 | AU11: 0.111 | AW11: 0.04 | AX11: 1.6 | AY11: 1.022 | AZ11: 1.8 | BA11: 0.981 | BB11: 1.95 | BC11: 0.96 | BD11: 2.1 | BE11: 0.941 | BF11: 2.2 | BG11: 0.928 | BH11: 2.3 | BI11: 0.923
A12: 0.045 | B12: 0.486 | C12: 0.379 | D12: 0.301 | E12: 0.265 | F12: 0.242 | G12: 0.226 | I12: 0.045 | J12: 0.376 | K12: 0.292 | L12: 0.231 | M12: 0.204 | N12: 0.186 | O12: 0.174 | Q12: 0.045 | R12: 0.33 | S12: 0.256 | T12: 0.202 | U12: 0.178 | V12: 0.163 | W12: 0.152 | Y12: 0.045 | Z12: 0.291 | AA12: 0.225 | AB12: 0.177 | AC12: 0.156 | AD12: 0.143 | AE12: 0.134 | AG12: 0.045 | AH12: 0.265 | AI12: 0.204 | AJ12: 0.161 | AK12: 0.142 | AL12: 0.13 | AM12: 0.121 | AO12: 0.045 | AP12: 0.249 | AQ12: 0.192 | AR12: 0.151 | AS12: 0.133 | AT12: 0.122 | AU12: 0.114 | AW12: 0.05 | AX12: 1.6 | AY12: 0.972 | AZ12: 1.8 | BA12: 0.937 | BB12: 1.95 | BC12: 0.918 | BD12: 2.15 | BE12: 0.91 | BF12: 2.25 | BG12: 0.905 | BH12: 2.35 | BI12: 0.902
A13: 0.05 | B13: 0.489 | C13: 0.383 | D13: 0.304 | E13: 0.268 | F13: 0.245 | G13: 0.229 | I13: 0.05 | J13: 0.378 | K13: 0.295 | L13: 0.234 | M13: 0.207 | N13: 0.189 | O13: 0.177 | Q13: 0.05 | R13: 0.332 | S13: 0.258 | T13: 0.205 | U13: 0.181 | V13: 0.166 | W13: 0.155 | Y13: 0.05 | Z13: 0.293 | AA13: 0.227 | AB13: 0.18 | AC13: 0.159 | AD13: 0.146 | AE13: 0.136 | AG13: 0.05 | AH13: 0.266 | AI13: 0.206 | AJ13: 0.163 | AK13: 0.144 | AL13: 0.132 | AM13: 0.124 | AO13: 0.05 | AP13: 0.251 | AQ13: 0.194 | AR13: 0.153 | AS13: 0.135 | AT13: 0.124 | AU13: 0.116 | AW13: 0.06 | AX13: 1.65 | AY13: 0.932 | AZ13: 1.85 | BA13: 0.904 | BB13: 2.05 | BC13: 0.9 | BD13: 2.25 | BE13: 0.897 | BF13: 2.4 | BG13: 0.895 | BH13: 2.5 | BI13: 0.894
A14: 0.055 | B14: 0.492 | C14: 0.386 | D14: 0.307 | E14: 0.271 | F14: 0.249 | G14: 0.233 | I14: 0.055 | J14: 0.38 | K14: 0.297 | L14: 0.237 | M14: 0.209 | N14: 0.192 | O14: 0.18 | Q14: 0.055 | R14: 0.334 | S14: 0.261 | T14: 0.207 | U14: 0.183 | V14: 0.169 | W14: 0.158 | Y14: 0.055 | Z14: 0.294 | AA14: 0.229 | AB14: 0.182 | AC14: 0.161 | AD14: 0.148 | AE14: 0.139 | AG14: 0.055 | AH14: 0.268 | AI14: 0.208 | AJ14: 0.165 | AK14: 0.146 | AL14: 0.134 | AM14: 0.126 | AO14: 0.055 | AP14: 0.252 | AQ14: 0.196 | AR14: 0.155 | AS14: 0.137 | AT14: 0.126 | AU14: 0.118 | AW14: 0.08 | AX14: 1.85 | AY14: 0.895 | AZ14: 2.25 | BA14: 0.896 | BB14: 2.5 | BC14: 0.9 | BD14: 2.75 | BE14: 0.904 | BF14: 3 | BG14: 0.91 | BH14: 3.15 | BI14: 0.914
A15: 0.06 | B15: 0.495 | C15: 0.389 | D15: 0.311 | E15: 0.275 | F15: 0.252 | G15: 0.236 | I15: 0.06 | J15: 0.383 | K15: 0.3 | L15: 0.24 | M15: 0.212 | N15: 0.195 | O15: 0.183 | Q15: 0.06 | R15: 0.336 | S15: 0.263 | T15: 0.21 | U15: 0.186 | V15: 0.171 | W15: 0.161 | Y15: 0.06 | Z15: 0.296 | AA15: 0.231 | AB15: 0.185 | AC15: 0.164 | AD15: 0.151 | AE15: 0.141 | AG15: 0.06 | AH15: 0.27 | AI15: 0.21 | AJ15: 0.168 | AK15: 0.149 | AL15: 0.137 | AM15: 0.129 | AO15: 0.06 | AP15: 0.254 | AQ15: 0.198 | AR15: 0.158 | AS15: 0.14 | AT15: 0.129 | AU15: 0.121
A16: 0.065 | B16: 0.497 | C16: 0.392 | D16: 0.314 | E16: 0.278 | F16: 0.256 | G16: 0.24 | I16: 0.065 | J16: 0.385 | K16: 0.303 | L16: 0.243 | M16: 0.216 | N16: 0.199 | O16: 0.187 | Q16: 0.065 | R16: 0.338 | S16: 0.265 | T16: 0.213 | U16: 0.189 | V16: 0.174 | W16: 0.164 | Y16: 0.065 | Z16: 0.298 | AA16: 0.234 | AB16: 0.187 | AC16: 0.166 | AD16: 0.153 | AE16: 0.144 | AG16: 0.065 | AH16: 0.272 | AI16: 0.212 | AJ16: 0.17 | AK16: 0.151 | AL16: 0.139 | AM16: 0.131 | AO16: 0.065 | AP16: 0.256 | AQ16: 0.2 | AR16: 0.16 | AS16: 0.142 | AT16: 0.131 | AU16: 0.123
A17: 0.07 | B17: 0.5 | C17: 0.395 | D17: 0.318 | E17: 0.282 | F17: 0.26 | G17: 0.243 | I17: 0.07 | J17: 0.388 | K17: 0.306 | L17: 0.246 | M17: 0.219 | N17: 0.202 | O17: 0.19 | Q17: 0.07 | R17: 0.341 | S17: 0.268 | T17: 0.216 | U17: 0.192 | V17: 0.177 | W17: 0.167 | Y17: 0.07 | Z17: 0.301 | AA17: 0.236 | AB17: 0.19 | AC17: 0.169 | AD17: 0.156 | AE17: 0.147 | AG17: 0.07 | AH17: 0.274 | AI17: 0.215 | AJ17: 0.173 | AK17: 0.153 | AL17: 0.142 | AM17: 0.134 | AO17: 0.07 | AP17: 0.258 | AQ17: 0.202 | AR17: 0.162 | AS17: 0.144 | AT17: 0.133 | AU17: 0.126
A18: 0.075 | B18: 0.503 | C18: 0.398 | D18: 0.321 | E18: 0.286 | F18: 0.263 | G18: 0.247 | I18: 0.075 | J18: 0.39 | K18: 0.308 | L18: 0.249 | M18: 0.222 | N18: 0.205 | O18: 0.193 | Q18: 0.075 | R18: 0.343 | S18: 0.271 | T18: 0.218 | U18: 0.195 | V18: 0.18 | W18: 0.17 | Y18: 0.075 | Z18: 0.303 | AA18: 0.238 | AB18: 0.192 | AC18: 0.171 | AD18: 0.159 | AE18: 0.15 | AG18: 0.075 | AH18: 0.276 | AI18: 0.217 | AJ18: 0.175 | AK18: 0.156 | AL18: 0.144 | AM18: 0.136 | AO18: 0.075 | AP18: 0.26 | AQ18: 0.204 | AR18: 0.164 | AS18: 0.147 | AT18: 0.136 | AU18: 0.128
A19: 0.08 | B19: 0.506 | C19: 0.401 | D19: 0.325 | E19: 0.289 | F19: 0.267 | G19: 0.251 | I19: 0.08 | J19: 0.393 | K19: 0.311 | L19: 0.252 | M19: 0.225 | N19: 0.208 | O19: 0.196 | Q19: 0.08 | R19: 0.345 | S19: 0.273 | T19: 0.221 | U19: 0.198 | V19: 0.183 | W19: 0.173 | Y19: 0.08 | Z19: 0.305 | AA19: 0.241 | AB19: 0.195 | AC19: 0.174 | AD19: 0.161 | AE19: 0.153 | AG19: 0.08 | AH19: 0.278 | AI19: 0.219 | AJ19: 0.177 | AK19: 0.158 | AL19: 0.147 | AM19: 0.139 | AO19: 0.08 | AP19: 0.261 | AQ19: 0.206 | AR19: 0.167 | AS19: 0.149 | AT19: 0.138 | AU19: 0.131
A20: 0.085 | B20: 0.509 | C20: 0.405 | D20: 0.328 | E20: 0.293 | F20: 0.27 | G20: 0.254 | I20: 0.085 | J20: 0.395 | K20: 0.314 | L20: 0.255 | M20: 0.228 | N20: 0.211 | O20: 0.199 | Q20: 0.085 | R20: 0.348 | S20: 0.276 | T20: 0.224 | U20: 0.2 | V20: 0.186 | W20: 0.176 | Y20: 0.085 | Z20: 0.307 | AA20: 0.243 | AB20: 0.197 | AC20: 0.177 | AD20: 0.164 | AE20: 0.155 | AG20: 0.085 | AH20: 0.28 | AI20: 0.221 | AJ20: 0.18 | AK20: 0.161 | AL20: 0.15 | AM20: 0.142 | AO20: 0.085 | AP20: 0.263 | AQ20: 0.208 | AR20: 0.169 | AS20: 0.151 | AT20: 0.141 | AU20: 0.133
A21: 0.09 | B21: 0.512 | C21: 0.408 | D21: 0.332 | E21: 0.296 | F21: 0.274 | G21: 0.258 | I21: 0.09 | J21: 0.398 | K21: 0.317 | L21: 0.258 | M21: 0.231 | N21: 0.214 | O21: 0.203 | Q21: 0.09 | R21: 0.35 | S21: 0.278 | T21: 0.227 | U21: 0.203 | V21: 0.189 | W21: 0.179 | Y21: 0.09 | Z21: 0.309 | AA21: 0.245 | AB21: 0.2 | AC21: 0.179 | AD21: 0.167 | AE21: 0.158 | AG21: 0.09 | AH21: 0.282 | AI21: 0.223 | AJ21: 0.182 | AK21: 0.163 | AL21: 0.152 | AM21: 0.144 | AO21: 0.09 | AP21: 0.265 | AQ21: 0.21 | AR21: 0.171 | AS21: 0.154 | AT21: 0.143 | AU21: 0.136
A22: 0.095 | B22: 0.515 | C22: 0.411 | D22: 0.335 | E22: 0.3 | F22: 0.278 | G22: 0.262 | I22: 0.095 | J22: 0.4 | K22: 0.319 | L22: 0.261 | M22: 0.234 | N22: 0.218 | O22: 0.206 | Q22: 0.095 | R22: 0.352 | S22: 0.281 | T22: 0.229 | U22: 0.206 | V22: 0.192 | W22: 0.182 | Y22: 0.095 | Z22: 0.311 | AA22: 0.248 | AB22: 0.202 | AC22: 0.182 | AD22: 0.17 | AE22: 0.161 | AG22: 0.095 | AH22: 0.283 | AI22: 0.226 | AJ22: 0.184 | AK22: 0.166 | AL22: 0.155 | AM22: 0.147 | AO22: 0.095 | AP22: 0.267 | AQ22: 0.212 | AR22: 0.174 | AS22: 0.156 | AT22: 0.146 | AU22: 0.138
A23: 0.1 | B23: 0.518 | C23: 0.414 | D23: 0.339 | E23: 0.303 | F23: 0.281 | G23: 0.265 | I23: 0.1 | J23: 0.403 | K23: 0.322 | L23: 0.264 | M23: 0.237 | N23: 0.221 | O23: 0.209 | Q23: 0.1 | R23: 0.354 | S23: 0.283 | T23: 0.232 | U23: 0.209 | V23: 0.195 | W23: 0.185 | Y23: 0.1 | Z23: 0.313 | AA23: 0.25 | AB23: 0.205 | AC23: 0.185 | AD23: 0.172 | AE23: 0.164 | AG23: 0.1 | AH23: 0.285 | AI23: 0.228 | AJ23: 0.187 | AK23: 0.169 | AL23: 0.157 | AM23: 0.149 | AO23: 0.1 | AP23: 0.269 | AQ23: 0.214 | AR23: 0.176 | AS23: 0.159 | AT23: 0.148 | AU23: 0.141
A24: 0.105 | B24: 0.52 | C24: 0.418 | D24: 0.342 | E24: 0.307 | F24: 0.285 | G24: 0.269 | I24: 0.105 | J24: 0.405 | K24: 0.325 | L24: 0.267 | M24: 0.24 | N24: 0.224 | O24: 0.212 | Q24: 0.105 | R24: 0.357 | S24: 0.286 | T24: 0.235 | U24: 0.212 | V24: 0.198 | W24: 0.188 | Y24: 0.105 | Z24: 0.315 | AA24: 0.252 | AB24: 0.208 | AC24: 0.187 | AD24: 0.175 | AE24: 0.166 | AG24: 0.105 | AH24: 0.287 | AI24: 0.23 | AJ24: 0.189 | AK24: 0.171 | AL24: 0.16 | AM24: 0.152 | AO24: 0.105 | AP24: 0.271 | AQ24: 0.217 | AR24: 0.178 | AS24: 0.161 | AT24: 0.151 | AU24: 0.143
A25: 0.11 | B25: 0.524 | C25: 0.421 | D25: 0.345 | E25: 0.31 | F25: 0.288 | G25: 0.273 | I25: 0.11 | J25: 0.408 | K25: 0.328 | L25: 0.27 | M25: 0.244 | N25: 0.227 | O25: 0.215 | Q25: 0.11 | R25: 0.359 | S25: 0.289 | T25: 0.238 | U25: 0.215 | V25: 0.201 | W25: 0.191 | Y25: 0.11 | Z25: 0.317 | AA25: 0.255 | AB25: 0.21 | AC25: 0.19 | AD25: 0.178 | AE25: 0.169 | AG25: 0.11 | AH25: 0.289 | AI25: 0.232 | AJ25: 0.192 | AK25: 0.174 | AL25: 0.163 | AM25: 0.155 | AO25: 0.11 | AP25: 0.273 | AQ25: 0.219 | AR25: 0.181 | AS25: 0.164 | AT25: 0.153 | AU25: 0.146
A26: 0.115 | B26: 0.527 | C26: 0.424 | D26: 0.349 | E26: 0.314 | F26: 0.292 | G26: 0.276 | I26: 0.115 | J26: 0.411 | K26: 0.331 | L26: 0.273 | M26: 0.247 | N26: 0.231 | O26: 0.219 | Q26: 0.115 | R26: 0.362 | S26: 0.291 | T26: 0.241 | U26: 0.218 | V26: 0.204 | W26: 0.194 | Y26: 0.115 | Z26: 0.319 | AA26: 0.257 | AB26: 0.213 | AC26: 0.193 | AD26: 0.181 | AE26: 0.172 | AG26: 0.115 | AH26: 0.291 | AI26: 0.235 | AJ26: 0.194 | AK26: 0.176 | AL26: 0.165 | AM26: 0.157 | AO26: 0.115 | AP26: 0.275 | AQ26: 0.221 | AR26: 0.183 | AS26: 0.166 | AT26: 0.156 | AU26: 0.148
A27: 0.12 | B27: 0.53 | C27: 0.428 | D27: 0.353 | E27: 0.318 | F27: 0.296 | G27: 0.28 | I27: 0.12 | J27: 0.413 | K27: 0.334 | L27: 0.276 | M27: 0.25 | N27: 0.234 | O27: 0.222 | Q27: 0.12 | R27: 0.364 | S27: 0.294 | T27: 0.244 | U27: 0.221 | V27: 0.207 | W27: 0.197 | Y27: 0.12 | Z27: 0.322 | AA27: 0.26 | AB27: 0.216 | AC27: 0.196 | AD27: 0.184 | AE27: 0.175 | AG27: 0.12 | AH27: 0.294 | AI27: 0.237 | AJ27: 0.197 | AK27: 0.179 | AL27: 0.168 | AM27: 0.16 | AO27: 0.12 | AP27: 0.277 | AQ27: 0.223 | AR27: 0.185 | AS27: 0.169 | AT27: 0.158 | AU27: 0.151
A28: 0.125 | B28: 0.533 | C28: 0.431 | D28: 0.356 | E28: 0.321 | F28: 0.3 | G28: 0.284 | I28: 0.125 | J28: 0.416 | K28: 0.337 | L28: 0.28 | M28: 0.253 | N28: 0.237 | O28: 0.225 | Q28: 0.125 | R28: 0.366 | S28: 0.297 | T28: 0.247 | U28: 0.224 | V28: 0.21 | W28: 0.2 | Y28: 0.125 | Z28: 0.324 | AA28: 0.262 | AB28: 0.218 | AC28: 0.199 | AD28: 0.186 | AE28: 0.178 | AG28: 0.125 | AH28: 0.296 | AI28: 0.239 | AJ28: 0.199 | AK28: 0.182 | AL28: 0.171 | AM28: 0.163 | AO28: 0.125 | AP28: 0.279 | AQ28: 0.225 | AR28: 0.188 | AS28: 0.171 | AT28: 0.161 | AU28: 0.154
A29: 0.13 | B29: 0.536 | C29: 0.434 | D29: 0.36 | E29: 0.325 | F29: 0.303 | G29: 0.288 | I29: 0.13 | J29: 0.419 | K29: 0.339 | L29: 0.283 | M29: 0.257 | N29: 0.24 | O29: 0.229 | Q29: 0.13 | R29: 0.369 | S29: 0.299 | T29: 0.25 | U29: 0.227 | V29: 0.213 | W29: 0.203 | Y29: 0.13 | Z29: 0.326 | AA29: 0.265 | AB29: 0.221 | AC29: 0.201 | AD29: 0.189 | AE29: 0.181 | AG29: 0.13 | AH29: 0.298 | AI29: 0.242 | AJ29: 0.202 | AK29: 0.184 | AL29: 0.173 | AM29: 0.165 | AO29: 0.13 | AP29: 0.281 | AQ29: 0.228 | AR29: 0.19 | AS29: 0.174 | AT29: 0.164 | AU29: 0.156
A30: 0.135 | B30: 0.539 | C30: 0.438 | D30: 0.363 | E30: 0.329 | F30: 0.307 | G30: 0.291 | I30: 0.135 | J30: 0.421 | K30: 0.343 | L30: 0.286 | M30: 0.26 | N30: 0.244 | O30: 0.232 | Q30: 0.135 | R30: 0.371 | S30: 0.302 | T30: 0.253 | U30: 0.23 | V30: 0.216 | W30: 0.206 | Y30: 0.135 | Z30: 0.328 | AA30: 0.267 | AB30: 0.224 | AC30: 0.204 | AD30: 0.192 | AE30: 0.184 | AG30: 0.135 | AH30: 0.3 | AI30: 0.244 | AJ30: 0.204 | AK30: 0.187 | AL30: 0.176 | AM30: 0.168 | AO30: 0.135 | AP30: 0.283 | AQ30: 0.23 | AR30: 0.193 | AS30: 0.176 | AT30: 0.166 | AU30: 0.159
A31: 0.14 | B31: 0.542 | C31: 0.441 | D31: 0.367 | E31: 0.333 | F31: 0.311 | G31: 0.295 | I31: 0.14 | J31: 0.424 | K31: 0.345 | L31: 0.289 | M31: 0.263 | N31: 0.247 | O31: 0.235 | Q31: 0.14 | R31: 0.374 | S31: 0.305 | T31: 0.256 | U31: 0.233 | V31: 0.219 | W31: 0.209 | Y31: 0.14 | Z31: 0.331 | AA31: 0.27 | AB31: 0.226 | AC31: 0.207 | AD31: 0.195 | AE31: 0.186 | AG31: 0.14 | AH31: 0.302 | AI31: 0.246 | AJ31: 0.207 | AK31: 0.189 | AL31: 0.179 | AM31: 0.171 | AO31: 0.14 | AP31: 0.285 | AQ31: 0.232 | AR31: 0.195 | AS31: 0.179 | AT31: 0.169 | AU31: 0.161
A32: 0.145 | B32: 0.545 | C32: 0.445 | D32: 0.371 | E32: 0.336 | F32: 0.314 | G32: 0.299 | I32: 0.145 | J32: 0.426 | K32: 0.348 | L32: 0.292 | M32: 0.266 | N32: 0.25 | O32: 0.239 | Q32: 0.145 | R32: 0.376 | S32: 0.307 | T32: 0.258 | U32: 0.236 | V32: 0.222 | W32: 0.212 | Y32: 0.145 | Z32: 0.333 | AA32: 0.272 | AB32: 0.229 | AC32: 0.21 | AD32: 0.198 | AE32: 0.189 | AG32: 0.145 | AH32: 0.304 | AI32: 0.249 | AJ32: 0.21 | AK32: 0.192 | AL32: 0.181 | AM32: 0.174 | AO32: 0.145 | AP32: 0.287 | AQ32: 0.234 | AR32: 0.198 | AS32: 0.181 | AT32: 0.171 | AU32: 0.164
A33: 0.15 | B33: 0.548 | C33: 0.448 | D33: 0.374 | E33: 0.34 | F33: 0.318 | G33: 0.302 | I33: 0.15 | J33: 0.429 | K33: 0.351 | L33: 0.295 | M33: 0.27 | N33: 0.254 | O33: 0.242 | Q33: 0.15 | R33: 0.379 | S33: 0.31 | T33: 0.261 | U33: 0.239 | V33: 0.225 | W33: 0.215 | Y33: 0.15 | Z33: 0.335 | AA33: 0.275 | AB33: 0.232 | AC33: 0.213 | AD33: 0.201 | AE33: 0.192 | AG33: 0.15 | AH33: 0.306 | AI33: 0.251 | AJ33: 0.212 | AK33: 0.195 | AL33: 0.184 | AM33: 0.176 | AO33: 0.15 | AP33: 0.289 | AQ33: 0.237 | AR33: 0.2 | AS33: 0.184 | AT33: 0.174 | AU33: 0.167
A34: 0.155 | B34: 0.552 | C34: 0.451 | D34: 0.378 | E34: 0.344 | F34: 0.322 | G34: 0.306 | I34: 0.155 | J34: 0.432 | K34: 0.354 | L34: 0.298 | M34: 0.273 | N34: 0.257 | O34: 0.245 | Q34: 0.155 | R34: 0.381 | S34: 0.313 | T34: 0.264 | U34: 0.242 | V34: 0.228 | W34: 0.219 | Y34: 0.155 | Z34: 0.338 | AA34: 0.277 | AB34: 0.235 | AC34: 0.215 | AD34: 0.204 | AE34: 0.195 | AG34: 0.155 | AH34: 0.308 | AI34: 0.253 | AJ34: 0.215 | AK34: 0.197 | AL34: 0.187 | AM34: 0.179 | AO34: 0.155 | AP34: 0.291 | AQ34: 0.239 | AR34: 0.203 | AS34: 0.186 | AT34: 0.176 | AU34: 0.169
A35: 0.16 | B35: 0.555 | C35: 0.455 | D35: 0.382 | E35: 0.347 | F35: 0.326 | G35: 0.31 | I35: 0.16 | J35: 0.435 | K35: 0.357 | L35: 0.302 | M35: 0.276 | N35: 0.26 | O35: 0.249 | Q35: 0.16 | R35: 0.384 | S35: 0.316 | T35: 0.267 | U35: 0.245 | V35: 0.232 | W35: 0.222 | Y35: 0.16 | Z35: 0.34 | AA35: 0.28 | AB35: 0.237 | AC35: 0.218 | AD35: 0.207 | AE35: 0.198 | AG35: 0.16 | AH35: 0.311 | AI35: 0.256 | AJ35: 0.217 | AK35: 0.2 | AL35: 0.189 | AM35: 0.182 | AO35: 0.16 | AP35: 0.293 | AQ35: 0.241 | AR35: 0.205 | AS35: 0.189 | AT35: 0.179 | AU35: 0.172
A36: 0.165 | B36: 0.558 | C36: 0.458 | D36: 0.385 | E36: 0.351 | F36: 0.329 | G36: 0.314 | I36: 0.165 | J36: 0.438 | K36: 0.36 | L36: 0.305 | M36: 0.279 | N36: 0.264 | O36: 0.252 | Q36: 0.165 | R36: 0.386 | S36: 0.319 | T36: 0.27 | U36: 0.248 | V36: 0.235 | W36: 0.225 | Y36: 0.165 | Z36: 0.342 | AA36: 0.282 | AB36: 0.24 | AC36: 0.221 | AD36: 0.209 | AE36: 0.201 | AG36: 0.165 | AH36: 0.313 | AI36: 0.258 | AJ36: 0.22 | AK36: 0.203 | AL36: 0.192 | AM36: 0.185 | AO36: 0.165 | AP36: 0.295 | AQ36: 0.243 | AR36: 0.208 | AS36: 0.192 | AT36: 0.182 | AU36: 0.175
A37: 0.17 | B37: 0.561 | C37: 0.462 | D37: 0.389 | E37: 0.355 | F37: 0.333 | G37: 0.317 | I37: 0.17 | J37: 0.44 | K37: 0.363 | L37: 0.308 | M37: 0.283 | N37: 0.267 | O37: 0.255 | Q37: 0.17 | R37: 0.389 | S37: 0.321 | T37: 0.273 | U37: 0.252 | V37: 0.238 | W37: 0.228 | Y37: 0.17 | Z37: 0.345 | AA37: 0.285 | AB37: 0.243 | AC37: 0.224 | AD37: 0.212 | AE37: 0.204 | AG37: 0.17 | AH37: 0.315 | AI37: 0.261 | AJ37: 0.223 | AK37: 0.206 | AL37: 0.195 | AM37: 0.187 | AO37: 0.17 | AP37: 0.297 | AQ37: 0.246 | AR37: 0.21 | AS37: 0.194 | AT37: 0.184 | AU37: 0.177
A38: 0.175 | B38: 0.564 | C38: 0.465 | D38: 0.393 | E38: 0.358 | F38: 0.337 | G38: 0.321 | I38: 0.175 | J38: 0.443 | K38: 0.367 | L38: 0.312 | M38: 0.286 | N38: 0.27 | O38: 0.259 | Q38: 0.175 | R38: 0.391 | S38: 0.324 | T38: 0.276 | U38: 0.255 | V38: 0.241 | W38: 0.231 | Y38: 0.175 | Z38: 0.347 | AA38: 0.288 | AB38: 0.246 | AC38: 0.227 | AD38: 0.215 | AE38: 0.207 | AG38: 0.175 | AH38: 0.317 | AI38: 0.263 | AJ38: 0.225 | AK38: 0.208 | AL38: 0.198 | AM38: 0.19 | AO38: 0.175 | AP38: 0.299 | AQ38: 0.248 | AR38: 0.213 | AS38: 0.197 | AT38: 0.187 | AU38: 0.18
A39: 0.18 | B39: 0.567 | C39: 0.469 | D39: 0.396 | E39: 0.362 | F39: 0.341 | G39: 0.325 | I39: 0.18 | J39: 0.446 | K39: 0.37 | L39: 0.315 | M39: 0.29 | N39: 0.274 | O39: 0.262 | Q39: 0.18 | R39: 0.394 | S39: 0.327 | T39: 0.28 | U39: 0.258 | V39: 0.244 | W39: 0.234 | Y39: 0.18 | Z39: 0.349 | AA39: 0.29 | AB39: 0.249 | AC39: 0.23 | AD39: 0.218 | AE39: 0.21 | AG39: 0.18 | AH39: 0.319 | AI39: 0.266 | AJ39: 0.228 | AK39: 0.211 | AL39: 0.201 | AM39: 0.193 | AO39: 0.18 | AP39: 0.301 | AQ39: 0.251 | AR39: 0.215 | AS39: 0.2 | AT39: 0.19 | AU39: 0.183
A40: 0.185 | B40: 0.571 | C40: 0.472 | D40: 0.4 | E40: 0.366 | F40: 0.344 | G40: 0.329 | I40: 0.185 | J40: 0.449 | K40: 0.373 | L40: 0.318 | M40: 0.293 | N40: 0.277 | O40: 0.265 | Q40: 0.185 | R40: 0.397 | S40: 0.33 | T40: 0.283 | U40: 0.261 | V40: 0.247 | W40: 0.237 | Y40: 0.185 | Z40: 0.352 | AA40: 0.293 | AB40: 0.252 | AC40: 0.233 | AD40: 0.221 | AE40: 0.213 | AG40: 0.185 | AH40: 0.322 | AI40: 0.268 | AJ40: 0.231 | AK40: 0.214 | AL40: 0.203 | AM40: 0.196 | AO40: 0.185 | AP40: 0.303 | AQ40: 0.253 | AR40: 0.218 | AS40: 0.202 | AT40: 0.192 | AU40: 0.185
A41: 0.19 | B41: 0.574 | C41: 0.476 | D41: 0.404 | E41: 0.37 | F41: 0.348 | G41: 0.332 | I41: 0.19 | J41: 0.451 | K41: 0.376 | L41: 0.321 | M41: 0.296 | N41: 0.28 | O41: 0.269 | Q41: 0.19 | R41: 0.399 | S41: 0.333 | T41: 0.286 | U41: 0.264 | V41: 0.25 | W41: 0.241 | Y41: 0.19 | Z41: 0.354 | AA41: 0.296 | AB41: 0.254 | AC41: 0.236 | AD41: 0.224 | AE41: 0.216 | AG41: 0.19 | AH41: 0.324 | AI41: 0.27 | AJ41: 0.233 | AK41: 0.216 | AL41: 0.206 | AM41: 0.199 | AO41: 0.19 | AP41: 0.306 | AQ41: 0.255 | AR41: 0.22 | AS41: 0.205 | AT41: 0.195 | AU41: 0.188
A42: 0.195 | B42: 0.577 | C42: 0.479 | D42: 0.408 | E42: 0.374 | F42: 0.352 | G42: 0.336 | I42: 0.195 | J42: 0.454 | K42: 0.379 | L42: 0.325 | M42: 0.299 | N42: 0.284 | O42: 0.272 | Q42: 0.195 | R42: 0.402 | S42: 0.336 | T42: 0.289 | U42: 0.267 | V42: 0.254 | W42: 0.244 | Y42: 0.195 | Z42: 0.357 | AA42: 0.298 | AB42: 0.257 | AC42: 0.239 | AD42: 0.227 | AE42: 0.218 | AG42: 0.195 | AH42: 0.326 | AI42: 0.273 | AJ42: 0.236 | AK42: 0.219 | AL42: 0.209 | AM42: 0.201 | AO42: 0.195 | AP42: 0.308 | AQ42: 0.258 | AR42: 0.223 | AS42: 0.207 | AT42: 0.198 | AU42: 0.191
A43: 0.2 | B43: 0.58 | C43: 0.483 | D43: 0.411 | E43: 0.377 | F43: 0.356 | G43: 0.34 | I43: 0.2 | J43: 0.457 | K43: 0.382 | L43: 0.328 | M43: 0.303 | N43: 0.287 | O43: 0.275 | Q43: 0.2 | R43: 0.404 | S43: 0.339 | T43: 0.292 | U43: 0.27 | V43: 0.257 | W43: 0.247 | Y43: 0.2 | Z43: 0.359 | AA43: 0.301 | AB43: 0.26 | AC43: 0.242 | AD43: 0.23 | AE43: 0.221 | AG43: 0.2 | AH43: 0.328 | AI43: 0.276 | AJ43: 0.239 | AK43: 0.222 | AL43: 0.212 | AM43: 0.204 | AO43: 0.2 | AP43: 0.31 | AQ43: 0.26 | AR43: 0.226 | AS43: 0.21 | AT43: 0.2 | AU43: 0.193
A44: 0.205 | B44: 0.584 | C44: 0.487 | D44: 0.415 | E44: 0.381 | F44: 0.359 | G44: 0.343 | I44: 0.205 | J44: 0.46 | K44: 0.385 | L44: 0.331 | M44: 0.306 | N44: 0.29 | O44: 0.279 | Q44: 0.205 | R44: 0.407 | S44: 0.341 | T44: 0.295 | U44: 0.273 | V44: 0.26 | W44: 0.25 | Y44: 0.205 | Z44: 0.361 | AA44: 0.303 | AB44: 0.263 | AC44: 0.244 | AD44: 0.233 | AE44: 0.224 | AG44: 0.205 | AH44: 0.331 | AI44: 0.278 | AJ44: 0.241 | AK44: 0.225 | AL44: 0.214 | AM44: 0.207 | AO44: 0.205 | AP44: 0.312 | AQ44: 0.263 | AR44: 0.228 | AS44: 0.213 | AT44: 0.203 | AU44: 0.196
A45: 0.21 | B45: 0.587 | C45: 0.49 | D45: 0.419 | E45: 0.385 | F45: 0.363 | G45: 0.347 | I45: 0.21 | J45: 0.463 | K45: 0.388 | L45: 0.335 | M45: 0.31 | N45: 0.294 | O45: 0.282 | Q45: 0.21 | R45: 0.41 | S45: 0.344 | T45: 0.298 | U45: 0.276 | V45: 0.263 | W45: 0.253 | Y45: 0.21 | Z45: 0.364 | AA45: 0.306 | AB45: 0.266 | AC45: 0.247 | AD45: 0.236 | AE45: 0.227 | AG45: 0.21 | AH45: 0.333 | AI45: 0.281 | AJ45: 0.244 | AK45: 0.228 | AL45: 0.217 | AM45: 0.21 | AO45: 0.21 | AP45: 0.314 | AQ45: 0.265 | AR45: 0.231 | AS45: 0.215 | AT45: 0.206 | AU45: 0.199
A46: 0.215 | B46: 0.59 | C46: 0.494 | D46: 0.422 | E46: 0.389 | F46: 0.367 | G46: 0.351 | I46: 0.215 | J46: 0.466 | K46: 0.391 | L46: 0.338 | M46: 0.313 | N46: 0.297 | O46: 0.286 | Q46: 0.215 | R46: 0.412 | S46: 0.347 | T46: 0.301 | U46: 0.28 | V46: 0.266 | W46: 0.256 | Y46: 0.215 | Z46: 0.366 | AA46: 0.309 | AB46: 0.269 | AC46: 0.25 | AD46: 0.239 | AE46: 0.23 | AG46: 0.215 | AH46: 0.335 | AI46: 0.283 | AJ46: 0.247 | AK46: 0.23 | AL46: 0.22 | AM46: 0.212 | AO46: 0.215 | AP46: 0.317 | AQ46: 0.267 | AR46: 0.233 | AS46: 0.218 | AT46: 0.208 | AU46: 0.201
A47: 0.22 | B47: 0.593 | C47: 0.497 | D47: 0.426 | E47: 0.393 | F47: 0.371 | G47: 0.355 | I47: 0.22 | J47: 0.469 | K47: 0.395 | L47: 0.341 | M47: 0.316 | N47: 0.301 | O47: 0.289 | Q47: 0.22 | R47: 0.415 | S47: 0.35 | T47: 0.304 | U47: 0.283 | V47: 0.269 | W47: 0.26 | Y47: 0.22 | Z47: 0.369 | AA47: 0.312 | AB47: 0.272 | AC47: 0.253 | AD47: 0.242 | AE47: 0.233 | AG47: 0.22 | AH47: 0.337 | AI47: 0.286 | AJ47: 0.249 | AK47: 0.233 | AL47: 0.223 | AM47: 0.215 | AO47: 0.22 | AP47: 0.319 | AQ47: 0.27 | AR47: 0.236 | AS47: 0.221 | AT47: 0.211 | AU47: 0.204
A48: 0.225 | B48: 0.597 | C48: 0.501 | D48: 0.43 | E48: 0.396 | F48: 0.375 | G48: 0.359 | I48: 0.225 | J48: 0.472 | K48: 0.398 | L48: 0.345 | M48: 0.32 | N48: 0.304 | O48: 0.292 | Q48: 0.225 | R48: 0.418 | S48: 0.353 | T48: 0.307 | U48: 0.286 | V48: 0.273 | W48: 0.263 | Y48: 0.225 | Z48: 0.371 | AA48: 0.314 | AB48: 0.274 | AC48: 0.256 | AD48: 0.245 | AE48: 0.236 | AG48: 0.225 | AH48: 0.34 | AI48: 0.288 | AJ48: 0.252 | AK48: 0.236 | AL48: 0.226 | AM48: 0.218 | AO48: 0.225 | AP48: 0.321 | AQ48: 0.272 | AR48: 0.239 | AS48: 0.223 | AT48: 0.214 | AU48: 0.207
A49: 0.23 | B49: 0.6 | C49: 0.504 | D49: 0.434 | E49: 0.4 | F49: 0.379 | G49: 0.363 | I49: 0.23 | J49: 0.474 | K49: 0.401 | L49: 0.348 | M49: 0.323 | N49: 0.307 | O49: 0.296 | Q49: 0.23 | R49: 0.42 | S49: 0.356 | T49: 0.31 | U49: 0.289 | V49: 0.276 | W49: 0.266 | Y49: 0.23 | Z49: 0.374 | AA49: 0.317 | AB49: 0.277 | AC49: 0.259 | AD49: 0.248 | AE49: 0.239 | AG49: 0.23 | AH49: 0.342 | AI49: 0.291 | AJ49: 0.255 | AK49: 0.239 | AL49: 0.228 | AM49: 0.221 | AO49: 0.23 | AP49: 0.323 | AQ49: 0.275 | AR49: 0.241 | AS49: 0.226 | AT49: 0.217 | AU49: 0.21
A50: 0.235 | B50: 0.604 | C50: 0.508 | D50: 0.437 | E50: 0.404 | F50: 0.382 | G50: 0.366 | I50: 0.235 | J50: 0.477 | K50: 0.404 | L50: 0.351 | M50: 0.327 | N50: 0.311 | O50: 0.299 | Q50: 0.235 | R50: 0.423 | S50: 0.359 | T50: 0.313 | U50: 0.292 | V50: 0.279 | W50: 0.269 | Y50: 0.235 | Z50: 0.376 | AA50: 0.32 | AB50: 0.28 | AC50: 0.262 | AD50: 0.251 | AE50: 0.242 | AG50: 0.235 | AH50: 0.345 | AI50: 0.293 | AJ50: 0.258 | AK50: 0.242 | AL50: 0.231 | AM50: 0.224 | AO50: 0.235 | AP50: 0.325 | AQ50: 0.277 | AR50: 0.244 | AS50: 0.229 | AT50: 0.219 | AU50: 0.212
A51: 0.24 | B51: 0.607 | C51: 0.512 | D51: 0.441 | E51: 0.408 | F51: 0.386 | G51: 0.37 | I51: 0.24 | J51: 0.48 | K51: 0.407 | L51: 0.355 | M51: 0.33 | N51: 0.314 | O51: 0.303 | Q51: 0.24 | R51: 0.426 | S51: 0.362 | T51: 0.317 | U51: 0.296 | V51: 0.282 | W51: 0.272 | Y51: 0.24 | Z51: 0.379 | AA51: 0.323 | AB51: 0.283 | AC51: 0.265 | AD51: 0.254 | AE51: 0.245 | AG51: 0.24 | AH51: 0.347 | AI51: 0.296 | AJ51: 0.26 | AK51: 0.244 | AL51: 0.234 | AM51: 0.227 | AO51: 0.24 | AP51: 0.328 | AQ51: 0.28 | AR51: 0.247 | AS51: 0.232 | AT51: 0.222 | AU51: 0.215
A52: 0.245 | B52: 0.61 | C52: 0.515 | D52: 0.445 | E52: 0.412 | F52: 0.39 | G52: 0.374 | I52: 0.245 | J52: 0.483 | K52: 0.411 | L52: 0.358 | M52: 0.333 | N52: 0.318 | O52: 0.306 | Q52: 0.245 | R52: 0.429 | S52: 0.365 | T52: 0.32 | U52: 0.299 | V52: 0.285 | W52: 0.275 | Y52: 0.245 | Z52: 0.381 | AA52: 0.325 | AB52: 0.286 | AC52: 0.268 | AD52: 0.257 | AE52: 0.248 | AG52: 0.245 | AH52: 0.349 | AI52: 0.299 | AJ52: 0.263 | AK52: 0.247 | AL52: 0.237 | AM52: 0.229 | AO52: 0.245 | AP52: 0.33 | AQ52: 0.282 | AR52: 0.249 | AS52: 0.234 | AT52: 0.225 | AU52: 0.218
A53: 0.25 | B53: 0.614 | C53: 0.519 | D53: 0.449 | E53: 0.415 | F53: 0.394 | G53: 0.378 | I53: 0.25 | J53: 0.486 | K53: 0.414 | L53: 0.361 | M53: 0.337 | N53: 0.321 | O53: 0.309 | Q53: 0.25 | R53: 0.431 | S53: 0.368 | T53: 0.323 | U53: 0.302 | V53: 0.289 | W53: 0.279 | Y53: 0.25 | Z53: 0.384 | AA53: 0.328 | AB53: 0.289 | AC53: 0.271 | AD53: 0.26 | AE53: 0.251 | AG53: 0.25 | AH53: 0.352 | AI53: 0.301 | AJ53: 0.266 | AK53: 0.25 | AL53: 0.24 | AM53: 0.232 | AO53: 0.25 | AP53: 0.332 | AQ53: 0.285 | AR53: 0.252 | AS53: 0.237 | AT53: 0.228 | AU53: 0.221
A54: 0.255 | B54: 0.617 | C54: 0.523 | D54: 0.453 | E54: 0.419 | F54: 0.398 | G54: 0.381 | I54: 0.255 | J54: 0.489 | K54: 0.417 | L54: 0.365 | M54: 0.34 | N54: 0.324 | O54: 0.313 | Q54: 0.255 | R54: 0.434 | S54: 0.371 | T54: 0.326 | U54: 0.305 | V54: 0.292 | W54: 0.282 | Y54: 0.255 | Z54: 0.386 | AA54: 0.331 | AB54: 0.292 | AC54: 0.274 | AD54: 0.263 | AE54: 0.254 | AG54: 0.255 | AH54: 0.354 | AI54: 0.304 | AJ54: 0.269 | AK54: 0.253 | AL54: 0.243 | AM54: 0.235 | AO54: 0.255 | AP54: 0.334 | AQ54: 0.287 | AR54: 0.255 | AS54: 0.24 | AT54: 0.23 | AU54: 0.223
A55: 0.26 | B55: 0.621 | C55: 0.526 | D55: 0.457 | E55: 0.423 | F55: 0.402 | G55: 0.385 | I55: 0.26 | J55: 0.492 | K55: 0.42 | L55: 0.368 | M55: 0.344 | N55: 0.328 | O55: 0.316 | Q55: 0.26 | R55: 0.437 | S55: 0.374 | T55: 0.329 | U55: 0.308 | V55: 0.295 | W55: 0.285 | Y55: 0.26 | Z55: 0.389 | AA55: 0.334 | AB55: 0.295 | AC55: 0.277 | AD55: 0.266 | AE55: 0.257 | AG55: 0.26 | AH55: 0.356 | AI55: 0.307 | AJ55: 0.272 | AK55: 0.256 | AL55: 0.245 | AM55: 0.238 | AO55: 0.26 | AP55: 0.337 | AQ55: 0.29 | AR55: 0.257 | AS55: 0.242 | AT55: 0.233 | AU55: 0.226
A56: 0.265 | B56: 0.624 | C56: 0.53 | D56: 0.46 | E56: 0.427 | F56: 0.405 | G56: 0.389 | I56: 0.265 | J56: 0.495 | K56: 0.423 | L56: 0.371 | M56: 0.347 | N56: 0.331 | O56: 0.319 | Q56: 0.265 | R56: 0.439 | S56: 0.377 | T56: 0.332 | U56: 0.312 | V56: 0.298 | W56: 0.288 | Y56: 0.265 | Z56: 0.391 | AA56: 0.337 | AB56: 0.298 | AC56: 0.28 | AD56: 0.269 | AE56: 0.26 | AG56: 0.265 | AH56: 0.359 | AI56: 0.309 | AJ56: 0.274 | AK56: 0.258 | AL56: 0.248 | AM56: 0.241 | AO56: 0.265 | AP56: 0.339 | AQ56: 0.292 | AR56: 0.26 | AS56: 0.245 | AT56: 0.236 | AU56: 0.229
A57: 0.27 | B57: 0.628 | C57: 0.534 | D57: 0.464 | E57: 0.431 | F57: 0.409 | G57: 0.393 | I57: 0.27 | J57: 0.498 | K57: 0.427 | L57: 0.375 | M57: 0.35 | N57: 0.335 | O57: 0.323 | Q57: 0.27 | R57: 0.442 | S57: 0.38 | T57: 0.335 | U57: 0.315 | V57: 0.301 | W57: 0.291 | Y57: 0.27 | Z57: 0.394 | AA57: 0.339 | AB57: 0.301 | AC57: 0.283 | AD57: 0.271 | AE57: 0.263 | AG57: 0.27 | AH57: 0.361 | AI57: 0.312 | AJ57: 0.277 | AK57: 0.261 | AL57: 0.251 | AM57: 0.243 | AO57: 0.27 | AP57: 0.341 | AQ57: 0.295 | AR57: 0.263 | AS57: 0.248 | AT57: 0.239 | AU57: 0.231
A58: 0.275 | B58: 0.631 | C58: 0.538 | D58: 0.468 | E58: 0.435 | F58: 0.413 | G58: 0.397 | I58: 0.275 | J58: 0.501 | K58: 0.43 | L58: 0.378 | M58: 0.354 | N58: 0.338 | O58: 0.326 | Q58: 0.275 | R58: 0.445 | S58: 0.383 | T58: 0.339 | U58: 0.318 | V58: 0.305 | W58: 0.294 | Y58: 0.275 | Z58: 0.396 | AA58: 0.342 | AB58: 0.304 | AC58: 0.286 | AD58: 0.274 | AE58: 0.266 | AG58: 0.275 | AH58: 0.364 | AI58: 0.314 | AJ58: 0.28 | AK58: 0.264 | AL58: 0.254 | AM58: 0.246 | AO58: 0.275 | AP58: 0.344 | AQ58: 0.298 | AR58: 0.265 | AS58: 0.251 | AT58: 0.241 | AU58: 0.234
A59: 0.28 | B59: 0.635 | C59: 0.541 | D59: 0.472 | E59: 0.439 | F59: 0.417 | G59: 0.401 | I59: 0.28 | J59: 0.504 | K59: 0.433 | L59: 0.382 | M59: 0.357 | N59: 0.342 | O59: 0.33 | Q59: 0.28 | R59: 0.448 | S59: 0.386 | T59: 0.342 | U59: 0.321 | V59: 0.308 | W59: 0.298 | Y59: 0.28 | Z59: 0.399 | AA59: 0.345 | AB59: 0.307 | AC59: 0.289 | AD59: 0.278 | AE59: 0.269 | AG59: 0.28 | AH59: 0.366 | AI59: 0.317 | AJ59: 0.283 | AK59: 0.267 | AL59: 0.257 | AM59: 0.249 | AO59: 0.28 | AP59: 0.346 | AQ59: 0.3 | AR59: 0.268 | AS59: 0.253 | AT59: 0.244 | AU59: 0.237
A60: 0.285 | B60: 0.638 | C60: 0.545 | D60: 0.476 | E60: 0.442 | F60: 0.421 | G60: 0.404 | I60: 0.285 | J60: 0.507 | K60: 0.437 | L60: 0.385 | M60: 0.361 | N60: 0.345 | O60: 0.333 | Q60: 0.285 | R60: 0.451 | S60: 0.389 | T60: 0.345 | U60: 0.324 | V60: 0.311 | W60: 0.301 | Y60: 0.285 | Z60: 0.402 | AA60: 0.348 | AB60: 0.31 | AC60: 0.292 | AD60: 0.281 | AE60: 0.272 | AG60: 0.285 | AH60: 0.369 | AI60: 0.32 | AJ60: 0.286 | AK60: 0.27 | AL60: 0.26 | AM60: 0.252 | AO60: 0.285 | AP60: 0.349 | AQ60: 0.303 | AR60: 0.271 | AS60: 0.256 | AT60: 0.247 | AU60: 0.24
A61: 0.29 | B61: 0.642 | C61: 0.549 | D61: 0.48 | E61: 0.446 | F61: 0.425 | G61: 0.408 | I61: 0.29 | J61: 0.51 | K61: 0.44 | L61: 0.389 | M61: 0.364 | N61: 0.348 | O61: 0.336 | Q61: 0.29 | R61: 0.454 | S61: 0.392 | T61: 0.348 | U61: 0.328 | V61: 0.314 | W61: 0.304 | Y61: 0.29 | Z61: 0.404 | AA61: 0.351 | AB61: 0.313 | AC61: 0.295 | AD61: 0.284 | AE61: 0.275 | AG61: 0.29 | AH61: 0.371 | AI61: 0.322 | AJ61: 0.288 | AK61: 0.273 | AL61: 0.262 | AM61: 0.255 | AO61: 0.29 | AP61: 0.351 | AQ61: 0.305 | AR61: 0.273 | AS61: 0.259 | AT61: 0.249 | AU61: 0.242
A62: 0.295 | B62: 0.645 | C62: 0.552 | D62: 0.483 | E62: 0.45 | F62: 0.428 | G62: 0.412 | I62: 0.295 | J62: 0.513 | K62: 0.443 | L62: 0.392 | M62: 0.368 | N62: 0.352 | O62: 0.34 | Q62: 0.295 | R62: 0.457 | S62: 0.395 | T62: 0.351 | U62: 0.331 | V62: 0.317 | W62: 0.307 | Y62: 0.295 | Z62: 0.407 | AA62: 0.354 | AB62: 0.316 | AC62: 0.298 | AD62: 0.287 | AE62: 0.278 | AG62: 0.295 | AH62: 0.373 | AI62: 0.325 | AJ62: 0.291 | AK62: 0.275 | AL62: 0.265 | AM62: 0.258 | AO62: 0.295 | AP62: 0.353 | AQ62: 0.308 | AR62: 0.276 | AS62: 0.262 | AT62: 0.252 | AU62: 0.245
A63: 0.3 | B63: 0.648 | C63: 0.556 | D63: 0.487 | E63: 0.454 | F63: 0.432 | G63: 0.416 | I63: 0.3 | J63: 0.516 | K63: 0.446 | L63: 0.395 | M63: 0.371 | N63: 0.355 | O63: 0.343 | Q63: 0.3 | R63: 0.459 | S63: 0.398 | T63: 0.355 | U63: 0.334 | V63: 0.321 | W63: 0.31 | Y63: 0.3 | Z63: 0.41 | AA63: 0.356 | AB63: 0.319 | AC63: 0.301 | AD63: 0.29 | AE63: 0.281 | AG63: 0.3 | AH63: 0.376 | AI63: 0.328 | AJ63: 0.294 | AK63: 0.278 | AL63: 0.268 | AM63: 0.26 | AO63: 0.3 | AP63: 0.356 | AQ63: 0.31 | AR63: 0.279 | AS63: 0.264 | AT63: 0.255 | AU63: 0.248
A64: 0.305 | B64: 0.652 | C64: 0.56 | D64: 0.491 | E64: 0.458 | F64: 0.436 | G64: 0.419 | I64: 0.305 | J64: 0.519 | K64: 0.45 | L64: 0.399 | M64: 0.374 | N64: 0.359 | O64: 0.347 | Q64: 0.305 | R64: 0.462 | S64: 0.402 | T64: 0.358 | U64: 0.337 | V64: 0.324 | W64: 0.314 | Y64: 0.305 | Z64: 0.412 | AA64: 0.359 | AB64: 0.322 | AC64: 0.304 | AD64: 0.292 | AE64: 0.284 | AG64: 0.305 | AH64: 0.379 | AI64: 0.331 | AJ64: 0.297 | AK64: 0.281 | AL64: 0.271 | AM64: 0.263 | AO64: 0.305 | AP64: 0.358 | AQ64: 0.313 | AR64: 0.282 | AS64: 0.267 | AT64: 0.258 | AU64: 0.251
A65: 0.31 | B65: 0.655 | C65: 0.563 | D65: 0.495 | E65: 0.462 | F65: 0.44 | G65: 0.423 | I65: 0.31 | J65: 0.523 | K65: 0.453 | L65: 0.402 | M65: 0.378 | N65: 0.362 | O65: 0.35 | Q65: 0.31 | R65: 0.465 | S65: 0.405 | T65: 0.361 | U65: 0.34 | V65: 0.327 | W65: 0.317 | Y65: 0.31 | Z65: 0.415 | AA65: 0.362 | AB65: 0.325 | AC65: 0.307 | AD65: 0.296 | AE65: 0.287 | AG65: 0.31 | AH65: 0.381 | AI65: 0.333 | AJ65: 0.3 | AK65: 0.284 | AL65: 0.274 | AM65: 0.266 | AO65: 0.31 | AP65: 0.36 | AQ65: 0.316 | AR65: 0.284 | AS65: 0.27 | AT65: 0.26 | AU65: 0.253
A66: 0.315 | B66: 0.659 | C66: 0.567 | D66: 0.499 | E66: 0.466 | F66: 0.444 | G66: 0.427 | I66: 0.315 | J66: 0.526 | K66: 0.456 | L66: 0.406 | M66: 0.381 | N66: 0.366 | O66: 0.353 | Q66: 0.315 | R66: 0.468 | S66: 0.408 | T66: 0.364 | U66: 0.344 | V66: 0.33 | W66: 0.32 | Y66: 0.315 | Z66: 0.418 | AA66: 0.365 | AB66: 0.328 | AC66: 0.31 | AD66: 0.299 | AE66: 0.29 | AG66: 0.315 | AH66: 0.384 | AI66: 0.336 | AJ66: 0.302 | AK66: 0.287 | AL66: 0.277 | AM66: 0.269 | AO66: 0.315 | AP66: 0.363 | AQ66: 0.318 | AR66: 0.287 | AS66: 0.273 | AT66: 0.263 | AU66: 0.256
A67: 0.32 | B67: 0.663 | C67: 0.571 | D67: 0.503 | E67: 0.469 | F67: 0.448 | G67: 0.431 | I67: 0.32 | J67: 0.529 | K67: 0.46 | L67: 0.409 | M67: 0.385 | N67: 0.369 | O67: 0.357 | Q67: 0.32 | R67: 0.471 | S67: 0.411 | T67: 0.368 | U67: 0.347 | V67: 0.333 | W67: 0.323 | Y67: 0.32 | Z67: 0.42 | AA67: 0.368 | AB67: 0.331 | AC67: 0.313 | AD67: 0.302 | AE67: 0.293 | AG67: 0.32 | AH67: 0.386 | AI67: 0.339 | AJ67: 0.305 | AK67: 0.29 | AL67: 0.28 | AM67: 0.272 | AO67: 0.32 | AP67: 0.365 | AQ67: 0.321 | AR67: 0.29 | AS67: 0.275 | AT67: 0.266 | AU67: 0.259
A68: 0.325 | B68: 0.666 | C68: 0.575 | D68: 0.507 | E68: 0.473 | F68: 0.451 | G68: 0.435 | I68: 0.325 | J68: 0.532 | K68: 0.463 | L68: 0.413 | M68: 0.388 | N68: 0.372 | O68: 0.36 | Q68: 0.325 | R68: 0.474 | S68: 0.414 | T68: 0.371 | U68: 0.35 | V68: 0.337 | W68: 0.326 | Y68: 0.325 | Z68: 0.423 | AA68: 0.371 | AB68: 0.334 | AC68: 0.316 | AD68: 0.305 | AE68: 0.296 | AG68: 0.325 | AH68: 0.389 | AI68: 0.341 | AJ68: 0.308 | AK68: 0.293 | AL68: 0.282 | AM68: 0.275 | AO68: 0.325 | AP68: 0.368 | AQ68: 0.324 | AR68: 0.293 | AS68: 0.278 | AT68: 0.269 | AU68: 0.262
A69: 0.33 | B69: 0.67 | C69: 0.579 | D69: 0.51 | E69: 0.477 | F69: 0.455 | G69: 0.439 | I69: 0.33 | J69: 0.535 | K69: 0.466 | L69: 0.416 | M69: 0.392 | N69: 0.376 | O69: 0.364 | Q69: 0.33 | R69: 0.477 | S69: 0.417 | T69: 0.374 | U69: 0.353 | V69: 0.34 | W69: 0.33 | Y69: 0.33 | Z69: 0.426 | AA69: 0.374 | AB69: 0.337 | AC69: 0.319 | AD69: 0.308 | AE69: 0.299 | AG69: 0.33 | AH69: 0.391 | AI69: 0.344 | AJ69: 0.311 | AK69: 0.295 | AL69: 0.285 | AM69: 0.277 | AO69: 0.33 | AP69: 0.37 | AQ69: 0.326 | AR69: 0.295 | AS69: 0.281 | AT69: 0.271 | AU69: 0.264
A70: 0.335 | B70: 0.673 | C70: 0.583 | D70: 0.514 | E70: 0.481 | F70: 0.459 | G70: 0.442 | I70: 0.335 | J70: 0.538 | K70: 0.47 | L70: 0.419 | M70: 0.395 | N70: 0.379 | O70: 0.367 | Q70: 0.335 | R70: 0.48 | S70: 0.42 | T70: 0.377 | U70: 0.357 | V70: 0.343 | W70: 0.333 | Y70: 0.335 | Z70: 0.428 | AA70: 0.377 | AB70: 0.34 | AC70: 0.322 | AD70: 0.311 | AE70: 0.302 | AG70: 0.335 | AH70: 0.394 | AI70: 0.347 | AJ70: 0.314 | AK70: 0.298 | AL70: 0.288 | AM70: 0.28 | AO70: 0.335 | AP70: 0.373 | AQ70: 0.329 | AR70: 0.298 | AS70: 0.284 | AT70: 0.274 | AU70: 0.267
A71: 0.34 | B71: 0.677 | C71: 0.586 | D71: 0.518 | E71: 0.485 | F71: 0.463 | G71: 0.446 | I71: 0.34 | J71: 0.541 | K71: 0.473 | L71: 0.423 | M71: 0.399 | N71: 0.383 | O71: 0.37 | Q71: 0.34 | R71: 0.483 | S71: 0.423 | T71: 0.38 | U71: 0.36 | V71: 0.346 | W71: 0.336 | Y71: 0.34 | Z71: 0.431 | AA71: 0.38 | AB71: 0.343 | AC71: 0.325 | AD71: 0.314 | AE71: 0.305 | AG71: 0.34 | AH71: 0.396 | AI71: 0.35 | AJ71: 0.317 | AK71: 0.301 | AL71: 0.291 | AM71: 0.283 | AO71: 0.34 | AP71: 0.375 | AQ71: 0.331 | AR71: 0.301 | AS71: 0.286 | AT71: 0.277 | AU71: 0.27
A72: 0.345 | B72: 0.68 | C72: 0.59 | D72: 0.522 | E72: 0.489 | F72: 0.467 | G72: 0.45 | I72: 0.345 | J72: 0.545 | K72: 0.476 | L72: 0.426 | M72: 0.402 | N72: 0.386 | O72: 0.374 | Q72: 0.345 | R72: 0.486 | S72: 0.426 | T72: 0.384 | U72: 0.363 | V72: 0.35 | W72: 0.339 | Y72: 0.345 | Z72: 0.434 | AA72: 0.382 | AB72: 0.346 | AC72: 0.328 | AD72: 0.317 | AE72: 0.308 | AG72: 0.345 | AH72: 0.399 | AI72: 0.352 | AJ72: 0.32 | AK72: 0.304 | AL72: 0.294 | AM72: 0.286 | AO72: 0.345 | AP72: 0.378 | AQ72: 0.334 | AR72: 0.304 | AS72: 0.289 | AT72: 0.28 | AU72: 0.273
A73: 0.35 | B73: 0.684 | C73: 0.594 | D73: 0.526 | E73: 0.493 | F73: 0.471 | G73: 0.454 | I73: 0.35 | J73: 0.548 | K73: 0.48 | L73: 0.43 | M73: 0.406 | N73: 0.39 | O73: 0.377 | Q73: 0.35 | R73: 0.489 | S73: 0.43 | T73: 0.387 | U73: 0.366 | V73: 0.353 | W73: 0.342 | Y73: 0.35 | Z73: 0.437 | AA73: 0.385 | AB73: 0.349 | AC73: 0.331 | AD73: 0.32 | AE73: 0.311 | AG73: 0.35 | AH73: 0.401 | AI73: 0.355 | AJ73: 0.322 | AK73: 0.307 | AL73: 0.297 | AM73: 0.289 | AO73: 0.35 | AP73: 0.38 | AQ73: 0.337 | AR73: 0.306 | AS73: 0.292 | AT73: 0.283 | AU73: 0.275
A74: 0.355 | B74: 0.687 | C74: 0.597 | D74: 0.53 | E74: 0.497 | F74: 0.474 | G74: 0.457 | I74: 0.355 | J74: 0.551 | K74: 0.483 | L74: 0.433 | M74: 0.409 | N74: 0.393 | O74: 0.38 | Q74: 0.355 | R74: 0.491 | S74: 0.433 | T74: 0.39 | U74: 0.37 | V74: 0.356 | W74: 0.345 | Y74: 0.355 | Z74: 0.439 | AA74: 0.388 | AB74: 0.352 | AC74: 0.334 | AD74: 0.323 | AE74: 0.314 | AG74: 0.355 | AH74: 0.404 | AI74: 0.358 | AJ74: 0.325 | AK74: 0.31 | AL74: 0.3 | AM74: 0.292 | AO74: 0.355 | AP74: 0.382 | AQ74: 0.339 | AR74: 0.309 | AS74: 0.295 | AT74: 0.285 | AU74: 0.278
A75: 0.36 | B75: 0.691 | C75: 0.601 | D75: 0.534 | E75: 0.501 | F75: 0.478 | G75: 0.461 | I75: 0.36 | J75: 0.554 | K75: 0.487 | L75: 0.437 | M75: 0.413 | N75: 0.396 | O75: 0.384 | Q75: 0.36 | R75: 0.495 | S75: 0.436 | T75: 0.393 | U75: 0.373 | V75: 0.359 | W75: 0.349 | Y75: 0.36 | Z75: 0.442 | AA75: 0.391 | AB75: 0.355 | AC75: 0.337 | AD75: 0.326 | AE75: 0.317 | AG75: 0.36 | AH75: 0.407 | AI75: 0.361 | AJ75: 0.328 | AK75: 0.313 | AL75: 0.302 | AM75: 0.294 | AO75: 0.36 | AP75: 0.385 | AQ75: 0.342 | AR75: 0.312 | AS75: 0.298 | AT75: 0.288 | AU75: 0.281
A76: 0.365 | B76: 0.695 | C76: 0.605 | D76: 0.538 | E76: 0.504 | F76: 0.482 | G76: 0.465 | I76: 0.365 | J76: 0.557 | K76: 0.49 | L76: 0.44 | M76: 0.416 | N76: 0.4 | O76: 0.387 | Q76: 0.365 | R76: 0.498 | S76: 0.439 | T76: 0.397 | U76: 0.376 | V76: 0.362 | W76: 0.352 | Y76: 0.365 | Z76: 0.445 | AA76: 0.394 | AB76: 0.358 | AC76: 0.34 | AD76: 0.329 | AE76: 0.32 | AG76: 0.365 | AH76: 0.409 | AI76: 0.363 | AJ76: 0.331 | AK76: 0.316 | AL76: 0.305 | AM76: 0.297 | AO76: 0.365 | AP76: 0.387 | AQ76: 0.345 | AR76: 0.315 | AS76: 0.3 | AT76: 0.291 | AU76: 0.283
A77: 0.37 | B77: 0.699 | C77: 0.609 | D77: 0.542 | E77: 0.508 | F77: 0.486 | G77: 0.469 | I77: 0.37 | J77: 0.561 | K77: 0.493 | L77: 0.444 | M77: 0.42 | N77: 0.403 | O77: 0.391 | Q77: 0.37 | R77: 0.5 | S77: 0.442 | T77: 0.4 | U77: 0.379 | V77: 0.366 | W77: 0.355 | Y77: 0.37 | Z77: 0.448 | AA77: 0.397 | AB77: 0.361 | AC77: 0.343 | AD77: 0.332 | AE77: 0.323 | AG77: 0.37 | AH77: 0.412 | AI77: 0.366 | AJ77: 0.334 | AK77: 0.318 | AL77: 0.308 | AM77: 0.3 | AO77: 0.37 | AP77: 0.39 | AQ77: 0.347 | AR77: 0.317 | AS77: 0.303 | AT77: 0.294 | AU77: 0.286
A78: 0.375 | B78: 0.702 | C78: 0.613 | D78: 0.545 | E78: 0.512 | F78: 0.49 | G78: 0.473 | I78: 0.375 | J78: 0.564 | K78: 0.497 | L78: 0.447 | M78: 0.423 | N78: 0.407 | O78: 0.394 | Q78: 0.375 | R78: 0.503 | S78: 0.446 | T78: 0.403 | U78: 0.383 | V78: 0.369 | W78: 0.358 | Y78: 0.375 | Z78: 0.45 | AA78: 0.4 | AB78: 0.364 | AC78: 0.346 | AD78: 0.335 | AE78: 0.326 | AG78: 0.375 | AH78: 0.414 | AI78: 0.369 | AJ78: 0.337 | AK78: 0.321 | AL78: 0.311 | AM78: 0.303 | AO78: 0.375 | AP78: 0.392 | AQ78: 0.35 | AR78: 0.32 | AS78: 0.306 | AT78: 0.296 | AU78: 0.289
A79: 0.38 | B79: 0.706 | C79: 0.617 | D79: 0.549 | E79: 0.516 | F79: 0.494 | G79: 0.476 | I79: 0.38 | J79: 0.567 | K79: 0.5 | L79: 0.451 | M79: 0.426 | N79: 0.41 | O79: 0.398 | Q79: 0.38 | R79: 0.506 | S79: 0.449 | T79: 0.407 | U79: 0.386 | V79: 0.372 | W79: 0.361 | Y79: 0.38 | Z79: 0.453 | AA79: 0.403 | AB79: 0.367 | AC79: 0.349 | AD79: 0.338 | AE79: 0.329 | AG79: 0.38 | AH79: 0.417 | AI79: 0.372 | AJ79: 0.34 | AK79: 0.324 | AL79: 0.314 | AM79: 0.306 | AO79: 0.38 | AP79: 0.395 | AQ79: 0.353 | AR79: 0.323 | AS79: 0.309 | AT79: 0.299 | AU79: 0.292
A80: 0.385 | B80: 0.71 | C80: 0.621 | D80: 0.553 | E80: 0.52 | F80: 0.498 | G80: 0.48 | I80: 0.385 | J80: 0.57 | K80: 0.503 | L80: 0.454 | M80: 0.43 | N80: 0.414 | O80: 0.401 | Q80: 0.385 | R80: 0.509 | S80: 0.452 | T80: 0.41 | U80: 0.389 | V80: 0.375 | W80: 0.365 | Y80: 0.385 | Z80: 0.456 | AA80: 0.406 | AB80: 0.37 | AC80: 0.353 | AD80: 0.341 | AE80: 0.332 | AG80: 0.385 | AH80: 0.42 | AI80: 0.375 | AJ80: 0.343 | AK80: 0.327 | AL80: 0.317 | AM80: 0.309 | AO80: 0.385 | AP80: 0.398 | AQ80: 0.356 | AR80: 0.326 | AS80: 0.311 | AT80: 0.302 | AU80: 0.294
A81: 0.39 | B81: 0.713 | C81: 0.625 | D81: 0.557 | E81: 0.524 | F81: 0.501 | G81: 0.484 | I81: 0.39 | J81: 0.573 | K81: 0.507 | L81: 0.458 | M81: 0.433 | N81: 0.417 | O81: 0.404 | Q81: 0.39 | R81: 0.512 | S81: 0.455 | T81: 0.413 | U81: 0.392 | V81: 0.379 | W81: 0.368 | Y81: 0.39 | Z81: 0.459 | AA81: 0.409 | AB81: 0.373 | AC81: 0.356 | AD81: 0.344 | AE81: 0.335 | AG81: 0.39 | AH81: 0.422 | AI81: 0.378 | AJ81: 0.346 | AK81: 0.33 | AL81: 0.32 | AM81: 0.312 | AO81: 0.39 | AP81: 0.4 | AQ81: 0.358 | AR81: 0.329 | AS81: 0.314 | AT81: 0.305 | AU81: 0.297
A82: 0.395 | B82: 0.717 | C82: 0.628 | D82: 0.561 | E82: 0.528 | F82: 0.505 | G82: 0.488 | I82: 0.395 | J82: 0.577 | K82: 0.51 | L82: 0.461 | M82: 0.437 | N82: 0.421 | O82: 0.408 | Q82: 0.395 | R82: 0.515 | S82: 0.458 | T82: 0.416 | U82: 0.396 | V82: 0.382 | W82: 0.371 | Y82: 0.395 | Z82: 0.462 | AA82: 0.412 | AB82: 0.376 | AC82: 0.359 | AD82: 0.347 | AE82: 0.338 | AG82: 0.395 | AH82: 0.425 | AI82: 0.38 | AJ82: 0.348 | AK82: 0.333 | AL82: 0.323 | AM82: 0.314 | AO82: 0.395 | AP82: 0.403 | AQ82: 0.361 | AR82: 0.331 | AS82: 0.317 | AT82: 0.307 | AU82: 0.3
A83: 0.4 | B83: 0.72 | C83: 0.632 | D83: 0.565 | E83: 0.532 | F83: 0.509 | G83: 0.491 | I83: 0.4 | J83: 0.58 | K83: 0.514 | L83: 0.465 | M83: 0.44 | N83: 0.424 | O83: 0.411 | Q83: 0.4 | R83: 0.518 | S83: 0.461 | T83: 0.419 | U83: 0.399 | V83: 0.385 | W83: 0.374 | Y83: 0.4 | Z83: 0.464 | AA83: 0.415 | AB83: 0.379 | AC83: 0.362 | AD83: 0.35 | AE83: 0.341 | AG83: 0.4 | AH83: 0.428 | AI83: 0.383 | AJ83: 0.351 | AK83: 0.336 | AL83: 0.325 | AM83: 0.317 | AO83: 0.4 | AP83: 0.405 | AQ83: 0.364 | AR83: 0.334 | AS83: 0.32 | AT83: 0.31 | AU83: 0.303
A84: 0.405 | B84: 0.724 | C84: 0.636 | D84: 0.569 | E84: 0.535 | F84: 0.513 | G84: 0.495 | I84: 0.405 | J84: 0.583 | K84: 0.517 | L84: 0.468 | M84: 0.444 | N84: 0.427 | O84: 0.414 | Q84: 0.405 | R84: 0.521 | S84: 0.465 | T84: 0.423 | U84: 0.402 | V84: 0.388 | W84: 0.377 | Y84: 0.405 | Z84: 0.467 | AA84: 0.418 | AB84: 0.382 | AC84: 0.365 | AD84: 0.353 | AE84: 0.343 | AG84: 0.405 | AH84: 0.43 | AI84: 0.386 | AJ84: 0.354 | AK84: 0.339 | AL84: 0.328 | AM84: 0.32 | AO84: 0.405 | AP84: 0.408 | AQ84: 0.366 | AR84: 0.337 | AS84: 0.323 | AT84: 0.313 | AU84: 0.305
A85: 0.41 | B85: 0.728 | C85: 0.64 | D85: 0.573 | E85: 0.539 | F85: 0.517 | G85: 0.499 | I85: 0.41 | J85: 0.586 | K85: 0.521 | L85: 0.472 | M85: 0.447 | N85: 0.431 | O85: 0.418 | Q85: 0.41 | R85: 0.525 | S85: 0.468 | T85: 0.426 | U85: 0.405 | V85: 0.391 | W85: 0.38 | Y85: 0.41 | Z85: 0.47 | AA85: 0.421 | AB85: 0.385 | AC85: 0.368 | AD85: 0.356 | AE85: 0.346 | AG85: 0.41 | AH85: 0.433 | AI85: 0.389 | AJ85: 0.357 | AK85: 0.342 | AL85: 0.331 | AM85: 0.323 | AO85: 0.41 | AP85: 0.41 | AQ85: 0.369 | AR85: 0.34 | AS85: 0.325 | AT85: 0.316 | AU85: 0.308
A86: 0.415 | B86: 0.732 | C86: 0.644 | D86: 0.577 | E86: 0.543 | F86: 0.521 | G86: 0.503 | I86: 0.415 | J86: 0.59 | K86: 0.524 | L86: 0.475 | M86: 0.451 | N86: 0.434 | O86: 0.421 | Q86: 0.415 | R86: 0.528 | S86: 0.471 | T86: 0.429 | U86: 0.409 | V86: 0.395 | W86: 0.384 | Y86: 0.415 | Z86: 0.473 | AA86: 0.424 | AB86: 0.388 | AC86: 0.371 | AD86: 0.359 | AE86: 0.349 | AG86: 0.415 | AH86: 0.435 | AI86: 0.392 | AJ86: 0.36 | AK86: 0.344 | AL86: 0.334 | AM86: 0.326 | AO86: 0.415 | AP86: 0.413 | AQ86: 0.372 | AR86: 0.342 | AS86: 0.328 | AT86: 0.318 | AU86: 0.311
A87: 0.42 | B87: 0.735 | C87: 0.648 | D87: 0.581 | E87: 0.547 | F87: 0.524 | G87: 0.506 | I87: 0.42 | J87: 0.593 | K87: 0.528 | L87: 0.479 | M87: 0.454 | N87: 0.438 | O87: 0.425 | Q87: 0.42 | R87: 0.531 | S87: 0.474 | T87: 0.433 | U87: 0.412 | V87: 0.398 | W87: 0.387 | Y87: 0.42 | Z87: 0.476 | AA87: 0.427 | AB87: 0.391 | AC87: 0.374 | AD87: 0.362 | AE87: 0.352 | AG87: 0.42 | AH87: 0.438 | AI87: 0.394 | AJ87: 0.363 | AK87: 0.347 | AL87: 0.337 | AM87: 0.328 | AO87: 0.42 | AP87: 0.415 | AQ87: 0.375 | AR87: 0.345 | AS87: 0.331 | AT87: 0.321 | AU87: 0.314
A88: 0.425 | B88: 0.739 | C88: 0.652 | D88: 0.585 | E88: 0.551 | F88: 0.528 | G88: 0.51 | I88: 0.425 | J88: 0.596 | K88: 0.531 | L88: 0.482 | M88: 0.458 | N88: 0.441 | O88: 0.428 | Q88: 0.425 | R88: 0.534 | S88: 0.477 | T88: 0.436 | U88: 0.415 | V88: 0.401 | W88: 0.39 | Y88: 0.425 | Z88: 0.479 | AA88: 0.43 | AB88: 0.394 | AC88: 0.377 | AD88: 0.365 | AE88: 0.355 | AG88: 0.425 | AH88: 0.441 | AI88: 0.397 | AJ88: 0.366 | AK88: 0.35 | AL88: 0.34 | AM88: 0.331 | AO88: 0.425 | AP88: 0.418 | AQ88: 0.377 | AR88: 0.348 | AS88: 0.334 | AT88: 0.324 | AU88: 0.316
A89: 0.43 | B89: 0.743 | C89: 0.655 | D89: 0.589 | E89: 0.555 | F89: 0.532 | G89: 0.514 | I89: 0.43 | J89: 0.6 | K89: 0.534 | L89: 0.486 | M89: 0.461 | N89: 0.445 | O89: 0.431 | Q89: 0.43 | R89: 0.537 | S89: 0.481 | T89: 0.439 | U89: 0.419 | V89: 0.404 | W89: 0.393 | Y89: 0.43 | Z89: 0.481 | AA89: 0.433 | AB89: 0.397 | AC89: 0.38 | AD89: 0.368 | AE89: 0.358 | AG89: 0.43 | AH89: 0.444 | AI89: 0.4 | AJ89: 0.369 | AK89: 0.353 | AL89: 0.343 | AM89: 0.334 | AO89: 0.43 | AP89: 0.421 | AQ89: 0.38 | AR89: 0.351 | AS89: 0.337 | AT89: 0.327 | AU89: 0.319
A90: 0.435 | B90: 0.746 | C90: 0.659 | D90: 0.593 | E90: 0.559 | F90: 0.536 | G90: 0.518 | I90: 0.435 | J90: 0.603 | K90: 0.538 | L90: 0.489 | M90: 0.465 | N90: 0.448 | O90: 0.435 | Q90: 0.435 | R90: 0.54 | S90: 0.484 | T90: 0.442 | U90: 0.422 | V90: 0.408 | W90: 0.396 | Y90: 0.435 | Z90: 0.484 | AA90: 0.436 | AB90: 0.401 | AC90: 0.383 | AD90: 0.371 | AE90: 0.361 | AG90: 0.435 | AH90: 0.446 | AI90: 0.403 | AJ90: 0.372 | AK90: 0.356 | AL90: 0.345 | AM90: 0.337 | AO90: 0.435 | AP90: 0.423 | AQ90: 0.383 | AR90: 0.354 | AS90: 0.339 | AT90: 0.33 | AU90: 0.322
A91: 0.44 | B91: 0.75 | C91: 0.663 | D91: 0.597 | E91: 0.563 | F91: 0.54 | G91: 0.521 | I91: 0.44 | J91: 0.606 | K91: 0.541 | L91: 0.493 | M91: 0.468 | N91: 0.451 | O91: 0.438 | Q91: 0.44 | R91: 0.543 | S91: 0.487 | T91: 0.446 | U91: 0.425 | V91: 0.411 | W91: 0.399 | Y91: 0.44 | Z91: 0.487 | AA91: 0.439 | AB91: 0.404 | AC91: 0.386 | AD91: 0.374 | AE91: 0.364 | AG91: 0.44 | AH91: 0.449 | AI91: 0.406 | AJ91: 0.374 | AK91: 0.359 | AL91: 0.348 | AM91: 0.34 | AO91: 0.44 | AP91: 0.426 | AQ91: 0.386 | AR91: 0.356 | AS91: 0.342 | AT91: 0.332 | AU91: 0.324
A92: 0.445 | B92: 0.754 | C92: 0.667 | D92: 0.601 | E92: 0.567 | F92: 0.543 | G92: 0.525 | I92: 0.445 | J92: 0.61 | K92: 0.545 | L92: 0.496 | M92: 0.472 | N92: 0.455 | O92: 0.441 | Q92: 0.445 | R92: 0.546 | S92: 0.49 | T92: 0.449 | U92: 0.428 | V92: 0.414 | W92: 0.403 | Y92: 0.445 | Z92: 0.49 | AA92: 0.442 | AB92: 0.407 | AC92: 0.389 | AD92: 0.377 | AE92: 0.367 | AG92: 0.445 | AH92: 0.452 | AI92: 0.409 | AJ92: 0.377 | AK92: 0.362 | AL92: 0.351 | AM92: 0.343 | AO92: 0.445 | AP92: 0.428 | AQ92: 0.388 | AR92: 0.359 | AS92: 0.345 | AT92: 0.335 | AU92: 0.327
A93: 0.45 | B93: 0.758 | C93: 0.671 | D93: 0.605 | E93: 0.571 | F93: 0.547 | G93: 0.529 | I93: 0.45 | J93: 0.613 | K93: 0.548 | L93: 0.5 | M93: 0.475 | N93: 0.458 | O93: 0.445 | Q93: 0.45 | R93: 0.549 | S93: 0.494 | T93: 0.452 | U93: 0.432 | V93: 0.417 | W93: 0.406 | Y93: 0.45 | Z93: 0.493 | AA93: 0.445 | AB93: 0.41 | AC93: 0.392 | AD93: 0.38 | AE93: 0.37 | AG93: 0.45 | AH93: 0.454 | AI93: 0.412 | AJ93: 0.38 | AK93: 0.365 | AL93: 0.354 | AM93: 0.345 | AO93: 0.45 | AP93: 0.431 | AQ93: 0.391 | AR93: 0.362 | AS93: 0.348 | AT93: 0.338 | AU93: 0.33
A94: 0.455 | B94: 0.761 | C94: 0.675 | D94: 0.608 | E94: 0.574 | F94: 0.551 | G94: 0.533 | I94: 0.455 | J94: 0.616 | K94: 0.552 | L94: 0.503 | M94: 0.479 | N94: 0.462 | O94: 0.448 | Q94: 0.455 | R94: 0.552 | S94: 0.497 | T94: 0.456 | U94: 0.435 | V94: 0.42 | W94: 0.409 | Y94: 0.455 | Z94: 0.496 | AA94: 0.448 | AB94: 0.413 | AC94: 0.395 | AD94: 0.383 | AE94: 0.373 | AG94: 0.455 | AH94: 0.457 | AI94: 0.414 | AJ94: 0.383 | AK94: 0.368 | AL94: 0.357 | AM94: 0.348 | AO94: 0.455 | AP94: 0.434 | AQ94: 0.394 | AR94: 0.365 | AS94: 0.351 | AT94: 0.341 | AU94: 0.333
A95: 0.46 | B95: 0.765 | C95: 0.679 | D95: 0.612 | E95: 0.578 | F95: 0.555 | G95: 0.536 | I95: 0.46 | J95: 0.62 | K95: 0.555 | L95: 0.507 | M95: 0.482 | N95: 0.465 | O95: 0.451 | Q95: 0.46 | R95: 0.555 | S95: 0.5 | T95: 0.459 | U95: 0.438 | V95: 0.424 | W95: 0.412 | Y95: 0.46 | Z95: 0.499 | AA95: 0.451 | AB95: 0.416 | AC95: 0.398 | AD95: 0.386 | AE95: 0.376 | AG95: 0.46 | AH95: 0.46 | AI95: 0.417 | AJ95: 0.386 | AK95: 0.371 | AL95: 0.36 | AM95: 0.351 | AO95: 0.46 | AP95: 0.436 | AQ95: 0.396 | AR95: 0.368 | AS95: 0.353 | AT95: 0.343 | AU95: 0.335
A96: 0.465 | B96: 0.769 | C96: 0.683 | D96: 0.616 | E96: 0.582 | F96: 0.559 | G96: 0.54 | I96: 0.465 | J96: 0.623 | K96: 0.559 | L96: 0.51 | M96: 0.486 | N96: 0.468 | O96: 0.455 | Q96: 0.465 | R96: 0.558 | S96: 0.503 | T96: 0.462 | U96: 0.441 | V96: 0.427 | W96: 0.415 | Y96: 0.465 | Z96: 0.501 | AA96: 0.454 | AB96: 0.419 | AC96: 0.401 | AD96: 0.389 | AE96: 0.379 | AG96: 0.465 | AH96: 0.463 | AI96: 0.42 | AJ96: 0.389 | AK96: 0.373 | AL96: 0.363 | AM96: 0.354 | AO96: 0.465 | AP96: 0.439 | AQ96: 0.399 | AR96: 0.37 | AS96: 0.356 | AT96: 0.346 | AU96: 0.338
A97: 0.47 | B97: 0.773 | C97: 0.687 | D97: 0.62 | E97: 0.586 | F97: 0.563 | G97: 0.544 | I97: 0.47 | J97: 0.626 | K97: 0.562 | L97: 0.514 | M97: 0.489 | N97: 0.472 | O97: 0.458 | Q97: 0.47 | R97: 0.562 | S97: 0.507 | T97: 0.466 | U97: 0.445 | V97: 0.43 | W97: 0.418 | Y97: 0.47 | Z97: 0.504 | AA97: 0.457 | AB97: 0.422 | AC97: 0.404 | AD97: 0.392 | AE97: 0.382 | AG97: 0.47 | AH97: 0.465 | AI97: 0.423 | AJ97: 0.392 | AK97: 0.376 | AL97: 0.365 | AM97: 0.357 | AO97: 0.47 | AP97: 0.441 | AQ97: 0.402 | AR97: 0.373 | AS97: 0.359 | AT97: 0.349 | AU97: 0.341
A98: 0.475 | B98: 0.776 | C98: 0.691 | D98: 0.624 | E98: 0.59 | F98: 0.566 | G98: 0.547 | I98: 0.475 | J98: 0.63 | K98: 0.566 | L98: 0.517 | M98: 0.493 | N98: 0.475 | O98: 0.461 | Q98: 0.475 | R98: 0.565 | S98: 0.51 | T98: 0.469 | U98: 0.448 | V98: 0.433 | W98: 0.422 | Y98: 0.475 | Z98: 0.507 | AA98: 0.46 | AB98: 0.425 | AC98: 0.407 | AD98: 0.395 | AE98: 0.385 | AG98: 0.475 | AH98: 0.468 | AI98: 0.426 | AJ98: 0.395 | AK98: 0.379 | AL98: 0.368 | AM98: 0.359 | AO98: 0.475 | AP98: 0.444 | AQ98: 0.405 | AR98: 0.376 | AS98: 0.362 | AT98: 0.352 | AU98: 0.343
A99: 0.48 | B99: 0.78 | C99: 0.694 | D99: 0.628 | E99: 0.594 | F99: 0.57 | G99: 0.551 | I99: 0.48 | J99: 0.633 | K99: 0.569 | L99: 0.521 | M99: 0.496 | N99: 0.479 | O99: 0.465 | Q99: 0.48 | R99: 0.568 | S99: 0.513 | T99: 0.472 | U99: 0.451 | V99: 0.436 | W99: 0.425 | Y99: 0.48 | Z99: 0.51 | AA99: 0.463 | AB99: 0.428 | AC99: 0.41 | AD99: 0.398 | AE99: 0.388 | AG99: 0.48 | AH99: 0.471 | AI99: 0.429 | AJ99: 0.398 | AK99: 0.382 | AL99: 0.371 | AM99: 0.362 | AO99: 0.48 | AP99: 0.447 | AQ99: 0.408 | AR99: 0.379 | AS99: 0.364 | AT99: 0.354 | AU99: 0.346
A100: 0.485 | B100: 0.784 | C100: 0.698 | D100: 0.632 | E100: 0.598 | F100: 0.574 | G100: 0.555 | I100: 0.485 | J100: 0.636 | K100: 0.573 | L100: 0.524 | M100: 0.5 | N100: 0.482 | O100: 0.468 | Q100: 0.485 | R100: 0.571 | S100: 0.516 | T100: 0.475 | U100: 0.454 | V100: 0.44 | W100: 0.428 | Y100: 0.485 | Z100: 0.513 | AA100: 0.466 | AB100: 0.431 | AC100: 0.413 | AD100: 0.401 | AE100: 0.391 | AG100: 0.485 | AH100: 0.474 | AI100: 0.432 | AJ100: 0.401 | AK100: 0.385 | AL100: 0.374 | AM100: 0.365 | AO100: 0.485 | AP100: 0.449 | AQ100: 0.41 | AR100: 0.382 | AS100: 0.367 | AT100: 0.357 | AU100: 0.349
A101: 0.49 | B101: 0.788 | C101: 0.702 | D101: 0.636 | E101: 0.602 | F101: 0.578 | G101: 0.559 | I101: 0.49 | J101: 0.64 | K101: 0.576 | L101: 0.528 | M101: 0.503 | N101: 0.486 | O101: 0.471 | Q101: 0.49 | R101: 0.574 | S101: 0.52 | T101: 0.479 | U101: 0.458 | V101: 0.443 | W101: 0.431 | Y101: 0.49 | Z101: 0.516 | AA101: 0.469 | AB101: 0.434 | AC101: 0.416 | AD101: 0.404 | AE101: 0.394 | AG101: 0.49 | AH101: 0.476 | AI101: 0.434 | AJ101: 0.404 | AK101: 0.388 | AL101: 0.377 | AM101: 0.368 | AO101: 0.49 | AP101: 0.452 | AQ101: 0.413 | AR101: 0.385 | AS101: 0.37 | AT101: 0.36 | AU101: 0.352
A102: 0.495 | B102: 0.792 | C102: 0.706 | D102: 0.64 | E102: 0.606 | F102: 0.582 | G102: 0.562 | I102: 0.495 | J102: 0.643 | K102: 0.58 | L102: 0.532 | M102: 0.507 | N102: 0.489 | O102: 0.475 | Q102: 0.495 | R102: 0.577 | S102: 0.523 | T102: 0.482 | U102: 0.461 | V102: 0.446 | W102: 0.434 | Y102: 0.495 | Z102: 0.519 | AA102: 0.472 | AB102: 0.437 | AC102: 0.42 | AD102: 0.407 | AE102: 0.397 | AG102: 0.495 | AH102: 0.479 | AI102: 0.437 | AJ102: 0.407 | AK102: 0.391 | AL102: 0.38 | AM102: 0.371 | AO102: 0.495 | AP102: 0.455 | AQ102: 0.416 | AR102: 0.387 | AS102: 0.373 | AT102: 0.363 | AU102: 0.354
A103: 0.5 | B103: 0.796 | C103: 0.71 | D103: 0.644 | E103: 0.61 | F103: 0.585 | G103: 0.566 | I103: 0.5 | J103: 0.646 | K103: 0.583 | L103: 0.535 | M103: 0.51 | N103: 0.492 | O103: 0.478 | Q103: 0.5 | R103: 0.58 | S103: 0.526 | T103: 0.485 | U103: 0.464 | V103: 0.449 | W103: 0.437 | Y103: 0.5 | Z103: 0.522 | AA103: 0.475 | AB103: 0.441 | AC103: 0.423 | AD103: 0.41 | AE103: 0.4 | AG103: 0.5 | AH103: 0.482 | AI103: 0.44 | AJ103: 0.409 | AK103: 0.394 | AL103: 0.383 | AM103: 0.373 | AO103: 0.5 | AP103: 0.457 | AQ103: 0.419 | AR103: 0.39 | AS103: 0.376 | AT103: 0.365 | AU103: 0.357
A104: 0.505 | B104: 0.799 | C104: 0.714 | D104: 0.648 | E104: 0.613 | F104: 0.589 | G104: 0.57 | I104: 0.505 | J104: 0.65 | K104: 0.587 | L104: 0.538 | M104: 0.514 | N104: 0.496 | O104: 0.481 | Q104: 0.505 | R104: 0.583 | S104: 0.529 | T104: 0.489 | U104: 0.468 | V104: 0.452 | W104: 0.44 | Y104: 0.505 | Z104: 0.525 | AA104: 0.478 | AB104: 0.444 | AC104: 0.426 | AD104: 0.413 | AE104: 0.403 | AG104: 0.505 | AH104: 0.485 | AI104: 0.443 | AJ104: 0.412 | AK104: 0.397 | AL104: 0.385 | AM104: 0.376 | AO104: 0.505 | AP104: 0.46 | AQ104: 0.421 | AR104: 0.393 | AS104: 0.378 | AT104: 0.368 | AU104: 0.36
A105: 0.51 | B105: 0.803 | C105: 0.718 | D105: 0.652 | E105: 0.617 | F105: 0.593 | G105: 0.573 | I105: 0.51 | J105: 0.653 | K105: 0.59 | L105: 0.542 | M105: 0.517 | N105: 0.499 | O105: 0.485 | Q105: 0.51 | R105: 0.587 | S105: 0.533 | T105: 0.492 | U105: 0.471 | V105: 0.456 | W105: 0.443 | Y105: 0.51 | Z105: 0.528 | AA105: 0.481 | AB105: 0.447 | AC105: 0.429 | AD105: 0.416 | AE105: 0.406 | AG105: 0.51 | AH105: 0.487 | AI105: 0.446 | AJ105: 0.415 | AK105: 0.4 | AL105: 0.388 | AM105: 0.379 | AO105: 0.51 | AP105: 0.463 | AQ105: 0.424 | AR105: 0.396 | AS105: 0.381 | AT105: 0.371 | AU105: 0.362
A106: 0.515 | B106: 0.807 | C106: 0.722 | D106: 0.656 | E106: 0.621 | F106: 0.597 | G106: 0.577 | I106: 0.515 | J106: 0.657 | K106: 0.594 | L106: 0.546 | M106: 0.521 | N106: 0.503 | O106: 0.488 | Q106: 0.515 | R106: 0.59 | S106: 0.536 | T106: 0.495 | U106: 0.474 | V106: 0.459 | W106: 0.447 | Y106: 0.515 | Z106: 0.531 | AA106: 0.484 | AB106: 0.45 | AC106: 0.432 | AD106: 0.419 | AE106: 0.409 | AG106: 0.515 | AH106: 0.49 | AI106: 0.449 | AJ106: 0.418 | AK106: 0.402 | AL106: 0.391 | AM106: 0.382 | AO106: 0.515 | AP106: 0.465 | AQ106: 0.427 | AR106: 0.399 | AS106: 0.384 | AT106: 0.374 | AU106: 0.365
A107: 0.52 | B107: 0.811 | C107: 0.726 | D107: 0.66 | E107: 0.625 | F107: 0.601 | G107: 0.581 | I107: 0.52 | J107: 0.66 | K107: 0.597 | L107: 0.549 | M107: 0.524 | N107: 0.506 | O107: 0.491 | Q107: 0.52 | R107: 0.593 | S107: 0.539 | T107: 0.499 | U107: 0.477 | V107: 0.462 | W107: 0.45 | Y107: 0.52 | Z107: 0.534 | AA107: 0.487 | AB107: 0.453 | AC107: 0.435 | AD107: 0.422 | AE107: 0.411 | AG107: 0.52 | AH107: 0.493 | AI107: 0.452 | AJ107: 0.421 | AK107: 0.405 | AL107: 0.394 | AM107: 0.385 | AO107: 0.52 | AP107: 0.468 | AQ107: 0.43 | AR107: 0.402 | AS107: 0.387 | AT107: 0.376 | AU107: 0.368
A108: 0.525 | B108: 0.814 | C108: 0.73 | D108: 0.664 | E108: 0.629 | F108: 0.604 | G108: 0.584 | I108: 0.525 | J108: 0.663 | K108: 0.601 | L108: 0.553 | M108: 0.527 | N108: 0.509 | O108: 0.495 | Q108: 0.525 | R108: 0.596 | S108: 0.543 | T108: 0.502 | U108: 0.481 | V108: 0.465 | W108: 0.453 | Y108: 0.525 | Z108: 0.537 | AA108: 0.491 | AB108: 0.456 | AC108: 0.438 | AD108: 0.425 | AE108: 0.414 | AG108: 0.525 | AH108: 0.496 | AI108: 0.455 | AJ108: 0.424 | AK108: 0.408 | AL108: 0.397 | AM108: 0.387 | AO108: 0.525 | AP108: 0.471 | AQ108: 0.433 | AR108: 0.404 | AS108: 0.39 | AT108: 0.379 | AU108: 0.371
A109: 0.53 | B109: 0.818 | C109: 0.734 | D109: 0.668 | E109: 0.633 | F109: 0.608 | G109: 0.588 | I109: 0.53 | J109: 0.667 | K109: 0.604 | L109: 0.556 | M109: 0.531 | N109: 0.513 | O109: 0.498 | Q109: 0.53 | R109: 0.599 | S109: 0.546 | T109: 0.505 | U109: 0.484 | V109: 0.469 | W109: 0.456 | Y109: 0.53 | Z109: 0.54 | AA109: 0.494 | AB109: 0.459 | AC109: 0.441 | AD109: 0.428 | AE109: 0.417 | AG109: 0.53 | AH109: 0.499 | AI109: 0.458 | AJ109: 0.427 | AK109: 0.411 | AL109: 0.4 | AM109: 0.39 | AO109: 0.53 | AP109: 0.473 | AQ109: 0.435 | AR109: 0.407 | AS109: 0.392 | AT109: 0.382 | AU109: 0.373
A110: 0.535 | B110: 0.822 | C110: 0.738 | D110: 0.672 | E110: 0.637 | F110: 0.612 | G110: 0.592 | I110: 0.535 | J110: 0.67 | K110: 0.608 | L110: 0.56 | M110: 0.534 | N110: 0.516 | O110: 0.501 | Q110: 0.535 | R110: 0.603 | S110: 0.549 | T110: 0.509 | U110: 0.487 | V110: 0.472 | W110: 0.459 | Y110: 0.535 | Z110: 0.542 | AA110: 0.497 | AB110: 0.462 | AC110: 0.444 | AD110: 0.431 | AE110: 0.42 | AG110: 0.535 | AH110: 0.501 | AI110: 0.461 | AJ110: 0.43 | AK110: 0.414 | AL110: 0.402 | AM110: 0.393 | AO110: 0.535 | AP110: 0.476 | AQ110: 0.438 | AR110: 0.41 | AS110: 0.395 | AT110: 0.385 | AU110: 0.376
A111: 0.54 | B111: 0.826 | C111: 0.742 | D111: 0.676 | E111: 0.641 | F111: 0.616 | G111: 0.595 | I111: 0.54 | J111: 0.673 | K111: 0.611 | L111: 0.563 | M111: 0.538 | N111: 0.52 | O111: 0.505 | Q111: 0.54 | R111: 0.606 | S111: 0.553 | T111: 0.512 | U111: 0.49 | V111: 0.475 | W111: 0.462 | Y111: 0.54 | Z111: 0.545 | AA111: 0.5 | AB111: 0.465 | AC111: 0.447 | AD111: 0.434 | AE111: 0.423 | AG111: 0.54 | AH111: 0.504 | AI111: 0.464 | AJ111: 0.433 | AK111: 0.417 | AL111: 0.405 | AM111: 0.396 | AO111: 0.54 | AP111: 0.479 | AQ111: 0.441 | AR111: 0.413 | AS111: 0.398 | AT111: 0.387 | AU111: 0.379
A112: 0.545 | B112: 0.83 | C112: 0.746 | D112: 0.68 | E112: 0.645 | F112: 0.619 | G112: 0.599 | I112: 0.545 | J112: 0.677 | K112: 0.615 | L112: 0.567 | M112: 0.541 | N112: 0.523 | O112: 0.508 | Q112: 0.545 | R112: 0.609 | S112: 0.556 | T112: 0.515 | U112: 0.494 | V112: 0.478 | W112: 0.465 | Y112: 0.545 | Z112: 0.548 | AA112: 0.503 | AB112: 0.468 | AC112: 0.45 | AD112: 0.437 | AE112: 0.426 | AG112: 0.545 | AH112: 0.507 | AI112: 0.466 | AJ112: 0.436 | AK112: 0.42 | AL112: 0.408 | AM112: 0.399 | AO112: 0.545 | AP112: 0.482 | AQ112: 0.444 | AR112: 0.416 | AS112: 0.401 | AT112: 0.39 | AU112: 0.381
A113: 0.55 | B113: 0.834 | C113: 0.75 | D113: 0.684 | E113: 0.648 | F113: 0.623 | G113: 0.603 | I113: 0.55 | J113: 0.68 | K113: 0.618 | L113: 0.57 | M113: 0.545 | N113: 0.526 | O113: 0.511 | Q113: 0.55 | R113: 0.612 | S113: 0.559 | T113: 0.519 | U113: 0.497 | V113: 0.481 | W113: 0.468 | Y113: 0.55 | Z113: 0.551 | AA113: 0.506 | AB113: 0.471 | AC113: 0.453 | AD113: 0.44 | AE113: 0.429 | AG113: 0.55 | AH113: 0.51 | AI113: 0.469 | AJ113: 0.439 | AK113: 0.423 | AL113: 0.411 | AM113: 0.401 | AO113: 0.55 | AP113: 0.484 | AQ113: 0.447 | AR113: 0.418 | AS113: 0.404 | AT113: 0.393 | AU113: 0.384
A114: 0.555 | B114: 0.838 | C114: 0.754 | D114: 0.688 | E114: 0.652 | F114: 0.627 | G114: 0.606 | I114: 0.555 | J114: 0.684 | K114: 0.622 | L114: 0.574 | M114: 0.548 | N114: 0.53 | O114: 0.515 | Q114: 0.555 | R114: 0.615 | S114: 0.562 | T114: 0.522 | U114: 0.5 | V114: 0.484 | W114: 0.472 | Y114: 0.555 | Z114: 0.554 | AA114: 0.509 | AB114: 0.475 | AC114: 0.456 | AD114: 0.443 | AE114: 0.432 | AG114: 0.555 | AH114: 0.513 | AI114: 0.472 | AJ114: 0.442 | AK114: 0.426 | AL114: 0.414 | AM114: 0.404 | AO114: 0.555 | AP114: 0.487 | AQ114: 0.45 | AR114: 0.421 | AS114: 0.406 | AT114: 0.396 | AU114: 0.387
A115: 0.56 | B115: 0.842 | C115: 0.758 | D115: 0.692 | E115: 0.656 | F115: 0.631 | G115: 0.61 | I115: 0.56 | J115: 0.687 | K115: 0.625 | L115: 0.577 | M115: 0.552 | N115: 0.533 | O115: 0.518 | Q115: 0.56 | R115: 0.618 | S115: 0.566 | T115: 0.525 | U115: 0.503 | V115: 0.488 | W115: 0.475 | Y115: 0.56 | Z115: 0.557 | AA115: 0.512 | AB115: 0.478 | AC115: 0.459 | AD115: 0.446 | AE115: 0.435 | AG115: 0.56 | AH115: 0.515 | AI115: 0.475 | AJ115: 0.445 | AK115: 0.428 | AL115: 0.417 | AM115: 0.407 | AO115: 0.56 | AP115: 0.49 | AQ115: 0.452 | AR115: 0.424 | AS115: 0.409 | AT115: 0.398 | AU115: 0.389
A116: 0.565 | B116: 0.845 | C116: 0.762 | D116: 0.696 | E116: 0.66 | F116: 0.634 | G116: 0.614 | I116: 0.565 | J116: 0.691 | K116: 0.629 | L116: 0.581 | M116: 0.555 | N116: 0.536 | O116: 0.521 | Q116: 0.565 | R116: 0.621 | S116: 0.569 | T116: 0.528 | U116: 0.507 | V116: 0.491 | W116: 0.478 | Y116: 0.565 | Z116: 0.56 | AA116: 0.515 | AB116: 0.481 | AC116: 0.462 | AD116: 0.449 | AE116: 0.438 | AG116: 0.565 | AH116: 0.518 | AI116: 0.478 | AJ116: 0.448 | AK116: 0.431 | AL116: 0.419 | AM116: 0.41 | AO116: 0.565 | AP116: 0.492 | AQ116: 0.455 | AR116: 0.427 | AS116: 0.412 | AT116: 0.401 | AU116: 0.392
A117: 0.57 | B117: 0.849 | C117: 0.766 | D117: 0.699 | E117: 0.664 | F117: 0.638 | G117: 0.617 | I117: 0.57 | J117: 0.694 | K117: 0.633 | L117: 0.585 | M117: 0.559 | N117: 0.54 | O117: 0.524 | Q117: 0.57 | R117: 0.625 | S117: 0.572 | T117: 0.532 | U117: 0.51 | V117: 0.494 | W117: 0.481 | Y117: 0.57 | Z117: 0.563 | AA117: 0.518 | AB117: 0.484 | AC117: 0.465 | AD117: 0.452 | AE117: 0.441 | AG117: 0.57 | AH117: 0.521 | AI117: 0.481 | AJ117: 0.451 | AK117: 0.434 | AL117: 0.422 | AM117: 0.412 | AO117: 0.57 | AP117: 0.495 | AQ117: 0.458 | AR117: 0.43 | AS117: 0.415 | AT117: 0.404 | AU117: 0.395
A118: 0.575 | B118: 0.853 | C118: 0.77 | D118: 0.703 | E118: 0.668 | F118: 0.642 | G118: 0.621 | I118: 0.575 | J118: 0.698 | K118: 0.636 | L118: 0.588 | M118: 0.562 | N118: 0.543 | O118: 0.528 | Q118: 0.575 | R118: 0.628 | S118: 0.576 | T118: 0.535 | U118: 0.513 | V118: 0.497 | W118: 0.484 | Y118: 0.575 | Z118: 0.566 | AA118: 0.521 | AB118: 0.487 | AC118: 0.468 | AD118: 0.455 | AE118: 0.444 | AG118: 0.575 | AH118: 0.524 | AI118: 0.484 | AJ118: 0.453 | AK118: 0.437 | AL118: 0.425 | AM118: 0.415 | AO118: 0.575 | AP118: 0.498 | AQ118: 0.461 | AR118: 0.433 | AS118: 0.418 | AT118: 0.407 | AU118: 0.397
A119: 0.58 | B119: 0.857 | C119: 0.774 | D119: 0.707 | E119: 0.672 | F119: 0.646 | G119: 0.624 | I119: 0.58 | J119: 0.701 | K119: 0.64 | L119: 0.592 | M119: 0.566 | N119: 0.547 | O119: 0.531 | Q119: 0.58 | R119: 0.631 | S119: 0.579 | T119: 0.538 | U119: 0.516 | V119: 0.5 | W119: 0.487 | Y119: 0.58 | Z119: 0.569 | AA119: 0.524 | AB119: 0.49 | AC119: 0.471 | AD119: 0.458 | AE119: 0.446 | AG119: 0.58 | AH119: 0.527 | AI119: 0.487 | AJ119: 0.456 | AK119: 0.44 | AL119: 0.428 | AM119: 0.418 | AO119: 0.58 | AP119: 0.5 | AQ119: 0.463 | AR119: 0.435 | AS119: 0.42 | AT119: 0.409 | AU119: 0.4
A120: 0.585 | B120: 0.861 | C120: 0.778 | D120: 0.711 | E120: 0.676 | F120: 0.65 | G120: 0.628 | I120: 0.585 | J120: 0.704 | K120: 0.643 | L120: 0.595 | M120: 0.569 | N120: 0.55 | O120: 0.534 | Q120: 0.585 | R120: 0.635 | S120: 0.582 | T120: 0.542 | U120: 0.52 | V120: 0.503 | W120: 0.49 | Y120: 0.585 | Z120: 0.572 | AA120: 0.528 | AB120: 0.493 | AC120: 0.475 | AD120: 0.461 | AE120: 0.449 | AG120: 0.585 | AH120: 0.529 | AI120: 0.49 | AJ120: 0.459 | AK120: 0.443 | AL120: 0.431 | AM120: 0.421 | AO120: 0.585 | AP120: 0.503 | AQ120: 0.466 | AR120: 0.438 | AS120: 0.423 | AT120: 0.412 | AU120: 0.403
A121: 0.59 | B121: 0.865 | C121: 0.782 | D121: 0.715 | E121: 0.679 | F121: 0.653 | G121: 0.632 | I121: 0.59 | J121: 0.708 | K121: 0.647 | L121: 0.599 | M121: 0.573 | N121: 0.553 | O121: 0.537 | Q121: 0.59 | R121: 0.638 | S121: 0.586 | T121: 0.545 | U121: 0.523 | V121: 0.507 | W121: 0.493 | Y121: 0.59 | Z121: 0.575 | AA121: 0.531 | AB121: 0.496 | AC121: 0.478 | AD121: 0.464 | AE121: 0.452 | AG121: 0.59 | AH121: 0.532 | AI121: 0.493 | AJ121: 0.462 | AK121: 0.446 | AL121: 0.434 | AM121: 0.423 | AO121: 0.59 | AP121: 0.506 | AQ121: 0.469 | AR121: 0.441 | AS121: 0.426 | AT121: 0.415 | AU121: 0.405
A122: 0.595 | B122: 0.869 | C122: 0.786 | D122: 0.719 | E122: 0.683 | F122: 0.657 | G122: 0.635 | I122: 0.595 | J122: 0.711 | K122: 0.65 | L122: 0.602 | M122: 0.576 | N122: 0.557 | O122: 0.541 | Q122: 0.595 | R122: 0.641 | S122: 0.589 | T122: 0.548 | U122: 0.526 | V122: 0.51 | W122: 0.496 | Y122: 0.595 | Z122: 0.578 | AA122: 0.534 | AB122: 0.499 | AC122: 0.481 | AD122: 0.467 | AE122: 0.455 | AG122: 0.595 | AH122: 0.535 | AI122: 0.496 | AJ122: 0.465 | AK122: 0.449 | AL122: 0.436 | AM122: 0.426 | AO122: 0.595 | AP122: 0.509 | AQ122: 0.472 | AR122: 0.444 | AS122: 0.429 | AT122: 0.418 | AU122: 0.408
A123: 0.6 | B123: 0.872 | C123: 0.79 | D123: 0.723 | E123: 0.687 | F123: 0.661 | G123: 0.639 | I123: 0.6 | J123: 0.715 | K123: 0.654 | L123: 0.606 | M123: 0.579 | N123: 0.56 | O123: 0.544 | Q123: 0.6 | R123: 0.644 | S123: 0.592 | T123: 0.552 | U123: 0.529 | V123: 0.513 | W123: 0.499 | Y123: 0.6 | Z123: 0.581 | AA123: 0.537 | AB123: 0.502 | AC123: 0.484 | AD123: 0.47 | AE123: 0.458 | AG123: 0.6 | AH123: 0.538 | AI123: 0.499 | AJ123: 0.468 | AK123: 0.452 | AL123: 0.439 | AM123: 0.429 | AO123: 0.6 | AP123: 0.512 | AQ123: 0.475 | AR123: 0.447 | AS123: 0.432 | AT123: 0.42 | AU123: 0.411
A124: 0.605 | B124: 0.876 | C124: 0.794 | D124: 0.727 | E124: 0.691 | F124: 0.664 | G124: 0.642 | I124: 0.605 | J124: 0.718 | K124: 0.658 | L124: 0.609 | M124: 0.583 | N124: 0.563 | O124: 0.547 | Q124: 0.605 | R124: 0.647 | S124: 0.596 | T124: 0.555 | U124: 0.533 | V124: 0.516 | W124: 0.502 | Y124: 0.605 | Z124: 0.584 | AA124: 0.54 | AB124: 0.505 | AC124: 0.487 | AD124: 0.473 | AE124: 0.461 | AG124: 0.605 | AH124: 0.541 | AI124: 0.502 | AJ124: 0.471 | AK124: 0.454 | AL124: 0.442 | AM124: 0.432 | AO124: 0.605 | AP124: 0.514 | AQ124: 0.478 | AR124: 0.45 | AS124: 0.434 | AT124: 0.423 | AU124: 0.413
A125: 0.61 | B125: 0.88 | C125: 0.798 | D125: 0.731 | E125: 0.695 | F125: 0.668 | G125: 0.646 | I125: 0.61 | J125: 0.722 | K125: 0.661 | L125: 0.613 | M125: 0.586 | N125: 0.567 | O125: 0.55 | Q125: 0.61 | R125: 0.651 | S125: 0.599 | T125: 0.558 | U125: 0.536 | V125: 0.519 | W125: 0.505 | Y125: 0.61 | Z125: 0.587 | AA125: 0.543 | AB125: 0.509 | AC125: 0.49 | AD125: 0.476 | AE125: 0.464 | AG125: 0.61 | AH125: 0.544 | AI125: 0.505 | AJ125: 0.474 | AK125: 0.457 | AL125: 0.445 | AM125: 0.434 | AO125: 0.61 | AP125: 0.517 | AQ125: 0.481 | AR125: 0.452 | AS125: 0.437 | AT125: 0.426 | AU125: 0.416
A126: 0.615 | B126: 0.884 | C126: 0.802 | D126: 0.735 | E126: 0.699 | F126: 0.672 | G126: 0.65 | I126: 0.615 | J126: 0.725 | K126: 0.665 | L126: 0.616 | M126: 0.59 | N126: 0.57 | O126: 0.554 | Q126: 0.615 | R126: 0.654 | S126: 0.602 | T126: 0.562 | U126: 0.539 | V126: 0.522 | W126: 0.508 | Y126: 0.615 | Z126: 0.59 | AA126: 0.546 | AB126: 0.512 | AC126: 0.493 | AD126: 0.479 | AE126: 0.467 | AG126: 0.615 | AH126: 0.547 | AI126: 0.507 | AJ126: 0.477 | AK126: 0.46 | AL126: 0.448 | AM126: 0.437 | AO126: 0.615 | AP126: 0.52 | AQ126: 0.483 | AR126: 0.455 | AS126: 0.44 | AT126: 0.428 | AU126: 0.419
A127: 0.62 | B127: 0.888 | C127: 0.806 | D127: 0.739 | E127: 0.702 | F127: 0.676 | G127: 0.653 | I127: 0.62 | J127: 0.729 | K127: 0.668 | L127: 0.62 | M127: 0.593 | N127: 0.574 | O127: 0.557 | Q127: 0.62 | R127: 0.657 | S127: 0.606 | T127: 0.565 | U127: 0.542 | V127: 0.526 | W127: 0.512 | Y127: 0.62 | Z127: 0.593 | AA127: 0.549 | AB127: 0.515 | AC127: 0.496 | AD127: 0.482 | AE127: 0.47 | AG127: 0.62 | AH127: 0.549 | AI127: 0.51 | AJ127: 0.48 | AK127: 0.463 | AL127: 0.451 | AM127: 0.44 | AO127: 0.62 | AP127: 0.522 | AQ127: 0.486 | AR127: 0.458 | AS127: 0.443 | AT127: 0.431 | AU127: 0.421
A128: 0.625 | B128: 0.892 | C128: 0.81 | D128: 0.743 | E128: 0.706 | F128: 0.679 | G128: 0.657 | I128: 0.625 | J128: 0.732 | K128: 0.672 | L128: 0.624 | M128: 0.597 | N128: 0.577 | O128: 0.56 | Q128: 0.625 | R128: 0.66 | S128: 0.609 | T128: 0.568 | U128: 0.546 | V128: 0.529 | W128: 0.515 | Y128: 0.625 | Z128: 0.596 | AA128: 0.552 | AB128: 0.518 | AC128: 0.499 | AD128: 0.485 | AE128: 0.472 | AG128: 0.625 | AH128: 0.552 | AI128: 0.513 | AJ128: 0.483 | AK128: 0.466 | AL128: 0.453 | AM128: 0.443 | AO128: 0.625 | AP128: 0.525 | AQ128: 0.489 | AR128: 0.461 | AS128: 0.446 | AT128: 0.434 | AU128: 0.424
A129: 0.63 | B129: 0.896 | C129: 0.814 | D129: 0.747 | E129: 0.71 | F129: 0.683 | G129: 0.66 | I129: 0.63 | J129: 0.736 | K129: 0.675 | L129: 0.627 | M129: 0.6 | N129: 0.58 | O129: 0.563 | Q129: 0.63 | R129: 0.664 | S129: 0.612 | T129: 0.572 | U129: 0.549 | V129: 0.532 | W129: 0.518 | Y129: 0.63 | Z129: 0.599 | AA129: 0.556 | AB129: 0.521 | AC129: 0.502 | AD129: 0.488 | AE129: 0.475 | AG129: 0.63 | AH129: 0.555 | AI129: 0.516 | AJ129: 0.486 | AK129: 0.469 | AL129: 0.456 | AM129: 0.445 | AO129: 0.63 | AP129: 0.528 | AQ129: 0.492 | AR129: 0.464 | AS129: 0.448 | AT129: 0.437 | AU129: 0.427
A130: 0.635 | B130: 0.9 | C130: 0.818 | D130: 0.751 | E130: 0.714 | F130: 0.687 | G130: 0.664 | I130: 0.635 | J130: 0.739 | K130: 0.679 | L130: 0.631 | M130: 0.604 | N130: 0.584 | O130: 0.567 | Q130: 0.635 | R130: 0.667 | S130: 0.616 | T130: 0.575 | U130: 0.552 | V130: 0.535 | W130: 0.521 | Y130: 0.635 | Z130: 0.602 | AA130: 0.559 | AB130: 0.524 | AC130: 0.505 | AD130: 0.49 | AE130: 0.478 | AG130: 0.635 | AH130: 0.558 | AI130: 0.519 | AJ130: 0.489 | AK130: 0.472 | AL130: 0.459 | AM130: 0.448 | AO130: 0.635 | AP130: 0.531 | AQ130: 0.495 | AR130: 0.467 | AS130: 0.451 | AT130: 0.439 | AU130: 0.429
A131: 0.64 | B131: 0.904 | C131: 0.822 | D131: 0.755 | E131: 0.718 | F131: 0.69 | G131: 0.667 | I131: 0.64 | J131: 0.743 | K131: 0.683 | L131: 0.634 | M131: 0.607 | N131: 0.587 | O131: 0.57 | Q131: 0.64 | R131: 0.67 | S131: 0.619 | T131: 0.578 | U131: 0.555 | V131: 0.538 | W131: 0.524 | Y131: 0.64 | Z131: 0.605 | AA131: 0.562 | AB131: 0.527 | AC131: 0.508 | AD131: 0.493 | AE131: 0.481 | AG131: 0.64 | AH131: 0.561 | AI131: 0.522 | AJ131: 0.492 | AK131: 0.475 | AL131: 0.462 | AM131: 0.451 | AO131: 0.64 | AP131: 0.533 | AQ131: 0.498 | AR131: 0.47 | AS131: 0.454 | AT131: 0.442 | AU131: 0.432
A132: 0.645 | B132: 0.908 | C132: 0.826 | D132: 0.759 | E132: 0.722 | F132: 0.694 | G132: 0.671 | I132: 0.645 | J132: 0.746 | K132: 0.686 | L132: 0.638 | M132: 0.61 | N132: 0.59 | O132: 0.573 | Q132: 0.645 | R132: 0.673 | S132: 0.622 | T132: 0.581 | U132: 0.559 | V132: 0.541 | W132: 0.527 | Y132: 0.645 | Z132: 0.608 | AA132: 0.565 | AB132: 0.53 | AC132: 0.511 | AD132: 0.496 | AE132: 0.484 | AG132: 0.645 | AH132: 0.564 | AI132: 0.525 | AJ132: 0.495 | AK132: 0.478 | AL132: 0.465 | AM132: 0.454 | AO132: 0.645 | AP132: 0.536 | AQ132: 0.5 | AR132: 0.472 | AS132: 0.457 | AT132: 0.445 | AU132: 0.435
A133: 0.65 | B133: 0.912 | C133: 0.83 | D133: 0.763 | E133: 0.725 | F133: 0.698 | G133: 0.674 | I133: 0.65 | J133: 0.75 | K133: 0.69 | L133: 0.641 | M133: 0.614 | N133: 0.593 | O133: 0.576 | Q133: 0.65 | R133: 0.677 | S133: 0.626 | T133: 0.585 | U133: 0.562 | V133: 0.544 | W133: 0.53 | Y133: 0.65 | Z133: 0.612 | AA133: 0.568 | AB133: 0.533 | AC133: 0.514 | AD133: 0.499 | AE133: 0.487 | AG133: 0.65 | AH133: 0.567 | AI133: 0.528 | AJ133: 0.498 | AK133: 0.48 | AL133: 0.467 | AM133: 0.456 | AO133: 0.65 | AP133: 0.539 | AQ133: 0.503 | AR133: 0.475 | AS133: 0.459 | AT133: 0.447 | AU133: 0.437
A134: 0.655 | B134: 0.916 | C134: 0.834 | D134: 0.767 | E134: 0.729 | F134: 0.701 | G134: 0.678 | I134: 0.655 | J134: 0.753 | K134: 0.693 | L134: 0.645 | M134: 0.617 | N134: 0.597 | O134: 0.579 | Q134: 0.655 | R134: 0.68 | S134: 0.629 | T134: 0.588 | U134: 0.565 | V134: 0.547 | W134: 0.533 | Y134: 0.655 | Z134: 0.615 | AA134: 0.571 | AB134: 0.536 | AC134: 0.517 | AD134: 0.502 | AE134: 0.49 | AG134: 0.655 | AH134: 0.57 | AI134: 0.531 | AJ134: 0.5 | AK134: 0.483 | AL134: 0.47 | AM134: 0.459 | AO134: 0.655 | AP134: 0.542 | AQ134: 0.506 | AR134: 0.478 | AS134: 0.462 | AT134: 0.45 | AU134: 0.44
A135: 0.66 | B135: 0.92 | C135: 0.838 | D135: 0.771 | E135: 0.733 | F135: 0.705 | G135: 0.681 | I135: 0.66 | J135: 0.757 | K135: 0.697 | L135: 0.648 | M135: 0.621 | N135: 0.6 | O135: 0.583 | Q135: 0.66 | R135: 0.683 | S135: 0.632 | T135: 0.591 | U135: 0.568 | V135: 0.551 | W135: 0.536 | Y135: 0.66 | Z135: 0.618 | AA135: 0.574 | AB135: 0.54 | AC135: 0.52 | AD135: 0.505 | AE135: 0.492 | AG135: 0.66 | AH135: 0.572 | AI135: 0.534 | AJ135: 0.503 | AK135: 0.486 | AL135: 0.473 | AM135: 0.462 | AO135: 0.66 | AP135: 0.545 | AQ135: 0.509 | AR135: 0.481 | AS135: 0.465 | AT135: 0.453 | AU135: 0.443
A136: 0.665 | B136: 0.924 | C136: 0.842 | D136: 0.775 | E136: 0.737 | F136: 0.709 | G136: 0.685 | I136: 0.665 | J136: 0.76 | K136: 0.7 | L136: 0.652 | M136: 0.624 | N136: 0.603 | O136: 0.586 | Q136: 0.665 | R136: 0.687 | S136: 0.636 | T136: 0.595 | U136: 0.571 | V136: 0.554 | W136: 0.539 | Y136: 0.665 | Z136: 0.621 | AA136: 0.577 | AB136: 0.543 | AC136: 0.523 | AD136: 0.508 | AE136: 0.495 | AG136: 0.665 | AH136: 0.575 | AI136: 0.537 | AJ136: 0.506 | AK136: 0.489 | AL136: 0.476 | AM136: 0.465 | AO136: 0.665 | AP136: 0.547 | AQ136: 0.512 | AR136: 0.484 | AS136: 0.468 | AT136: 0.456 | AU136: 0.445
A137: 0.67 | B137: 0.928 | C137: 0.846 | D137: 0.779 | E137: 0.741 | F137: 0.712 | G137: 0.688 | I137: 0.67 | J137: 0.764 | K137: 0.704 | L137: 0.655 | M137: 0.628 | N137: 0.607 | O137: 0.589 | Q137: 0.67 | R137: 0.69 | S137: 0.639 | T137: 0.598 | U137: 0.575 | V137: 0.557 | W137: 0.542 | Y137: 0.67 | Z137: 0.624 | AA137: 0.581 | AB137: 0.546 | AC137: 0.526 | AD137: 0.511 | AE137: 0.498 | AG137: 0.67 | AH137: 0.578 | AI137: 0.54 | AJ137: 0.509 | AK137: 0.492 | AL137: 0.478 | AM137: 0.467 | AO137: 0.67 | AP137: 0.55 | AQ137: 0.515 | AR137: 0.486 | AS137: 0.471 | AT137: 0.458 | AU137: 0.448
A138: 0.675 | B138: 0.931 | C138: 0.85 | D138: 0.783 | E138: 0.745 | F138: 0.716 | G138: 0.692 | I138: 0.675 | J138: 0.767 | K138: 0.707 | L138: 0.659 | M138: 0.631 | N138: 0.61 | O138: 0.592 | Q138: 0.675 | R138: 0.693 | S138: 0.642 | T138: 0.601 | U138: 0.578 | V138: 0.56 | W138: 0.545 | Y138: 0.675 | Z138: 0.627 | AA138: 0.584 | AB138: 0.549 | AC138: 0.529 | AD138: 0.514 | AE138: 0.501 | AG138: 0.675 | AH138: 0.581 | AI138: 0.543 | AJ138: 0.512 | AK138: 0.495 | AL138: 0.481 | AM138: 0.47 | AO138: 0.675 | AP138: 0.553 | AQ138: 0.518 | AR138: 0.489 | AS138: 0.473 | AT138: 0.461 | AU138: 0.45
A139: 0.68 | B139: 0.935 | C139: 0.854 | D139: 0.787 | E139: 0.748 | F139: 0.72 | G139: 0.695 | I139: 0.68 | J139: 0.771 | K139: 0.711 | L139: 0.662 | M139: 0.634 | N139: 0.613 | O139: 0.595 | Q139: 0.68 | R139: 0.696 | S139: 0.646 | T139: 0.605 | U139: 0.581 | V139: 0.563 | W139: 0.548 | Y139: 0.68 | Z139: 0.63 | AA139: 0.587 | AB139: 0.552 | AC139: 0.532 | AD139: 0.517 | AE139: 0.504 | AG139: 0.68 | AH139: 0.584 | AI139: 0.546 | AJ139: 0.515 | AK139: 0.498 | AL139: 0.484 | AM139: 0.473 | AO139: 0.68 | AP139: 0.556 | AQ139: 0.52 | AR139: 0.492 | AS139: 0.476 | AT139: 0.464 | AU139: 0.453
A140: 0.685 | B140: 0.939 | C140: 0.858 | D140: 0.79 | E140: 0.752 | F140: 0.723 | G140: 0.699 | I140: 0.685 | J140: 0.774 | K140: 0.715 | L140: 0.666 | M140: 0.638 | N140: 0.617 | O140: 0.598 | Q140: 0.685 | R140: 0.7 | S140: 0.649 | T140: 0.608 | U140: 0.584 | V140: 0.566 | W140: 0.551 | Y140: 0.685 | Z140: 0.633 | AA140: 0.59 | AB140: 0.555 | AC140: 0.535 | AD140: 0.52 | AE140: 0.507 | AG140: 0.685 | AH140: 0.587 | AI140: 0.549 | AJ140: 0.518 | AK140: 0.501 | AL140: 0.487 | AM140: 0.475 | AO140: 0.685 | AP140: 0.559 | AQ140: 0.523 | AR140: 0.495 | AS140: 0.479 | AT140: 0.466 | AU140: 0.456
A141: 0.69 | B141: 0.943 | C141: 0.862 | D141: 0.794 | E141: 0.756 | F141: 0.727 | G141: 0.702 | I141: 0.69 | J141: 0.778 | K141: 0.718 | L141: 0.669 | M141: 0.641 | N141: 0.62 | O141: 0.602 | Q141: 0.69 | R141: 0.703 | S141: 0.653 | T141: 0.611 | U141: 0.588 | V141: 0.569 | W141: 0.554 | Y141: 0.69 | Z141: 0.636 | AA141: 0.593 | AB141: 0.558 | AC141: 0.538 | AD141: 0.523 | AE141: 0.509 | AG141: 0.69 | AH141: 0.59 | AI141: 0.552 | AJ141: 0.521 | AK141: 0.503 | AL141: 0.49 | AM141: 0.478 | AO141: 0.69 | AP141: 0.561 | AQ141: 0.526 | AR141: 0.498 | AS141: 0.482 | AT141: 0.469 | AU141: 0.458
A142: 0.695 | B142: 0.947 | C142: 0.866 | D142: 0.798 | E142: 0.76 | F142: 0.73 | G142: 0.706 | I142: 0.695 | J142: 0.781 | K142: 0.722 | L142: 0.673 | M142: 0.645 | N142: 0.623 | O142: 0.605 | Q142: 0.695 | R142: 0.706 | S142: 0.656 | T142: 0.615 | U142: 0.591 | V142: 0.573 | W142: 0.557 | Y142: 0.695 | Z142: 0.639 | AA142: 0.596 | AB142: 0.561 | AC142: 0.541 | AD142: 0.526 | AE142: 0.512 | AG142: 0.695 | AH142: 0.593 | AI142: 0.555 | AJ142: 0.524 | AK142: 0.506 | AL142: 0.493 | AM142: 0.481 | AO142: 0.695 | AP142: 0.564 | AQ142: 0.529 | AR142: 0.501 | AS142: 0.484 | AT142: 0.472 | AU142: 0.461
A143: 0.7 | B143: 0.951 | C143: 0.87 | D143: 0.802 | E143: 0.764 | F143: 0.734 | G143: 0.709 | I143: 0.7 | J143: 0.785 | K143: 0.726 | L143: 0.676 | M143: 0.648 | N143: 0.627 | O143: 0.608 | Q143: 0.7 | R143: 0.709 | S143: 0.659 | T143: 0.618 | U143: 0.594 | V143: 0.576 | W143: 0.56 | Y143: 0.7 | Z143: 0.642 | AA143: 0.599 | AB143: 0.564 | AC143: 0.544 | AD143: 0.529 | AE143: 0.515 | AG143: 0.7 | AH143: 0.596 | AI143: 0.558 | AJ143: 0.527 | AK143: 0.509 | AL143: 0.495 | AM143: 0.483 | AO143: 0.7 | AP143: 0.567 | AQ143: 0.532 | AR143: 0.504 | AS143: 0.487 | AT143: 0.475 | AU143: 0.464
A144: 0.705 | B144: 0.955 | C144: 0.874 | D144: 0.806 | E144: 0.767 | F144: 0.738 | G144: 0.712 | I144: 0.705 | J144: 0.788 | K144: 0.729 | L144: 0.68 | M144: 0.652 | N144: 0.63 | O144: 0.611 | Q144: 0.705 | R144: 0.713 | S144: 0.663 | T144: 0.621 | U144: 0.597 | V144: 0.579 | W144: 0.563 | Y144: 0.705 | Z144: 0.645 | AA144: 0.602 | AB144: 0.567 | AC144: 0.547 | AD144: 0.531 | AE144: 0.518 | AG144: 0.705 | AH144: 0.598 | AI144: 0.561 | AJ144: 0.53 | AK144: 0.512 | AL144: 0.498 | AM144: 0.486 | AO144: 0.705 | AP144: 0.57 | AQ144: 0.535 | AR144: 0.506 | AS144: 0.49 | AT144: 0.477 | AU144: 0.466
A145: 0.71 | B145: 0.959 | C145: 0.878 | D145: 0.81 | E145: 0.771 | F145: 0.741 | G145: 0.716 | I145: 0.71 | J145: 0.792 | K145: 0.733 | L145: 0.683 | M145: 0.655 | N145: 0.633 | O145: 0.614 | Q145: 0.71 | R145: 0.716 | S145: 0.666 | T145: 0.624 | U145: 0.6 | V145: 0.582 | W145: 0.566 | Y145: 0.71 | Z145: 0.648 | AA145: 0.606 | AB145: 0.571 | AC145: 0.55 | AD145: 0.534 | AE145: 0.521 | AG145: 0.71 | AH145: 0.601 | AI145: 0.564 | AJ145: 0.533 | AK145: 0.515 | AL145: 0.501 | AM145: 0.489 | AO145: 0.71 | AP145: 0.572 | AQ145: 0.538 | AR145: 0.509 | AS145: 0.493 | AT145: 0.48 | AU145: 0.469
A146: 0.715 | B146: 0.963 | C146: 0.882 | D146: 0.814 | E146: 0.775 | F146: 0.745 | G146: 0.719 | I146: 0.715 | J146: 0.795 | K146: 0.736 | L146: 0.687 | M146: 0.658 | N146: 0.636 | O146: 0.617 | Q146: 0.715 | R146: 0.719 | S146: 0.669 | T146: 0.628 | U146: 0.604 | V146: 0.585 | W146: 0.569 | Y146: 0.715 | Z146: 0.651 | AA146: 0.609 | AB146: 0.574 | AC146: 0.553 | AD146: 0.537 | AE146: 0.523 | AG146: 0.715 | AH146: 0.604 | AI146: 0.567 | AJ146: 0.536 | AK146: 0.518 | AL146: 0.504 | AM146: 0.491 | AO146: 0.715 | AP146: 0.575 | AQ146: 0.54 | AR146: 0.512 | AS146: 0.495 | AT146: 0.483 | AU146: 0.471
A147: 0.72 | B147: 0.967 | C147: 0.886 | D147: 0.818 | E147: 0.779 | F147: 0.748 | G147: 0.722 | I147: 0.72 | J147: 0.799 | K147: 0.74 | L147: 0.691 | M147: 0.662 | N147: 0.64 | O147: 0.62 | Q147: 0.72 | R147: 0.723 | S147: 0.673 | T147: 0.631 | U147: 0.607 | V147: 0.588 | W147: 0.572 | Y147: 0.72 | Z147: 0.654 | AA147: 0.612 | AB147: 0.577 | AC147: 0.556 | AD147: 0.54 | AE147: 0.526 | AG147: 0.72 | AH147: 0.607 | AI147: 0.57 | AJ147: 0.539 | AK147: 0.521 | AL147: 0.506 | AM147: 0.494 | AO147: 0.72 | AP147: 0.578 | AQ147: 0.543 | AR147: 0.515 | AS147: 0.498 | AT147: 0.485 | AU147: 0.474
A148: 0.725 | B148: 0.971 | C148: 0.89 | D148: 0.822 | E148: 0.782 | F148: 0.752 | G148: 0.726 | I148: 0.725 | J148: 0.802 | K148: 0.743 | L148: 0.694 | M148: 0.665 | N148: 0.643 | O148: 0.624 | Q148: 0.725 | R148: 0.726 | S148: 0.676 | T148: 0.634 | U148: 0.61 | V148: 0.591 | W148: 0.575 | Y148: 0.725 | Z148: 0.657 | AA148: 0.615 | AB148: 0.58 | AC148: 0.559 | AD148: 0.543 | AE148: 0.529 | AG148: 0.725 | AH148: 0.61 | AI148: 0.573 | AJ148: 0.542 | AK148: 0.523 | AL148: 0.509 | AM148: 0.497 | AO148: 0.725 | AP148: 0.581 | AQ148: 0.546 | AR148: 0.518 | AS148: 0.501 | AT148: 0.488 | AU148: 0.476
A149: 0.73 | B149: 0.975 | C149: 0.894 | D149: 0.826 | E149: 0.786 | F149: 0.755 | G149: 0.729 | I149: 0.73 | J149: 0.806 | K149: 0.747 | L149: 0.698 | M149: 0.669 | N149: 0.646 | O149: 0.627 | Q149: 0.73 | R149: 0.729 | S149: 0.679 | T149: 0.638 | U149: 0.613 | V149: 0.594 | W149: 0.578 | Y149: 0.73 | Z149: 0.661 | AA149: 0.618 | AB149: 0.583 | AC149: 0.562 | AD149: 0.546 | AE149: 0.532 | AG149: 0.73 | AH149: 0.613 | AI149: 0.576 | AJ149: 0.545 | AK149: 0.526 | AL149: 0.512 | AM149: 0.5 | AO149: 0.73 | AP149: 0.584 | AQ149: 0.549 | AR149: 0.521 | AS149: 0.504 | AT149: 0.491 | AU149: 0.479
A150: 0.735 | B150: 0.979 | C150: 0.898 | D150: 0.83 | E150: 0.79 | F150: 0.759 | G150: 0.733 | I150: 0.735 | J150: 0.81 | K150: 0.751 | L150: 0.701 | M150: 0.672 | N150: 0.649 | O150: 0.63 | Q150: 0.735 | R150: 0.733 | S150: 0.683 | T150: 0.641 | U150: 0.616 | V150: 0.597 | W150: 0.581 | Y150: 0.735 | Z150: 0.664 | AA150: 0.621 | AB150: 0.586 | AC150: 0.565 | AD150: 0.549 | AE150: 0.535 | AG150: 0.735 | AH150: 0.616 | AI150: 0.578 | AJ150: 0.547 | AK150: 0.529 | AL150: 0.515 | AM150: 0.502 | AO150: 0.735 | AP150: 0.587 | AQ150: 0.552 | AR150: 0.523 | AS150: 0.507 | AT150: 0.493 | AU150: 0.482
A151: 0.74 | B151: 0.983 | C151: 0.902 | D151: 0.834 | E151: 0.793 | F151: 0.762 | G151: 0.736 | I151: 0.74 | J151: 0.813 | K151: 0.754 | L151: 0.705 | M151: 0.675 | N151: 0.652 | O151: 0.633 | Q151: 0.74 | R151: 0.736 | S151: 0.686 | T151: 0.644 | U151: 0.62 | V151: 0.6 | W151: 0.583 | Y151: 0.74 | Z151: 0.667 | AA151: 0.624 | AB151: 0.589 | AC151: 0.568 | AD151: 0.552 | AE151: 0.538 | AG151: 0.74 | AH151: 0.619 | AI151: 0.581 | AJ151: 0.55 | AK151: 0.532 | AL151: 0.518 | AM151: 0.505 | AO151: 0.74 | AP151: 0.589 | AQ151: 0.555 | AR151: 0.526 | AS151: 0.509 | AT151: 0.496 | AU151: 0.484
A152: 0.745 | B152: 0.987 | C152: 0.906 | D152: 0.838 | E152: 0.797 | F152: 0.766 | G152: 0.739 | I152: 0.745 | J152: 0.817 | K152: 0.758 | L152: 0.708 | M152: 0.679 | N152: 0.656 | O152: 0.636 | Q152: 0.745 | R152: 0.739 | S152: 0.69 | T152: 0.648 | U152: 0.623 | V152: 0.603 | W152: 0.586 | Y152: 0.745 | Z152: 0.67 | AA152: 0.628 | AB152: 0.592 | AC152: 0.571 | AD152: 0.555 | AE152: 0.54 | AG152: 0.745 | AH152: 0.622 | AI152: 0.584 | AJ152: 0.553 | AK152: 0.535 | AL152: 0.52 | AM152: 0.508 | AO152: 0.745 | AP152: 0.592 | AQ152: 0.558 | AR152: 0.529 | AS152: 0.512 | AT152: 0.499 | AU152: 0.487
A153: 0.75 | B153: 0.991 | C153: 0.91 | D153: 0.842 | E153: 0.801 | F153: 0.769 | G153: 0.743 | I153: 0.75 | J153: 0.82 | K153: 0.761 | L153: 0.712 | M153: 0.682 | N153: 0.659 | O153: 0.639 | Q153: 0.75 | R153: 0.743 | S153: 0.693 | T153: 0.651 | U153: 0.626 | V153: 0.606 | W153: 0.589 | Y153: 0.75 | Z153: 0.673 | AA153: 0.631 | AB153: 0.595 | AC153: 0.574 | AD153: 0.558 | AE153: 0.543 | AG153: 0.75 | AH153: 0.625 | AI153: 0.587 | AJ153: 0.556 | AK153: 0.538 | AL153: 0.523 | AM153: 0.51 | AO153: 0.75 | AP153: 0.595 | AQ153: 0.561 | AR153: 0.532 | AS153: 0.515 | AT153: 0.501 | AU153: 0.489
A154: 0.755 | B154: 0.995 | C154: 0.914 | D154: 0.845 | E154: 0.804 | F154: 0.773 | G154: 0.746 | I154: 0.755 | J154: 0.824 | K154: 0.765 | L154: 0.715 | M154: 0.685 | N154: 0.662 | O154: 0.642 | Q154: 0.755 | R154: 0.746 | S154: 0.696 | T154: 0.654 | U154: 0.629 | V154: 0.609 | W154: 0.592 | Y154: 0.755 | Z154: 0.676 | AA154: 0.634 | AB154: 0.598 | AC154: 0.577 | AD154: 0.56 | AE154: 0.546 | AG154: 0.755 | AH154: 0.628 | AI154: 0.59 | AJ154: 0.559 | AK154: 0.54 | AL154: 0.526 | AM154: 0.513 | AO154: 0.755 | AP154: 0.598 | AQ154: 0.563 | AR154: 0.535 | AS154: 0.517 | AT154: 0.504 | AU154: 0.492
A155: 0.76 | B155: 0.999 | C155: 0.918 | D155: 0.849 | E155: 0.808 | F155: 0.776 | G155: 0.749 | I155: 0.76 | J155: 0.827 | K155: 0.769 | L155: 0.719 | M155: 0.688 | N155: 0.665 | O155: 0.645 | Q155: 0.76 | R155: 0.749 | S155: 0.7 | T155: 0.657 | U155: 0.632 | V155: 0.612 | W155: 0.595 | Y155: 0.76 | Z155: 0.679 | AA155: 0.637 | AB155: 0.601 | AC155: 0.58 | AD155: 0.563 | AE155: 0.549 | AG155: 0.76 | AH155: 0.631 | AI155: 0.593 | AJ155: 0.562 | AK155: 0.543 | AL155: 0.528 | AM155: 0.515 | AO155: 0.76 | AP155: 0.601 | AQ155: 0.566 | AR155: 0.538 | AS155: 0.52 | AT155: 0.507 | AU155: 0.495
A156: 0.765 | B156: 1.003 | C156: 0.922 | D156: 0.853 | E156: 0.812 | F156: 0.78 | G156: 0.752 | I156: 0.765 | J156: 0.831 | K156: 0.772 | L156: 0.722 | M156: 0.692 | N156: 0.668 | O156: 0.648 | Q156: 0.765 | R156: 0.753 | S156: 0.703 | T156: 0.661 | U156: 0.635 | V156: 0.615 | W156: 0.598 | Y156: 0.765 | Z156: 0.682 | AA156: 0.64 | AB156: 0.605 | AC156: 0.583 | AD156: 0.566 | AE156: 0.551 | AG156: 0.765 | AH156: 0.634 | AI156: 0.596 | AJ156: 0.565 | AK156: 0.546 | AL156: 0.531 | AM156: 0.518 | AO156: 0.765 | AP156: 0.604 | AQ156: 0.569 | AR156: 0.54 | AS156: 0.523 | AT156: 0.509 | AU156: 0.497
A157: 0.77 | B157: 1.007 | C157: 0.927 | D157: 0.857 | E157: 0.816 | F157: 0.783 | G157: 0.756 | I157: 0.77 | J157: 0.834 | K157: 0.776 | L157: 0.726 | M157: 0.695 | N157: 0.672 | O157: 0.651 | Q157: 0.77 | R157: 0.756 | S157: 0.706 | T157: 0.664 | U157: 0.638 | V157: 0.618 | W157: 0.601 | Y157: 0.77 | Z157: 0.685 | AA157: 0.643 | AB157: 0.608 | AC157: 0.586 | AD157: 0.569 | AE157: 0.554 | AG157: 0.77 | AH157: 0.637 | AI157: 0.599 | AJ157: 0.568 | AK157: 0.549 | AL157: 0.534 | AM157: 0.521 | AO157: 0.77 | AP157: 0.606 | AQ157: 0.572 | AR157: 0.543 | AS157: 0.526 | AT157: 0.512 | AU157: 0.5
A158: 0.775 | B158: 1.011 | C158: 0.931 | D158: 0.861 | E158: 0.819 | F158: 0.787 | G158: 0.759 | I158: 0.775 | J158: 0.838 | K158: 0.779 | L158: 0.729 | M158: 0.699 | N158: 0.675 | O158: 0.654 | Q158: 0.775 | R158: 0.759 | S158: 0.71 | T158: 0.667 | U158: 0.642 | V158: 0.621 | W158: 0.604 | Y158: 0.775 | Z158: 0.688 | AA158: 0.646 | AB158: 0.611 | AC158: 0.589 | AD158: 0.572 | AE158: 0.557 | AG158: 0.775 | AH158: 0.64 | AI158: 0.602 | AJ158: 0.571 | AK158: 0.552 | AL158: 0.537 | AM158: 0.523 | AO158: 0.775 | AP158: 0.609 | AQ158: 0.575 | AR158: 0.546 | AS158: 0.528 | AT158: 0.515 | AU158: 0.502
A159: 0.78 | B159: 1.015 | C159: 0.935 | D159: 0.865 | E159: 0.823 | F159: 0.79 | G159: 0.762 | I159: 0.78 | J159: 0.841 | K159: 0.783 | L159: 0.733 | M159: 0.702 | N159: 0.678 | O159: 0.657 | Q159: 0.78 | R159: 0.762 | S159: 0.713 | T159: 0.671 | U159: 0.645 | V159: 0.625 | W159: 0.607 | Y159: 0.78 | Z159: 0.691 | AA159: 0.65 | AB159: 0.614 | AC159: 0.592 | AD159: 0.575 | AE159: 0.56 | AG159: 0.78 | AH159: 0.642 | AI159: 0.605 | AJ159: 0.574 | AK159: 0.555 | AL159: 0.539 | AM159: 0.526 | AO159: 0.78 | AP159: 0.612 | AQ159: 0.578 | AR159: 0.549 | AS159: 0.531 | AT159: 0.517 | AU159: 0.505
A160: 0.785 | B160: 1.019 | C160: 0.939 | D160: 0.869 | E160: 0.827 | F160: 0.794 | G160: 0.765 | I160: 0.785 | J160: 0.845 | K160: 0.787 | L160: 0.736 | M160: 0.705 | N160: 0.681 | O160: 0.66 | Q160: 0.785 | R160: 0.766 | S160: 0.717 | T160: 0.674 | U160: 0.648 | V160: 0.628 | W160: 0.61 | Y160: 0.785 | Z160: 0.695 | AA160: 0.653 | AB160: 0.617 | AC160: 0.595 | AD160: 0.578 | AE160: 0.562 | AG160: 0.785 | AH160: 0.645 | AI160: 0.608 | AJ160: 0.577 | AK160: 0.557 | AL160: 0.542 | AM160: 0.529 | AO160: 0.785 | AP160: 0.615 | AQ160: 0.581 | AR160: 0.552 | AS160: 0.534 | AT160: 0.52 | AU160: 0.507
A161: 0.79 | B161: 1.023 | C161: 0.943 | D161: 0.873 | E161: 0.83 | F161: 0.797 | G161: 0.768 | I161: 0.79 | J161: 0.849 | K161: 0.79 | L161: 0.74 | M161: 0.709 | N161: 0.684 | O161: 0.663 | Q161: 0.79 | R161: 0.769 | S161: 0.72 | T161: 0.677 | U161: 0.651 | V161: 0.631 | W161: 0.612 | Y161: 0.79 | Z161: 0.698 | AA161: 0.656 | AB161: 0.62 | AC161: 0.598 | AD161: 0.58 | AE161: 0.565 | AG161: 0.79 | AH161: 0.648 | AI161: 0.611 | AJ161: 0.58 | AK161: 0.56 | AL161: 0.545 | AM161: 0.531 | AO161: 0.79 | AP161: 0.618 | AQ161: 0.584 | AR161: 0.554 | AS161: 0.537 | AT161: 0.522 | AU161: 0.51
A162: 0.795 | B162: 1.027 | C162: 0.947 | D162: 0.876 | E162: 0.834 | F162: 0.801 | G162: 0.772 | I162: 0.795 | J162: 0.852 | K162: 0.794 | L162: 0.743 | M162: 0.712 | N162: 0.688 | O162: 0.666 | Q162: 0.795 | R162: 0.773 | S162: 0.723 | T162: 0.68 | U162: 0.654 | V162: 0.634 | W162: 0.615 | Y162: 0.795 | Z162: 0.701 | AA162: 0.659 | AB162: 0.623 | AC162: 0.601 | AD162: 0.583 | AE162: 0.568 | AG162: 0.795 | AH162: 0.651 | AI162: 0.614 | AJ162: 0.583 | AK162: 0.563 | AL162: 0.548 | AM162: 0.534 | AO162: 0.795 | AP162: 0.62 | AQ162: 0.586 | AR162: 0.557 | AS162: 0.539 | AT162: 0.525 | AU162: 0.512
A163: 0.8 | B163: 1.031 | C163: 0.951 | D163: 0.88 | E163: 0.838 | F163: 0.804 | G163: 0.775 | I163: 0.8 | J163: 0.856 | K163: 0.797 | L163: 0.747 | M163: 0.716 | N163: 0.691 | O163: 0.669 | Q163: 0.8 | R163: 0.776 | S163: 0.727 | T163: 0.684 | U163: 0.658 | V163: 0.637 | W163: 0.618 | Y163: 0.8 | Z163: 0.704 | AA163: 0.662 | AB163: 0.626 | AC163: 0.604 | AD163: 0.586 | AE163: 0.57 | AG163: 0.8 | AH163: 0.654 | AI163: 0.617 | AJ163: 0.585 | AK163: 0.566 | AL163: 0.55 | AM163: 0.536 | AO163: 0.8 | AP163: 0.623 | AQ163: 0.589 | AR163: 0.56 | AS163: 0.542 | AT163: 0.528 | AU163: 0.515
A164: 0.805 | B164: 1.035 | C164: 0.955 | D164: 0.884 | E164: 0.841 | F164: 0.807 | G164: 0.778 | I164: 0.805 | J164: 0.859 | K164: 0.801 | L164: 0.75 | M164: 0.719 | N164: 0.694 | O164: 0.672 | Q164: 0.805 | R164: 0.779 | S164: 0.73 | T164: 0.687 | U164: 0.661 | V164: 0.639 | W164: 0.621 | Y164: 0.805 | Z164: 0.707 | AA164: 0.665 | AB164: 0.629 | AC164: 0.607 | AD164: 0.589 | AE164: 0.573 | AG164: 0.805 | AH164: 0.657 | AI164: 0.62 | AJ164: 0.588 | AK164: 0.569 | AL164: 0.553 | AM164: 0.539 | AO164: 0.805 | AP164: 0.626 | AQ164: 0.592 | AR164: 0.563 | AS164: 0.545 | AT164: 0.53 | AU164: 0.517
A165: 0.81 | B165: 1.039 | C165: 0.959 | D165: 0.888 | E165: 0.845 | F165: 0.811 | G165: 0.781 | I165: 0.81 | J165: 0.863 | K165: 0.805 | L165: 0.754 | M165: 0.722 | N165: 0.697 | O165: 0.675 | Q165: 0.81 | R165: 0.783 | S165: 0.733 | T165: 0.69 | U165: 0.664 | V165: 0.642 | W165: 0.624 | Y165: 0.81 | Z165: 0.71 | AA165: 0.668 | AB165: 0.632 | AC165: 0.61 | AD165: 0.592 | AE165: 0.576 | AG165: 0.81 | AH165: 0.66 | AI165: 0.623 | AJ165: 0.591 | AK165: 0.572 | AL165: 0.556 | AM165: 0.542 | AO165: 0.81 | AP165: 0.629 | AQ165: 0.595 | AR165: 0.566 | AS165: 0.548 | AT165: 0.533 | AU165: 0.52
A166: 0.815 | B166: 1.043 | C166: 0.963 | D166: 0.892 | E166: 0.849 | F166: 0.814 | G166: 0.784 | I166: 0.815 | J166: 0.867 | K166: 0.808 | L166: 0.757 | M166: 0.725 | N166: 0.7 | O166: 0.678 | Q166: 0.815 | R166: 0.786 | S166: 0.737 | T166: 0.694 | U166: 0.667 | V166: 0.645 | W166: 0.627 | Y166: 0.815 | Z166: 0.713 | AA166: 0.672 | AB166: 0.635 | AC166: 0.613 | AD166: 0.595 | AE166: 0.579 | AG166: 0.815 | AH166: 0.663 | AI166: 0.626 | AJ166: 0.594 | AK166: 0.574 | AL166: 0.558 | AM166: 0.544 | AO166: 0.815 | AP166: 0.632 | AQ166: 0.598 | AR166: 0.569 | AS166: 0.55 | AT166: 0.536 | AU166: 0.523
A167: 0.82 | B167: 1.047 | C167: 0.967 | D167: 0.896 | E167: 0.852 | F167: 0.817 | G167: 0.787 | I167: 0.82 | J167: 0.87 | K167: 0.812 | L167: 0.76 | M167: 0.729 | N167: 0.703 | O167: 0.681 | Q167: 0.82 | R167: 0.789 | S167: 0.74 | T167: 0.697 | U167: 0.67 | V167: 0.648 | W167: 0.63 | Y167: 0.82 | Z167: 0.717 | AA167: 0.675 | AB167: 0.638 | AC167: 0.616 | AD167: 0.597 | AE167: 0.581 | AG167: 0.82 | AH167: 0.666 | AI167: 0.629 | AJ167: 0.597 | AK167: 0.577 | AL167: 0.561 | AM167: 0.547 | AO167: 0.82 | AP167: 0.635 | AQ167: 0.601 | AR167: 0.571 | AS167: 0.553 | AT167: 0.538 | AU167: 0.525
A168: 0.825 | B168: 1.051 | C168: 0.971 | D168: 0.9 | E168: 0.856 | F168: 0.821 | G168: 0.79 | I168: 0.825 | J168: 0.874 | K168: 0.815 | L168: 0.764 | M168: 0.732 | N168: 0.706 | O168: 0.684 | Q168: 0.825 | R168: 0.793 | S168: 0.743 | T168: 0.7 | U168: 0.673 | V168: 0.651 | W168: 0.632 | Y168: 0.825 | Z168: 0.72 | AA168: 0.678 | AB168: 0.641 | AC168: 0.619 | AD168: 0.6 | AE168: 0.584 | AG168: 0.825 | AH168: 0.669 | AI168: 0.632 | AJ168: 0.6 | AK168: 0.58 | AL168: 0.564 | AM168: 0.549 | AO168: 0.825 | AP168: 0.638 | AQ168: 0.604 | AR168: 0.574 | AS168: 0.556 | AT168: 0.541 | AU168: 0.528
A169: 0.83 | B169: 1.055 | C169: 0.975 | D169: 0.904 | E169: 0.859 | F169: 0.824 | G169: 0.793 | I169: 0.83 | J169: 0.877 | K169: 0.819 | L169: 0.767 | M169: 0.735 | N169: 0.709 | O169: 0.687 | Q169: 0.83 | R169: 0.796 | S169: 0.747 | T169: 0.703 | U169: 0.676 | V169: 0.654 | W169: 0.635 | Y169: 0.83 | Z169: 0.723 | AA169: 0.681 | AB169: 0.645 | AC169: 0.622 | AD169: 0.603 | AE169: 0.587 | AG169: 0.83 | AH169: 0.672 | AI169: 0.635 | AJ169: 0.603 | AK169: 0.583 | AL169: 0.567 | AM169: 0.552 | AO169: 0.83 | AP169: 0.641 | AQ169: 0.606 | AR169: 0.577 | AS169: 0.559 | AT169: 0.543 | AU169: 0.53
A170: 0.835 | B170: 1.059 | C170: 0.979 | D170: 0.907 | E170: 0.863 | F170: 0.827 | G170: 0.797 | I170: 0.835 | J170: 0.881 | K170: 0.823 | L170: 0.771 | M170: 0.739 | N170: 0.713 | O170: 0.69 | Q170: 0.835 | R170: 0.8 | S170: 0.75 | T170: 0.707 | U170: 0.679 | V170: 0.657 | W170: 0.638 | Y170: 0.835 | Z170: 0.726 | AA170: 0.684 | AB170: 0.648 | AC170: 0.625 | AD170: 0.606 | AE170: 0.589 | AG170: 0.835 | AH170: 0.675 | AI170: 0.638 | AJ170: 0.606 | AK170: 0.586 | AL170: 0.569 | AM170: 0.555 | AO170: 0.835 | AP170: 0.643 | AQ170: 0.609 | AR170: 0.58 | AS170: 0.561 | AT170: 0.546 | AU170: 0.533
A171: 0.84 | B171: 1.063 | C171: 0.983 | D171: 0.911 | E171: 0.866 | F171: 0.831 | G171: 0.8 | I171: 0.84 | J171: 0.885 | K171: 0.826 | L171: 0.774 | M171: 0.742 | N171: 0.716 | O171: 0.693 | Q171: 0.84 | R171: 0.803 | S171: 0.754 | T171: 0.71 | U171: 0.683 | V171: 0.66 | W171: 0.641 | Y171: 0.84 | Z171: 0.729 | AA171: 0.687 | AB171: 0.651 | AC171: 0.628 | AD171: 0.609 | AE171: 0.592 | AG171: 0.84 | AH171: 0.678 | AI171: 0.641 | AJ171: 0.609 | AK171: 0.589 | AL171: 0.572 | AM171: 0.557 | AO171: 0.84 | AP171: 0.646 | AQ171: 0.612 | AR171: 0.583 | AS171: 0.564 | AT171: 0.549 | AU171: 0.535
A172: 0.845 | B172: 1.067 | C172: 0.987 | D172: 0.915 | E172: 0.87 | F172: 0.834 | G172: 0.803 | I172: 0.845 | J172: 0.888 | K172: 0.83 | L172: 0.778 | M172: 0.745 | N172: 0.719 | O172: 0.696 | Q172: 0.845 | R172: 0.806 | S172: 0.757 | T172: 0.713 | U172: 0.686 | V172: 0.663 | W172: 0.644 | Y172: 0.845 | Z172: 0.732 | AA172: 0.691 | AB172: 0.654 | AC172: 0.63 | AD172: 0.611 | AE172: 0.595 | AG172: 0.845 | AH172: 0.681 | AI172: 0.644 | AJ172: 0.612 | AK172: 0.591 | AL172: 0.575 | AM172: 0.56 | AO172: 0.845 | AP172: 0.649 | AQ172: 0.615 | AR172: 0.586 | AS172: 0.567 | AT172: 0.551 | AU172: 0.538
A173: 0.85 | B173: 1.071 | C173: 0.991 | D173: 0.919 | E173: 0.873 | F173: 0.837 | G173: 0.806 | I173: 0.85 | J173: 0.892 | K173: 0.834 | L173: 0.781 | M173: 0.748 | N173: 0.722 | O173: 0.698 | Q173: 0.85 | R173: 0.81 | S173: 0.76 | T173: 0.717 | U173: 0.689 | V173: 0.666 | W173: 0.646 | Y173: 0.85 | Z173: 0.735 | AA173: 0.694 | AB173: 0.657 | AC173: 0.633 | AD173: 0.614 | AE173: 0.597 | AG173: 0.85 | AH173: 0.684 | AI173: 0.647 | AJ173: 0.615 | AK173: 0.594 | AL173: 0.577 | AM173: 0.562 | AO173: 0.85 | AP173: 0.652 | AQ173: 0.618 | AR173: 0.588 | AS173: 0.569 | AT173: 0.554 | AU173: 0.54
A174: 0.855 | B174: 1.075 | C174: 0.995 | D174: 0.923 | E174: 0.877 | F174: 0.84 | G174: 0.808 | I174: 0.855 | J174: 0.895 | K174: 0.837 | L174: 0.785 | M174: 0.752 | N174: 0.725 | O174: 0.701 | Q174: 0.855 | R174: 0.813 | S174: 0.764 | T174: 0.72 | U174: 0.692 | V174: 0.669 | W174: 0.649 | Y174: 0.855 | Z174: 0.738 | AA174: 0.697 | AB174: 0.66 | AC174: 0.636 | AD174: 0.617 | AE174: 0.6 | AG174: 0.855 | AH174: 0.687 | AI174: 0.65 | AJ174: 0.618 | AK174: 0.597 | AL174: 0.58 | AM174: 0.565 | AO174: 0.855 | AP174: 0.655 | AQ174: 0.621 | AR174: 0.591 | AS174: 0.572 | AT174: 0.556 | AU174: 0.543
A175: 0.86 | B175: 1.079 | C175: 0.999 | D175: 0.926 | E175: 0.88 | F175: 0.843 | G175: 0.811 | I175: 0.86 | J175: 0.899 | K175: 0.841 | L175: 0.788 | M175: 0.755 | N175: 0.728 | O175: 0.704 | Q175: 0.86 | R175: 0.816 | S175: 0.767 | T175: 0.723 | U175: 0.695 | V175: 0.672 | W175: 0.652 | Y175: 0.86 | Z175: 0.742 | AA175: 0.7 | AB175: 0.663 | AC175: 0.639 | AD175: 0.62 | AE175: 0.603 | AG175: 0.86 | AH175: 0.69 | AI175: 0.653 | AJ175: 0.621 | AK175: 0.6 | AL175: 0.583 | AM175: 0.567 | AO175: 0.86 | AP175: 0.658 | AQ175: 0.624 | AR175: 0.594 | AS175: 0.575 | AT175: 0.559 | AU175: 0.545
A176: 0.865 | B176: 1.083 | C176: 1.003 | D176: 0.93 | E176: 0.884 | F176: 0.847 | G176: 0.814 | I176: 0.865 | J176: 0.902 | K176: 0.844 | L176: 0.792 | M176: 0.758 | N176: 0.731 | O176: 0.707 | Q176: 0.865 | R176: 0.82 | S176: 0.771 | T176: 0.726 | U176: 0.698 | V176: 0.675 | W176: 0.655 | Y176: 0.865 | Z176: 0.745 | AA176: 0.703 | AB176: 0.666 | AC176: 0.642 | AD176: 0.623 | AE176: 0.605 | AG176: 0.865 | AH176: 0.693 | AI176: 0.656 | AJ176: 0.623 | AK176: 0.602 | AL176: 0.585 | AM176: 0.57 | AO176: 0.865 | AP176: 0.66 | AQ176: 0.627 | AR176: 0.597 | AS176: 0.577 | AT176: 0.562 | AU176: 0.548
A177: 0.87 | B177: 1.087 | C177: 1.007 | D177: 0.934 | E177: 0.887 | F177: 0.85 | G177: 0.817 | I177: 0.87 | J177: 0.906 | K177: 0.848 | L177: 0.795 | M177: 0.761 | N177: 0.734 | O177: 0.71 | Q177: 0.87 | R177: 0.823 | S177: 0.774 | T177: 0.73 | U177: 0.701 | V177: 0.678 | W177: 0.657 | Y177: 0.87 | Z177: 0.748 | AA177: 0.706 | AB177: 0.669 | AC177: 0.645 | AD177: 0.625 | AE177: 0.608 | AG177: 0.87 | AH177: 0.696 | AI177: 0.659 | AJ177: 0.626 | AK177: 0.605 | AL177: 0.588 | AM177: 0.572 | AO177: 0.87 | AP177: 0.663 | AQ177: 0.63 | AR177: 0.6 | AS177: 0.58 | AT177: 0.564 | AU177: 0.55
A178: 0.875 | B178: 1.092 | C178: 1.011 | D178: 0.938 | E178: 0.891 | F178: 0.853 | G178: 0.82 | I178: 0.875 | J178: 0.91 | K178: 0.852 | L178: 0.799 | M178: 0.765 | N178: 0.737 | O178: 0.713 | Q178: 0.875 | R178: 0.826 | S178: 0.777 | T178: 0.733 | U178: 0.704 | V178: 0.681 | W178: 0.66 | Y178: 0.875 | Z178: 0.751 | AA178: 0.71 | AB178: 0.672 | AC178: 0.648 | AD178: 0.628 | AE178: 0.61 | AG178: 0.875 | AH178: 0.699 | AI178: 0.662 | AJ178: 0.629 | AK178: 0.608 | AL178: 0.591 | AM178: 0.575 | AO178: 0.875 | AP178: 0.666 | AQ178: 0.633 | AR178: 0.602 | AS178: 0.583 | AT178: 0.567 | AU178: 0.552
A179: 0.88 | B179: 1.096 | C179: 1.015 | D179: 0.942 | E179: 0.894 | F179: 0.856 | G179: 0.823 | I179: 0.88 | J179: 0.913 | K179: 0.855 | L179: 0.802 | M179: 0.768 | N179: 0.74 | O179: 0.715 | Q179: 0.88 | R179: 0.83 | S179: 0.781 | T179: 0.736 | U179: 0.707 | V179: 0.684 | W179: 0.663 | Y179: 0.88 | Z179: 0.754 | AA179: 0.713 | AB179: 0.675 | AC179: 0.651 | AD179: 0.631 | AE179: 0.613 | AG179: 0.88 | AH179: 0.702 | AI179: 0.665 | AJ179: 0.632 | AK179: 0.611 | AL179: 0.593 | AM179: 0.577 | AO179: 0.88 | AP179: 0.669 | AQ179: 0.635 | AR179: 0.605 | AS179: 0.586 | AT179: 0.569 | AU179: 0.555
A180: 0.885 | B180: 1.1 | C180: 1.019 | D180: 0.945 | E180: 0.898 | F180: 0.86 | G180: 0.826 | I180: 0.885 | J180: 0.917 | K180: 0.859 | L180: 0.805 | M180: 0.771 | N180: 0.743 | O180: 0.718 | Q180: 0.885 | R180: 0.833 | S180: 0.784 | T180: 0.739 | U180: 0.71 | V180: 0.687 | W180: 0.665 | Y180: 0.885 | Z180: 0.757 | AA180: 0.716 | AB180: 0.678 | AC180: 0.654 | AD180: 0.634 | AE180: 0.616 | AG180: 0.885 | AH180: 0.705 | AI180: 0.668 | AJ180: 0.635 | AK180: 0.614 | AL180: 0.596 | AM180: 0.58 | AO180: 0.885 | AP180: 0.672 | AQ180: 0.638 | AR180: 0.608 | AS180: 0.588 | AT180: 0.572 | AU180: 0.557
A181: 0.89 | B181: 1.104 | C181: 1.023 | D181: 0.949 | E181: 0.901 | F181: 0.863 | G181: 0.829 | I181: 0.89 | J181: 0.921 | K181: 0.862 | L181: 0.809 | M181: 0.774 | N181: 0.746 | O181: 0.721 | Q181: 0.89 | R181: 0.836 | S181: 0.787 | T181: 0.742 | U181: 0.713 | V181: 0.689 | W181: 0.668 | Y181: 0.89 | Z181: 0.76 | AA181: 0.719 | AB181: 0.681 | AC181: 0.657 | AD181: 0.636 | AE181: 0.618 | AG181: 0.89 | AH181: 0.708 | AI181: 0.671 | AJ181: 0.638 | AK181: 0.616 | AL181: 0.598 | AM181: 0.583 | AO181: 0.89 | AP181: 0.675 | AQ181: 0.641 | AR181: 0.611 | AS181: 0.591 | AT181: 0.575 | AU181: 0.56
A182: 0.895 | B182: 1.108 | C182: 1.027 | D182: 0.953 | E182: 0.905 | F182: 0.866 | G182: 0.832 | I182: 0.895 | J182: 0.924 | K182: 0.866 | L182: 0.812 | M182: 0.777 | N182: 0.749 | O182: 0.724 | Q182: 0.895 | R182: 0.84 | S182: 0.791 | T182: 0.746 | U182: 0.716 | V182: 0.692 | W182: 0.671 | Y182: 0.895 | Z182: 0.764 | AA182: 0.722 | AB182: 0.684 | AC182: 0.659 | AD182: 0.639 | AE182: 0.621 | AG182: 0.895 | AH182: 0.711 | AI182: 0.674 | AJ182: 0.641 | AK182: 0.619 | AL182: 0.601 | AM182: 0.585 | AO182: 0.895 | AP182: 0.678 | AQ182: 0.644 | AR182: 0.614 | AS182: 0.594 | AT182: 0.577 | AU182: 0.562
A183: 0.9 | B183: 1.112 | C183: 1.031 | D183: 0.957 | E183: 0.908 | F183: 0.869 | G183: 0.835 | I183: 0.9 | J183: 0.928 | K183: 0.869 | L183: 0.816 | M183: 0.781 | N183: 0.752 | O183: 0.727 | Q183: 0.9 | R183: 0.843 | S183: 0.794 | T183: 0.749 | U183: 0.719 | V183: 0.695 | W183: 0.674 | Y183: 0.9 | Z183: 0.767 | AA183: 0.725 | AB183: 0.687 | AC183: 0.662 | AD183: 0.642 | AE183: 0.624 | AG183: 0.9 | AH183: 0.714 | AI183: 0.677 | AJ183: 0.644 | AK183: 0.622 | AL183: 0.604 | AM183: 0.588 | AO183: 0.9 | AP183: 0.681 | AQ183: 0.647 | AR183: 0.616 | AS183: 0.596 | AT183: 0.58 | AU183: 0.565
A184: 0.905 | B184: 1.116 | C184: 1.035 | D184: 0.96 | E184: 0.911 | F184: 0.872 | G184: 0.837 | I184: 0.905 | J184: 0.931 | K184: 0.873 | L184: 0.819 | M184: 0.784 | N184: 0.755 | O184: 0.729 | Q184: 0.905 | R184: 0.847 | S184: 0.797 | T184: 0.752 | U184: 0.722 | V184: 0.698 | W184: 0.676 | Y184: 0.905 | Z184: 0.77 | AA184: 0.728 | AB184: 0.69 | AC184: 0.665 | AD184: 0.645 | AE184: 0.626 | AG184: 0.905 | AH184: 0.717 | AI184: 0.68 | AJ184: 0.647 | AK184: 0.625 | AL184: 0.606 | AM184: 0.59 | AO184: 0.905 | AP184: 0.683 | AQ184: 0.65 | AR184: 0.619 | AS184: 0.599 | AT184: 0.582 | AU184: 0.567
A185: 0.91 | B185: 1.12 | C185: 1.039 | D185: 0.964 | E185: 0.915 | F185: 0.875 | G185: 0.84 | I185: 0.91 | J185: 0.935 | K185: 0.877 | L185: 0.822 | M185: 0.787 | N185: 0.758 | O185: 0.732 | Q185: 0.91 | R185: 0.85 | S185: 0.801 | T185: 0.755 | U185: 0.725 | V185: 0.701 | W185: 0.679 | Y185: 0.91 | Z185: 0.773 | AA185: 0.732 | AB185: 0.693 | AC185: 0.668 | AD185: 0.647 | AE185: 0.629 | AG185: 0.91 | AH185: 0.72 | AI185: 0.683 | AJ185: 0.649 | AK185: 0.627 | AL185: 0.609 | AM185: 0.593 | AO185: 0.91 | AP185: 0.686 | AQ185: 0.653 | AR185: 0.622 | AS185: 0.602 | AT185: 0.585 | AU185: 0.57
A186: 0.915 | B186: 1.124 | C186: 1.043 | D186: 0.968 | E186: 0.918 | F186: 0.878 | G186: 0.843 | I186: 0.915 | J186: 0.939 | K186: 0.88 | L186: 0.826 | M186: 0.79 | N186: 0.761 | O186: 0.735 | Q186: 0.915 | R186: 0.853 | S186: 0.804 | T186: 0.758 | U186: 0.728 | V186: 0.704 | W186: 0.682 | Y186: 0.915 | Z186: 0.776 | AA186: 0.735 | AB186: 0.696 | AC186: 0.671 | AD186: 0.65 | AE186: 0.631 | AG186: 0.915 | AH186: 0.723 | AI186: 0.686 | AJ186: 0.652 | AK186: 0.63 | AL186: 0.612 | AM186: 0.595 | AO186: 0.915 | AP186: 0.689 | AQ186: 0.656 | AR186: 0.625 | AS186: 0.604 | AT186: 0.587 | AU186: 0.572
A187: 0.92 | B187: 1.128 | C187: 1.047 | D187: 0.971 | E187: 0.922 | F187: 0.881 | G187: 0.846 | I187: 0.92 | J187: 0.942 | K187: 0.884 | L187: 0.829 | M187: 0.793 | N187: 0.764 | O187: 0.737 | Q187: 0.92 | R187: 0.857 | S187: 0.808 | T187: 0.762 | U187: 0.731 | V187: 0.706 | W187: 0.684 | Y187: 0.92 | Z187: 0.779 | AA187: 0.738 | AB187: 0.699 | AC187: 0.674 | AD187: 0.653 | AE187: 0.634 | AG187: 0.92 | AH187: 0.726 | AI187: 0.689 | AJ187: 0.655 | AK187: 0.633 | AL187: 0.614 | AM187: 0.597 | AO187: 0.92 | AP187: 0.692 | AQ187: 0.658 | AR187: 0.627 | AS187: 0.607 | AT187: 0.59 | AU187: 0.574
A188: 0.925 | B188: 1.132 | C188: 1.051 | D188: 0.975 | E188: 0.925 | F188: 0.884 | G188: 0.848 | I188: 0.925 | J188: 0.946 | K188: 0.887 | L188: 0.832 | M188: 0.796 | N188: 0.767 | O188: 0.74 | Q188: 0.925 | R188: 0.86 | S188: 0.811 | T188: 0.765 | U188: 0.735 | V188: 0.709 | W188: 0.687 | Y188: 0.925 | Z188: 0.782 | AA188: 0.741 | AB188: 0.702 | AC188: 0.677 | AD188: 0.655 | AE188: 0.636 | AG188: 0.925 | AH188: 0.728 | AI188: 0.692 | AJ188: 0.658 | AK188: 0.636 | AL188: 0.617 | AM188: 0.6 | AO188: 0.925 | AP188: 0.695 | AQ188: 0.661 | AR188: 0.63 | AS188: 0.61 | AT188: 0.592 | AU188: 0.577
A189: 0.93 | B189: 1.136 | C189: 1.055 | D189: 0.979 | E189: 0.928 | F189: 0.887 | G189: 0.851 | I189: 0.93 | J189: 0.949 | K189: 0.891 | L189: 0.836 | M189: 0.8 | N189: 0.77 | O189: 0.743 | Q189: 0.93 | R189: 0.863 | S189: 0.814 | T189: 0.768 | U189: 0.738 | V189: 0.712 | W189: 0.689 | Y189: 0.93 | Z189: 0.786 | AA189: 0.744 | AB189: 0.705 | AC189: 0.68 | AD189: 0.658 | AE189: 0.639 | AG189: 0.93 | AH189: 0.731 | AI189: 0.695 | AJ189: 0.661 | AK189: 0.638 | AL189: 0.619 | AM189: 0.602 | AO189: 0.93 | AP189: 0.698 | AQ189: 0.664 | AR189: 0.633 | AS189: 0.612 | AT189: 0.595 | AU189: 0.579
A190: 0.935 | B190: 1.14 | C190: 1.059 | D190: 0.982 | E190: 0.932 | F190: 0.89 | G190: 0.854 | I190: 0.935 | J190: 0.953 | K190: 0.895 | L190: 0.839 | M190: 0.803 | N190: 0.772 | O190: 0.746 | Q190: 0.935 | R190: 0.867 | S190: 0.818 | T190: 0.771 | U190: 0.741 | V190: 0.715 | W190: 0.692 | Y190: 0.935 | Z190: 0.789 | AA190: 0.747 | AB190: 0.708 | AC190: 0.682 | AD190: 0.661 | AE190: 0.641 | AG190: 0.935 | AH190: 0.734 | AI190: 0.698 | AJ190: 0.664 | AK190: 0.641 | AL190: 0.622 | AM190: 0.605 | AO190: 0.935 | AP190: 0.701 | AQ190: 0.667 | AR190: 0.636 | AS190: 0.615 | AT190: 0.597 | AU190: 0.582
A191: 0.94 | B191: 1.144 | C191: 1.063 | D191: 0.986 | E191: 0.935 | F191: 0.893 | G191: 0.856 | I191: 0.94 | J191: 0.957 | K191: 0.898 | L191: 0.843 | M191: 0.806 | N191: 0.775 | O191: 0.748 | Q191: 0.94 | R191: 0.87 | S191: 0.821 | T191: 0.775 | U191: 0.744 | V191: 0.718 | W191: 0.695 | Y191: 0.94 | Z191: 0.792 | AA191: 0.75 | AB191: 0.711 | AC191: 0.685 | AD191: 0.663 | AE191: 0.644 | AG191: 0.94 | AH191: 0.737 | AI191: 0.701 | AJ191: 0.667 | AK191: 0.644 | AL191: 0.625 | AM191: 0.607 | AO191: 0.94 | AP191: 0.704 | AQ191: 0.67 | AR191: 0.639 | AS191: 0.618 | AT191: 0.6 | AU191: 0.584
A192: 0.945 | B192: 1.148 | C192: 1.067 | D192: 0.99 | E192: 0.938 | F192: 0.896 | G192: 0.859 | I192: 0.945 | J192: 0.96 | K192: 0.902 | L192: 0.846 | M192: 0.809 | N192: 0.778 | O192: 0.751 | Q192: 0.945 | R192: 0.874 | S192: 0.824 | T192: 0.778 | U192: 0.747 | V192: 0.72 | W192: 0.697 | Y192: 0.945 | Z192: 0.795 | AA192: 0.754 | AB192: 0.714 | AC192: 0.688 | AD192: 0.666 | AE192: 0.646 | AG192: 0.945 | AH192: 0.74 | AI192: 0.704 | AJ192: 0.67 | AK192: 0.647 | AL192: 0.627 | AM192: 0.61 | AO192: 0.945 | AP192: 0.706 | AQ192: 0.673 | AR192: 0.641 | AS192: 0.62 | AT192: 0.602 | AU192: 0.586
A193: 0.95 | B193: 1.153 | C193: 1.071 | D193: 0.993 | E193: 0.942 | F193: 0.899 | G193: 0.861 | I193: 0.95 | J193: 0.964 | K193: 0.905 | L193: 0.85 | M193: 0.812 | N193: 0.781 | O193: 0.754 | Q193: 0.95 | R193: 0.877 | S193: 0.828 | T193: 0.781 | U193: 0.75 | V193: 0.723 | W193: 0.7 | Y193: 0.95 | Z193: 0.798 | AA193: 0.757 | AB193: 0.717 | AC193: 0.691 | AD193: 0.669 | AE193: 0.649 | AG193: 0.95 | AH193: 0.743 | AI193: 0.707 | AJ193: 0.672 | AK193: 0.649 | AL193: 0.63 | AM193: 0.612 | AO193: 0.95 | AP193: 0.709 | AQ193: 0.676 | AR193: 0.644 | AS193: 0.623 | AT193: 0.605 | AU193: 0.589
A194: 0.955 | B194: 1.156 | C194: 1.075 | D194: 0.997 | E194: 0.945 | F194: 0.901 | G194: 0.864 | I194: 0.955 | J194: 0.967 | K194: 0.909 | L194: 0.853 | M194: 0.815 | N194: 0.784 | O194: 0.756 | Q194: 0.955 | R194: 0.88 | S194: 0.831 | T194: 0.784 | U194: 0.752 | V194: 0.726 | W194: 0.702 | Y194: 0.955 | Z194: 0.801 | AA194: 0.76 | AB194: 0.72 | AC194: 0.694 | AD194: 0.671 | AE194: 0.651 | AG194: 0.955 | AH194: 0.746 | AI194: 0.71 | AJ194: 0.675 | AK194: 0.652 | AL194: 0.632 | AM194: 0.615 | AO194: 0.955 | AP194: 0.712 | AQ194: 0.679 | AR194: 0.647 | AS194: 0.626 | AT194: 0.607 | AU194: 0.591
A195: 0.96 | B195: 1.161 | C195: 1.079 | D195: 1.001 | E195: 0.948 | F195: 0.904 | G195: 0.866 | I195: 0.96 | J195: 0.971 | K195: 0.913 | L195: 0.856 | M195: 0.818 | N195: 0.787 | O195: 0.759 | Q195: 0.96 | R195: 0.884 | S195: 0.835 | T195: 0.787 | U195: 0.755 | V195: 0.729 | W195: 0.705 | Y195: 0.96 | Z195: 0.805 | AA195: 0.763 | AB195: 0.723 | AC195: 0.697 | AD195: 0.674 | AE195: 0.654 | AG195: 0.96 | AH195: 0.749 | AI195: 0.713 | AJ195: 0.678 | AK195: 0.655 | AL195: 0.635 | AM195: 0.617 | AO195: 0.96 | AP195: 0.715 | AQ195: 0.682 | AR195: 0.65 | AS195: 0.628 | AT195: 0.61 | AU195: 0.594
A196: 0.965 | B196: 1.165 | C196: 1.083 | D196: 1.004 | E196: 0.951 | F196: 0.907 | G196: 0.869 | I196: 0.965 | J196: 0.975 | K196: 0.916 | L196: 0.86 | M196: 0.821 | N196: 0.789 | O196: 0.761 | Q196: 0.965 | R196: 0.887 | S196: 0.838 | T196: 0.791 | U196: 0.758 | V196: 0.731 | W196: 0.708 | Y196: 0.965 | Z196: 0.808 | AA196: 0.766 | AB196: 0.726 | AC196: 0.699 | AD196: 0.677 | AE196: 0.656 | AG196: 0.965 | AH196: 0.752 | AI196: 0.716 | AJ196: 0.681 | AK196: 0.657 | AL196: 0.637 | AM196: 0.619 | AO196: 0.965 | AP196: 0.718 | AQ196: 0.684 | AR196: 0.653 | AS196: 0.631 | AT196: 0.612 | AU196: 0.596
A197: 0.97 | B197: 1.169 | C197: 1.087 | D197: 1.008 | E197: 0.954 | F197: 0.91 | G197: 0.872 | I197: 0.97 | J197: 0.978 | K197: 0.92 | L197: 0.863 | M197: 0.824 | N197: 0.792 | O197: 0.764 | Q197: 0.97 | R197: 0.891 | S197: 0.841 | T197: 0.794 | U197: 0.761 | V197: 0.734 | W197: 0.71 | Y197: 0.97 | Z197: 0.811 | AA197: 0.769 | AB197: 0.729 | AC197: 0.702 | AD197: 0.679 | AE197: 0.659 | AG197: 0.97 | AH197: 0.755 | AI197: 0.719 | AJ197: 0.684 | AK197: 0.66 | AL197: 0.64 | AM197: 0.622 | AO197: 0.97 | AP197: 0.721 | AQ197: 0.687 | AR197: 0.655 | AS197: 0.633 | AT197: 0.615 | AU197: 0.598
A198: 0.975 | B198: 1.173 | C198: 1.091 | D198: 1.012 | E198: 0.958 | F198: 0.913 | G198: 0.874 | I198: 0.975 | J198: 0.982 | K198: 0.923 | L198: 0.866 | M198: 0.827 | N198: 0.795 | O198: 0.766 | Q198: 0.975 | R198: 0.894 | S198: 0.845 | T198: 0.797 | U198: 0.764 | V198: 0.737 | W198: 0.713 | Y198: 0.975 | Z198: 0.814 | AA198: 0.773 | AB198: 0.733 | AC198: 0.705 | AD198: 0.682 | AE198: 0.661 | AG198: 0.975 | AH198: 0.758 | AI198: 0.722 | AJ198: 0.687 | AK198: 0.663 | AL198: 0.642 | AM198: 0.624 | AO198: 0.975 | AP198: 0.724 | AQ198: 0.69 | AR198: 0.658 | AS198: 0.636 | AT198: 0.617 | AU198: 0.601
A199: 0.98 | B199: 1.177 | C199: 1.095 | D199: 1.015 | E199: 0.961 | F199: 0.916 | G199: 0.876 | I199: 0.98 | J199: 0.986 | K199: 0.927 | L199: 0.87 | M199: 0.831 | N199: 0.798 | O199: 0.769 | Q199: 0.98 | R199: 0.897 | S199: 0.848 | T199: 0.8 | U199: 0.767 | V199: 0.74 | W199: 0.715 | Y199: 0.98 | Z199: 0.817 | AA199: 0.776 | AB199: 0.736 | AC199: 0.708 | AD199: 0.685 | AE199: 0.664 | AG199: 0.98 | AH199: 0.761 | AI199: 0.725 | AJ199: 0.69 | AK199: 0.665 | AL199: 0.645 | AM199: 0.627 | AO199: 0.98 | AP199: 0.727 | AQ199: 0.693 | AR199: 0.661 | AS199: 0.639 | AT199: 0.62 | AU199: 0.603
A200: 0.985 | B200: 1.181 | C200: 1.099 | D200: 1.019 | E200: 0.964 | F200: 0.918 | G200: 0.879 | I200: 0.985 | J200: 0.989 | K200: 0.931 | L200: 0.873 | M200: 0.834 | N200: 0.801 | O200: 0.772 | Q200: 0.985 | R200: 0.901 | S200: 0.851 | T200: 0.803 | U200: 0.77 | V200: 0.742 | W200: 0.718 | Y200: 0.985 | Z200: 0.82 | AA200: 0.779 | AB200: 0.739 | AC200: 0.711 | AD200: 0.687 | AE200: 0.666 | AG200: 0.985 | AH200: 0.764 | AI200: 0.728 | AJ200: 0.693 | AK200: 0.668 | AL200: 0.648 | AM200: 0.629 | AO200: 0.985 | AP200: 0.73 | AQ200: 0.696 | AR200: 0.664 | AS200: 0.641 | AT200: 0.622 | AU200: 0.605
... 603 more rows

Sheet 砕波高data (hidden)
A1: Ho'/Lo | B1: h/Ho' | I1: Ho'/Lo | J1: H/Ho' | Q1: グラフ表示用
B2: =1/10 -> 0.1 | C2: =1/15 -> 0.06666666667 | D2: =1/20 -> 0.05 | E2: =1/30 -> 0.03333333333 | F2: =1/50 -> 0.02 | G2: =1/100 -> 0.01 | J2: =1/10 -> 0.1 | K2: =1/15 -> 0.06666666667 | L2: =1/20 -> 0.05 | M2: =1/30 -> 0.03333333333 | N2: =1/50 -> 0.02 | O2: =1/100 -> 0.01 | Q2: Ho'/Lo | R2: h/Ho' | S2: H/Ho'
A3: 0.002 | B3: 2.842 | C3: =ROUND((B3+D3)/2,3) -> 3.068 | D3: 3.293 | E3: 3.49 | F3: =ROUND(E3+(G3-E3)*(50-30)/(100-30),3) -> 3.55 | G3: 3.701 | I3: 0.002 | J3: 2.521 | K3: =ROUND((J3+L3)/2,3) -> 2.381 | L3: 2.24 | M3: 2.152 | N3: =ROUND(M3+(O3-M3)*(50-30)/(100-30),3) -> 2.123 | O3: 2.051 | Q3: 0.002 | R3: =IF('3.5.3 水深のみによる波高の変化'!E54="","",'3.5.3 水深のみによる波高の変化'!E54) -> 2.715 | S3: =IF('3.5.3 水深のみによる波高の変化'!F54="","",'3.5.3 水深のみによる波高の変化'!F54) -> 1.613
A4: 0.0021 | B4: 2.807 | C4: =ROUND((B4+D4)/2,3) -> 3.028 | D4: 3.249 | E4: 3.444 | F4: =ROUND(E4+(G4-E4)*(50-30)/(100-30),3) -> 3.504 | G4: 3.653 | I4: 0.0021 | J4: 2.489 | K4: 2.35 | L4: 2.211 | M4: 2.123 | N4: =ROUND(M4+(O4-M4)*(50-30)/(100-30),3) -> 2.095 | O4: 2.025 | Q4: =IF('3.5.3 水深のみによる波高の変化'!D54="","",'3.5.3 水深のみによる波高の変化'!D54) -> 0.005 | R4: =IF('3.5.3 水深のみによる波高の変化'!E54="","",'3.5.3 水深のみによる波高の変化'!E54) -> 2.715 | S4: =IF('3.5.3 水深のみによる波高の変化'!F54="","",'3.5.3 水深のみによる波高の変化'!F54) -> 1.613
A5: 0.0022 | B5: 2.774 | C5: 2.991 | D5: 3.207 | E5: 3.399 | F5: 3.459 | G5: 3.608 | I5: 0.0022 | J5: 2.457 | K5: 2.32 | L5: 2.183 | M5: 2.095 | N5: 2.068 | O5: 2 | Q5: =IF('3.5.3 水深のみによる波高の変化'!D54="","",'3.5.3 水深のみによる波高の変化'!D54) -> 0.005 | R5: 1.3 | S5: 0.8
A6: 0.0023 | B6: 2.741 | C6: 2.954 | D6: 3.166 | E6: 3.357 | F6: 3.416 | G6: 3.564 | I6: 0.0023 | J6: 2.427 | K6: 2.291 | L6: 2.155 | M6: 2.068 | N6: 2.042 | O6: 1.976
A7: 0.0024 | B7: 2.71 | C7: 2.919 | D7: 3.127 | E7: 3.316 | F7: 3.375 | G7: 3.522 | I7: 0.0024 | J7: 2.398 | K7: 2.264 | L7: 2.129 | M7: 2.042 | N7: 2.017 | O7: 1.953
A8: 0.0025 | B8: 2.68 | C8: 2.884 | D8: 3.087 | E8: 3.267 | F8: 3.328 | G8: 3.481 | I8: 0.0025 | J8: 2.369 | K8: 2.236 | L8: 2.103 | M8: 2.018 | N8: 1.993 | O8: 1.931
A9: 0.0026 | B9: 2.651 | C9: 2.851 | D9: 3.051 | E9: 3.229 | F9: 3.29 | G9: 3.443 | I9: 0.0026 | J9: 2.342 | K9: 2.211 | L9: 2.079 | M9: 1.994 | N9: 1.97 | O9: 1.91
A10: 0.0027 | B10: 2.624 | C10: 2.82 | D10: 3.016 | E10: 3.193 | F10: 3.254 | G10: 3.405 | I10: 0.0027 | J10: 2.315 | K10: 2.185 | L10: 2.055 | M10: 1.971 | N10: 1.948 | O10: 1.889
A11: 0.0028 | B11: 2.597 | C11: 2.79 | D11: 2.983 | E11: 3.158 | F11: 3.219 | G11: 3.37 | I11: 0.0028 | J11: 2.29 | K11: 2.161 | L11: 2.032 | M11: 1.95 | N11: 1.927 | O11: 1.869
A12: 0.0029 | B12: 2.571 | C12: 2.761 | D12: 2.951 | E12: 3.125 | F12: 3.185 | G12: 3.335 | I12: 0.0029 | J12: 2.265 | K12: 2.138 | L12: 2.01 | M12: 1.929 | N12: 1.906 | O12: 1.85
A13: 0.003 | B13: 2.546 | C13: 2.733 | D13: 2.92 | E13: 3.093 | F13: 3.153 | G13: 3.303 | I13: 0.003 | J13: 2.241 | K13: 2.115 | L13: 1.989 | M13: 1.909 | N13: 1.887 | O13: 1.831
A14: 0.0031 | B14: 2.522 | C14: 2.707 | D14: 2.891 | E14: 3.062 | F14: 3.122 | G14: 3.271 | I14: 0.0031 | J14: 2.218 | K14: 2.094 | L14: 1.969 | M14: 1.889 | N14: 1.868 | O14: 1.814
A15: 0.0032 | B15: 2.499 | C15: 2.681 | D15: 2.863 | E15: 3.032 | F15: 3.092 | G15: 3.241 | I15: 0.0032 | J15: 2.196 | K15: 2.073 | L15: 1.949 | M15: 1.871 | N15: 1.85 | O15: 1.796
A16: 0.0033 | B16: 2.476 | C16: 2.656 | D16: 2.835 | E16: 3.004 | F16: 3.063 | G16: 3.211 | I16: 0.0033 | J16: 2.174 | K16: 2.052 | L16: 1.93 | M16: 1.853 | N16: 1.832 | O16: 1.78
A17: 0.0034 | B17: 2.455 | C17: 2.632 | D17: 2.809 | E17: 2.977 | F17: 3.036 | G17: 3.183 | I17: 0.0034 | J17: 2.153 | K17: 2.032 | L17: 1.911 | M17: 1.836 | N17: 1.815 | O17: 1.764
A18: 0.0035 | B18: 2.434 | C18: 2.609 | D18: 2.784 | E18: 2.951 | F18: 3.01 | G18: 3.157 | I18: 0.0035 | J18: 2.133 | K18: 2.013 | L18: 1.893 | M18: 1.819 | N18: 1.799 | O18: 1.748
A19: 0.0036 | B19: 2.414 | C19: 2.587 | D19: 2.76 | E19: 2.925 | F19: 2.984 | G19: 3.131 | I19: 0.0036 | J19: 2.113 | K19: 1.995 | L19: 1.876 | M19: 1.803 | N19: 1.783 | O19: 1.733
A20: 0.0037 | B20: 2.394 | C20: 2.566 | D20: 2.737 | E20: 2.901 | F20: 2.96 | G20: 3.106 | I20: 0.0037 | J20: 2.094 | K20: 1.977 | L20: 1.86 | M20: 1.788 | N20: 1.768 | O20: 1.718
A21: 0.0038 | B21: 2.376 | C21: 2.546 | D21: 2.715 | E21: 2.878 | F21: 2.936 | G21: 3.082 | I21: 0.0038 | J21: 2.076 | K21: 1.96 | L21: 1.844 | M21: 1.773 | N21: 1.753 | O21: 1.704
A22: 0.0039 | B22: 2.358 | C22: 2.526 | D22: 2.693 | E22: 2.856 | F22: 2.914 | G22: 3.059 | I22: 0.0039 | J22: 2.058 | K22: 1.943 | L22: 1.828 | M22: 1.759 | N22: 1.74 | O22: 1.691
A23: 0.004 | B23: 2.34 | C23: 2.507 | D23: 2.673 | E23: 2.834 | F23: 2.892 | G23: 3.037 | I23: 0.004 | J23: 2.041 | K23: 1.927 | L23: 1.813 | M23: 1.745 | N23: 1.726 | O23: 1.678
A24: 0.0041 | B24: 2.323 | C24: 2.488 | D24: 2.653 | E24: 2.813 | F24: 2.871 | G24: 3.016 | I24: 0.0041 | J24: 2.025 | K24: 1.912 | L24: 1.799 | M24: 1.732 | N24: 1.713 | O24: 1.665
A25: 0.0042 | B25: 2.307 | C25: 2.471 | D25: 2.634 | E25: 2.793 | F25: 2.851 | G25: 2.995 | I25: 0.0042 | J25: 2.008 | K25: 1.897 | L25: 1.785 | M25: 1.719 | N25: 1.7 | O25: 1.653
A26: 0.0043 | B26: 2.291 | C26: 2.453 | D26: 2.615 | E26: 2.774 | F26: 2.832 | G26: 2.976 | I26: 0.0043 | J26: 1.993 | K26: 1.882 | L26: 1.771 | M26: 1.707 | N26: 1.688 | O26: 1.641
A27: 0.0044 | B27: 2.275 | C27: 2.436 | D27: 2.597 | E27: 2.756 | F27: 2.813 | G27: 2.957 | I27: 0.0044 | J27: 1.978 | K27: 1.868 | L27: 1.758 | M27: 1.695 | N27: 1.676 | O27: 1.629
A28: 0.0045 | B28: 2.26 | C28: 2.42 | D28: 2.58 | E28: 2.738 | F28: 2.795 | G28: 2.938 | I28: 0.0045 | J28: 1.963 | K28: 1.854 | L28: 1.745 | M28: 1.683 | N28: 1.664 | O28: 1.618
A29: 0.0046 | B29: 2.246 | C29: 2.405 | D29: 2.564 | E29: 2.721 | F29: 2.778 | G29: 2.921 | I29: 0.0046 | J29: 1.949 | K29: 1.841 | L29: 1.733 | M29: 1.672 | N29: 1.653 | O29: 1.607
A30: 0.0047 | B30: 2.232 | C30: 2.39 | D30: 2.548 | E30: 2.704 | F30: 2.761 | G30: 2.904 | I30: 0.0047 | J30: 1.935 | K30: 1.828 | L30: 1.721 | M30: 1.662 | N30: 1.643 | O30: 1.596
A31: 0.0048 | B31: 2.218 | C31: 2.375 | D31: 2.532 | E31: 2.688 | F31: 2.745 | G31: 2.888 | I31: 0.0048 | J31: 1.922 | K31: 1.816 | L31: 1.71 | M31: 1.651 | N31: 1.632 | O31: 1.586
A32: 0.0049 | B32: 2.205 | C32: 2.362 | D32: 2.518 | E32: 2.673 | F32: 2.73 | G32: 2.872 | I32: 0.0049 | J32: 1.909 | K32: 1.804 | L32: 1.698 | M32: 1.641 | N32: 1.622 | O32: 1.576
A33: 0.005 | B33: 2.192 | C33: 2.348 | D33: 2.503 | E33: 2.658 | F33: 2.715 | G33: 2.857 | I33: 0.005 | J33: 1.896 | K33: 1.792 | L33: 1.688 | M33: 1.631 | N33: 1.613 | O33: 1.567
A34: 0.0051 | B34: 2.18 | C34: 2.335 | D34: 2.489 | E34: 2.644 | F34: 2.701 | G34: 2.842 | I34: 0.0051 | J34: 1.884 | K34: 1.781 | L34: 1.677 | M34: 1.622 | N34: 1.603 | O34: 1.557
A35: 0.0052 | B35: 2.168 | C35: 2.322 | D35: 2.476 | E35: 2.63 | F35: 2.687 | G35: 2.828 | I35: 0.0052 | J35: 1.872 | K35: 1.77 | L35: 1.667 | M35: 1.613 | N35: 1.594 | O35: 1.548
A36: 0.0053 | B36: 2.156 | C36: 2.31 | D36: 2.463 | E36: 2.617 | F36: 2.673 | G36: 2.814 | I36: 0.0053 | J36: 1.861 | K36: 1.759 | L36: 1.657 | M36: 1.604 | N36: 1.585 | O36: 1.539
A37: 0.0054 | B37: 2.145 | C37: 2.298 | D37: 2.451 | E37: 2.604 | F37: 2.66 | G37: 2.801 | I37: 0.0054 | J37: 1.849 | K37: 1.748 | L37: 1.647 | M37: 1.595 | N37: 1.577 | O37: 1.531
A38: 0.0055 | B38: 2.133 | C38: 2.286 | D38: 2.438 | E38: 2.591 | F38: 2.647 | G38: 2.788 | I38: 0.0055 | J38: 1.839 | K38: 1.739 | L38: 1.638 | M38: 1.586 | N38: 1.568 | O38: 1.522
A39: 0.0056 | B39: 2.123 | C39: 2.275 | D39: 2.427 | E39: 2.579 | F39: 2.635 | G39: 2.775 | I39: 0.0056 | J39: 1.828 | K39: 1.729 | L39: 1.629 | M39: 1.578 | N39: 1.56 | O39: 1.514
A40: 0.0057 | B40: 2.112 | C40: 2.264 | D40: 2.415 | E40: 2.567 | F40: 2.623 | G40: 2.763 | I40: 0.0057 | J40: 1.818 | K40: 1.719 | L40: 1.62 | M40: 1.57 | N40: 1.552 | O40: 1.506
A41: 0.0058 | B41: 2.102 | C41: 2.253 | D41: 2.404 | E41: 2.556 | F41: 2.612 | G41: 2.751 | I41: 0.0058 | J41: 1.808 | K41: 1.71 | L41: 1.612 | M41: 1.562 | N41: 1.544 | O41: 1.498
A42: 0.0059 | B42: 2.092 | C42: 2.243 | D42: 2.393 | E42: 2.544 | F42: 2.6 | G42: 2.74 | I42: 0.0059 | J42: 1.798 | K42: 1.701 | L42: 1.603 | M42: 1.555 | N42: 1.537 | O42: 1.491
A43: 0.006 | B43: 2.082 | C43: 2.233 | D43: 2.383 | E43: 2.534 | F43: 2.59 | G43: 2.729 | I43: 0.006 | J43: 1.788 | K43: 1.692 | L43: 1.595 | M43: 1.547 | N43: 1.529 | O43: 1.483
A44: 0.0061 | B44: 2.072 | C44: 2.222 | D44: 2.372 | E44: 2.523 | F44: 2.579 | G44: 2.718 | I44: 0.0061 | J44: 1.779 | K44: 1.684 | L44: 1.588 | M44: 1.54 | N44: 1.522 | O44: 1.476
A45: 0.0062 | B45: 2.063 | C45: 2.213 | D45: 2.363 | E45: 2.513 | F45: 2.569 | G45: 2.708 | I45: 0.0062 | J45: 1.77 | K45: 1.675 | L45: 1.58 | M45: 1.533 | N45: 1.515 | O45: 1.469
A46: 0.0063 | B46: 2.054 | C46: 2.204 | D46: 2.353 | E46: 2.503 | F46: 2.559 | G46: 2.698 | I46: 0.0063 | J46: 1.761 | K46: 1.667 | L46: 1.572 | M46: 1.526 | N46: 1.508 | O46: 1.462
A47: 0.0064 | B47: 2.045 | C47: 2.194 | D47: 2.343 | E47: 2.493 | F47: 2.549 | G47: 2.688 | I47: 0.0064 | J47: 1.753 | K47: 1.659 | L47: 1.565 | M47: 1.519 | N47: 1.501 | O47: 1.455
A48: 0.0065 | B48: 2.036 | C48: 2.185 | D48: 2.334 | E48: 2.484 | F48: 2.539 | G48: 2.678 | I48: 0.0065 | J48: 1.744 | K48: 1.651 | L48: 1.558 | M48: 1.512 | N48: 1.494 | O48: 1.449
A49: 0.0066 | B49: 2.027 | C49: 2.176 | D49: 2.325 | E49: 2.475 | F49: 2.53 | G49: 2.669 | I49: 0.0066 | J49: 1.736 | K49: 1.644 | L49: 1.551 | M49: 1.505 | N49: 1.487 | O49: 1.442
A50: 0.0067 | B50: 2.019 | C50: 2.168 | D50: 2.316 | E50: 2.466 | F50: 2.521 | G50: 2.66 | I50: 0.0067 | J50: 1.728 | K50: 1.636 | L50: 1.544 | M50: 1.499 | N50: 1.481 | O50: 1.436
A51: 0.0068 | B51: 2.01 | C51: 2.159 | D51: 2.308 | E51: 2.457 | F51: 2.512 | G51: 2.651 | I51: 0.0068 | J51: 1.72 | K51: 1.629 | L51: 1.537 | M51: 1.492 | N51: 1.474 | O51: 1.429
A52: 0.0069 | B52: 2.002 | C52: 2.151 | D52: 2.3 | E52: 2.448 | F52: 2.503 | G52: 2.642 | I52: 0.0069 | J52: 1.713 | K52: 1.622 | L52: 1.531 | M52: 1.486 | N52: 1.468 | O52: 1.423
A53: 0.007 | B53: 1.994 | C53: 2.143 | D53: 2.291 | E53: 2.44 | F53: 2.495 | G53: 2.633 | I53: 0.007 | J53: 1.705 | K53: 1.615 | L53: 1.525 | M53: 1.48 | N53: 1.462 | O53: 1.417
A54: 0.0071 | B54: 1.987 | C54: 2.135 | D54: 2.283 | E54: 2.432 | F54: 2.487 | G54: 2.625 | I54: 0.0071 | J54: 1.698 | K54: 1.608 | L54: 1.518 | M54: 1.474 | N54: 1.456 | O54: 1.411
A55: 0.0072 | B55: 1.979 | C55: 2.127 | D55: 2.275 | E55: 2.424 | F55: 2.479 | G55: 2.617 | I55: 0.0072 | J55: 1.691 | K55: 1.602 | L55: 1.512 | M55: 1.468 | N55: 1.45 | O55: 1.406
A56: 0.0073 | B56: 1.971 | C56: 2.12 | D56: 2.268 | E56: 2.416 | F56: 2.471 | G56: 2.609 | I56: 0.0073 | J56: 1.684 | K56: 1.595 | L56: 1.506 | M56: 1.462 | N56: 1.444 | O56: 1.4
A57: 0.0074 | B57: 1.964 | C57: 2.112 | D57: 2.26 | E57: 2.408 | F57: 2.463 | G57: 2.601 | I57: 0.0074 | J57: 1.677 | K57: 1.589 | L57: 1.5 | M57: 1.456 | N57: 1.438 | O57: 1.394
A58: 0.0075 | B58: 1.957 | C58: 2.105 | D58: 2.253 | E58: 2.401 | F58: 2.456 | G58: 2.594 | I58: 0.0075 | J58: 1.67 | K58: 1.583 | L58: 1.495 | M58: 1.451 | N58: 1.433 | O58: 1.389
A59: 0.0076 | B59: 1.95 | C59: 2.098 | D59: 2.246 | E59: 2.393 | F59: 2.448 | G59: 2.586 | I59: 0.0076 | J59: 1.664 | K59: 1.577 | L59: 1.489 | M59: 1.445 | N59: 1.428 | O59: 1.384
A60: 0.0077 | B60: 1.942 | C60: 2.09 | D60: 2.238 | E60: 2.386 | F60: 2.441 | G60: 2.579 | I60: 0.0077 | J60: 1.657 | K60: 1.57 | L60: 1.483 | M60: 1.439 | N60: 1.422 | O60: 1.378
A61: 0.0078 | B61: 1.936 | C61: 2.084 | D61: 2.231 | E61: 2.379 | F61: 2.434 | G61: 2.571 | I61: 0.0078 | J61: 1.651 | K61: 1.565 | L61: 1.478 | M61: 1.434 | N61: 1.417 | O61: 1.373
A62: 0.0079 | B62: 1.929 | C62: 2.077 | D62: 2.225 | E62: 2.372 | F62: 2.427 | G62: 2.564 | I62: 0.0079 | J62: 1.645 | K62: 1.559 | L62: 1.473 | M62: 1.429 | N62: 1.412 | O62: 1.368
A63: 0.008 | B63: 1.922 | C63: 2.07 | D63: 2.218 | E63: 2.365 | F63: 2.42 | G63: 2.557 | I63: 0.008 | J63: 1.639 | K63: 1.553 | L63: 1.467 | M63: 1.423 | N63: 1.406 | O63: 1.363
A64: 0.0081 | B64: 1.915 | C64: 2.063 | D64: 2.211 | E64: 2.359 | F64: 2.414 | G64: 2.551 | I64: 0.0081 | J64: 1.633 | K64: 1.548 | L64: 1.462 | M64: 1.418 | N64: 1.401 | O64: 1.358
A65: 0.0082 | B65: 1.909 | C65: 2.057 | D65: 2.205 | E65: 2.352 | F65: 2.407 | G65: 2.544 | I65: 0.0082 | J65: 1.627 | K65: 1.542 | L65: 1.457 | M65: 1.413 | N65: 1.396 | O65: 1.353
A66: 0.0083 | B66: 1.903 | C66: 2.051 | D66: 2.198 | E66: 2.345 | F66: 2.4 | G66: 2.537 | I66: 0.0083 | J66: 1.621 | K66: 1.537 | L66: 1.452 | M66: 1.408 | N66: 1.391 | O66: 1.348
A67: 0.0084 | B67: 1.896 | C67: 2.044 | D67: 2.192 | E67: 2.339 | F67: 2.394 | G67: 2.531 | I67: 0.0084 | J67: 1.615 | K67: =ROUND((J67+L67)/2,3) -> 1.531 | L67: 1.447 | M67: 1.403 | N67: 1.386 | O67: 1.344
A68: 0.0085 | B68: 1.89 | C68: =ROUND((B68+D68)/2,3) -> 2.038 | D68: 2.186 | E68: 2.333 | F68: =ROUND(E68+(G68-E68)*(50-30)/(100-30),3) -> 2.388 | G68: 2.524 | I68: 0.0085 | J68: 1.61 | K68: 1.527 | L68: 1.443 | M68: 1.398 | N68: =ROUND(M68+(O68-M68)*(50-30)/(100-30),3) -> 1.381 | O68: 1.339
A69: 0.0086 | B69: 1.884 | C69: 2.032 | D69: 2.179 | E69: 2.327 | F69: 2.382 | G69: 2.518 | I69: 0.0086 | J69: 1.604 | K69: 1.521 | L69: 1.438 | M69: 1.393 | N69: 1.376 | O69: 1.334
A70: 0.0087 | B70: 1.878 | C70: 2.026 | D70: 2.173 | E70: 2.32 | F70: 2.375 | G70: 2.512 | I70: 0.0087 | J70: 1.599 | K70: 1.516 | L70: 1.433 | M70: 1.388 | N70: 1.371 | O70: 1.33
A71: 0.0088 | B71: 1.872 | C71: 2.02 | D71: 2.167 | E71: 2.314 | F71: 2.369 | G71: 2.506 | I71: 0.0088 | J71: 1.594 | K71: 1.511 | L71: 1.428 | M71: 1.383 | N71: 1.367 | O71: 1.326
A72: 0.0089 | B72: 1.866 | C72: 2.014 | D72: 2.162 | E72: 2.309 | F72: 2.364 | G72: 2.5 | I72: 0.0089 | J72: 1.588 | K72: 1.506 | L72: 1.424 | M72: 1.378 | N72: 1.362 | O72: 1.321
A73: 0.009 | B73: 1.86 | C73: 2.008 | D73: 2.156 | E73: 2.303 | F73: 2.358 | G73: 2.494 | I73: 0.009 | J73: 1.583 | K73: 1.501 | L73: 1.419 | M73: 1.374 | N73: 1.358 | O73: 1.317
A74: 0.0091 | B74: 1.855 | C74: 2.003 | D74: 2.15 | E74: 2.297 | F74: 2.352 | G74: 2.488 | I74: 0.0091 | J74: 1.578 | K74: 1.497 | L74: 1.415 | M74: 1.369 | N74: 1.353 | O74: 1.313
A75: 0.0092 | B75: 1.849 | C75: 1.997 | D75: 2.145 | E75: 2.291 | F75: 2.346 | G75: 2.483 | I75: 0.0092 | J75: 1.573 | K75: 1.492 | L75: 1.411 | M75: 1.364 | N75: 1.348 | O75: 1.308
A76: 0.0093 | B76: 1.843 | C76: 1.991 | D76: 2.139 | E76: 2.286 | F76: 2.341 | G76: 2.477 | I76: 0.0093 | J76: 1.568 | K76: 1.487 | L76: 1.406 | M76: 1.36 | N76: 1.344 | O76: 1.304
A77: 0.0094 | B77: 1.838 | C77: 1.986 | D77: 2.134 | E77: 2.28 | F77: 2.335 | G77: 2.472 | I77: 0.0094 | J77: 1.564 | K77: 1.483 | L77: 1.402 | M77: 1.355 | N77: 1.339 | O77: 1.3
A78: 0.0095 | B78: 1.833 | C78: 1.981 | D78: 2.128 | E78: 2.275 | F78: 2.33 | G78: 2.466 | I78: 0.0095 | J78: 1.559 | K78: 1.479 | L78: 1.398 | M78: 1.351 | N78: 1.335 | O78: 1.296
A79: 0.0096 | B79: 1.827 | C79: 1.975 | D79: 2.123 | E79: 2.27 | F79: 2.325 | G79: 2.461 | I79: 0.0096 | J79: 1.554 | K79: 1.474 | L79: 1.394 | M79: 1.347 | N79: 1.331 | O79: 1.292
A80: 0.0097 | B80: 1.822 | C80: 1.97 | D80: 2.118 | E80: 2.264 | F80: 2.319 | G80: 2.456 | I80: 0.0097 | J80: 1.55 | K80: 1.47 | L80: 1.39 | M80: 1.342 | N80: 1.327 | O80: 1.288
A81: 0.0098 | B81: 1.817 | C81: 1.965 | D81: 2.113 | E81: 2.259 | F81: 2.314 | G81: 2.45 | I81: 0.0098 | J81: 1.545 | K81: 1.466 | L81: 1.386 | M81: 1.338 | N81: 1.323 | O81: 1.285
A82: 0.0099 | B82: 1.812 | C82: 1.96 | D82: 2.108 | E82: 2.254 | F82: 2.309 | G82: 2.445 | I82: 0.0099 | J82: 1.541 | K82: 1.462 | L82: 1.382 | M82: 1.334 | N82: 1.319 | O82: 1.281
A83: 0.01 | B83: 1.807 | C83: 1.955 | D83: 2.103 | E83: 2.249 | F83: 2.304 | G83: 2.44 | I83: 0.01 | J83: 1.536 | K83: 1.457 | L83: 1.378 | M83: 1.33 | N83: 1.315 | O83: 1.277
A84: 0.0101 | B84: 1.802 | C84: 1.95 | D84: 2.098 | E84: 2.244 | F84: 2.299 | G84: 2.436 | I84: 0.0101 | J84: 1.532 | K84: 1.453 | L84: 1.374 | M84: 1.326 | N84: 1.311 | O84: 1.274
A85: 0.0102 | B85: 1.797 | C85: 1.945 | D85: 2.093 | E85: 2.24 | F85: 2.295 | G85: 2.431 | I85: 0.0102 | J85: 1.528 | K85: 1.449 | L85: 1.37 | M85: 1.322 | N85: 1.307 | O85: 1.27
A86: 0.0103 | B86: 1.792 | C86: 1.94 | D86: 2.088 | E86: 2.235 | F86: 2.29 | G86: 2.426 | I86: 0.0103 | J86: 1.523 | K86: 1.445 | L86: 1.367 | M86: 1.318 | N86: 1.303 | O86: 1.266
A87: 0.0104 | B87: 1.788 | C87: 1.936 | D87: 2.084 | E87: 2.23 | F87: 2.285 | G87: 2.422 | I87: 0.0104 | J87: 1.519 | K87: 1.441 | L87: 1.363 | M87: 1.314 | N87: 1.299 | O87: 1.263
A88: 0.0105 | B88: 1.783 | C88: 1.931 | D88: 2.079 | E88: 2.226 | F88: 2.281 | G88: 2.417 | I88: 0.0105 | J88: 1.515 | K88: 1.437 | L88: 1.359 | M88: 1.31 | N88: 1.295 | O88: 1.259
A89: 0.0106 | B89: 1.779 | C89: 1.927 | D89: 2.075 | E89: 2.221 | F89: 2.276 | G89: 2.413 | I89: 0.0106 | J89: 1.511 | K89: 1.434 | L89: 1.356 | M89: 1.307 | N89: 1.292 | O89: 1.256
A90: 0.0107 | B90: 1.774 | C90: 1.922 | D90: 2.07 | E90: 2.217 | F90: 2.272 | G90: 2.408 | I90: 0.0107 | J90: 1.507 | K90: 1.43 | L90: 1.352 | M90: 1.303 | N90: 1.289 | O90: 1.253
A91: 0.0108 | B91: 1.77 | C91: 1.918 | D91: 2.066 | E91: 2.212 | F91: 2.267 | G91: 2.404 | I91: 0.0108 | J91: 1.503 | K91: 1.426 | L91: 1.348 | M91: 1.299 | N91: 1.285 | O91: 1.249
A92: 0.0109 | B92: 1.766 | C92: 1.914 | D92: 2.062 | E92: 2.208 | F92: 2.263 | G92: 2.4 | I92: 0.0109 | J92: 1.499 | K92: 1.422 | L92: 1.345 | M92: 1.296 | N92: 1.282 | O92: 1.246
A93: 0.011 | B93: 1.761 | C93: 1.909 | D93: 2.057 | E93: 2.204 | F93: 2.259 | G93: 2.397 | I93: 0.011 | J93: 1.496 | K93: 1.419 | L93: 1.342 | M93: 1.292 | N93: 1.278 | O93: 1.243
A94: 0.0111 | B94: 1.757 | C94: 1.905 | D94: 2.053 | E94: 2.2 | F94: 2.255 | G94: 2.393 | I94: 0.0111 | J94: 1.492 | K94: 1.415 | L94: 1.338 | M94: 1.289 | N94: 1.275 | O94: 1.24
A95: 0.0112 | B95: 1.753 | C95: 1.901 | D95: 2.049 | E95: 2.196 | F95: 2.251 | G95: 2.389 | I95: 0.0112 | J95: 1.488 | K95: 1.412 | L95: 1.335 | M95: 1.286 | N95: 1.272 | O95: 1.237
A96: 0.0113 | B96: 1.749 | C96: 1.897 | D96: 2.045 | E96: 2.192 | F96: 2.247 | G96: 2.385 | I96: 0.0113 | J96: 1.484 | K96: 1.408 | L96: 1.332 | M96: 1.282 | N96: 1.268 | O96: 1.234
A97: 0.0114 | B97: 1.745 | C97: 1.893 | D97: 2.041 | E97: 2.188 | F97: 2.243 | G97: 2.381 | I97: 0.0114 | J97: 1.481 | K97: 1.405 | L97: 1.328 | M97: 1.279 | N97: 1.265 | O97: 1.231
A98: 0.0115 | B98: 1.741 | C98: 1.89 | D98: 2.038 | E98: 2.184 | F98: 2.239 | G98: 2.377 | I98: 0.0115 | J98: 1.477 | K98: 1.401 | L98: 1.325 | M98: 1.276 | N98: 1.262 | O98: 1.228
A99: 0.0116 | B99: 1.737 | C99: 1.886 | D99: 2.034 | E99: 2.18 | F99: 2.235 | G99: 2.374 | I99: 0.0116 | J99: 1.474 | K99: 1.398 | L99: 1.322 | M99: 1.273 | N99: 1.259 | O99: 1.225
A100: 0.0117 | B100: 1.734 | C100: 1.882 | D100: 2.03 | E100: 2.177 | F100: 2.232 | G100: 2.37 | I100: 0.0117 | J100: 1.47 | K100: 1.395 | L100: 1.319 | M100: 1.27 | N100: 1.256 | O100: 1.222
A101: 0.0118 | B101: 1.73 | C101: 1.879 | D101: 2.027 | E101: 2.173 | F101: 2.228 | G101: 2.367 | I101: 0.0118 | J101: 1.467 | K101: 1.392 | L101: 1.316 | M101: 1.267 | N101: 1.253 | O101: 1.219
A102: 0.0119 | B102: 1.726 | C102: 1.875 | D102: 2.023 | E102: 2.169 | F102: 2.224 | G102: 2.363 | I102: 0.0119 | J102: 1.463 | K102: 1.388 | L102: 1.313 | M102: 1.264 | N102: 1.251 | O102: 1.217
A103: 0.012 | B103: 1.724 | C103: 1.872 | D103: 2.02 | E103: 2.165 | F103: 2.221 | G103: 2.361 | I103: 0.012 | J103: 1.46 | K103: 1.385 | L103: 1.31 | M103: 1.261 | N103: 1.248 | O103: 1.214
A104: 0.0121 | B104: 1.72 | C104: 1.868 | D104: 2.016 | E104: 2.162 | F104: 2.218 | G104: 2.358 | I104: 0.0121 | J104: 1.457 | K104: 1.382 | L104: 1.307 | M104: 1.258 | N104: 1.245 | O104: 1.211
A105: 0.0122 | B105: 1.717 | C105: 1.865 | D105: 2.013 | E105: 2.158 | F105: 2.214 | G105: 2.354 | I105: 0.0122 | J105: 1.453 | K105: 1.379 | L105: 1.304 | M105: 1.255 | N105: 1.242 | O105: 1.209
A106: 0.0123 | B106: 1.713 | C106: 1.862 | D106: 2.01 | E106: 2.155 | F106: 2.211 | G106: 2.351 | I106: 0.0123 | J106: 1.45 | K106: 1.376 | L106: 1.301 | M106: 1.252 | N106: 1.239 | O106: 1.206
A107: 0.0124 | B107: 1.71 | C107: 1.858 | D107: 2.006 | E107: 2.152 | F107: 2.208 | G107: 2.348 | I107: 0.0124 | J107: 1.447 | K107: 1.373 | L107: 1.298 | M107: 1.249 | N107: 1.236 | O107: 1.204
A108: 0.0125 | B108: 1.707 | C108: 1.855 | D108: 2.003 | E108: 2.149 | F108: 2.205 | G108: 2.345 | I108: 0.0125 | J108: 1.444 | K108: 1.37 | L108: 1.295 | M108: 1.247 | N108: 1.234 | O108: 1.201
A109: 0.0126 | B109: 1.704 | C109: 1.852 | D109: 2 | E109: 2.146 | F109: 2.202 | G109: 2.342 | I109: 0.0126 | J109: 1.441 | K109: 1.367 | L109: 1.292 | M109: 1.244 | N109: 1.231 | O109: 1.199
A110: 0.0127 | B110: 1.7 | C110: 1.849 | D110: 1.997 | E110: 2.143 | F110: 2.199 | G110: 2.34 | I110: 0.0127 | J110: 1.438 | K110: 1.364 | L110: 1.29 | M110: 1.242 | N110: 1.229 | O110: 1.196
A111: 0.0128 | B111: 1.697 | C111: 1.846 | D111: 1.994 | E111: 2.14 | F111: 2.196 | G111: 2.337 | I111: 0.0128 | J111: 1.435 | K111: 1.361 | L111: 1.287 | M111: 1.239 | N111: 1.226 | O111: 1.194
A112: 0.0129 | B112: 1.694 | C112: 1.843 | D112: 1.991 | E112: 2.137 | F112: 2.193 | G112: 2.334 | I112: 0.0129 | J112: 1.431 | K112: 1.358 | L112: 1.284 | M112: 1.237 | N112: 1.224 | O112: 1.192
A113: 0.013 | B113: 1.691 | C113: 1.84 | D113: 1.988 | E113: 2.133 | F113: 2.19 | G113: 2.331 | I113: 0.013 | J113: 1.428 | K113: 1.355 | L113: 1.281 | M113: 1.234 | N113: 1.221 | O113: 1.189
A114: 0.0131 | B114: 1.688 | C114: 1.837 | D114: 1.986 | E114: 2.13 | F114: 2.187 | G114: 2.328 | I114: 0.0131 | J114: 1.426 | K114: 1.353 | L114: 1.279 | M114: 1.232 | N114: 1.219 | O114: 1.187
A115: 0.0132 | B115: 1.685 | C115: 1.834 | D115: 1.983 | E115: 2.128 | F115: 2.184 | G115: 2.325 | I115: 0.0132 | J115: 1.423 | K115: 1.35 | L115: 1.276 | M115: 1.229 | N115: 1.216 | O115: 1.185
A116: 0.0133 | B116: 1.683 | C116: 1.832 | D116: 1.98 | E116: 2.125 | F116: 2.182 | G116: 2.323 | I116: 0.0133 | J116: 1.42 | K116: 1.347 | L116: 1.274 | M116: 1.227 | N116: 1.214 | O116: 1.182
A117: 0.0134 | B117: 1.68 | C117: 1.829 | D117: 1.978 | E117: 2.122 | F117: 2.179 | G117: 2.321 | I117: 0.0134 | J117: 1.417 | K117: 1.344 | L117: 1.271 | M117: 1.225 | N117: 1.212 | O117: 1.18
A118: 0.0135 | B118: 1.677 | C118: 1.826 | D118: 1.975 | E118: 2.12 | F118: 2.177 | G118: 2.318 | I118: 0.0135 | J118: 1.414 | K118: 1.342 | L118: 1.269 | M118: 1.222 | N118: 1.209 | O118: 1.178
A119: 0.0136 | B119: 1.674 | C119: 1.823 | D119: 1.972 | E119: 2.117 | F119: 2.174 | G119: 2.316 | I119: 0.0136 | J119: 1.411 | K119: 1.339 | L119: 1.266 | M119: 1.22 | N119: 1.207 | O119: 1.176
A120: 0.0137 | B120: 1.672 | C120: 1.821 | D120: 1.97 | E120: 2.115 | F120: 2.172 | G120: 2.314 | I120: 0.0137 | J120: 1.408 | K120: 1.336 | L120: 1.264 | M120: 1.218 | N120: 1.205 | O120: 1.174
A121: 0.0138 | B121: 1.669 | C121: 1.818 | D121: 1.967 | E121: 2.112 | F121: 2.169 | G121: 2.312 | I121: 0.0138 | J121: 1.406 | K121: 1.334 | L121: 1.261 | M121: 1.216 | N121: 1.203 | O121: 1.172
A122: 0.0139 | B122: 1.666 | C122: 1.816 | D122: 1.965 | E122: 2.11 | F122: 2.167 | G122: 2.309 | I122: 0.0139 | J122: 1.403 | K122: 1.331 | L122: 1.259 | M122: 1.214 | N122: 1.201 | O122: 1.17
A123: 0.014 | B123: 1.664 | C123: 1.814 | D123: 1.963 | E123: 2.108 | F123: 2.165 | G123: 2.306 | I123: 0.014 | J123: 1.4 | K123: 1.328 | L123: 1.256 | M123: 1.212 | N123: 1.199 | O123: 1.168
A124: 0.0141 | B124: 1.661 | C124: 1.811 | D124: 1.96 | E124: 2.105 | F124: 2.162 | G124: 2.304 | I124: 0.0141 | J124: 1.397 | K124: 1.326 | L124: 1.254 | M124: 1.209 | N124: 1.196 | O124: 1.165
A125: 0.0142 | B125: 1.659 | C125: 1.809 | D125: 1.958 | E125: 2.103 | F125: 2.16 | G125: 2.302 | I125: 0.0142 | J125: 1.395 | K125: 1.324 | L125: 1.252 | M125: 1.207 | N125: 1.194 | O125: 1.163
A126: 0.0143 | B126: 1.656 | C126: 1.806 | D126: 1.956 | E126: 2.101 | F126: 2.158 | G126: 2.3 | I126: 0.0143 | J126: 1.392 | K126: 1.321 | L126: 1.249 | M126: 1.205 | N126: 1.192 | O126: 1.161
A127: 0.0144 | B127: 1.654 | C127: 1.804 | D127: 1.953 | E127: 2.098 | F127: 2.155 | G127: 2.298 | I127: 0.0144 | J127: 1.389 | K127: 1.318 | L127: 1.247 | M127: 1.203 | N127: 1.19 | O127: 1.159
A128: 0.0145 | B128: 1.652 | C128: 1.802 | D128: 1.951 | E128: 2.096 | F128: 2.153 | G128: 2.296 | I128: 0.0145 | J128: 1.387 | K128: 1.316 | L128: 1.245 | M128: 1.201 | N128: 1.188 | O128: 1.157
A129: 0.0146 | B129: 1.649 | C129: 1.799 | D129: 1.949 | E129: 2.094 | F129: 2.151 | G129: 2.294 | I129: 0.0146 | J129: 1.384 | K129: 1.314 | L129: 1.243 | M129: 1.199 | N129: 1.186 | O129: 1.155
A130: 0.0147 | B130: 1.647 | C130: 1.797 | D130: 1.947 | E130: 2.092 | F130: 2.149 | G130: 2.292 | I130: 0.0147 | J130: 1.381 | K130: 1.311 | L130: 1.24 | M130: 1.197 | N130: 1.185 | O130: 1.154
A131: 0.0148 | B131: 1.644 | C131: 1.795 | D131: 1.945 | E131: 2.09 | F131: 2.147 | G131: 2.29 | I131: 0.0148 | J131: 1.379 | K131: =ROUND((J131+L131)/2,3) -> 1.309 | L131: 1.238 | M131: 1.195 | N131: 1.183 | O131: 1.152
A132: 0.0149 | B132: 1.642 | C132: =ROUND((B132+D132)/2,3) -> 1.792 | D132: 1.942 | E132: 2.088 | F132: =ROUND(E132+(G132-E132)*(50-30)/(100-30),3) -> 2.145 | G132: 2.289 | I132: 0.0149 | J132: 1.376 | K132: 1.306 | L132: 1.236 | M132: 1.193 | N132: =ROUND(M132+(O132-M132)*(50-30)/(100-30),3) -> 1.181 | O132: 1.15
A133: 0.015 | B133: 1.64 | C133: 1.79 | D133: 1.94 | E133: 2.085 | F133: 2.143 | G133: 2.287 | I133: 0.015 | J133: 1.373 | K133: 1.304 | L133: 1.234 | M133: 1.191 | N133: 1.179 | O133: 1.148
A134: 0.0151 | B134: 1.638 | C134: 1.788 | D134: 1.938 | E134: 2.083 | F134: 2.141 | G134: 2.285 | I134: 0.0151 | J134: 1.371 | K134: 1.302 | L134: 1.232 | M134: 1.189 | N134: 1.177 | O134: 1.146
A135: 0.0152 | B135: 1.635 | C135: 1.786 | D135: 1.936 | E135: 2.081 | F135: 2.139 | G135: 2.283 | I135: 0.0152 | J135: 1.368 | K135: 1.299 | L135: 1.229 | M135: 1.187 | N135: 1.175 | O135: 1.144
A136: 0.0153 | B136: 1.633 | C136: 1.784 | D136: 1.934 | E136: 2.079 | F136: 2.137 | G136: 2.281 | I136: 0.0153 | J136: 1.366 | K136: 1.297 | L136: 1.227 | M136: 1.185 | N136: 1.173 | O136: 1.142
A137: 0.0154 | B137: 1.631 | C137: 1.782 | D137: 1.932 | E137: 2.076 | F137: 2.134 | G137: 2.28 | I137: 0.0154 | J137: 1.363 | K137: 1.294 | L137: 1.225 | M137: 1.183 | N137: 1.171 | O137: 1.14
A138: 0.0155 | B138: 1.628 | C138: 1.779 | D138: 1.93 | E138: 2.074 | F138: 2.132 | G138: 2.278 | I138: 0.0155 | J138: 1.361 | K138: 1.292 | L138: 1.223 | M138: 1.181 | N138: 1.169 | O138: 1.138
A139: 0.0156 | B139: 1.626 | C139: 1.777 | D139: 1.927 | E139: 2.072 | F139: 2.13 | G139: 2.276 | I139: 0.0156 | J139: 1.358 | K139: 1.29 | L139: 1.221 | M139: 1.179 | N139: 1.167 | O139: 1.136
A140: 0.0157 | B140: 1.624 | C140: 1.775 | D140: 1.925 | E140: 2.07 | F140: 2.128 | G140: 2.274 | I140: 0.0157 | J140: 1.355 | K140: 1.287 | L140: 1.219 | M140: 1.177 | N140: 1.165 | O140: 1.134
A141: 0.0158 | B141: 1.622 | C141: 1.773 | D141: 1.923 | E141: 2.068 | F141: 2.126 | G141: 2.272 | I141: 0.0158 | J141: 1.353 | K141: 1.285 | L141: 1.217 | M141: 1.175 | N141: 1.163 | O141: 1.132
A142: 0.0159 | B142: 1.619 | C142: 1.77 | D142: 1.921 | E142: 2.066 | F142: 2.125 | G142: 2.271 | I142: 0.0159 | J142: 1.35 | K142: 1.282 | L142: 1.214 | M142: 1.173 | N142: 1.161 | O142: 1.13
A143: 0.016 | B143: 1.618 | C143: 1.768 | D143: 1.917 | E143: 2.065 | F143: 2.123 | G143: 2.267 | I143: 0.016 | J143: 1.348 | K143: 1.28 | L143: 1.212 | M143: 1.171 | N143: 1.159 | O143: 1.128
A144: 0.0161 | B144: 1.616 | C144: 1.766 | D144: 1.915 | E144: 2.063 | F144: 2.121 | G144: 2.265 | I144: 0.0161 | J144: 1.345 | K144: 1.278 | L144: 1.21 | M144: 1.169 | N144: 1.157 | O144: 1.126
A145: 0.0162 | B145: 1.614 | C145: 1.764 | D145: 1.913 | E145: 2.061 | F145: 2.119 | G145: 2.264 | I145: 0.0162 | J145: 1.343 | K145: 1.276 | L145: 1.208 | M145: 1.167 | N145: 1.155 | O145: 1.124
A146: 0.0163 | B146: 1.612 | C146: 1.762 | D146: 1.911 | E146: 2.06 | F146: 2.118 | G146: 2.262 | I146: 0.0163 | J146: 1.34 | K146: 1.273 | L146: 1.206 | M146: 1.165 | N146: 1.153 | O146: 1.122
A147: 0.0164 | B147: 1.61 | C147: 1.759 | D147: 1.908 | E147: 2.058 | F147: 2.116 | G147: 2.26 | I147: 0.0164 | J147: 1.338 | K147: 1.271 | L147: 1.204 | M147: 1.162 | N147: 1.15 | O147: 1.12
A148: 0.0165 | B148: 1.608 | C148: 1.757 | D148: 1.906 | E148: 2.056 | F148: 2.114 | G148: 2.258 | I148: 0.0165 | J148: 1.335 | K148: 1.269 | L148: 1.202 | M148: 1.16 | N148: 1.148 | O148: 1.118
A149: 0.0166 | B149: 1.605 | C149: 1.755 | D149: 1.904 | E149: 2.054 | F149: 2.112 | G149: 2.257 | I149: 0.0166 | J149: 1.333 | K149: 1.267 | L149: 1.2 | M149: 1.158 | N149: 1.146 | O149: 1.116
A150: 0.0167 | B150: 1.603 | C150: 1.753 | D150: 1.902 | E150: 2.052 | F150: 2.11 | G150: 2.255 | I150: 0.0167 | J150: 1.33 | K150: 1.264 | L150: 1.198 | M150: 1.156 | N150: 1.144 | O150: 1.114
A151: 0.0168 | B151: 1.601 | C151: 1.751 | D151: 1.9 | E151: 2.05 | F151: 2.108 | G151: 2.253 | I151: 0.0168 | J151: 1.328 | K151: 1.262 | L151: 1.196 | M151: 1.154 | N151: 1.142 | O151: 1.113
A152: 0.0169 | B152: 1.599 | C152: 1.749 | D152: 1.898 | E152: 2.048 | F152: 2.106 | G152: 2.252 | I152: 0.0169 | J152: 1.325 | K152: 1.26 | L152: 1.194 | M152: 1.152 | N152: 1.14 | O152: 1.111
A153: 0.017 | B153: 1.597 | C153: 1.747 | D153: 1.897 | E153: 2.047 | F153: 2.105 | G153: 2.251 | I153: 0.017 | J153: 1.323 | K153: 1.258 | L153: 1.192 | M153: 1.149 | N153: 1.138 | O153: 1.109
A154: 0.0171 | B154: 1.595 | C154: 1.746 | D154: 1.896 | E154: 2.045 | F154: 2.103 | G154: 2.249 | I154: 0.0171 | J154: 1.32 | K154: 1.255 | L154: 1.19 | M154: 1.147 | N154: 1.136 | O154: 1.107
A155: 0.0172 | B155: 1.593 | C155: 1.744 | D155: 1.894 | E155: 2.043 | F155: 2.102 | G155: 2.248 | I155: 0.0172 | J155: 1.317 | K155: 1.253 | L155: 1.188 | M155: 1.145 | N155: 1.134 | O155: 1.105
A156: 0.0173 | B156: 1.591 | C156: 1.742 | D156: 1.892 | E156: 2.041 | F156: 2.1 | G156: 2.246 | I156: 0.0173 | J156: 1.315 | K156: 1.251 | L156: 1.186 | M156: 1.143 | N156: 1.132 | O156: 1.103
A157: 0.0174 | B157: 1.589 | C157: 1.74 | D157: 1.89 | E157: 2.04 | F157: 2.099 | G157: 2.245 | I157: 0.0174 | J157: 1.312 | K157: 1.248 | L157: 1.184 | M157: 1.14 | N157: 1.129 | O157: 1.101
A158: 0.0175 | B158: 1.587 | C158: 1.738 | D158: 1.888 | E158: 2.038 | F158: 2.097 | G158: 2.243 | I158: 0.0175 | J158: 1.31 | K158: 1.246 | L158: 1.182 | M158: 1.138 | N158: 1.127 | O158: 1.099
A159: 0.0176 | B159: 1.585 | C159: 1.736 | D159: 1.886 | E159: 2.036 | F159: 2.095 | G159: 2.241 | I159: 0.0176 | J159: 1.308 | K159: 1.244 | L159: 1.18 | M159: 1.136 | N159: 1.125 | O159: 1.097
A160: 0.0177 | B160: 1.583 | C160: 1.734 | D160: 1.884 | E160: 2.035 | F160: 2.094 | G160: 2.24 | I160: 0.0177 | J160: 1.305 | K160: 1.242 | L160: 1.178 | M160: 1.134 | N160: 1.123 | O160: 1.095
A161: 0.0178 | B161: 1.581 | C161: 1.732 | D161: 1.882 | E161: 2.033 | F161: 2.092 | G161: 2.238 | I161: 0.0178 | J161: 1.303 | K161: 1.24 | L161: 1.176 | M161: 1.131 | N161: 1.12 | O161: 1.093
A162: 0.0179 | B162: 1.58 | C162: 1.731 | D162: 1.881 | E162: 2.031 | F162: 2.09 | G162: 2.237 | I162: 0.0179 | J162: 1.3 | K162: 1.237 | L162: 1.174 | M162: 1.129 | N162: 1.118 | O162: 1.091
A163: 0.018 | B163: 1.579 | C163: 1.73 | D163: 1.88 | E163: 2.03 | F163: 2.089 | G163: 2.237 | I163: 0.018 | J163: 1.298 | K163: 1.235 | L163: 1.172 | M163: 1.127 | N163: 1.116 | O163: 1.089
A164: 0.0181 | B164: 1.577 | C164: 1.728 | D164: 1.878 | E164: 2.028 | F164: 2.087 | G164: 2.235 | I164: 0.0181 | J164: 1.295 | K164: 1.233 | L164: 1.17 | M164: 1.125 | N164: 1.114 | O164: 1.087
A165: 0.0182 | B165: 1.575 | C165: 1.726 | D165: 1.876 | E165: 2.027 | F165: 2.086 | G165: 2.234 | I165: 0.0182 | J165: 1.293 | K165: 1.231 | L165: 1.168 | M165: 1.123 | N165: 1.112 | O165: 1.085
A166: 0.0183 | B166: 1.573 | C166: 1.724 | D166: 1.875 | E166: 2.025 | F166: 2.084 | G166: 2.232 | I166: 0.0183 | J166: 1.291 | K166: 1.229 | L166: 1.166 | M166: 1.121 | N166: 1.11 | O166: 1.083
A167: 0.0184 | B167: 1.571 | C167: 1.722 | D167: 1.873 | E167: 2.024 | F167: 2.083 | G167: 2.231 | I167: 0.0184 | J167: 1.288 | K167: 1.227 | L167: 1.165 | M167: 1.119 | N167: 1.108 | O167: 1.081
A168: 0.0185 | B168: 1.569 | C168: 1.72 | D168: 1.871 | E168: 2.022 | F168: 2.081 | G168: 2.229 | I168: 0.0185 | J168: 1.286 | K168: 1.225 | L168: 1.163 | M168: 1.117 | N168: 1.106 | O168: 1.08
A169: 0.0186 | B169: 1.568 | C169: 1.719 | D169: 1.87 | E169: 2.02 | F169: 2.079 | G169: 2.228 | I169: 0.0186 | J169: 1.284 | K169: 1.223 | L169: 1.161 | M169: 1.115 | N169: 1.104 | O169: 1.078
A170: 0.0187 | B170: 1.566 | C170: 1.717 | D170: 1.868 | E170: 2.019 | F170: 2.078 | G170: 2.227 | I170: 0.0187 | J170: 1.282 | K170: 1.221 | L170: 1.159 | M170: 1.113 | N170: 1.102 | O170: 1.076
A171: 0.0188 | B171: 1.564 | C171: 1.715 | D171: 1.866 | E171: 2.017 | F171: 2.076 | G171: 2.225 | I171: 0.0188 | J171: 1.28 | K171: 1.219 | L171: 1.158 | M171: 1.111 | N171: 1.101 | O171: 1.075
A172: 0.0189 | B172: 1.562 | C172: 1.714 | D172: 1.865 | E172: 2.016 | F172: 2.075 | G172: 2.224 | I172: 0.0189 | J172: 1.278 | K172: 1.217 | L172: 1.156 | M172: 1.109 | N172: 1.099 | O172: 1.073
A173: 0.019 | B173: 1.561 | C173: 1.713 | D173: 1.864 | E173: 2.015 | F173: 2.075 | G173: 2.224 | I173: 0.019 | J173: 1.276 | K173: 1.216 | L173: 1.155 | M173: 1.108 | N173: 1.098 | O173: 1.072
A174: 0.0191 | B174: 1.559 | C174: 1.711 | D174: 1.862 | E174: 2.013 | F174: 2.073 | G174: 2.223 | I174: 0.0191 | J174: 1.274 | K174: 1.214 | L174: 1.153 | M174: 1.106 | N174: 1.096 | O174: 1.07
A175: 0.0192 | B175: 1.557 | C175: 1.709 | D175: 1.861 | E175: 2.012 | F175: 2.072 | G175: 2.221 | I175: 0.0192 | J175: 1.272 | K175: 1.212 | L175: 1.152 | M175: 1.105 | N175: 1.095 | O175: 1.069
A176: 0.0193 | B176: 1.556 | C176: 1.708 | D176: 1.859 | E176: 2.01 | F176: 2.07 | G176: 2.22 | I176: 0.0193 | J176: 1.27 | K176: 1.21 | L176: 1.15 | M176: 1.104 | N176: 1.094 | O176: 1.068
A177: 0.0194 | B177: 1.554 | C177: 1.706 | D177: 1.858 | E177: 2.009 | F177: 2.069 | G177: 2.219 | I177: 0.0194 | J177: 1.268 | K177: 1.209 | L177: 1.149 | M177: 1.103 | N177: 1.093 | O177: 1.067
A178: 0.0195 | B178: 1.552 | C178: 1.704 | D178: 1.856 | E178: 2.007 | F178: 2.067 | G178: 2.218 | I178: 0.0195 | J178: 1.267 | K178: 1.208 | L178: 1.148 | M178: 1.102 | N178: 1.092 | O178: 1.066
A179: 0.0196 | B179: 1.551 | C179: 1.703 | D179: 1.855 | E179: 2.006 | F179: 2.066 | G179: 2.216 | I179: 0.0196 | J179: 1.265 | K179: 1.206 | L179: 1.147 | M179: 1.101 | N179: 1.091 | O179: 1.065
A180: 0.0197 | B180: 1.549 | C180: 1.701 | D180: 1.853 | E180: 2.005 | F180: 2.065 | G180: 2.215 | I180: 0.0197 | J180: 1.264 | K180: 1.205 | L180: 1.146 | M180: 1.1 | N180: 1.09 | O180: 1.064
A181: 0.0198 | B181: 1.547 | C181: 1.7 | D181: 1.852 | E181: 2.003 | F181: 2.063 | G181: 2.214 | I181: 0.0198 | J181: 1.263 | K181: 1.204 | L181: 1.145 | M181: 1.1 | N181: 1.09 | O181: 1.064
A182: 0.0199 | B182: 1.546 | C182: 1.698 | D182: 1.85 | E182: 2.002 | F182: 2.062 | G182: 2.213 | I182: 0.0199 | J182: 1.261 | K182: 1.203 | L182: 1.144 | M182: 1.1 | N182: 1.089 | O182: 1.063
A183: 0.02 | B183: 1.545 | C183: 1.698 | D183: 1.851 | E183: 2.003 | F183: 2.063 | G183: 2.213 | I183: 0.02 | J183: 1.259 | K183: 1.201 | L183: 1.142 | M183: 1.099 | N183: 1.088 | O183: 1.062
A184: 0.0201 | B184: 1.544 | C184: 1.697 | D184: 1.849 | E184: 2.001 | F184: 2.061 | G184: 2.212 | I184: 0.0201 | J184: 1.257 | K184: 1.199 | L184: 1.14 | M184: 1.097 | N184: 1.087 | O184: 1.061
A185: 0.0202 | B185: 1.542 | C185: 1.695 | D185: 1.848 | E185: 2 | F185: 2.06 | G185: 2.211 | I185: 0.0202 | J185: 1.256 | K185: 1.198 | L185: 1.139 | M185: 1.096 | N185: 1.085 | O185: 1.059
A186: 0.0203 | B186: 1.54 | C186: 1.694 | D186: 1.847 | E186: 1.999 | F186: 2.059 | G186: 2.21 | I186: 0.0203 | J186: 1.254 | K186: 1.196 | L186: 1.137 | M186: 1.094 | N186: 1.084 | O186: 1.058
A187: 0.0204 | B187: 1.539 | C187: 1.692 | D187: 1.845 | E187: 1.998 | F187: 2.058 | G187: 2.209 | I187: 0.0204 | J187: 1.252 | K187: 1.194 | L187: 1.136 | M187: 1.093 | N187: 1.083 | O187: 1.057
A188: 0.0205 | B188: 1.537 | C188: 1.691 | D188: 1.844 | E188: 1.996 | F188: 2.057 | G188: 2.208 | I188: 0.0205 | J188: 1.25 | K188: 1.192 | L188: 1.134 | M188: 1.092 | N188: 1.082 | O188: 1.056
A189: 0.0206 | B189: 1.536 | C189: 1.69 | D189: 1.843 | E189: 1.995 | F189: 2.056 | G189: 2.207 | I189: 0.0206 | J189: 1.248 | K189: 1.191 | L189: 1.133 | M189: 1.09 | N189: 1.08 | O189: 1.054
A190: 0.0207 | B190: 1.534 | C190: 1.688 | D190: 1.841 | E190: 1.994 | F190: 2.055 | G190: 2.206 | I190: 0.0207 | J190: 1.246 | K190: 1.189 | L190: 1.131 | M190: 1.089 | N190: 1.079 | O190: 1.053
A191: 0.0208 | B191: 1.533 | C191: 1.687 | D191: 1.84 | E191: 1.993 | F191: 2.054 | G191: 2.205 | I191: 0.0208 | J191: 1.245 | K191: 1.188 | L191: 1.13 | M191: 1.088 | N191: 1.078 | O191: 1.052
A192: 0.0209 | B192: 1.531 | C192: 1.685 | D192: 1.839 | E192: 1.992 | F192: 2.053 | G192: 2.204 | I192: 0.0209 | J192: 1.243 | K192: 1.186 | L192: 1.128 | M192: 1.086 | N192: 1.076 | O192: 1.051
A193: 0.021 | B193: 1.53 | C193: 1.684 | D193: 1.837 | E193: 1.991 | F193: 2.052 | G193: 2.203 | I193: 0.021 | J193: 1.241 | K193: 1.184 | L193: 1.127 | M193: 1.085 | N193: 1.075 | O193: 1.049
A194: 0.0211 | B194: 1.529 | C194: 1.683 | D194: 1.836 | E194: 1.989 | F194: 2.05 | G194: 2.202 | I194: 0.0211 | J194: 1.239 | K194: 1.183 | L194: 1.126 | M194: 1.084 | N194: 1.074 | O194: 1.048
A195: 0.0212 | B195: 1.527 | C195: 1.681 | D195: 1.835 | E195: 1.988 | F195: 2.049 | G195: 2.201 | I195: 0.0212 | J195: 1.238 | K195: =ROUND((J195+L195)/2,3) -> 1.181 | L195: 1.124 | M195: 1.082 | N195: 1.072 | O195: 1.047
A196: 0.0213 | B196: 1.526 | C196: =ROUND((B196+D196)/2,3) -> 1.68 | D196: 1.834 | E196: 1.987 | F196: =ROUND(E196+(G196-E196)*(50-30)/(100-30),3) -> 2.048 | G196: 2.2 | I196: 0.0213 | J196: 1.236 | K196: 1.18 | L196: 1.123 | M196: 1.081 | N196: =ROUND(M196+(O196-M196)*(50-30)/(100-30),3) -> 1.071 | O196: 1.046
A197: 0.0214 | B197: 1.524 | C197: 1.678 | D197: 1.832 | E197: 1.986 | F197: 2.047 | G197: 2.199 | I197: 0.0214 | J197: 1.234 | K197: 1.178 | L197: 1.121 | M197: 1.08 | N197: 1.07 | O197: 1.044
A198: 0.0215 | B198: 1.523 | C198: 1.677 | D198: 1.831 | E198: 1.985 | F198: 2.046 | G198: 2.198 | I198: 0.0215 | J198: 1.233 | K198: 1.177 | L198: 1.12 | M198: 1.078 | N198: 1.068 | O198: 1.043
A199: 0.0216 | B199: 1.522 | C199: 1.676 | D199: 1.83 | E199: 1.984 | F199: 2.045 | G199: 2.197 | I199: 0.0216 | J199: 1.231 | K199: 1.175 | L199: 1.119 | M199: 1.077 | N199: 1.067 | O199: 1.042
A200: 0.0217 | B200: 1.52 | C200: 1.675 | D200: 1.829 | E200: 1.983 | F200: 2.044 | G200: 2.196 | I200: 0.0217 | J200: 1.229 | K200: 1.173 | L200: 1.117 | M200: 1.076 | N200: 1.066 | O200: 1.041
... 583 more rows

Sheet 平均水位data (hidden)
A1: 海底勾配逆数 | B1: 10 | I1: 海底勾配逆数 | J1: 15 | Q1: 海底勾配逆数 | R1: 20 | Y1: 海底勾配逆数 | Z1: 30 | AG1: 海底勾配逆数 | AH1: 50 | AO1: 海底勾配逆数 | AP1: 100 | AW1: グラフ表示用 | BI1: 1
A2: h/Ho' | B2: η/Ho' | I2: h/Ho' | J2: η/Ho' | Q2: h/Ho' | R2: η/Ho' | Y2: h/Ho' | Z2: η/Ho' | AG2: h/Ho' | AH2: η/Ho' | AO2: h/Ho' | AP2: η/Ho' | AW2: 0 | AX2: ='3.6 波による平均水位の上昇'!F10 -> 0.09 | BI2: 1
B3: 0.005 | C3: 0.01 | D3: 0.02 | E3: 0.03 | F3: 0.04 | G3: 0.05 | J3: 0.005 | K3: 0.01 | L3: 0.02 | M3: 0.03 | N3: 0.04 | O3: 0.05 | R3: 0.005 | S3: 0.01 | T3: 0.02 | U3: 0.03 | V3: 0.04 | W3: 0.05 | Z3: 0.005 | AA3: 0.01 | AB3: 0.02 | AC3: 0.03 | AD3: 0.04 | AE3: 0.05 | AH3: 0.005 | AI3: 0.01 | AJ3: 0.02 | AK3: 0.03 | AL3: 0.04 | AM3: 0.05 | AP3: 0.005 | AQ3: 0.01 | AR3: 0.02 | AS3: 0.03 | AT3: 0.04 | AU3: 0.05 | AW3: ='3.6 波による平均水位の上昇'!E10 -> 0.6 | AX3: ='3.6 波による平均水位の上昇'!F10 -> 0.09 | BI3: 1
A4: 0 | B4: =Wsetup(1/$B$1,B$3,$A4) -> 0.259 | C4: =Wsetup(1/$B$1,C$3,$A4) -> 0.217 | D4: 0.182 | E4: 0.165 | F4: 0.154 | G4: 0.145 | I4: 0 | J4: =Wsetup(1/$J$1,J$3,$I4) -> 0.216 | K4: =Wsetup(1/$J$1,K$3,$I4) -> 0.182 | L4: 0.154 | M4: 0.14 | N4: 0.131 | O4: 0.124 | Q4: 0 | R4: =Wsetup(1/$R$1,R$3,$Q4) -> 0.195 | S4: =Wsetup(1/$R$1,S$3,$Q4) -> 0.165 | T4: 0.14 | U4: 0.128 | V4: 0.12 | W4: 0.114 | Y4: 0 | Z4: =Wsetup(1/$Z$1,Z$3,$Y4) -> 0.176 | AA4: =Wsetup(1/$Z$1,AA$3,$Y4) -> 0.15 | AB4: 0.128 | AC4: 0.117 | AD4: 0.11 | AE4: 0.104 | AG4: 0 | AH4: =Wsetup(1/$AH$1,AH$3,$AG4) -> 0.163 | AI4: =Wsetup(1/$AH$1,AI$3,$AG4) -> 0.139 | AJ4: 0.119 | AK4: 0.109 | AL4: 0.102 | AM4: 0.097 | AO4: 0 | AP4: =Wsetup(1/$AP$1,AP$3,$AO4) -> 0.155 | AQ4: =Wsetup(1/$AP$1,AQ$3,$AO4) -> 0.132 | AR4: 0.114 | AS4: 0.104 | AT4: 0.098 | AU4: 0.093 | AW4: ='3.6 波による平均水位の上昇'!E10 -> 0.6 | AX4: 0 | BI4: 1
A5: 0.005 | B5: 0.258 | C5: 0.216 | D5: 0.181 | E5: 0.164 | F5: 0.153 | G5: 0.144 | I5: 0.005 | J5: 0.215 | K5: 0.181 | L5: 0.153 | M5: 0.139 | N5: 0.13 | O5: 0.123 | Q5: 0.005 | R5: 0.195 | S5: 0.164 | T5: 0.14 | U5: 0.127 | V5: 0.119 | W5: 0.113 | Y5: 0.005 | Z5: 0.176 | AA5: 0.149 | AB5: 0.127 | AC5: 0.116 | AD5: 0.109 | AE5: 0.104 | AG5: 0.005 | AH5: 0.163 | AI5: 0.138 | AJ5: 0.119 | AK5: 0.109 | AL5: 0.102 | AM5: 0.097 | AO5: 0.005 | AP5: 0.155 | AQ5: 0.132 | AR5: 0.113 | AS5: 0.104 | AT5: 0.097 | AU5: 0.093 | BI5: 1
A6: 0.01 | B6: 0.257 | C6: 0.215 | D6: 0.18 | E6: 0.163 | F6: 0.152 | G6: 0.143 | I6: 0.01 | J6: 0.214 | K6: 0.18 | L6: 0.153 | M6: 0.139 | N6: 0.13 | O6: 0.123 | Q6: 0.01 | R6: 0.194 | S6: 0.164 | T6: 0.139 | U6: 0.127 | V6: 0.119 | W6: 0.112 | Y6: 0.01 | Z6: 0.175 | AA6: 0.149 | AB6: 0.127 | AC6: 0.116 | AD6: 0.109 | AE6: 0.103 | AG6: 0.01 | AH6: 0.162 | AI6: 0.138 | AJ6: 0.118 | AK6: 0.108 | AL6: 0.102 | AM6: 0.096 | AO6: 0.01 | AP6: 0.154 | AQ6: 0.131 | AR6: 0.113 | AS6: 0.103 | AT6: 0.097 | AU6: 0.092 | BI6: 1
A7: 0.015 | B7: 0.256 | C7: 0.214 | D7: 0.18 | E7: 0.162 | F7: 0.151 | G7: 0.143 | I7: 0.015 | J7: 0.214 | K7: 0.18 | L7: 0.152 | M7: 0.138 | N7: 0.129 | O7: 0.122 | Q7: 0.015 | R7: 0.193 | S7: 0.163 | T7: 0.139 | U7: 0.126 | V7: 0.118 | W7: 0.112 | Y7: 0.015 | Z7: 0.175 | AA7: 0.148 | AB7: 0.126 | AC7: 0.115 | AD7: 0.108 | AE7: 0.103 | AG7: 0.015 | AH7: 0.162 | AI7: 0.137 | AJ7: 0.118 | AK7: 0.108 | AL7: 0.101 | AM7: 0.096 | AO7: 0.015 | AP7: 0.154 | AQ7: 0.131 | AR7: 0.112 | AS7: 0.103 | AT7: 0.097 | AU7: 0.092 | BI7: 1
A8: 0.02 | B8: 0.255 | C8: 0.213 | D8: 0.179 | E8: 0.161 | F8: 0.15 | G8: 0.142 | I8: 0.02 | J8: 0.213 | K8: 0.179 | L8: 0.151 | M8: 0.137 | N8: 0.128 | O8: 0.121 | Q8: 0.02 | R8: 0.193 | S8: 0.163 | T8: 0.138 | U8: 0.126 | V8: 0.118 | W8: 0.111 | Y8: 0.02 | Z8: 0.174 | AA8: 0.148 | AB8: 0.126 | AC8: 0.115 | AD8: 0.108 | AE8: 0.102 | AG8: 0.02 | AH8: 0.161 | AI8: 0.137 | AJ8: 0.117 | AK8: 0.107 | AL8: 0.101 | AM8: 0.095 | AO8: 0.02 | AP8: 0.153 | AQ8: 0.13 | AR8: 0.112 | AS8: 0.103 | AT8: 0.096 | AU8: 0.091 | BI8: 1
A9: 0.025 | B9: 0.254 | C9: 0.212 | D9: 0.178 | E9: 0.16 | F9: 0.149 | G9: 0.141 | I9: 0.025 | J9: 0.212 | K9: 0.178 | L9: 0.15 | M9: 0.137 | N9: 0.128 | O9: 0.121 | Q9: 0.025 | R9: 0.192 | S9: 0.162 | T9: 0.137 | U9: 0.125 | V9: 0.117 | W9: 0.111 | Y9: 0.025 | Z9: 0.174 | AA9: 0.147 | AB9: 0.125 | AC9: 0.114 | AD9: 0.107 | AE9: 0.102 | AG9: 0.025 | AH9: 0.161 | AI9: 0.137 | AJ9: 0.117 | AK9: 0.107 | AL9: 0.1 | AM9: 0.095 | AO9: 0.025 | AP9: 0.153 | AQ9: 0.13 | AR9: 0.111 | AS9: 0.102 | AT9: 0.096 | AU9: 0.091 | BI9: 1
A10: 0.03 | B10: 0.253 | C10: 0.211 | D10: 0.177 | E10: 0.159 | F10: 0.148 | G10: 0.14 | I10: 0.03 | J10: 0.211 | K10: 0.177 | L10: 0.15 | M10: 0.136 | N10: 0.127 | O10: 0.12 | Q10: 0.03 | R10: 0.192 | S10: 0.161 | T10: 0.137 | U10: 0.125 | V10: 0.116 | W10: 0.11 | Y10: 0.03 | Z10: 0.173 | AA10: 0.146 | AB10: 0.125 | AC10: 0.114 | AD10: 0.107 | AE10: 0.101 | AG10: 0.03 | AH10: 0.16 | AI10: 0.136 | AJ10: 0.116 | AK10: 0.106 | AL10: 0.1 | AM10: 0.095 | AO10: 0.03 | AP10: 0.152 | AQ10: 0.13 | AR10: 0.111 | AS10: 0.102 | AT10: 0.095 | AU10: 0.091 | BI10: 1
A11: 0.035 | B11: 0.252 | C11: 0.21 | D11: 0.176 | E11: 0.159 | F11: 0.147 | G11: 0.139 | I11: 0.035 | J11: 0.211 | K11: 0.177 | L11: 0.149 | M11: 0.135 | N11: 0.126 | O11: 0.119 | Q11: 0.035 | R11: 0.191 | S11: 0.161 | T11: 0.136 | U11: 0.124 | V11: 0.116 | W11: 0.11 | Y11: 0.035 | Z11: 0.173 | AA11: 0.146 | AB11: 0.124 | AC11: 0.113 | AD11: 0.106 | AE11: 0.101 | AG11: 0.035 | AH11: 0.16 | AI11: 0.136 | AJ11: 0.116 | AK11: 0.106 | AL11: 0.099 | AM11: 0.094 | AO11: 0.035 | AP11: 0.152 | AQ11: 0.129 | AR11: 0.111 | AS11: 0.101 | AT11: 0.095 | AU11: 0.09 | BI11: 1
A12: 0.04 | B12: 0.251 | C12: 0.209 | D12: 0.175 | E12: 0.158 | F12: 0.147 | G12: 0.138 | I12: 0.04 | J12: 0.21 | K12: 0.176 | L12: 0.148 | M12: 0.134 | N12: 0.125 | O12: 0.119 | Q12: 0.04 | R12: 0.19 | S12: 0.16 | T12: 0.136 | U12: 0.123 | V12: 0.115 | W12: 0.109 | Y12: 0.04 | Z12: 0.172 | AA12: 0.145 | AB12: 0.124 | AC12: 0.113 | AD12: 0.106 | AE12: 0.1 | AG12: 0.04 | AH12: 0.16 | AI12: 0.135 | AJ12: 0.115 | AK12: 0.105 | AL12: 0.099 | AM12: 0.094 | AO12: 0.04 | AP12: 0.152 | AQ12: 0.129 | AR12: 0.11 | AS12: 0.101 | AT12: 0.095 | AU12: 0.09 | BI12: 1
A13: 0.045 | B13: 0.25 | C13: 0.208 | D13: 0.174 | E13: 0.157 | F13: 0.146 | G13: 0.137 | I13: 0.045 | J13: 0.209 | K13: 0.175 | L13: 0.148 | M13: 0.134 | N13: 0.125 | O13: 0.118 | Q13: 0.045 | R13: 0.19 | S13: 0.159 | T13: 0.135 | U13: 0.123 | V13: 0.115 | W13: 0.109 | Y13: 0.045 | Z13: 0.172 | AA13: 0.145 | AB13: 0.123 | AC13: 0.112 | AD13: 0.105 | AE13: 0.1 | AG13: 0.045 | AH13: 0.159 | AI13: 0.135 | AJ13: 0.115 | AK13: 0.105 | AL13: 0.098 | AM13: 0.093 | AO13: 0.045 | AP13: 0.151 | AQ13: 0.128 | AR13: 0.11 | AS13: 0.1 | AT13: 0.094 | AU13: 0.089 | BI13: 1
A14: 0.05 | B14: 0.249 | C14: 0.207 | D14: 0.173 | E14: 0.156 | F14: 0.145 | G14: 0.136 | I14: 0.05 | J14: 0.208 | K14: 0.174 | L14: 0.147 | M14: 0.133 | N14: 0.124 | O14: 0.117 | Q14: 0.05 | R14: 0.189 | S14: 0.159 | T14: 0.134 | U14: 0.122 | V14: 0.114 | W14: 0.108 | Y14: 0.05 | Z14: 0.171 | AA14: 0.144 | AB14: 0.123 | AC14: 0.112 | AD14: 0.105 | AE14: 0.099 | AG14: 0.05 | AH14: 0.159 | AI14: 0.134 | AJ14: 0.115 | AK14: 0.105 | AL14: 0.098 | AM14: 0.093 | AO14: 0.05 | AP14: 0.151 | AQ14: 0.128 | AR14: 0.109 | AS14: 0.1 | AT14: 0.094 | AU14: 0.089 | BI14: 1
A15: 0.055 | B15: 0.248 | C15: 0.206 | D15: 0.172 | E15: 0.155 | F15: 0.144 | G15: 0.136 | I15: 0.055 | J15: 0.208 | K15: 0.174 | L15: 0.146 | M15: 0.132 | N15: 0.123 | O15: 0.117 | Q15: 0.055 | R15: 0.188 | S15: 0.158 | T15: 0.134 | U15: 0.122 | V15: 0.114 | W15: 0.107 | Y15: 0.055 | Z15: 0.171 | AA15: 0.144 | AB15: 0.122 | AC15: 0.111 | AD15: 0.104 | AE15: 0.099 | AG15: 0.055 | AH15: 0.158 | AI15: 0.134 | AJ15: 0.114 | AK15: 0.104 | AL15: 0.098 | AM15: 0.092 | AO15: 0.055 | AP15: 0.15 | AQ15: 0.127 | AR15: 0.109 | AS15: 0.1 | AT15: 0.093 | AU15: 0.089 | BI15: 1
A16: 0.06 | B16: 0.247 | C16: 0.205 | D16: 0.171 | E16: 0.154 | F16: 0.143 | G16: 0.135 | I16: 0.06 | J16: 0.207 | K16: 0.173 | L16: 0.145 | M16: 0.132 | N16: 0.123 | O16: 0.116 | Q16: 0.06 | R16: 0.188 | S16: 0.158 | T16: 0.133 | U16: 0.121 | V16: 0.113 | W16: 0.107 | Y16: 0.06 | Z16: 0.17 | AA16: 0.143 | AB16: 0.122 | AC16: 0.111 | AD16: 0.104 | AE16: 0.098 | AG16: 0.06 | AH16: 0.158 | AI16: 0.133 | AJ16: 0.114 | AK16: 0.104 | AL16: 0.097 | AM16: 0.092 | AO16: 0.06 | AP16: 0.15 | AQ16: 0.127 | AR16: 0.109 | AS16: 0.099 | AT16: 0.093 | AU16: 0.088 | BI16: 1
A17: 0.065 | B17: 0.246 | C17: 0.204 | D17: 0.17 | E17: 0.153 | F17: 0.142 | G17: 0.134 | I17: 0.065 | J17: 0.206 | K17: 0.172 | L17: 0.145 | M17: 0.131 | N17: 0.122 | O17: 0.115 | Q17: 0.065 | R17: 0.187 | S17: 0.157 | T17: 0.133 | U17: 0.12 | V17: 0.112 | W17: 0.106 | Y17: 0.065 | Z17: 0.17 | AA17: 0.143 | AB17: 0.121 | AC17: 0.11 | AD17: 0.103 | AE17: 0.098 | AG17: 0.065 | AH17: 0.157 | AI17: 0.133 | AJ17: 0.113 | AK17: 0.103 | AL17: 0.097 | AM17: 0.092 | AO17: 0.065 | AP17: 0.149 | AQ17: 0.127 | AR17: 0.108 | AS17: 0.099 | AT17: 0.093 | AU17: 0.088 | BI17: 1
A18: 0.07 | B18: 0.245 | C18: 0.203 | D18: 0.169 | E18: 0.152 | F18: 0.141 | G18: 0.133 | I18: 0.07 | J18: 0.206 | K18: 0.172 | L18: 0.144 | M18: 0.13 | N18: 0.121 | O18: 0.115 | Q18: 0.07 | R18: 0.187 | S18: 0.156 | T18: 0.132 | U18: 0.12 | V18: 0.112 | W18: 0.106 | Y18: 0.07 | Z18: 0.169 | AA18: 0.142 | AB18: 0.121 | AC18: 0.11 | AD18: 0.103 | AE18: 0.097 | AG18: 0.07 | AH18: 0.157 | AI18: 0.132 | AJ18: 0.113 | AK18: 0.103 | AL18: 0.096 | AM18: 0.091 | AO18: 0.07 | AP18: 0.149 | AQ18: 0.126 | AR18: 0.108 | AS18: 0.098 | AT18: 0.092 | AU18: 0.087 | BI18: 1
A19: 0.075 | B19: 0.244 | C19: 0.202 | D19: 0.168 | E19: 0.151 | F19: 0.14 | G19: 0.132 | I19: 0.075 | J19: 0.205 | K19: 0.171 | L19: 0.143 | M19: 0.13 | N19: 0.121 | O19: 0.114 | Q19: 0.075 | R19: 0.186 | S19: 0.156 | T19: 0.131 | U19: 0.119 | V19: 0.111 | W19: 0.105 | Y19: 0.075 | Z19: 0.169 | AA19: 0.142 | AB19: 0.12 | AC19: 0.109 | AD19: 0.102 | AE19: 0.097 | AG19: 0.075 | AH19: 0.156 | AI19: 0.132 | AJ19: 0.112 | AK19: 0.102 | AL19: 0.096 | AM19: 0.091 | AO19: 0.075 | AP19: 0.149 | AQ19: 0.126 | AR19: 0.107 | AS19: 0.098 | AT19: 0.092 | AU19: 0.087 | BI19: 1
A20: 0.08 | B20: 0.243 | C20: 0.201 | D20: 0.167 | E20: 0.15 | F20: 0.139 | G20: 0.131 | I20: 0.08 | J20: 0.204 | K20: 0.17 | L20: 0.143 | M20: 0.129 | N20: 0.12 | O20: 0.113 | Q20: 0.08 | R20: 0.185 | S20: 0.155 | T20: 0.131 | U20: 0.119 | V20: 0.111 | W20: 0.105 | Y20: 0.08 | Z20: 0.168 | AA20: 0.141 | AB20: 0.12 | AC20: 0.109 | AD20: 0.102 | AE20: 0.096 | AG20: 0.08 | AH20: 0.156 | AI20: 0.131 | AJ20: 0.112 | AK20: 0.102 | AL20: 0.095 | AM20: 0.09 | AO20: 0.08 | AP20: 0.148 | AQ20: 0.125 | AR20: 0.107 | AS20: 0.098 | AT20: 0.091 | AU20: 0.087 | BI20: 1
A21: 0.085 | B21: 0.242 | C21: 0.2 | D21: 0.166 | E21: 0.149 | F21: 0.138 | G21: 0.13 | I21: 0.085 | J21: 0.203 | K21: 0.169 | L21: 0.142 | M21: 0.128 | N21: 0.119 | O21: 0.113 | Q21: 0.085 | R21: 0.185 | S21: 0.154 | T21: 0.13 | U21: 0.118 | V21: 0.11 | W21: 0.104 | Y21: 0.085 | Z21: 0.167 | AA21: 0.141 | AB21: 0.119 | AC21: 0.108 | AD21: 0.101 | AE21: 0.096 | AG21: 0.085 | AH21: 0.155 | AI21: 0.131 | AJ21: 0.111 | AK21: 0.101 | AL21: 0.095 | AM21: 0.09 | AO21: 0.085 | AP21: 0.148 | AQ21: 0.125 | AR21: 0.106 | AS21: 0.097 | AT21: 0.091 | AU21: 0.086 | BI21: 1
A22: 0.09 | B22: 0.241 | C22: 0.199 | D22: 0.165 | E22: 0.148 | F22: 0.138 | G22: 0.13 | I22: 0.09 | J22: 0.203 | K22: 0.169 | L22: 0.141 | M22: 0.128 | N22: 0.119 | O22: 0.112 | Q22: 0.09 | R22: 0.184 | S22: 0.154 | T22: 0.129 | U22: 0.117 | V22: 0.109 | W22: 0.104 | Y22: 0.09 | Z22: 0.167 | AA22: 0.14 | AB22: 0.119 | AC22: 0.108 | AD22: 0.101 | AE22: 0.095 | AG22: 0.09 | AH22: 0.155 | AI22: 0.13 | AJ22: 0.111 | AK22: 0.101 | AL22: 0.095 | AM22: 0.09 | AO22: 0.09 | AP22: 0.147 | AQ22: 0.124 | AR22: 0.106 | AS22: 0.097 | AT22: 0.091 | AU22: 0.086 | BI22: 1
A23: 0.095 | B23: 0.24 | C23: 0.198 | D23: 0.164 | E23: 0.147 | F23: 0.137 | G23: 0.129 | I23: 0.095 | J23: 0.202 | K23: 0.168 | L23: 0.14 | M23: 0.127 | N23: 0.118 | O23: 0.111 | Q23: 0.095 | R23: 0.183 | S23: 0.153 | T23: 0.129 | U23: 0.117 | V23: 0.109 | W23: 0.103 | Y23: 0.095 | Z23: 0.166 | AA23: 0.14 | AB23: 0.118 | AC23: 0.107 | AD23: 0.1 | AE23: 0.095 | AG23: 0.095 | AH23: 0.154 | AI23: 0.13 | AJ23: 0.11 | AK23: 0.101 | AL23: 0.094 | AM23: 0.089 | AO23: 0.095 | AP23: 0.147 | AQ23: 0.124 | AR23: 0.106 | AS23: 0.096 | AT23: 0.09 | AU23: 0.085 | BI23: 2
A24: 0.1 | B24: 0.239 | C24: 0.197 | D24: 0.163 | E24: 0.146 | F24: 0.136 | G24: 0.128 | I24: 0.1 | J24: 0.201 | K24: 0.167 | L24: 0.14 | M24: 0.126 | N24: 0.117 | O24: 0.111 | Q24: 0.1 | R24: 0.183 | S24: 0.153 | T24: 0.128 | U24: 0.116 | V24: 0.108 | W24: 0.102 | Y24: 0.1 | Z24: 0.166 | AA24: 0.139 | AB24: 0.118 | AC24: 0.107 | AD24: 0.1 | AE24: 0.094 | AG24: 0.1 | AH24: 0.154 | AI24: 0.129 | AJ24: 0.11 | AK24: 0.1 | AL24: 0.094 | AM24: 0.089 | AO24: 0.1 | AP24: 0.146 | AQ24: 0.124 | AR24: 0.105 | AS24: 0.096 | AT24: 0.09 | AU24: 0.085 | BI24: 2
A25: 0.105 | B25: 0.238 | C25: 0.196 | D25: 0.162 | E25: 0.146 | F25: 0.135 | G25: 0.127 | I25: 0.105 | J25: 0.2 | K25: 0.166 | L25: 0.139 | M25: 0.125 | N25: 0.117 | O25: 0.11 | Q25: 0.105 | R25: 0.182 | S25: 0.152 | T25: 0.128 | U25: 0.116 | V25: 0.108 | W25: 0.102 | Y25: 0.105 | Z25: 0.165 | AA25: 0.139 | AB25: 0.117 | AC25: 0.106 | AD25: 0.099 | AE25: 0.094 | AG25: 0.105 | AH25: 0.153 | AI25: 0.129 | AJ25: 0.109 | AK25: 0.1 | AL25: 0.093 | AM25: 0.088 | AO25: 0.105 | AP25: 0.146 | AQ25: 0.123 | AR25: 0.105 | AS25: 0.095 | AT25: 0.089 | AU25: 0.085 | BI25: 2
A26: 0.11 | B26: 0.237 | C26: 0.195 | D26: 0.161 | E26: 0.145 | F26: 0.134 | G26: 0.126 | I26: 0.11 | J26: 0.2 | K26: 0.166 | L26: 0.138 | M26: 0.125 | N26: 0.116 | O26: 0.11 | Q26: 0.11 | R26: 0.182 | S26: 0.151 | T26: 0.127 | U26: 0.115 | V26: 0.107 | W26: 0.101 | Y26: 0.11 | Z26: 0.165 | AA26: 0.138 | AB26: 0.116 | AC26: 0.106 | AD26: 0.099 | AE26: 0.093 | AG26: 0.11 | AH26: 0.153 | AI26: 0.129 | AJ26: 0.109 | AK26: 0.099 | AL26: 0.093 | AM26: 0.088 | AO26: 0.11 | AP26: 0.146 | AQ26: 0.123 | AR26: 0.104 | AS26: 0.095 | AT26: 0.089 | AU26: 0.084 | BI26: 2
A27: 0.115 | B27: 0.236 | C27: 0.194 | D27: 0.16 | E27: 0.144 | F27: 0.133 | G27: 0.125 | I27: 0.115 | J27: 0.199 | K27: 0.165 | L27: 0.138 | M27: 0.124 | N27: 0.115 | O27: 0.109 | Q27: 0.115 | R27: 0.181 | S27: 0.151 | T27: 0.126 | U27: 0.114 | V27: 0.107 | W27: 0.101 | Y27: 0.115 | Z27: 0.164 | AA27: 0.137 | AB27: 0.116 | AC27: 0.105 | AD27: 0.098 | AE27: 0.093 | AG27: 0.115 | AH27: 0.152 | AI27: 0.128 | AJ27: 0.109 | AK27: 0.099 | AL27: 0.092 | AM27: 0.087 | AO27: 0.115 | AP27: 0.145 | AQ27: 0.122 | AR27: 0.104 | AS27: 0.095 | AT27: 0.089 | AU27: 0.084 | BI27: 2
A28: 0.12 | B28: 0.235 | C28: 0.193 | D28: 0.159 | E28: 0.143 | F28: 0.132 | G28: 0.124 | I28: 0.12 | J28: 0.198 | K28: 0.164 | L28: 0.137 | M28: 0.123 | N28: 0.115 | O28: 0.108 | Q28: 0.12 | R28: 0.18 | S28: 0.15 | T28: 0.126 | U28: 0.114 | V28: 0.106 | W28: 0.1 | Y28: 0.12 | Z28: 0.164 | AA28: 0.137 | AB28: 0.115 | AC28: 0.105 | AD28: 0.098 | AE28: 0.092 | AG28: 0.12 | AH28: 0.152 | AI28: 0.128 | AJ28: 0.108 | AK28: 0.098 | AL28: 0.092 | AM28: 0.087 | AO28: 0.12 | AP28: 0.145 | AQ28: 0.122 | AR28: 0.103 | AS28: 0.094 | AT28: 0.088 | AU28: 0.083 | BI28: 2
A29: 0.125 | B29: 0.234 | C29: 0.192 | D29: 0.158 | E29: 0.142 | F29: 0.131 | G29: 0.124 | I29: 0.125 | J29: 0.198 | K29: 0.163 | L29: 0.136 | M29: 0.123 | N29: 0.114 | O29: 0.108 | Q29: 0.125 | R29: 0.18 | S29: 0.149 | T29: 0.125 | U29: 0.113 | V29: 0.105 | W29: 0.1 | Y29: 0.125 | Z29: 0.163 | AA29: 0.136 | AB29: 0.115 | AC29: 0.104 | AD29: 0.097 | AE29: 0.092 | AG29: 0.125 | AH29: 0.152 | AI29: 0.127 | AJ29: 0.108 | AK29: 0.098 | AL29: 0.091 | AM29: 0.087 | AO29: 0.125 | AP29: 0.144 | AQ29: 0.121 | AR29: 0.103 | AS29: 0.094 | AT29: 0.088 | AU29: 0.083 | BI29: 2
A30: 0.13 | B30: 0.233 | C30: 0.191 | D30: 0.157 | E30: 0.141 | F30: 0.13 | G30: 0.123 | I30: 0.13 | J30: 0.197 | K30: 0.163 | L30: 0.135 | M30: 0.122 | N30: 0.113 | O30: 0.107 | Q30: 0.13 | R30: 0.179 | S30: 0.149 | T30: 0.125 | U30: 0.113 | V30: 0.105 | W30: 0.099 | Y30: 0.13 | Z30: 0.163 | AA30: 0.136 | AB30: 0.114 | AC30: 0.104 | AD30: 0.097 | AE30: 0.092 | AG30: 0.13 | AH30: 0.151 | AI30: 0.127 | AJ30: 0.107 | AK30: 0.097 | AL30: 0.091 | AM30: 0.086 | AO30: 0.13 | AP30: 0.144 | AQ30: 0.121 | AR30: 0.103 | AS30: 0.093 | AT30: 0.087 | AU30: 0.083 | BI30: 2
A31: 0.135 | B31: 0.232 | C31: 0.19 | D31: 0.157 | E31: 0.14 | F31: 0.13 | G31: 0.122 | I31: 0.135 | J31: 0.196 | K31: 0.162 | L31: 0.135 | M31: 0.121 | N31: 0.113 | O31: 0.106 | Q31: 0.135 | R31: 0.179 | S31: 0.148 | T31: 0.124 | U31: 0.112 | V31: 0.104 | W31: 0.098 | Y31: 0.135 | Z31: 0.162 | AA31: 0.135 | AB31: 0.114 | AC31: 0.103 | AD31: 0.096 | AE31: 0.091 | AG31: 0.135 | AH31: 0.151 | AI31: 0.126 | AJ31: 0.107 | AK31: 0.097 | AL31: 0.091 | AM31: 0.086 | AO31: 0.135 | AP31: 0.143 | AQ31: 0.12 | AR31: 0.102 | AS31: 0.093 | AT31: 0.087 | AU31: 0.082 | BI31: 2
A32: 0.14 | B32: 0.231 | C32: 0.189 | D32: 0.156 | E32: 0.139 | F32: 0.129 | G32: 0.121 | I32: 0.14 | J32: 0.195 | K32: 0.161 | L32: 0.134 | M32: 0.121 | N32: 0.112 | O32: 0.106 | Q32: 0.14 | R32: 0.178 | S32: 0.148 | T32: 0.123 | U32: 0.111 | V32: 0.104 | W32: 0.098 | Y32: 0.14 | Z32: 0.162 | AA32: 0.135 | AB32: 0.113 | AC32: 0.103 | AD32: 0.096 | AE32: 0.091 | AG32: 0.14 | AH32: 0.15 | AI32: 0.126 | AJ32: 0.106 | AK32: 0.097 | AL32: 0.09 | AM32: 0.085 | AO32: 0.14 | AP32: 0.143 | AQ32: 0.12 | AR32: 0.102 | AS32: 0.093 | AT32: 0.087 | AU32: 0.082 | BI32: 2
A33: 0.145 | B33: 0.23 | C33: 0.188 | D33: 0.155 | E33: 0.138 | F33: 0.128 | G33: 0.12 | I33: 0.145 | J33: 0.195 | K33: 0.161 | L33: 0.133 | M33: 0.12 | N33: 0.111 | O33: 0.105 | Q33: 0.145 | R33: 0.177 | S33: 0.147 | T33: 0.123 | U33: 0.111 | V33: 0.103 | W33: 0.097 | Y33: 0.145 | Z33: 0.161 | AA33: 0.134 | AB33: 0.113 | AC33: 0.102 | AD33: 0.095 | AE33: 0.09 | AG33: 0.145 | AH33: 0.15 | AI33: 0.125 | AJ33: 0.106 | AK33: 0.096 | AL33: 0.09 | AM33: 0.085 | AO33: 0.145 | AP33: 0.143 | AQ33: 0.12 | AR33: 0.101 | AS33: 0.092 | AT33: 0.086 | AU33: 0.081 | BI33: 2
A34: 0.15 | B34: 0.229 | C34: 0.187 | D34: 0.154 | E34: 0.137 | F34: 0.127 | G34: 0.119 | I34: 0.15 | J34: 0.194 | K34: 0.16 | L34: 0.133 | M34: 0.119 | N34: 0.111 | O34: 0.104 | Q34: 0.15 | R34: 0.177 | S34: 0.146 | T34: 0.122 | U34: 0.11 | V34: 0.103 | W34: 0.097 | Y34: 0.15 | Z34: 0.161 | AA34: 0.134 | AB34: 0.112 | AC34: 0.102 | AD34: 0.095 | AE34: 0.09 | AG34: 0.15 | AH34: 0.149 | AI34: 0.125 | AJ34: 0.105 | AK34: 0.096 | AL34: 0.089 | AM34: 0.084 | AO34: 0.15 | AP34: 0.142 | AQ34: 0.119 | AR34: 0.101 | AS34: 0.092 | AT34: 0.086 | AU34: 0.081 | BI34: 2
A35: 0.155 | B35: 0.228 | C35: 0.186 | D35: 0.153 | E35: 0.136 | F35: 0.126 | G35: 0.118 | I35: 0.155 | J35: 0.193 | K35: 0.159 | L35: 0.132 | M35: 0.119 | N35: 0.11 | O35: 0.104 | Q35: 0.155 | R35: 0.176 | S35: 0.146 | T35: 0.122 | U35: 0.11 | V35: 0.102 | W35: 0.096 | Y35: 0.155 | Z35: 0.16 | AA35: 0.133 | AB35: 0.112 | AC35: 0.101 | AD35: 0.094 | AE35: 0.089 | AG35: 0.155 | AH35: 0.149 | AI35: 0.124 | AJ35: 0.105 | AK35: 0.095 | AL35: 0.089 | AM35: 0.084 | AO35: 0.155 | AP35: 0.142 | AQ35: 0.119 | AR35: 0.1 | AS35: 0.091 | AT35: 0.085 | AU35: 0.081 | BI35: 2
A36: 0.16 | B36: 0.227 | C36: 0.185 | D36: 0.152 | E36: 0.135 | F36: 0.125 | G36: 0.117 | I36: 0.16 | J36: 0.192 | K36: 0.158 | L36: 0.131 | M36: 0.118 | N36: 0.109 | O36: 0.103 | Q36: 0.16 | R36: 0.175 | S36: 0.145 | T36: 0.121 | U36: 0.109 | V36: 0.101 | W36: 0.096 | Y36: 0.16 | Z36: 0.16 | AA36: 0.133 | AB36: 0.111 | AC36: 0.101 | AD36: 0.094 | AE36: 0.089 | AG36: 0.16 | AH36: 0.148 | AI36: 0.124 | AJ36: 0.104 | AK36: 0.095 | AL36: 0.088 | AM36: 0.084 | AO36: 0.16 | AP36: 0.141 | AQ36: 0.118 | AR36: 0.1 | AS36: 0.091 | AT36: 0.085 | AU36: 0.08 | BI36: 2
A37: 0.165 | B37: 0.226 | C37: 0.184 | D37: 0.151 | E37: 0.134 | F37: 0.124 | G37: 0.117 | I37: 0.165 | J37: 0.192 | K37: 0.158 | L37: 0.13 | M37: 0.117 | N37: 0.109 | O37: 0.102 | Q37: 0.165 | R37: 0.175 | S37: 0.144 | T37: 0.12 | U37: 0.108 | V37: 0.101 | W37: 0.095 | Y37: 0.165 | Z37: 0.159 | AA37: 0.132 | AB37: 0.111 | AC37: 0.1 | AD37: 0.093 | AE37: 0.088 | AG37: 0.165 | AH37: 0.148 | AI37: 0.123 | AJ37: 0.104 | AK37: 0.094 | AL37: 0.088 | AM37: 0.083 | AO37: 0.165 | AP37: 0.141 | AQ37: 0.118 | AR37: 0.1 | AS37: 0.09 | AT37: 0.084 | AU37: 0.08 | BI37: 2
A38: 0.17 | B38: 0.225 | C38: 0.183 | D38: 0.15 | E38: 0.134 | F38: 0.123 | G38: 0.116 | I38: 0.17 | J38: 0.191 | K38: 0.157 | L38: 0.13 | M38: 0.116 | N38: 0.108 | O38: 0.102 | Q38: 0.17 | R38: 0.174 | S38: 0.144 | T38: 0.12 | U38: 0.108 | V38: 0.1 | W38: 0.095 | Y38: 0.17 | Z38: 0.159 | AA38: 0.132 | AB38: 0.11 | AC38: 0.1 | AD38: 0.093 | AE38: 0.088 | AG38: 0.17 | AH38: 0.147 | AI38: 0.123 | AJ38: 0.103 | AK38: 0.094 | AL38: 0.087 | AM38: 0.083 | AO38: 0.17 | AP38: 0.14 | AQ38: 0.117 | AR38: 0.099 | AS38: 0.09 | AT38: 0.084 | AU38: 0.079 | BI38: 2
A39: 0.175 | B39: 0.224 | C39: 0.182 | D39: 0.149 | E39: 0.133 | F39: 0.122 | G39: 0.115 | I39: 0.175 | J39: 0.19 | K39: 0.156 | L39: 0.129 | M39: 0.116 | N39: 0.107 | O39: 0.101 | Q39: 0.175 | R39: 0.174 | S39: 0.143 | T39: 0.119 | U39: 0.107 | V39: 0.1 | W39: 0.094 | Y39: 0.175 | Z39: 0.158 | AA39: 0.131 | AB39: 0.11 | AC39: 0.099 | AD39: 0.092 | AE39: 0.087 | AG39: 0.175 | AH39: 0.147 | AI39: 0.122 | AJ39: 0.103 | AK39: 0.093 | AL39: 0.087 | AM39: 0.082 | AO39: 0.175 | AP39: 0.14 | AQ39: 0.117 | AR39: 0.099 | AS39: 0.09 | AT39: 0.084 | AU39: 0.079 | BI39: 2
A40: 0.18 | B40: 0.223 | C40: 0.181 | D40: 0.148 | E40: 0.132 | F40: 0.121 | G40: 0.114 | I40: 0.18 | J40: 0.19 | K40: 0.155 | L40: 0.128 | M40: 0.115 | N40: 0.107 | O40: 0.1 | Q40: 0.18 | R40: 0.173 | S40: 0.143 | T40: 0.118 | U40: 0.107 | V40: 0.099 | W40: 0.093 | Y40: 0.18 | Z40: 0.157 | AA40: 0.131 | AB40: 0.109 | AC40: 0.099 | AD40: 0.092 | AE40: 0.087 | AG40: 0.18 | AH40: 0.146 | AI40: 0.122 | AJ40: 0.103 | AK40: 0.093 | AL40: 0.087 | AM40: 0.082 | AO40: 0.18 | AP40: 0.139 | AQ40: 0.117 | AR40: 0.098 | AS40: 0.089 | AT40: 0.083 | AU40: 0.079 | BI40: 2
A41: 0.185 | B41: 0.222 | C41: 0.18 | D41: 0.147 | E41: 0.131 | F41: 0.121 | G41: 0.113 | I41: 0.185 | J41: 0.189 | K41: 0.155 | L41: 0.128 | M41: 0.114 | N41: 0.106 | O41: 0.1 | Q41: 0.185 | R41: 0.172 | S41: 0.142 | T41: 0.118 | U41: 0.106 | V41: 0.099 | W41: 0.093 | Y41: 0.185 | Z41: 0.157 | AA41: 0.13 | AB41: 0.109 | AC41: 0.098 | AD41: 0.091 | AE41: 0.086 | AG41: 0.185 | AH41: 0.146 | AI41: 0.122 | AJ41: 0.102 | AK41: 0.092 | AL41: 0.086 | AM41: 0.081 | AO41: 0.185 | AP41: 0.139 | AQ41: 0.116 | AR41: 0.098 | AS41: 0.089 | AT41: 0.083 | AU41: 0.078 | BI41: 2
A42: 0.19 | B42: 0.221 | C42: 0.179 | D42: 0.146 | E42: 0.13 | F42: 0.12 | G42: 0.112 | I42: 0.19 | J42: 0.188 | K42: 0.154 | L42: 0.127 | M42: 0.114 | N42: 0.105 | O42: 0.099 | Q42: 0.19 | R42: 0.172 | S42: 0.141 | T42: 0.117 | U42: 0.106 | V42: 0.098 | W42: 0.092 | Y42: 0.19 | Z42: 0.156 | AA42: 0.13 | AB42: 0.108 | AC42: 0.098 | AD42: 0.091 | AE42: 0.086 | AG42: 0.19 | AH42: 0.145 | AI42: 0.121 | AJ42: 0.102 | AK42: 0.092 | AL42: 0.086 | AM42: 0.081 | AO42: 0.19 | AP42: 0.139 | AQ42: 0.116 | AR42: 0.097 | AS42: 0.088 | AT42: 0.082 | AU42: 0.078 | BI42: 2
A43: 0.195 | B43: 0.22 | C43: 0.178 | D43: 0.145 | E43: 0.129 | F43: 0.119 | G43: 0.111 | I43: 0.195 | J43: 0.187 | K43: 0.153 | L43: 0.126 | M43: 0.113 | N43: 0.105 | O43: 0.098 | Q43: 0.195 | R43: 0.171 | S43: 0.141 | T43: 0.117 | U43: 0.105 | V43: 0.097 | W43: 0.092 | Y43: 0.195 | Z43: 0.156 | AA43: 0.129 | AB43: 0.108 | AC43: 0.097 | AD43: 0.09 | AE43: 0.085 | AG43: 0.195 | AH43: 0.145 | AI43: 0.121 | AJ43: 0.101 | AK43: 0.092 | AL43: 0.085 | AM43: 0.081 | AO43: 0.195 | AP43: 0.138 | AQ43: 0.115 | AR43: 0.097 | AS43: 0.088 | AT43: 0.082 | AU43: 0.077 | BI43: 2
A44: 0.2 | B44: 0.219 | C44: 0.177 | D44: 0.144 | E44: 0.128 | F44: 0.118 | G44: 0.111 | I44: 0.2 | J44: 0.187 | K44: 0.153 | L44: 0.125 | M44: 0.112 | N44: 0.104 | O44: 0.098 | Q44: 0.2 | R44: 0.17 | S44: 0.14 | T44: 0.116 | U44: 0.104 | V44: 0.097 | W44: 0.091 | Y44: 0.2 | Z44: 0.155 | AA44: 0.128 | AB44: 0.107 | AC44: 0.097 | AD44: 0.09 | AE44: 0.085 | AG44: 0.2 | AH44: 0.145 | AI44: 0.12 | AJ44: 0.101 | AK44: 0.091 | AL44: 0.085 | AM44: 0.08 | AO44: 0.2 | AP44: 0.138 | AQ44: 0.115 | AR44: 0.097 | AS44: 0.088 | AT44: 0.082 | AU44: 0.077 | BI44: 2
A45: 0.205 | B45: 0.218 | C45: 0.176 | D45: 0.143 | E45: 0.127 | F45: 0.117 | G45: 0.11 | I45: 0.205 | J45: 0.186 | K45: 0.152 | L45: 0.125 | M45: 0.112 | N45: 0.103 | O45: 0.097 | Q45: 0.205 | R45: 0.17 | S45: 0.14 | T45: 0.115 | U45: 0.104 | V45: 0.096 | W45: 0.091 | Y45: 0.205 | Z45: 0.155 | AA45: 0.128 | AB45: 0.107 | AC45: 0.096 | AD45: 0.089 | AE45: 0.084 | AG45: 0.205 | AH45: 0.144 | AI45: 0.12 | AJ45: 0.1 | AK45: 0.091 | AL45: 0.084 | AM45: 0.08 | AO45: 0.205 | AP45: 0.137 | AQ45: 0.114 | AR45: 0.096 | AS45: 0.087 | AT45: 0.081 | AU45: 0.077 | BI45: 3
A46: 0.21 | B46: 0.217 | C46: 0.175 | D46: 0.142 | E46: 0.126 | F46: 0.116 | G46: 0.109 | I46: 0.21 | J46: 0.185 | K46: 0.151 | L46: 0.124 | M46: 0.111 | N46: 0.103 | O46: 0.096 | Q46: 0.21 | R46: 0.169 | S46: 0.139 | T46: 0.115 | U46: 0.103 | V46: 0.096 | W46: 0.09 | Y46: 0.21 | Z46: 0.154 | AA46: 0.127 | AB46: 0.106 | AC46: 0.096 | AD46: 0.089 | AE46: 0.084 | AG46: 0.21 | AH46: 0.144 | AI46: 0.119 | AJ46: 0.1 | AK46: 0.09 | AL46: 0.084 | AM46: 0.079 | AO46: 0.21 | AP46: 0.137 | AQ46: 0.114 | AR46: 0.096 | AS46: 0.087 | AT46: 0.081 | AU46: 0.076 | BI46: 3
A47: 0.215 | B47: 0.216 | C47: 0.174 | D47: 0.141 | E47: 0.125 | F47: 0.115 | G47: 0.108 | I47: 0.215 | J47: 0.184 | K47: 0.15 | L47: 0.123 | M47: 0.11 | N47: 0.102 | O47: 0.096 | Q47: 0.215 | R47: 0.169 | S47: 0.138 | T47: 0.114 | U47: 0.103 | V47: 0.095 | W47: 0.089 | Y47: 0.215 | Z47: 0.154 | AA47: 0.127 | AB47: 0.106 | AC47: 0.095 | AD47: 0.088 | AE47: 0.083 | AG47: 0.215 | AH47: 0.143 | AI47: 0.119 | AJ47: 0.099 | AK47: 0.09 | AL47: 0.084 | AM47: 0.079 | AO47: 0.215 | AP47: 0.136 | AQ47: 0.114 | AR47: 0.095 | AS47: 0.086 | AT47: 0.08 | AU47: 0.076 | BI47: 3
A48: 0.22 | B48: 0.216 | C48: 0.173 | D48: 0.14 | E48: 0.124 | F48: 0.114 | G48: 0.107 | I48: 0.22 | J48: 0.184 | K48: 0.15 | L48: 0.123 | M48: 0.11 | N48: 0.101 | O48: 0.095 | Q48: 0.22 | R48: 0.168 | S48: 0.138 | T48: 0.114 | U48: 0.102 | V48: 0.094 | W48: 0.089 | Y48: 0.22 | Z48: 0.153 | AA48: 0.126 | AB48: 0.105 | AC48: 0.095 | AD48: 0.088 | AE48: 0.083 | AG48: 0.22 | AH48: 0.143 | AI48: 0.118 | AJ48: 0.099 | AK48: 0.089 | AL48: 0.083 | AM48: 0.078 | AO48: 0.22 | AP48: 0.136 | AQ48: 0.113 | AR48: 0.095 | AS48: 0.086 | AT48: 0.08 | AU48: 0.076 | BI48: 3
A49: 0.225 | B49: 0.215 | C49: 0.172 | D49: 0.139 | E49: 0.123 | F49: 0.113 | G49: 0.106 | I49: 0.225 | J49: 0.183 | K49: 0.149 | L49: 0.122 | M49: 0.109 | N49: 0.101 | O49: 0.094 | Q49: 0.225 | R49: 0.167 | S49: 0.137 | T49: 0.113 | U49: 0.101 | V49: 0.094 | W49: 0.088 | Y49: 0.225 | Z49: 0.153 | AA49: 0.126 | AB49: 0.105 | AC49: 0.094 | AD49: 0.087 | AE49: 0.082 | AG49: 0.225 | AH49: 0.142 | AI49: 0.118 | AJ49: 0.098 | AK49: 0.089 | AL49: 0.083 | AM49: 0.078 | AO49: 0.225 | AP49: 0.136 | AQ49: 0.113 | AR49: 0.094 | AS49: 0.086 | AT49: 0.08 | AU49: 0.075 | BI49: 3
A50: 0.23 | B50: 0.214 | C50: 0.171 | D50: 0.138 | E50: 0.122 | F50: 0.112 | G50: 0.105 | I50: 0.23 | J50: 0.182 | K50: 0.148 | L50: 0.121 | M50: 0.108 | N50: 0.1 | O50: 0.094 | Q50: 0.23 | R50: 0.167 | S50: 0.136 | T50: 0.112 | U50: 0.101 | V50: 0.093 | W50: 0.088 | Y50: 0.23 | Z50: 0.152 | AA50: 0.125 | AB50: 0.104 | AC50: 0.094 | AD50: 0.087 | AE50: 0.082 | AG50: 0.23 | AH50: 0.142 | AI50: 0.117 | AJ50: 0.098 | AK50: 0.088 | AL50: 0.082 | AM50: 0.078 | AO50: 0.23 | AP50: 0.135 | AQ50: 0.112 | AR50: 0.094 | AS50: 0.085 | AT50: 0.079 | AU50: 0.075 | BI50: 3
A51: 0.235 | B51: 0.213 | C51: 0.17 | D51: 0.137 | E51: 0.121 | F51: 0.112 | G51: 0.105 | I51: 0.235 | J51: 0.182 | K51: 0.147 | L51: 0.12 | M51: 0.107 | N51: 0.099 | O51: 0.093 | Q51: 0.235 | R51: 0.166 | S51: 0.136 | T51: 0.112 | U51: 0.1 | V51: 0.093 | W51: 0.087 | Y51: 0.235 | Z51: 0.152 | AA51: 0.125 | AB51: 0.103 | AC51: 0.093 | AD51: 0.086 | AE51: 0.081 | AG51: 0.235 | AH51: 0.141 | AI51: 0.117 | AJ51: 0.097 | AK51: 0.088 | AL51: 0.082 | AM51: 0.077 | AO51: 0.235 | AP51: 0.135 | AQ51: 0.112 | AR51: 0.094 | AS51: 0.085 | AT51: 0.079 | AU51: 0.074 | BI51: 3
A52: 0.24 | B52: 0.212 | C52: 0.17 | D52: 0.136 | E52: 0.121 | F52: 0.111 | G52: 0.104 | I52: 0.24 | J52: 0.181 | K52: 0.147 | L52: 0.12 | M52: 0.107 | N52: 0.099 | O52: 0.093 | Q52: 0.24 | R52: 0.165 | S52: 0.135 | T52: 0.111 | U52: 0.1 | V52: 0.092 | W52: 0.087 | Y52: 0.24 | Z52: 0.151 | AA52: 0.124 | AB52: 0.103 | AC52: 0.093 | AD52: 0.086 | AE52: 0.081 | AG52: 0.24 | AH52: 0.141 | AI52: 0.116 | AJ52: 0.097 | AK52: 0.088 | AL52: 0.081 | AM52: 0.077 | AO52: 0.24 | AP52: 0.134 | AQ52: 0.111 | AR52: 0.093 | AS52: 0.084 | AT52: 0.078 | AU52: 0.074 | BI52: 3
A53: 0.245 | B53: 0.211 | C53: 0.169 | D53: 0.135 | E53: 0.12 | F53: 0.11 | G53: 0.103 | I53: 0.245 | J53: 0.18 | K53: 0.146 | L53: 0.119 | M53: 0.106 | N53: 0.098 | O53: 0.092 | Q53: 0.245 | R53: 0.165 | S53: 0.135 | T53: 0.111 | U53: 0.099 | V53: 0.092 | W53: 0.086 | Y53: 0.245 | Z53: 0.151 | AA53: 0.124 | AB53: 0.102 | AC53: 0.092 | AD53: 0.085 | AE53: 0.08 | AG53: 0.245 | AH53: 0.14 | AI53: 0.116 | AJ53: 0.097 | AK53: 0.087 | AL53: 0.081 | AM53: 0.076 | AO53: 0.245 | AP53: 0.134 | AQ53: 0.111 | AR53: 0.093 | AS53: 0.084 | AT53: 0.078 | AU53: 0.074 | BI53: 3
A54: 0.25 | B54: 0.21 | C54: 0.168 | D54: 0.134 | E54: 0.119 | F54: 0.109 | G54: 0.102 | I54: 0.25 | J54: 0.179 | K54: 0.145 | L54: 0.118 | M54: 0.105 | N54: 0.097 | O54: 0.091 | Q54: 0.25 | R54: 0.164 | S54: 0.134 | T54: 0.11 | U54: 0.098 | V54: 0.091 | W54: 0.086 | Y54: 0.25 | Z54: 0.15 | AA54: 0.123 | AB54: 0.102 | AC54: 0.092 | AD54: 0.085 | AE54: 0.08 | AG54: 0.25 | AH54: 0.14 | AI54: 0.115 | AJ54: 0.096 | AK54: 0.087 | AL54: 0.08 | AM54: 0.076 | AO54: 0.25 | AP54: 0.133 | AQ54: 0.111 | AR54: 0.092 | AS54: 0.083 | AT54: 0.078 | AU54: 0.073 | BI54: 3
A55: 0.255 | B55: 0.209 | C55: 0.167 | D55: 0.133 | E55: 0.118 | F55: 0.108 | G55: 0.101 | I55: 0.255 | J55: 0.179 | K55: 0.144 | L55: 0.118 | M55: 0.105 | N55: 0.097 | O55: 0.091 | Q55: 0.255 | R55: 0.164 | S55: 0.133 | T55: 0.109 | U55: 0.098 | V55: 0.09 | W55: 0.085 | Y55: 0.255 | Z55: 0.15 | AA55: 0.123 | AB55: 0.101 | AC55: 0.091 | AD55: 0.084 | AE55: 0.079 | AG55: 0.255 | AH55: 0.139 | AI55: 0.115 | AJ55: 0.096 | AK55: 0.086 | AL55: 0.08 | AM55: 0.075 | AO55: 0.255 | AP55: 0.133 | AQ55: 0.11 | AR55: 0.092 | AS55: 0.083 | AT55: 0.077 | AU55: 0.073 | BI55: 3
A56: 0.26 | B56: 0.208 | C56: 0.166 | D56: 0.133 | E56: 0.117 | F56: 0.107 | G56: 0.1 | I56: 0.26 | J56: 0.178 | K56: 0.144 | L56: 0.117 | M56: 0.104 | N56: 0.096 | O56: 0.09 | Q56: 0.26 | R56: 0.163 | S56: 0.133 | T56: 0.109 | U56: 0.097 | V56: 0.09 | W56: 0.084 | Y56: 0.26 | Z56: 0.149 | AA56: 0.122 | AB56: 0.101 | AC56: 0.091 | AD56: 0.084 | AE56: 0.079 | AG56: 0.26 | AH56: 0.139 | AI56: 0.114 | AJ56: 0.095 | AK56: 0.086 | AL56: 0.08 | AM56: 0.075 | AO56: 0.26 | AP56: 0.133 | AQ56: 0.11 | AR56: 0.091 | AS56: 0.083 | AT56: 0.077 | AU56: 0.072 | BI56: 3
A57: 0.265 | B57: 0.207 | C57: 0.165 | D57: 0.132 | E57: 0.116 | F57: 0.106 | G57: 0.099 | I57: 0.265 | J57: 0.177 | K57: 0.143 | L57: 0.116 | M57: 0.103 | N57: 0.095 | O57: 0.089 | Q57: 0.265 | R57: 0.162 | S57: 0.132 | T57: 0.108 | U57: 0.097 | V57: 0.089 | W57: 0.084 | Y57: 0.265 | Z57: 0.148 | AA57: 0.122 | AB57: 0.1 | AC57: 0.09 | AD57: 0.083 | AE57: 0.079 | AG57: 0.265 | AH57: 0.138 | AI57: 0.114 | AJ57: 0.095 | AK57: 0.085 | AL57: 0.079 | AM57: 0.075 | AO57: 0.265 | AP57: 0.132 | AQ57: 0.109 | AR57: 0.091 | AS57: 0.082 | AT57: 0.076 | AU57: 0.072 | BI57: 3
A58: 0.27 | B58: 0.206 | C58: 0.164 | D58: 0.131 | E58: 0.115 | F58: 0.105 | G58: 0.098 | I58: 0.27 | J58: 0.176 | K58: 0.142 | L58: 0.115 | M58: 0.103 | N58: 0.095 | O58: 0.089 | Q58: 0.27 | R58: 0.162 | S58: 0.131 | T58: 0.108 | U58: 0.096 | V58: 0.089 | W58: 0.083 | Y58: 0.27 | Z58: 0.148 | AA58: 0.121 | AB58: 0.1 | AC58: 0.09 | AD58: 0.083 | AE58: 0.078 | AG58: 0.27 | AH58: 0.138 | AI58: 0.114 | AJ58: 0.094 | AK58: 0.085 | AL58: 0.079 | AM58: 0.074 | AO58: 0.27 | AP58: 0.132 | AQ58: 0.109 | AR58: 0.091 | AS58: 0.082 | AT58: 0.076 | AU58: 0.072 | BI58: 3
A59: 0.275 | B59: 0.205 | C59: 0.163 | D59: 0.13 | E59: 0.114 | F59: 0.104 | G59: 0.098 | I59: 0.275 | J59: 0.176 | K59: 0.142 | L59: 0.115 | M59: 0.102 | N59: 0.094 | O59: 0.088 | Q59: 0.275 | R59: 0.161 | S59: 0.131 | T59: 0.107 | U59: 0.095 | V59: 0.088 | W59: 0.083 | Y59: 0.275 | Z59: 0.147 | AA59: 0.12 | AB59: 0.099 | AC59: 0.089 | AD59: 0.082 | AE59: 0.078 | AG59: 0.275 | AH59: 0.138 | AI59: 0.113 | AJ59: 0.094 | AK59: 0.084 | AL59: 0.078 | AM59: 0.074 | AO59: 0.275 | AP59: 0.131 | AQ59: 0.108 | AR59: 0.09 | AS59: 0.081 | AT59: 0.076 | AU59: 0.071 | BI59: 3
A60: 0.28 | B60: 0.204 | C60: 0.162 | D60: 0.129 | E60: 0.113 | F60: 0.104 | G60: 0.097 | I60: 0.28 | J60: 0.175 | K60: 0.141 | L60: 0.114 | M60: 0.101 | N60: 0.093 | O60: 0.087 | Q60: 0.28 | R60: 0.161 | S60: 0.13 | T60: 0.106 | U60: 0.095 | V60: 0.088 | W60: 0.082 | Y60: 0.28 | Z60: 0.147 | AA60: 0.12 | AB60: 0.099 | AC60: 0.089 | AD60: 0.082 | AE60: 0.077 | AG60: 0.28 | AH60: 0.137 | AI60: 0.113 | AJ60: 0.093 | AK60: 0.084 | AL60: 0.078 | AM60: 0.073 | AO60: 0.28 | AP60: 0.131 | AQ60: 0.108 | AR60: 0.09 | AS60: 0.081 | AT60: 0.075 | AU60: 0.071 | BI60: 3
A61: 0.285 | B61: 0.203 | C61: 0.161 | D61: 0.128 | E61: 0.112 | F61: 0.103 | G61: 0.096 | I61: 0.285 | J61: 0.174 | K61: 0.14 | L61: 0.113 | M61: 0.1 | N61: 0.092 | O61: 0.087 | Q61: 0.285 | R61: 0.16 | S61: 0.13 | T61: 0.106 | U61: 0.094 | V61: 0.087 | W61: 0.082 | Y61: 0.285 | Z61: 0.146 | AA61: 0.119 | AB61: 0.098 | AC61: 0.088 | AD61: 0.081 | AE61: 0.077 | AG61: 0.285 | AH61: 0.137 | AI61: 0.112 | AJ61: 0.093 | AK61: 0.083 | AL61: 0.077 | AM61: 0.073 | AO61: 0.285 | AP61: 0.13 | AQ61: 0.107 | AR61: 0.089 | AS61: 0.081 | AT61: 0.075 | AU61: 0.07 | BI61: 3
A62: 0.29 | B62: 0.202 | C62: 0.16 | D62: 0.127 | E62: 0.111 | F62: 0.102 | G62: 0.095 | I62: 0.29 | J62: 0.174 | K62: 0.139 | L62: 0.113 | M62: 0.1 | N62: 0.092 | O62: 0.086 | Q62: 0.29 | R62: 0.159 | S62: 0.129 | T62: 0.105 | U62: 0.094 | V62: 0.086 | W62: 0.081 | Y62: 0.29 | Z62: 0.146 | AA62: 0.119 | AB62: 0.098 | AC62: 0.088 | AD62: 0.081 | AE62: 0.076 | AG62: 0.29 | AH62: 0.136 | AI62: 0.112 | AJ62: 0.092 | AK62: 0.083 | AL62: 0.077 | AM62: 0.072 | AO62: 0.29 | AP62: 0.13 | AQ62: 0.107 | AR62: 0.089 | AS62: 0.08 | AT62: 0.074 | AU62: 0.07 | BI62: 3
A63: 0.295 | B63: 0.201 | C63: 0.159 | D63: 0.126 | E63: 0.11 | F63: 0.101 | G63: 0.094 | I63: 0.295 | J63: 0.173 | K63: 0.139 | L63: 0.112 | M63: 0.099 | N63: 0.091 | O63: 0.085 | Q63: 0.295 | R63: 0.159 | S63: 0.128 | T63: 0.104 | U63: 0.093 | V63: 0.086 | W63: 0.081 | Y63: 0.295 | Z63: 0.145 | AA63: 0.118 | AB63: 0.097 | AC63: 0.087 | AD63: 0.081 | AE63: 0.076 | AG63: 0.295 | AH63: 0.136 | AI63: 0.111 | AJ63: 0.092 | AK63: 0.083 | AL63: 0.077 | AM63: 0.072 | AO63: 0.295 | AP63: 0.13 | AQ63: 0.107 | AR63: 0.089 | AS63: 0.08 | AT63: 0.074 | AU63: 0.07 | BI63: 3
A64: 0.3 | B64: 0.2 | C64: 0.158 | D64: 0.125 | E64: 0.109 | F64: 0.1 | G64: 0.093 | I64: 0.3 | J64: 0.172 | K64: 0.138 | L64: 0.111 | M64: 0.098 | N64: 0.09 | O64: 0.085 | Q64: 0.3 | R64: 0.158 | S64: 0.128 | T64: 0.104 | U64: 0.092 | V64: 0.085 | W64: 0.08 | Y64: 0.3 | Z64: 0.145 | AA64: 0.118 | AB64: 0.097 | AC64: 0.087 | AD64: 0.08 | AE64: 0.075 | AG64: 0.3 | AH64: 0.135 | AI64: 0.111 | AJ64: 0.091 | AK64: 0.082 | AL64: 0.076 | AM64: 0.072 | AO64: 0.3 | AP64: 0.129 | AQ64: 0.106 | AR64: 0.088 | AS64: 0.079 | AT64: 0.074 | AU64: 0.069 | BI64: 3
A65: 0.305 | B65: 0.199 | C65: 0.157 | D65: 0.124 | E65: 0.108 | F65: 0.099 | G65: 0.092 | I65: 0.305 | J65: 0.171 | K65: 0.137 | L65: 0.11 | M65: 0.098 | N65: 0.09 | O65: 0.084 | Q65: 0.305 | R65: 0.157 | S65: 0.127 | T65: 0.103 | U65: 0.092 | V65: 0.085 | W65: 0.079 | Y65: 0.305 | Z65: 0.144 | AA65: 0.117 | AB65: 0.096 | AC65: 0.086 | AD65: 0.08 | AE65: 0.075 | AG65: 0.305 | AH65: 0.135 | AI65: 0.11 | AJ65: 0.091 | AK65: 0.082 | AL65: 0.076 | AM65: 0.071 | AO65: 0.305 | AP65: 0.129 | AQ65: 0.106 | AR65: 0.088 | AS65: 0.079 | AT65: 0.073 | AU65: 0.069 | BI65: 3
A66: 0.31 | B66: 0.198 | C66: 0.156 | D66: 0.123 | E66: 0.108 | F66: 0.098 | G66: 0.092 | I66: 0.31 | J66: 0.171 | K66: 0.136 | L66: 0.11 | M66: 0.097 | N66: 0.089 | O66: 0.083 | Q66: 0.31 | R66: 0.157 | S66: 0.126 | T66: 0.103 | U66: 0.091 | V66: 0.084 | W66: 0.079 | Y66: 0.31 | Z66: 0.144 | AA66: 0.117 | AB66: 0.096 | AC66: 0.086 | AD66: 0.079 | AE66: 0.074 | AG66: 0.31 | AH66: 0.134 | AI66: 0.11 | AJ66: 0.091 | AK66: 0.081 | AL66: 0.075 | AM66: 0.071 | AO66: 0.31 | AP66: 0.128 | AQ66: 0.105 | AR66: 0.087 | AS66: 0.078 | AT66: 0.073 | AU66: 0.068 | BI66: 3
A67: 0.315 | B67: 0.197 | C67: 0.155 | D67: 0.122 | E67: 0.107 | F67: 0.097 | G67: 0.091 | I67: 0.315 | J67: 0.17 | K67: 0.136 | L67: 0.109 | M67: 0.096 | N67: 0.088 | O67: 0.083 | Q67: 0.315 | R67: 0.156 | S67: 0.126 | T67: 0.102 | U67: 0.091 | V67: 0.084 | W67: 0.078 | Y67: 0.315 | Z67: 0.143 | AA67: 0.116 | AB67: 0.095 | AC67: 0.085 | AD67: 0.079 | AE67: 0.074 | AG67: 0.315 | AH67: 0.134 | AI67: 0.109 | AJ67: 0.09 | AK67: 0.081 | AL67: 0.075 | AM67: 0.07 | AO67: 0.315 | AP67: 0.128 | AQ67: 0.105 | AR67: 0.087 | AS67: 0.078 | AT67: 0.072 | AU67: 0.068 | BI67: 3
A68: 0.32 | B68: 0.196 | C68: 0.154 | D68: 0.121 | E68: 0.106 | F68: 0.096 | G68: 0.09 | I68: 0.32 | J68: 0.169 | K68: 0.135 | L68: 0.108 | M68: 0.096 | N68: 0.088 | O68: 0.082 | Q68: 0.32 | R68: 0.156 | S68: 0.125 | T68: 0.101 | U68: 0.09 | V68: 0.083 | W68: 0.078 | Y68: 0.32 | Z68: 0.143 | AA68: 0.116 | AB68: 0.095 | AC68: 0.084 | AD68: 0.078 | AE68: 0.073 | AG68: 0.32 | AH68: 0.133 | AI68: 0.109 | AJ68: 0.09 | AK68: 0.08 | AL68: 0.074 | AM68: 0.07 | AO68: 0.32 | AP68: 0.127 | AQ68: 0.104 | AR68: 0.086 | AS68: 0.078 | AT68: 0.072 | AU68: 0.068 | BI68: 4
A69: 0.325 | B69: 0.195 | C69: 0.153 | D69: 0.12 | E69: 0.105 | F69: 0.095 | G69: 0.089 | I69: 0.325 | J69: 0.168 | K69: 0.134 | L69: 0.108 | M69: 0.095 | N69: 0.087 | O69: 0.081 | Q69: 0.325 | R69: 0.155 | S69: 0.125 | T69: 0.101 | U69: 0.089 | V69: 0.082 | W69: 0.077 | Y69: 0.325 | Z69: 0.142 | AA69: 0.115 | AB69: 0.094 | AC69: 0.084 | AD69: 0.078 | AE69: 0.073 | AG69: 0.325 | AH69: 0.133 | AI69: 0.108 | AJ69: 0.089 | AK69: 0.08 | AL69: 0.074 | AM69: 0.069 | AO69: 0.325 | AP69: 0.127 | AQ69: 0.104 | AR69: 0.086 | AS69: 0.077 | AT69: 0.072 | AU69: 0.067 | BI69: 4
A70: 0.33 | B70: 0.194 | C70: 0.152 | D70: 0.119 | E70: 0.104 | F70: 0.095 | G70: 0.088 | I70: 0.33 | J70: 0.168 | K70: 0.134 | L70: 0.107 | M70: 0.094 | N70: 0.086 | O70: 0.081 | Q70: 0.33 | R70: 0.154 | S70: 0.124 | T70: 0.1 | U70: 0.089 | V70: 0.082 | W70: 0.077 | Y70: 0.33 | Z70: 0.142 | AA70: 0.115 | AB70: 0.094 | AC70: 0.083 | AD70: 0.077 | AE70: 0.072 | AG70: 0.33 | AH70: 0.132 | AI70: 0.108 | AJ70: 0.089 | AK70: 0.079 | AL70: 0.073 | AM70: 0.069 | AO70: 0.33 | AP70: 0.127 | AQ70: 0.104 | AR70: 0.086 | AS70: 0.077 | AT70: 0.071 | AU70: 0.067 | BI70: 4
A71: 0.335 | B71: 0.193 | C71: 0.151 | D71: 0.118 | E71: 0.103 | F71: 0.094 | G71: 0.087 | I71: 0.335 | J71: 0.167 | K71: 0.133 | L71: 0.106 | M71: 0.094 | N71: 0.086 | O71: 0.08 | Q71: 0.335 | R71: 0.154 | S71: 0.123 | T71: 0.1 | U71: 0.088 | V71: 0.081 | W71: 0.076 | Y71: 0.335 | Z71: 0.141 | AA71: 0.114 | AB71: 0.093 | AC71: 0.083 | AD71: 0.077 | AE71: 0.072 | AG71: 0.335 | AH71: 0.132 | AI71: 0.107 | AJ71: 0.088 | AK71: 0.079 | AL71: 0.073 | AM71: 0.069 | AO71: 0.335 | AP71: 0.126 | AQ71: 0.103 | AR71: 0.085 | AS71: 0.076 | AT71: 0.071 | AU71: 0.066 | BI71: 4
A72: 0.34 | B72: 0.192 | C72: 0.15 | D72: 0.117 | E72: 0.102 | F72: 0.093 | G72: 0.086 | I72: 0.34 | J72: 0.166 | K72: 0.132 | L72: 0.105 | M72: 0.093 | N72: 0.085 | O72: 0.079 | Q72: 0.34 | R72: 0.153 | S72: 0.123 | T72: 0.099 | U72: 0.088 | V72: 0.081 | W72: 0.075 | Y72: 0.34 | Z72: 0.141 | AA72: 0.114 | AB72: 0.093 | AC72: 0.082 | AD72: 0.076 | AE72: 0.071 | AG72: 0.34 | AH72: 0.131 | AI72: 0.107 | AJ72: 0.088 | AK72: 0.079 | AL72: 0.073 | AM72: 0.068 | AO72: 0.34 | AP72: 0.126 | AQ72: 0.103 | AR72: 0.085 | AS72: 0.076 | AT72: 0.07 | AU72: 0.066 | BI72: 4
A73: 0.345 | B73: 0.191 | C73: 0.149 | D73: 0.116 | E73: 0.101 | F73: 0.092 | G73: 0.085 | I73: 0.345 | J73: 0.165 | K73: 0.131 | L73: 0.105 | M73: 0.092 | N73: 0.084 | O73: 0.079 | Q73: 0.345 | R73: 0.152 | S73: 0.122 | T73: 0.098 | U73: 0.087 | V73: 0.08 | W73: 0.075 | Y73: 0.345 | Z73: 0.14 | AA73: 0.113 | AB73: 0.092 | AC73: 0.082 | AD73: 0.076 | AE73: 0.071 | AG73: 0.345 | AH73: 0.131 | AI73: 0.106 | AJ73: 0.087 | AK73: 0.078 | AL73: 0.072 | AM73: 0.068 | AO73: 0.345 | AP73: 0.125 | AQ73: 0.102 | AR73: 0.084 | AS73: 0.076 | AT73: 0.07 | AU73: 0.066 | BI73: 4
A74: 0.35 | B74: 0.19 | C74: 0.148 | D74: 0.115 | E74: 0.1 | F74: 0.091 | G74: 0.085 | I74: 0.35 | J74: 0.165 | K74: 0.131 | L74: 0.104 | M74: 0.091 | N74: 0.084 | O74: 0.078 | Q74: 0.35 | R74: 0.152 | S74: 0.121 | T74: 0.098 | U74: 0.087 | V74: 0.079 | W74: 0.074 | Y74: 0.35 | Z74: 0.139 | AA74: 0.113 | AB74: 0.092 | AC74: 0.081 | AD74: 0.075 | AE74: 0.07 | AG74: 0.35 | AH74: 0.131 | AI74: 0.106 | AJ74: 0.087 | AK74: 0.078 | AL74: 0.072 | AM74: 0.067 | AO74: 0.35 | AP74: 0.125 | AQ74: 0.102 | AR74: 0.084 | AS74: 0.075 | AT74: 0.069 | AU74: 0.065 | BI74: 4
A75: 0.355 | B75: 0.189 | C75: 0.147 | D75: 0.114 | E75: 0.099 | F75: 0.09 | G75: 0.084 | I75: 0.355 | J75: 0.164 | K75: 0.13 | L75: 0.103 | M75: 0.091 | N75: 0.083 | O75: 0.078 | Q75: 0.355 | R75: 0.151 | S75: 0.121 | T75: 0.097 | U75: 0.086 | V75: 0.079 | W75: 0.074 | Y75: 0.355 | Z75: 0.139 | AA75: 0.112 | AB75: 0.091 | AC75: 0.081 | AD75: 0.075 | AE75: 0.07 | AG75: 0.355 | AH75: 0.13 | AI75: 0.106 | AJ75: 0.086 | AK75: 0.077 | AL75: 0.071 | AM75: 0.067 | AO75: 0.355 | AP75: 0.124 | AQ75: 0.101 | AR75: 0.083 | AS75: 0.075 | AT75: 0.069 | AU75: 0.065 | BI75: 4
A76: 0.36 | B76: 0.188 | C76: 0.146 | D76: 0.113 | E76: 0.098 | F76: 0.089 | G76: 0.083 | I76: 0.36 | J76: 0.163 | K76: 0.129 | L76: 0.103 | M76: 0.09 | N76: 0.082 | O76: 0.077 | Q76: 0.36 | R76: 0.151 | S76: 0.12 | T76: 0.097 | U76: 0.085 | V76: 0.078 | W76: 0.073 | Y76: 0.36 | Z76: 0.138 | AA76: 0.111 | AB76: 0.09 | AC76: 0.08 | AD76: 0.074 | AE76: 0.069 | AG76: 0.36 | AH76: 0.13 | AI76: 0.105 | AJ76: 0.086 | AK76: 0.077 | AL76: 0.071 | AM76: 0.066 | AO76: 0.36 | AP76: 0.124 | AQ76: 0.101 | AR76: 0.083 | AS76: 0.074 | AT76: 0.069 | AU76: 0.064 | BI76: 4
A77: 0.365 | B77: 0.187 | C77: 0.145 | D77: 0.112 | E77: 0.097 | F77: 0.088 | G77: 0.082 | I77: 0.365 | J77: 0.163 | K77: 0.128 | L77: 0.102 | M77: 0.089 | N77: 0.082 | O77: 0.076 | Q77: 0.365 | R77: 0.15 | S77: 0.12 | T77: 0.096 | U77: 0.085 | V77: 0.078 | W77: 0.073 | Y77: 0.365 | Z77: 0.138 | AA77: 0.111 | AB77: 0.09 | AC77: 0.08 | AD77: 0.074 | AE77: 0.069 | AG77: 0.365 | AH77: 0.129 | AI77: 0.105 | AJ77: 0.085 | AK77: 0.076 | AL77: 0.07 | AM77: 0.066 | AO77: 0.365 | AP77: 0.124 | AQ77: 0.101 | AR77: 0.083 | AS77: 0.074 | AT77: 0.068 | AU77: 0.064 | BI77: 4
A78: 0.37 | B78: 0.186 | C78: 0.144 | D78: 0.111 | E78: 0.096 | F78: 0.087 | G78: 0.081 | I78: 0.37 | J78: 0.162 | K78: 0.128 | L78: 0.101 | M78: 0.089 | N78: 0.081 | O78: 0.076 | Q78: 0.37 | R78: 0.149 | S78: 0.119 | T78: 0.095 | U78: 0.084 | V78: 0.077 | W78: 0.072 | Y78: 0.37 | Z78: 0.137 | AA78: 0.11 | AB78: 0.089 | AC78: 0.079 | AD78: 0.073 | AE78: 0.068 | AG78: 0.37 | AH78: 0.129 | AI78: 0.104 | AJ78: 0.085 | AK78: 0.076 | AL78: 0.07 | AM78: 0.066 | AO78: 0.37 | AP78: 0.123 | AQ78: 0.1 | AR78: 0.082 | AS78: 0.073 | AT78: 0.068 | AU78: 0.064 | BI78: 4
A79: 0.375 | B79: 0.185 | C79: 0.143 | D79: 0.11 | E79: 0.096 | F79: 0.087 | G79: 0.08 | I79: 0.375 | J79: 0.161 | K79: 0.127 | L79: 0.1 | M79: 0.088 | N79: 0.08 | O79: 0.075 | Q79: 0.375 | R79: 0.149 | S79: 0.118 | T79: 0.095 | U79: 0.084 | V79: 0.077 | W79: 0.072 | Y79: 0.375 | Z79: 0.137 | AA79: 0.11 | AB79: 0.089 | AC79: 0.079 | AD79: 0.073 | AE79: 0.068 | AG79: 0.375 | AH79: 0.128 | AI79: 0.104 | AJ79: 0.085 | AK79: 0.075 | AL79: 0.069 | AM79: 0.065 | AO79: 0.375 | AP79: 0.123 | AQ79: 0.1 | AR79: 0.082 | AS79: 0.073 | AT79: 0.067 | AU79: 0.063 | BI79: 4
A80: 0.38 | B80: 0.184 | C80: 0.142 | D80: 0.11 | E80: 0.095 | F80: 0.086 | G80: 0.079 | I80: 0.38 | J80: 0.16 | K80: 0.126 | L80: 0.1 | M80: 0.087 | N80: 0.08 | O80: 0.074 | Q80: 0.38 | R80: 0.148 | S80: 0.118 | T80: 0.094 | U80: 0.083 | V80: 0.076 | W80: 0.071 | Y80: 0.38 | Z80: 0.136 | AA80: 0.109 | AB80: 0.088 | AC80: 0.078 | AD80: 0.072 | AE80: 0.067 | AG80: 0.38 | AH80: 0.128 | AI80: 0.103 | AJ80: 0.084 | AK80: 0.075 | AL80: 0.069 | AM80: 0.065 | AO80: 0.38 | AP80: 0.122 | AQ80: 0.099 | AR80: 0.081 | AS80: 0.073 | AT80: 0.067 | AU80: 0.063 | BI80: 4
A81: 0.385 | B81: 0.183 | C81: 0.141 | D81: 0.109 | E81: 0.094 | F81: 0.085 | G81: 0.079 | I81: 0.385 | J81: 0.16 | K81: 0.125 | L81: 0.099 | M81: 0.087 | N81: 0.079 | O81: 0.074 | Q81: 0.385 | R81: 0.147 | S81: 0.117 | T81: 0.093 | U81: 0.082 | V81: 0.075 | W81: 0.07 | Y81: 0.385 | Z81: 0.136 | AA81: 0.109 | AB81: 0.088 | AC81: 0.078 | AD81: 0.072 | AE81: 0.067 | AG81: 0.385 | AH81: 0.127 | AI81: 0.103 | AJ81: 0.084 | AK81: 0.074 | AL81: 0.069 | AM81: 0.064 | AO81: 0.385 | AP81: 0.122 | AQ81: 0.099 | AR81: 0.081 | AS81: 0.072 | AT81: 0.067 | AU81: 0.062 | BI81: 4
A82: 0.39 | B82: 0.182 | C82: 0.14 | D82: 0.108 | E82: 0.093 | F82: 0.084 | G82: 0.078 | I82: 0.39 | J82: 0.159 | K82: 0.125 | L82: 0.098 | M82: 0.086 | N82: 0.078 | O82: 0.073 | Q82: 0.39 | R82: 0.147 | S82: 0.116 | T82: 0.093 | U82: 0.082 | V82: 0.075 | W82: 0.07 | Y82: 0.39 | Z82: 0.135 | AA82: 0.108 | AB82: 0.087 | AC82: 0.077 | AD82: 0.071 | AE82: 0.066 | AG82: 0.39 | AH82: 0.127 | AI82: 0.102 | AJ82: 0.083 | AK82: 0.074 | AL82: 0.068 | AM82: 0.064 | AO82: 0.39 | AP82: 0.121 | AQ82: 0.098 | AR82: 0.08 | AS82: 0.072 | AT82: 0.066 | AU82: 0.062 | BI82: 4
A83: 0.395 | B83: 0.181 | C83: 0.139 | D83: 0.107 | E83: 0.092 | F83: 0.083 | G83: 0.077 | I83: 0.395 | J83: 0.158 | K83: 0.124 | L83: 0.098 | M83: 0.085 | N83: 0.078 | O83: 0.072 | Q83: 0.395 | R83: 0.146 | S83: 0.116 | T83: 0.092 | U83: 0.081 | V83: 0.074 | W83: 0.069 | Y83: 0.395 | Z83: 0.135 | AA83: 0.108 | AB83: 0.087 | AC83: 0.077 | AD83: 0.071 | AE83: 0.066 | AG83: 0.395 | AH83: 0.126 | AI83: 0.102 | AJ83: 0.083 | AK83: 0.074 | AL83: 0.068 | AM83: 0.063 | AO83: 0.395 | AP83: 0.121 | AQ83: 0.098 | AR83: 0.08 | AS83: 0.071 | AT83: 0.066 | AU83: 0.062 | BI83: 4
A84: 0.4 | B84: 0.18 | C84: 0.138 | D84: 0.106 | E84: 0.091 | F84: 0.082 | G84: 0.076 | I84: 0.4 | J84: 0.157 | K84: 0.123 | L84: 0.097 | M84: 0.085 | N84: 0.077 | O84: 0.072 | Q84: 0.4 | R84: 0.146 | S84: 0.115 | T84: 0.092 | U84: 0.081 | V84: 0.074 | W84: 0.069 | Y84: 0.4 | Z84: 0.134 | AA84: 0.107 | AB84: 0.086 | AC84: 0.076 | AD84: 0.07 | AE84: 0.066 | AG84: 0.4 | AH84: 0.126 | AI84: 0.101 | AJ84: 0.082 | AK84: 0.073 | AL84: 0.067 | AM84: 0.063 | AO84: 0.4 | AP84: 0.121 | AQ84: 0.098 | AR84: 0.08 | AS84: 0.071 | AT84: 0.065 | AU84: 0.061 | BI84: 4
A85: 0.405 | B85: 0.179 | C85: 0.137 | D85: 0.105 | E85: 0.09 | F85: 0.081 | G85: 0.075 | I85: 0.405 | J85: 0.157 | K85: 0.123 | L85: 0.096 | M85: 0.084 | N85: 0.076 | O85: 0.071 | Q85: 0.405 | R85: 0.145 | S85: 0.115 | T85: 0.091 | U85: 0.08 | V85: 0.073 | W85: 0.068 | Y85: 0.405 | Z85: 0.134 | AA85: 0.107 | AB85: 0.086 | AC85: 0.076 | AD85: 0.07 | AE85: 0.065 | AG85: 0.405 | AH85: 0.125 | AI85: 0.101 | AJ85: 0.082 | AK85: 0.073 | AL85: 0.067 | AM85: 0.063 | AO85: 0.405 | AP85: 0.12 | AQ85: 0.097 | AR85: 0.079 | AS85: 0.071 | AT85: 0.065 | AU85: 0.061 | BI85: 4
A86: 0.41 | B86: 0.178 | C86: 0.136 | D86: 0.104 | E86: 0.089 | F86: 0.08 | G86: 0.074 | I86: 0.41 | J86: 0.156 | K86: 0.122 | L86: 0.095 | M86: 0.083 | N86: 0.076 | O86: 0.07 | Q86: 0.41 | R86: 0.144 | S86: 0.114 | T86: 0.09 | U86: 0.079 | V86: 0.073 | W86: 0.068 | Y86: 0.41 | Z86: 0.133 | AA86: 0.106 | AB86: 0.085 | AC86: 0.075 | AD86: 0.069 | AE86: 0.065 | AG86: 0.41 | AH86: 0.125 | AI86: 0.1 | AJ86: 0.081 | AK86: 0.072 | AL86: 0.066 | AM86: 0.062 | AO86: 0.41 | AP86: 0.12 | AQ86: 0.097 | AR86: 0.079 | AS86: 0.07 | AT86: 0.065 | AU86: 0.06 | BI86: 4
A87: 0.415 | B87: 0.177 | C87: 0.135 | D87: 0.103 | E87: 0.088 | F87: 0.079 | G87: 0.073 | I87: 0.415 | J87: 0.155 | K87: 0.121 | L87: 0.095 | M87: 0.082 | N87: 0.075 | O87: 0.07 | Q87: 0.415 | R87: 0.144 | S87: 0.113 | T87: 0.09 | U87: 0.079 | V87: 0.072 | W87: 0.067 | Y87: 0.415 | Z87: 0.133 | AA87: 0.106 | AB87: 0.085 | AC87: 0.075 | AD87: 0.069 | AE87: 0.064 | AG87: 0.415 | AH87: 0.124 | AI87: 0.1 | AJ87: 0.081 | AK87: 0.072 | AL87: 0.066 | AM87: 0.062 | AO87: 0.415 | AP87: 0.119 | AQ87: 0.096 | AR87: 0.078 | AS87: 0.07 | AT87: 0.064 | AU87: 0.06 | BI87: 4
A88: 0.42 | B88: 0.176 | C88: 0.134 | D88: 0.102 | E88: 0.087 | F88: 0.078 | G88: 0.073 | I88: 0.42 | J88: 0.155 | K88: 0.12 | L88: 0.094 | M88: 0.082 | N88: 0.074 | O88: 0.069 | Q88: 0.42 | R88: 0.143 | S88: 0.113 | T88: 0.089 | U88: 0.078 | V88: 0.071 | W88: 0.066 | Y88: 0.42 | Z88: 0.132 | AA88: 0.105 | AB88: 0.084 | AC88: 0.074 | AD88: 0.068 | AE88: 0.064 | AG88: 0.42 | AH88: 0.124 | AI88: 0.099 | AJ88: 0.08 | AK88: 0.071 | AL88: 0.066 | AM88: 0.061 | AO88: 0.42 | AP88: 0.119 | AQ88: 0.096 | AR88: 0.078 | AS88: 0.069 | AT88: 0.064 | AU88: 0.06 | BI88: 4
A89: 0.425 | B89: 0.175 | C89: 0.133 | D89: 0.101 | E89: 0.086 | F89: 0.078 | G89: 0.072 | I89: 0.425 | J89: 0.154 | K89: 0.12 | L89: 0.093 | M89: 0.081 | N89: 0.074 | O89: 0.068 | Q89: 0.425 | R89: 0.143 | S89: 0.112 | T89: 0.089 | U89: 0.078 | V89: 0.071 | W89: 0.066 | Y89: 0.425 | Z89: 0.132 | AA89: 0.105 | AB89: 0.084 | AC89: 0.074 | AD89: 0.068 | AE89: 0.063 | AG89: 0.425 | AH89: 0.123 | AI89: 0.099 | AJ89: 0.08 | AK89: 0.071 | AL89: 0.065 | AM89: 0.061 | AO89: 0.425 | AP89: 0.118 | AQ89: 0.095 | AR89: 0.077 | AS89: 0.069 | AT89: 0.063 | AU89: 0.059 | BI89: 4
A90: 0.43 | B90: 0.174 | C90: 0.132 | D90: 0.1 | E90: 0.085 | F90: 0.077 | G90: 0.071 | I90: 0.43 | J90: 0.153 | K90: 0.119 | L90: 0.093 | M90: 0.08 | N90: 0.073 | O90: 0.068 | Q90: 0.43 | R90: 0.142 | S90: 0.111 | T90: 0.088 | U90: 0.077 | V90: 0.07 | W90: 0.065 | Y90: 0.43 | Z90: 0.131 | AA90: 0.104 | AB90: 0.083 | AC90: 0.073 | AD90: 0.067 | AE90: 0.063 | AG90: 0.43 | AH90: 0.123 | AI90: 0.099 | AJ90: 0.079 | AK90: 0.07 | AL90: 0.065 | AM90: 0.06 | AO90: 0.43 | AP90: 0.118 | AQ90: 0.095 | AR90: 0.077 | AS90: 0.068 | AT90: 0.063 | AU90: 0.059 | BI90: 5
A91: 0.435 | B91: 0.173 | C91: 0.131 | D91: 0.099 | E91: 0.084 | F91: 0.076 | G91: 0.07 | I91: 0.435 | J91: 0.152 | K91: 0.118 | L91: 0.092 | M91: 0.08 | N91: 0.072 | O91: 0.067 | Q91: 0.435 | R91: 0.141 | S91: 0.111 | T91: 0.087 | U91: 0.076 | V91: 0.07 | W91: 0.065 | Y91: 0.435 | Z91: 0.13 | AA91: 0.104 | AB91: 0.083 | AC91: 0.073 | AD91: 0.067 | AE91: 0.062 | AG91: 0.435 | AH91: 0.123 | AI91: 0.098 | AJ91: 0.079 | AK91: 0.07 | AL91: 0.064 | AM91: 0.06 | AO91: 0.435 | AP91: 0.117 | AQ91: 0.094 | AR91: 0.077 | AS91: 0.068 | AT91: 0.063 | AU91: 0.058 | BI91: 5
A92: 0.44 | B92: 0.172 | C92: 0.13 | D92: 0.098 | E92: 0.083 | F92: 0.075 | G92: 0.069 | I92: 0.44 | J92: 0.152 | K92: 0.117 | L92: 0.091 | M92: 0.079 | N92: 0.072 | O92: 0.066 | Q92: 0.44 | R92: 0.141 | S92: 0.11 | T92: 0.087 | U92: 0.076 | V92: 0.069 | W92: 0.064 | Y92: 0.44 | Z92: 0.13 | AA92: 0.103 | AB92: 0.082 | AC92: 0.072 | AD92: 0.066 | AE92: 0.062 | AG92: 0.44 | AH92: 0.122 | AI92: 0.098 | AJ92: 0.079 | AK92: 0.07 | AL92: 0.064 | AM92: 0.06 | AO92: 0.44 | AP92: 0.117 | AQ92: 0.094 | AR92: 0.076 | AS92: 0.068 | AT92: 0.062 | AU92: 0.058 | BI92: 5
A93: 0.445 | B93: 0.171 | C93: 0.129 | D93: 0.097 | E93: 0.083 | F93: 0.074 | G93: 0.068 | I93: 0.445 | J93: 0.151 | K93: 0.117 | L93: 0.09 | M93: 0.078 | N93: 0.071 | O93: 0.066 | Q93: 0.445 | R93: 0.14 | S93: 0.11 | T93: 0.086 | U93: 0.075 | V93: 0.068 | W93: 0.064 | Y93: 0.445 | Z93: 0.129 | AA93: 0.102 | AB93: 0.082 | AC93: 0.072 | AD93: 0.066 | AE93: 0.061 | AG93: 0.445 | AH93: 0.122 | AI93: 0.097 | AJ93: 0.078 | AK93: 0.069 | AL93: 0.063 | AM93: 0.059 | AO93: 0.445 | AP93: 0.117 | AQ93: 0.094 | AR93: 0.076 | AS93: 0.067 | AT93: 0.062 | AU93: 0.058 | BI93: 5
A94: 0.45 | B94: 0.17 | C94: 0.128 | D94: 0.096 | E94: 0.082 | F94: 0.073 | G94: 0.067 | I94: 0.45 | J94: 0.15 | K94: 0.116 | L94: 0.09 | M94: 0.078 | N94: 0.07 | O94: 0.065 | Q94: 0.45 | R94: 0.139 | S94: 0.109 | T94: 0.086 | U94: 0.075 | V94: 0.068 | W94: 0.063 | Y94: 0.45 | Z94: 0.129 | AA94: 0.102 | AB94: 0.081 | AC94: 0.071 | AD94: 0.065 | AE94: 0.061 | AG94: 0.45 | AH94: 0.121 | AI94: 0.097 | AJ94: 0.078 | AK94: 0.069 | AL94: 0.063 | AM94: 0.059 | AO94: 0.45 | AP94: 0.116 | AQ94: 0.093 | AR94: 0.075 | AS94: 0.067 | AT94: 0.061 | AU94: 0.057 | BI94: 5
A95: 0.455 | B95: 0.169 | C95: 0.127 | D95: 0.095 | E95: 0.081 | F95: 0.072 | G95: 0.066 | I95: 0.455 | J95: 0.149 | K95: 0.115 | L95: 0.089 | M95: 0.077 | N95: 0.07 | O95: 0.064 | Q95: 0.455 | R95: 0.139 | S95: 0.108 | T95: 0.085 | U95: 0.074 | V95: 0.067 | W95: 0.063 | Y95: 0.455 | Z95: 0.128 | AA95: 0.101 | AB95: 0.081 | AC95: 0.071 | AD95: 0.065 | AE95: 0.06 | AG95: 0.455 | AH95: 0.121 | AI95: 0.096 | AJ95: 0.077 | AK95: 0.068 | AL95: 0.062 | AM95: 0.058 | AO95: 0.455 | AP95: 0.116 | AQ95: 0.093 | AR95: 0.075 | AS95: 0.066 | AT95: 0.061 | AU95: 0.057 | BI95: 5
A96: 0.46 | B96: 0.168 | C96: 0.126 | D96: 0.094 | E96: 0.08 | F96: 0.071 | G96: 0.066 | I96: 0.46 | J96: 0.149 | K96: 0.114 | L96: 0.088 | M96: 0.076 | N96: 0.069 | O96: 0.064 | Q96: 0.46 | R96: 0.138 | S96: 0.108 | T96: 0.084 | U96: 0.073 | V96: 0.067 | W96: 0.062 | Y96: 0.46 | Z96: 0.128 | AA96: 0.101 | AB96: 0.08 | AC96: 0.07 | AD96: 0.064 | AE96: 0.06 | AG96: 0.46 | AH96: 0.12 | AI96: 0.096 | AJ96: 0.077 | AK96: 0.068 | AL96: 0.062 | AM96: 0.058 | AO96: 0.46 | AP96: 0.115 | AQ96: 0.092 | AR96: 0.074 | AS96: 0.066 | AT96: 0.061 | AU96: 0.057 | BI96: 5
A97: 0.465 | B97: 0.167 | C97: 0.125 | D97: 0.093 | E97: 0.079 | F97: 0.07 | G97: 0.065 | I97: 0.465 | J97: 0.148 | K97: 0.114 | L97: 0.088 | M97: 0.076 | N97: 0.068 | O97: 0.063 | Q97: 0.465 | R97: 0.138 | S97: 0.107 | T97: 0.084 | U97: 0.073 | V97: 0.066 | W97: 0.061 | Y97: 0.465 | Z97: 0.127 | AA97: 0.1 | AB97: 0.08 | AC97: 0.07 | AD97: 0.064 | AE97: 0.059 | AG97: 0.465 | AH97: 0.12 | AI97: 0.095 | AJ97: 0.076 | AK97: 0.067 | AL97: 0.062 | AM97: 0.057 | AO97: 0.465 | AP97: 0.115 | AQ97: 0.092 | AR97: 0.074 | AS97: 0.066 | AT97: 0.06 | AU97: 0.056 | BI97: 5
A98: 0.47 | B98: 0.166 | C98: 0.124 | D98: 0.092 | E98: 0.078 | F98: 0.07 | G98: 0.064 | I98: 0.47 | J98: 0.147 | K98: 0.113 | L98: 0.087 | M98: 0.075 | N98: 0.068 | O98: 0.063 | Q98: 0.47 | R98: 0.137 | S98: 0.106 | T98: 0.083 | U98: 0.072 | V98: 0.066 | W98: 0.061 | Y98: 0.47 | Z98: 0.127 | AA98: 0.1 | AB98: 0.079 | AC98: 0.069 | AD98: 0.063 | AE98: 0.059 | AG98: 0.47 | AH98: 0.119 | AI98: 0.095 | AJ98: 0.076 | AK98: 0.067 | AL98: 0.061 | AM98: 0.057 | AO98: 0.47 | AP98: 0.114 | AQ98: 0.091 | AR98: 0.074 | AS98: 0.065 | AT98: 0.06 | AU98: 0.056 | BI98: 5
A99: 0.475 | B99: 0.165 | C99: 0.123 | D99: 0.091 | E99: 0.077 | F99: 0.069 | G99: 0.063 | I99: 0.475 | J99: 0.147 | K99: 0.112 | L99: 0.086 | M99: 0.074 | N99: 0.067 | O99: 0.062 | Q99: 0.475 | R99: 0.136 | S99: 0.106 | T99: 0.082 | U99: 0.072 | V99: 0.065 | W99: 0.06 | Y99: 0.475 | Z99: 0.126 | AA99: 0.099 | AB99: 0.078 | AC99: 0.069 | AD99: 0.063 | AE99: 0.058 | AG99: 0.475 | AH99: 0.119 | AI99: 0.094 | AJ99: 0.075 | AK99: 0.066 | AL99: 0.061 | AM99: 0.057 | AO99: 0.475 | AP99: 0.114 | AQ99: 0.091 | AR99: 0.073 | AS99: 0.065 | AT99: 0.059 | AU99: 0.055 | BI99: 5
A100: 0.48 | B100: 0.164 | C100: 0.122 | D100: 0.09 | E100: 0.076 | F100: 0.068 | G100: 0.062 | I100: 0.48 | J100: 0.146 | K100: 0.112 | L100: 0.085 | M100: 0.073 | N100: 0.066 | O100: 0.061 | Q100: 0.48 | R100: 0.136 | S100: 0.105 | T100: 0.082 | U100: 0.071 | V100: 0.064 | W100: 0.06 | Y100: 0.48 | Z100: 0.126 | AA100: 0.099 | AB100: 0.078 | AC100: 0.068 | AD100: 0.062 | AE100: 0.058 | AG100: 0.48 | AH100: 0.118 | AI100: 0.094 | AJ100: 0.075 | AK100: 0.066 | AL100: 0.06 | AM100: 0.056 | AO100: 0.48 | AP100: 0.114 | AQ100: 0.091 | AR100: 0.073 | AS100: 0.064 | AT100: 0.059 | AU100: 0.055 | BI100: 5
A101: 0.485 | B101: 0.163 | C101: 0.121 | D101: 0.089 | E101: 0.075 | F101: 0.067 | G101: 0.061 | I101: 0.485 | J101: 0.145 | K101: 0.111 | L101: 0.085 | M101: 0.073 | N101: 0.066 | O101: 0.061 | Q101: 0.485 | R101: 0.135 | S101: 0.105 | T101: 0.081 | U101: 0.07 | V101: 0.064 | W101: 0.059 | Y101: 0.485 | Z101: 0.125 | AA101: 0.098 | AB101: 0.077 | AC101: 0.068 | AD101: 0.062 | AE101: 0.057 | AG101: 0.485 | AH101: 0.118 | AI101: 0.093 | AJ101: 0.074 | AK101: 0.065 | AL101: 0.06 | AM101: 0.056 | AO101: 0.485 | AP101: 0.113 | AQ101: 0.09 | AR101: 0.072 | AS101: 0.064 | AT101: 0.059 | AU101: 0.055 | BI101: 5
A102: 0.49 | B102: 0.162 | C102: 0.12 | D102: 0.088 | E102: 0.074 | F102: 0.066 | G102: 0.06 | I102: 0.49 | J102: 0.144 | K102: 0.11 | L102: 0.084 | M102: 0.072 | N102: 0.065 | O102: 0.06 | Q102: 0.49 | R102: 0.134 | S102: 0.104 | T102: 0.081 | U102: 0.07 | V102: 0.063 | W102: 0.059 | Y102: 0.49 | Z102: 0.125 | AA102: 0.098 | AB102: 0.077 | AC102: 0.067 | AD102: 0.061 | AE102: 0.057 | AG102: 0.49 | AH102: 0.117 | AI102: 0.093 | AJ102: 0.074 | AK102: 0.065 | AL102: 0.059 | AM102: 0.055 | AO102: 0.49 | AP102: 0.113 | AQ102: 0.09 | AR102: 0.072 | AS102: 0.064 | AT102: 0.058 | AU102: 0.054 | BI102: 5
A103: 0.495 | B103: 0.161 | C103: 0.119 | D103: 0.087 | E103: 0.073 | F103: 0.065 | G103: 0.06 | I103: 0.495 | J103: 0.144 | K103: 0.109 | L103: 0.083 | M103: 0.071 | N103: 0.064 | O103: 0.059 | Q103: 0.495 | R103: 0.134 | S103: 0.103 | T103: 0.08 | U103: 0.069 | V103: 0.063 | W103: 0.058 | Y103: 0.495 | Z103: 0.124 | AA103: 0.097 | AB103: 0.076 | AC103: 0.067 | AD103: 0.061 | AE103: 0.056 | AG103: 0.495 | AH103: 0.117 | AI103: 0.092 | AJ103: 0.073 | AK103: 0.065 | AL103: 0.059 | AM103: 0.055 | AO103: 0.495 | AP103: 0.112 | AQ103: 0.089 | AR103: 0.072 | AS103: 0.063 | AT103: 0.058 | AU103: 0.054 | BI103: 5
A104: 0.5 | B104: 0.16 | C104: 0.118 | D104: 0.086 | E104: 0.072 | F104: 0.064 | G104: 0.059 | I104: 0.5 | J104: 0.143 | K104: 0.109 | L104: 0.083 | M104: 0.071 | N104: 0.064 | O104: 0.059 | Q104: 0.5 | R104: 0.133 | S104: 0.103 | T104: 0.079 | U104: 0.069 | V104: 0.062 | W104: 0.057 | Y104: 0.5 | Z104: 0.124 | AA104: 0.097 | AB104: 0.076 | AC104: 0.066 | AD104: 0.06 | AE104: 0.056 | AG104: 0.5 | AH104: 0.116 | AI104: 0.092 | AJ104: 0.073 | AK104: 0.064 | AL104: 0.059 | AM104: 0.054 | AO104: 0.5 | AP104: 0.112 | AQ104: 0.089 | AR104: 0.071 | AS104: 0.063 | AT104: 0.057 | AU104: 0.053 | BI104: 5
A105: 0.505 | B105: 0.159 | C105: 0.117 | D105: 0.086 | E105: 0.071 | F105: 0.063 | G105: 0.058 | I105: 0.505 | J105: 0.142 | K105: 0.108 | L105: 0.082 | M105: 0.07 | N105: 0.063 | O105: 0.058 | Q105: 0.505 | R105: 0.133 | S105: 0.102 | T105: 0.079 | U105: 0.068 | V105: 0.062 | W105: 0.057 | Y105: 0.505 | Z105: 0.123 | AA105: 0.096 | AB105: 0.075 | AC105: 0.066 | AD105: 0.06 | AE105: 0.055 | AG105: 0.505 | AH105: 0.116 | AI105: 0.091 | AJ105: 0.073 | AK105: 0.064 | AL105: 0.058 | AM105: 0.054 | AO105: 0.505 | AP105: 0.111 | AQ105: 0.088 | AR105: 0.071 | AS105: 0.062 | AT105: 0.057 | AU105: 0.053 | BI105: 5
A106: 0.51 | B106: 0.158 | C106: 0.116 | D106: 0.085 | E106: 0.071 | F106: 0.062 | G106: 0.057 | I106: 0.51 | J106: 0.141 | K106: 0.107 | L106: 0.081 | M106: 0.069 | N106: 0.062 | O106: 0.057 | Q106: 0.51 | R106: 0.132 | S106: 0.102 | T106: 0.078 | U106: 0.068 | V106: 0.061 | W106: 0.056 | Y106: 0.51 | Z106: 0.123 | AA106: 0.096 | AB106: 0.075 | AC106: 0.065 | AD106: 0.059 | AE106: 0.055 | AG106: 0.51 | AH106: 0.116 | AI106: 0.091 | AJ106: 0.072 | AK106: 0.063 | AL106: 0.058 | AM106: 0.054 | AO106: 0.51 | AP106: 0.111 | AQ106: 0.088 | AR106: 0.07 | AS106: 0.062 | AT106: 0.057 | AU106: 0.053 | BI106: 5
A107: 0.515 | B107: 0.157 | C107: 0.115 | D107: 0.084 | E107: 0.07 | F107: 0.061 | G107: 0.056 | I107: 0.515 | J107: 0.141 | K107: 0.106 | L107: 0.08 | M107: 0.069 | N107: 0.062 | O107: 0.057 | Q107: 0.515 | R107: 0.131 | S107: 0.101 | T107: 0.078 | U107: 0.067 | V107: 0.06 | W107: 0.056 | Y107: 0.515 | Z107: 0.122 | AA107: 0.095 | AB107: 0.074 | AC107: 0.065 | AD107: 0.059 | AE107: 0.054 | AG107: 0.515 | AH107: 0.115 | AI107: 0.091 | AJ107: 0.072 | AK107: 0.063 | AL107: 0.057 | AM107: 0.053 | AO107: 0.515 | AP107: 0.111 | AQ107: 0.088 | AR107: 0.07 | AS107: 0.061 | AT107: 0.056 | AU107: 0.052 | BI107: 5
A108: 0.52 | B108: 0.156 | C108: 0.114 | D108: 0.083 | E108: 0.069 | F108: 0.061 | G108: 0.055 | I108: 0.52 | J108: 0.14 | K108: 0.106 | L108: 0.08 | M108: 0.068 | N108: 0.061 | O108: 0.056 | Q108: 0.52 | R108: 0.131 | S108: 0.1 | T108: 0.077 | U108: 0.066 | V108: 0.06 | W108: 0.055 | Y108: 0.52 | Z108: 0.121 | AA108: 0.094 | AB108: 0.074 | AC108: 0.064 | AD108: 0.058 | AE108: 0.054 | AG108: 0.52 | AH108: 0.115 | AI108: 0.09 | AJ108: 0.071 | AK108: 0.062 | AL108: 0.057 | AM108: 0.053 | AO108: 0.52 | AP108: 0.11 | AQ108: 0.087 | AR108: 0.069 | AS108: 0.061 | AT108: 0.056 | AU108: 0.052 | BI108: 5
A109: 0.525 | B109: 0.156 | C109: 0.113 | D109: 0.082 | E109: 0.068 | F109: 0.06 | G109: 0.054 | I109: 0.525 | J109: 0.139 | K109: 0.105 | L109: 0.079 | M109: 0.067 | N109: 0.06 | O109: 0.055 | Q109: 0.525 | R109: 0.13 | S109: 0.1 | T109: 0.076 | U109: 0.066 | V109: 0.059 | W109: 0.055 | Y109: 0.525 | Z109: 0.121 | AA109: 0.094 | AB109: 0.073 | AC109: 0.064 | AD109: 0.058 | AE109: 0.053 | AG109: 0.525 | AH109: 0.114 | AI109: 0.09 | AJ109: 0.071 | AK109: 0.062 | AL109: 0.056 | AM109: 0.052 | AO109: 0.525 | AP109: 0.11 | AQ109: 0.087 | AR109: 0.069 | AS109: 0.061 | AT109: 0.055 | AU109: 0.051 | BI109: 5
A110: 0.53 | B110: 0.155 | C110: 0.112 | D110: 0.081 | E110: 0.067 | F110: 0.059 | G110: 0.054 | I110: 0.53 | J110: 0.139 | K110: 0.104 | L110: 0.078 | M110: 0.066 | N110: 0.059 | O110: 0.055 | Q110: 0.53 | R110: 0.129 | S110: 0.099 | T110: 0.076 | U110: 0.065 | V110: 0.059 | W110: 0.054 | Y110: 0.53 | Z110: 0.12 | AA110: 0.093 | AB110: 0.073 | AC110: 0.063 | AD110: 0.057 | AE110: 0.053 | AG110: 0.53 | AH110: 0.114 | AI110: 0.089 | AJ110: 0.07 | AK110: 0.061 | AL110: 0.056 | AM110: 0.052 | AO110: 0.53 | AP110: 0.109 | AQ110: 0.086 | AR110: 0.069 | AS110: 0.06 | AT110: 0.055 | AU110: 0.051 | BI110: 5
A111: 0.535 | B111: 0.154 | C111: 0.111 | D111: 0.08 | E111: 0.066 | F111: 0.058 | G111: 0.053 | I111: 0.535 | J111: 0.138 | K111: 0.104 | L111: 0.078 | M111: 0.066 | N111: 0.059 | O111: 0.054 | Q111: 0.535 | R111: 0.129 | S111: 0.098 | T111: 0.075 | U111: 0.065 | V111: 0.058 | W111: 0.054 | Y111: 0.535 | Z111: 0.12 | AA111: 0.093 | AB111: 0.072 | AC111: 0.063 | AD111: 0.057 | AE111: 0.053 | AG111: 0.535 | AH111: 0.113 | AI111: 0.089 | AJ111: 0.07 | AK111: 0.061 | AL111: 0.055 | AM111: 0.051 | AO111: 0.535 | AP111: 0.109 | AQ111: 0.086 | AR111: 0.068 | AS111: 0.06 | AT111: 0.054 | AU111: 0.051 | BI111: 6
A112: 0.54 | B112: 0.153 | C112: 0.11 | D112: 0.079 | E112: 0.065 | F112: 0.057 | G112: 0.052 | I112: 0.54 | J112: 0.137 | K112: 0.103 | L112: 0.077 | M112: 0.065 | N112: 0.058 | O112: 0.053 | Q112: 0.54 | R112: 0.128 | S112: 0.098 | T112: 0.075 | U112: 0.064 | V112: 0.058 | W112: 0.053 | Y112: 0.54 | Z112: 0.119 | AA112: 0.092 | AB112: 0.072 | AC112: 0.062 | AD112: 0.056 | AE112: 0.052 | AG112: 0.54 | AH112: 0.113 | AI112: 0.088 | AJ112: 0.069 | AK112: 0.061 | AL112: 0.055 | AM112: 0.051 | AO112: 0.54 | AP112: 0.108 | AQ112: 0.085 | AR112: 0.068 | AS112: 0.059 | AT112: 0.054 | AU112: 0.05 | BI112: 6
A113: 0.545 | B113: 0.152 | C113: 0.109 | D113: 0.078 | E113: 0.064 | F113: 0.056 | G113: 0.051 | I113: 0.545 | J113: 0.136 | K113: 0.102 | L113: 0.076 | M113: 0.064 | N113: 0.057 | O113: 0.053 | Q113: 0.545 | R113: 0.128 | S113: 0.097 | T113: 0.074 | U113: 0.063 | V113: 0.057 | W113: 0.052 | Y113: 0.545 | Z113: 0.119 | AA113: 0.092 | AB113: 0.071 | AC113: 0.062 | AD113: 0.056 | AE113: 0.052 | AG113: 0.545 | AH113: 0.112 | AI113: 0.088 | AJ113: 0.069 | AK113: 0.06 | AL113: 0.055 | AM113: 0.051 | AO113: 0.545 | AP113: 0.108 | AQ113: 0.085 | AR113: 0.067 | AS113: 0.059 | AT113: 0.054 | AU113: 0.05 | BI113: 6
A114: 0.55 | B114: 0.151 | C114: 0.108 | D114: 0.077 | E114: 0.063 | F114: 0.055 | G114: 0.05 | I114: 0.55 | J114: 0.136 | K114: 0.101 | L114: 0.075 | M114: 0.064 | N114: 0.057 | O114: 0.052 | Q114: 0.55 | R114: 0.127 | S114: 0.097 | T114: 0.073 | U114: 0.063 | V114: 0.056 | W114: 0.052 | Y114: 0.55 | Z114: 0.118 | AA114: 0.091 | AB114: 0.071 | AC114: 0.061 | AD114: 0.055 | AE114: 0.051 | AG114: 0.55 | AH114: 0.112 | AI114: 0.087 | AJ114: 0.068 | AK114: 0.06 | AL114: 0.054 | AM114: 0.05 | AO114: 0.55 | AP114: 0.108 | AQ114: 0.085 | AR114: 0.067 | AS114: 0.059 | AT114: 0.053 | AU114: 0.049 | BI114: 6
A115: 0.555 | B115: 0.15 | C115: 0.107 | D115: 0.076 | E115: 0.062 | F115: 0.054 | G115: 0.049 | I115: 0.555 | J115: 0.135 | K115: 0.101 | L115: 0.075 | M115: 0.063 | N115: 0.056 | O115: 0.051 | Q115: 0.555 | R115: 0.126 | S115: 0.096 | T115: 0.073 | U115: 0.062 | V115: 0.056 | W115: 0.051 | Y115: 0.555 | Z115: 0.118 | AA115: 0.091 | AB115: 0.07 | AC115: 0.061 | AD115: 0.055 | AE115: 0.051 | AG115: 0.555 | AH115: 0.111 | AI115: 0.087 | AJ115: 0.068 | AK115: 0.059 | AL115: 0.054 | AM115: 0.05 | AO115: 0.555 | AP115: 0.107 | AQ115: 0.084 | AR115: 0.066 | AS115: 0.058 | AT115: 0.053 | AU115: 0.049 | BI115: 6
A116: 0.56 | B116: 0.149 | C116: 0.106 | D116: 0.075 | E116: 0.061 | F116: 0.053 | G116: 0.048 | I116: 0.56 | J116: 0.134 | K116: 0.1 | L116: 0.074 | M116: 0.062 | N116: 0.055 | O116: 0.051 | Q116: 0.56 | R116: 0.126 | S116: 0.095 | T116: 0.072 | U116: 0.062 | V116: 0.055 | W116: 0.051 | Y116: 0.56 | Z116: 0.117 | AA116: 0.09 | AB116: 0.07 | AC116: 0.06 | AD116: 0.054 | AE116: 0.05 | AG116: 0.56 | AH116: 0.111 | AI116: 0.086 | AJ116: 0.067 | AK116: 0.059 | AL116: 0.053 | AM116: 0.049 | AO116: 0.56 | AP116: 0.107 | AQ116: 0.084 | AR116: 0.066 | AS116: 0.058 | AT116: 0.052 | AU116: 0.049 | BI116: 6
A117: 0.565 | B117: 0.148 | C117: 0.105 | D117: 0.074 | E117: 0.06 | F117: 0.053 | G117: 0.047 | I117: 0.565 | J117: 0.133 | K117: 0.099 | L117: 0.073 | M117: 0.062 | N117: 0.055 | O117: 0.05 | Q117: 0.565 | R117: 0.125 | S117: 0.095 | T117: 0.071 | U117: 0.061 | V117: 0.055 | W117: 0.05 | Y117: 0.565 | Z117: 0.117 | AA117: 0.09 | AB117: 0.069 | AC117: 0.06 | AD117: 0.054 | AE117: 0.05 | AG117: 0.565 | AH117: 0.11 | AI117: 0.086 | AJ117: 0.067 | AK117: 0.058 | AL117: 0.053 | AM117: 0.049 | AO117: 0.565 | AP117: 0.106 | AQ117: 0.083 | AR117: 0.066 | AS117: 0.057 | AT117: 0.052 | AU117: 0.048 | BI117: 6
A118: 0.57 | B118: 0.147 | C118: 0.105 | D118: 0.073 | E118: 0.059 | F118: 0.052 | G118: 0.047 | I118: 0.57 | J118: 0.133 | K118: 0.098 | L118: 0.073 | M118: 0.061 | N118: 0.054 | O118: 0.049 | Q118: 0.57 | R118: 0.125 | S118: 0.094 | T118: 0.071 | U118: 0.06 | V118: 0.054 | W118: 0.05 | Y118: 0.57 | Z118: 0.116 | AA118: 0.089 | AB118: 0.069 | AC118: 0.059 | AD118: 0.053 | AE118: 0.049 | AG118: 0.57 | AH118: 0.11 | AI118: 0.085 | AJ118: 0.067 | AK118: 0.058 | AL118: 0.052 | AM118: 0.048 | AO118: 0.57 | AP118: 0.106 | AQ118: 0.083 | AR118: 0.065 | AS118: 0.057 | AT118: 0.052 | AU118: 0.048 | BI118: 6
A119: 0.575 | B119: 0.146 | C119: 0.104 | D119: 0.072 | E119: 0.058 | F119: 0.051 | G119: 0.046 | I119: 0.575 | J119: 0.132 | K119: 0.098 | L119: 0.072 | M119: 0.06 | N119: 0.053 | O119: 0.049 | Q119: 0.575 | R119: 0.124 | S119: 0.093 | T119: 0.07 | U119: 0.06 | V119: 0.053 | W119: 0.049 | Y119: 0.575 | Z119: 0.116 | AA119: 0.089 | AB119: 0.068 | AC119: 0.059 | AD119: 0.053 | AE119: 0.049 | AG119: 0.575 | AH119: 0.109 | AI119: 0.085 | AJ119: 0.066 | AK119: 0.057 | AL119: 0.052 | AM119: 0.048 | AO119: 0.575 | AP119: 0.105 | AQ119: 0.082 | AR119: 0.065 | AS119: 0.056 | AT119: 0.051 | AU119: 0.047 | BI119: 6
A120: 0.58 | B120: 0.145 | C120: 0.103 | D120: 0.071 | E120: 0.058 | F120: 0.05 | G120: 0.045 | I120: 0.58 | J120: 0.131 | K120: 0.097 | L120: 0.071 | M120: 0.06 | N120: 0.053 | O120: 0.048 | Q120: 0.58 | R120: 0.123 | S120: 0.093 | T120: 0.07 | U120: 0.059 | V120: 0.053 | W120: 0.049 | Y120: 0.58 | Z120: 0.115 | AA120: 0.088 | AB120: 0.068 | AC120: 0.058 | AD120: 0.052 | AE120: 0.048 | AG120: 0.58 | AH120: 0.109 | AI120: 0.084 | AJ120: 0.066 | AK120: 0.057 | AL120: 0.052 | AM120: 0.048 | AO120: 0.58 | AP120: 0.105 | AQ120: 0.082 | AR120: 0.064 | AS120: 0.056 | AT120: 0.051 | AU120: 0.047 | BI120: 6
A121: 0.585 | B121: 0.144 | C121: 0.102 | D121: 0.07 | E121: 0.057 | F121: 0.049 | G121: 0.044 | I121: 0.585 | J121: 0.131 | K121: 0.096 | L121: 0.07 | M121: 0.059 | N121: 0.052 | O121: 0.047 | Q121: 0.585 | R121: 0.123 | S121: 0.092 | T121: 0.069 | U121: 0.059 | V121: 0.052 | W121: 0.048 | Y121: 0.585 | Z121: 0.115 | AA121: 0.088 | AB121: 0.067 | AC121: 0.058 | AD121: 0.052 | AE121: 0.048 | AG121: 0.585 | AH121: 0.109 | AI121: 0.084 | AJ121: 0.065 | AK121: 0.056 | AL121: 0.051 | AM121: 0.047 | AO121: 0.585 | AP121: 0.105 | AQ121: 0.082 | AR121: 0.064 | AS121: 0.056 | AT121: 0.05 | AU121: 0.047 | BI121: 6
A122: 0.59 | B122: 0.143 | C122: 0.101 | D122: 0.069 | E122: 0.056 | F122: 0.048 | G122: 0.043 | I122: 0.59 | J122: 0.13 | K122: 0.095 | L122: 0.07 | M122: 0.058 | N122: 0.051 | O122: 0.047 | Q122: 0.59 | R122: 0.122 | S122: 0.092 | T122: 0.068 | U122: 0.058 | V122: 0.052 | W122: 0.047 | Y122: 0.59 | Z122: 0.114 | AA122: 0.087 | AB122: 0.067 | AC122: 0.057 | AD122: 0.051 | AE122: 0.047 | AG122: 0.59 | AH122: 0.108 | AI122: 0.083 | AJ122: 0.065 | AK122: 0.056 | AL122: 0.051 | AM122: 0.047 | AO122: 0.59 | AP122: 0.104 | AQ122: 0.081 | AR122: 0.063 | AS122: 0.055 | AT122: 0.05 | AU122: 0.046 | BI122: 6
A123: 0.595 | B123: 0.142 | C123: 0.1 | D123: 0.068 | E123: 0.055 | F123: 0.047 | G123: 0.042 | I123: 0.595 | J123: 0.129 | K123: 0.095 | L123: 0.069 | M123: 0.057 | N123: 0.051 | O123: 0.046 | Q123: 0.595 | R123: 0.121 | S123: 0.091 | T123: 0.068 | U123: 0.057 | V123: 0.051 | W123: 0.047 | Y123: 0.595 | Z123: 0.114 | AA123: 0.087 | AB123: 0.066 | AC123: 0.057 | AD123: 0.051 | AE123: 0.047 | AG123: 0.595 | AH123: 0.108 | AI123: 0.083 | AJ123: 0.064 | AK123: 0.056 | AL123: 0.05 | AM123: 0.046 | AO123: 0.595 | AP123: 0.104 | AQ123: 0.081 | AR123: 0.063 | AS123: 0.055 | AT123: 0.05 | AU123: 0.046 | BI123: 6
A124: 0.6 | B124: 0.141 | C124: 0.099 | D124: 0.067 | E124: 0.054 | F124: 0.046 | G124: 0.041 | I124: 0.6 | J124: 0.128 | K124: 0.094 | L124: 0.068 | M124: 0.057 | N124: 0.05 | O124: 0.046 | Q124: 0.6 | R124: 0.121 | S124: 0.09 | T124: 0.067 | U124: 0.057 | V124: 0.051 | W124: 0.046 | Y124: 0.6 | Z124: 0.113 | AA124: 0.086 | AB124: 0.065 | AC124: 0.056 | AD124: 0.05 | AE124: 0.046 | AG124: 0.6 | AH124: 0.107 | AI124: 0.083 | AJ124: 0.064 | AK124: 0.055 | AL124: 0.05 | AM124: 0.046 | AO124: 0.6 | AP124: 0.103 | AQ124: 0.08 | AR124: 0.063 | AS124: 0.054 | AT124: 0.049 | AU124: 0.045 | BI124: 6
A125: 0.605 | B125: 0.14 | C125: 0.098 | D125: 0.066 | E125: 0.053 | F125: 0.045 | G125: 0.041 | I125: 0.605 | J125: 0.128 | K125: 0.093 | L125: 0.068 | M125: 0.056 | N125: 0.049 | O125: 0.045 | Q125: 0.605 | R125: 0.12 | S125: 0.09 | T125: 0.067 | U125: 0.056 | V125: 0.05 | W125: 0.046 | Y125: 0.605 | Z125: 0.112 | AA125: 0.085 | AB125: 0.065 | AC125: 0.056 | AD125: 0.05 | AE125: 0.046 | AG125: 0.605 | AH125: 0.107 | AI125: 0.082 | AJ125: 0.063 | AK125: 0.055 | AL125: 0.049 | AM125: 0.045 | AO125: 0.605 | AP125: 0.103 | AQ125: 0.08 | AR125: 0.062 | AS125: 0.054 | AT125: 0.049 | AU125: 0.045 | BI125: 6
A126: 0.61 | B126: 0.139 | C126: 0.097 | D126: 0.065 | E126: 0.052 | F126: 0.044 | G126: 0.04 | I126: 0.61 | J126: 0.127 | K126: 0.093 | L126: 0.067 | M126: 0.055 | N126: 0.049 | O126: 0.044 | Q126: 0.61 | R126: 0.12 | S126: 0.089 | T126: 0.066 | U126: 0.056 | V126: 0.049 | W126: 0.045 | Y126: 0.61 | Z126: 0.112 | AA126: 0.085 | AB126: 0.064 | AC126: 0.055 | AD126: 0.049 | AE126: 0.045 | AG126: 0.61 | AH126: 0.106 | AI126: 0.082 | AJ126: 0.063 | AK126: 0.054 | AL126: 0.049 | AM126: 0.045 | AO126: 0.61 | AP126: 0.102 | AQ126: 0.079 | AR126: 0.062 | AS126: 0.054 | AT126: 0.048 | AU126: 0.045 | BI126: 6
A127: 0.615 | B127: 0.138 | C127: 0.096 | D127: 0.064 | E127: 0.051 | F127: 0.044 | G127: 0.039 | I127: 0.615 | J127: 0.126 | K127: 0.092 | L127: 0.066 | M127: 0.055 | N127: 0.048 | O127: 0.044 | Q127: 0.615 | R127: 0.119 | S127: 0.088 | T127: 0.065 | U127: 0.055 | V127: 0.049 | W127: 0.045 | Y127: 0.615 | Z127: 0.111 | AA127: 0.084 | AB127: 0.064 | AC127: 0.055 | AD127: 0.049 | AE127: 0.045 | AG127: 0.615 | AH127: 0.106 | AI127: 0.081 | AJ127: 0.062 | AK127: 0.054 | AL127: 0.048 | AM127: 0.045 | AO127: 0.615 | AP127: 0.102 | AQ127: 0.079 | AR127: 0.061 | AS127: 0.053 | AT127: 0.048 | AU127: 0.044 | BI127: 6
A128: 0.62 | B128: 0.137 | C128: 0.095 | D128: 0.063 | E128: 0.05 | F128: 0.043 | G128: 0.038 | I128: 0.62 | J128: 0.125 | K128: 0.091 | L128: 0.065 | M128: 0.054 | N128: 0.047 | O128: 0.043 | Q128: 0.62 | R128: 0.118 | S128: 0.088 | T128: 0.065 | U128: 0.054 | V128: 0.048 | W128: 0.044 | Y128: 0.62 | Z128: 0.111 | AA128: 0.084 | AB128: 0.063 | AC128: 0.054 | AD128: 0.048 | AE128: 0.044 | AG128: 0.62 | AH128: 0.105 | AI128: 0.081 | AJ128: 0.062 | AK128: 0.053 | AL128: 0.048 | AM128: 0.044 | AO128: 0.62 | AP128: 0.102 | AQ128: 0.078 | AR128: 0.061 | AS128: 0.053 | AT128: 0.048 | AU128: 0.044 | BI128: 6
A129: 0.625 | B129: 0.136 | C129: 0.094 | D129: 0.063 | E129: 0.049 | F129: 0.042 | G129: 0.037 | I129: 0.625 | J129: 0.125 | K129: 0.09 | L129: 0.065 | M129: 0.053 | N129: 0.047 | O129: 0.042 | Q129: 0.625 | R129: 0.118 | S129: 0.087 | T129: 0.064 | U129: 0.054 | V129: 0.048 | W129: 0.043 | Y129: 0.625 | Z129: 0.11 | AA129: 0.083 | AB129: 0.063 | AC129: 0.054 | AD129: 0.048 | AE129: 0.044 | AG129: 0.625 | AH129: 0.105 | AI129: 0.08 | AJ129: 0.061 | AK129: 0.053 | AL129: 0.048 | AM129: 0.044 | AO129: 0.625 | AP129: 0.101 | AQ129: 0.078 | AR129: 0.06 | AS129: 0.052 | AT129: 0.047 | AU129: 0.043 | BI129: 6
A130: 0.63 | B130: 0.135 | C130: 0.093 | D130: 0.062 | E130: 0.048 | F130: 0.041 | G130: 0.036 | I130: 0.63 | J130: 0.124 | K130: 0.09 | L130: 0.064 | M130: 0.053 | N130: 0.046 | O130: 0.042 | Q130: 0.63 | R130: 0.117 | S130: 0.087 | T130: 0.064 | U130: 0.053 | V130: 0.047 | W130: 0.043 | Y130: 0.63 | Z130: 0.11 | AA130: 0.083 | AB130: 0.062 | AC130: 0.053 | AD130: 0.047 | AE130: 0.043 | AG130: 0.63 | AH130: 0.104 | AI130: 0.08 | AJ130: 0.061 | AK130: 0.052 | AL130: 0.047 | AM130: 0.043 | AO130: 0.63 | AP130: 0.101 | AQ130: 0.078 | AR130: 0.06 | AS130: 0.052 | AT130: 0.047 | AU130: 0.043 | BI130: 6
A131: 0.635 | B131: 0.134 | C131: 0.092 | D131: 0.061 | E131: 0.047 | F131: 0.04 | G131: 0.035 | I131: 0.635 | J131: 0.123 | K131: 0.089 | L131: 0.063 | M131: 0.052 | N131: 0.045 | O131: 0.041 | Q131: 0.635 | R131: 0.116 | S131: 0.086 | T131: 0.063 | U131: 0.053 | V131: 0.047 | W131: 0.042 | Y131: 0.635 | Z131: 0.109 | AA131: 0.082 | AB131: 0.062 | AC131: 0.053 | AD131: 0.047 | AE131: 0.043 | AG131: 0.635 | AH131: 0.104 | AI131: 0.079 | AJ131: 0.061 | AK131: 0.052 | AL131: 0.047 | AM131: 0.043 | AO131: 0.635 | AP131: 0.1 | AQ131: 0.077 | AR131: 0.06 | AS131: 0.051 | AT131: 0.046 | AU131: 0.043 | BI131: 6
A132: 0.64 | B132: 0.133 | C132: 0.091 | D132: 0.06 | E132: 0.046 | F132: 0.039 | G132: 0.035 | I132: 0.64 | J132: 0.122 | K132: 0.088 | L132: 0.063 | M132: 0.051 | N132: 0.045 | O132: 0.04 | Q132: 0.64 | R132: 0.116 | S132: 0.085 | T132: 0.062 | U132: 0.052 | V132: 0.046 | W132: 0.042 | Y132: 0.64 | Z132: 0.109 | AA132: 0.082 | AB132: 0.061 | AC132: 0.052 | AD132: 0.046 | AE132: 0.042 | AG132: 0.64 | AH132: 0.103 | AI132: 0.079 | AJ132: 0.06 | AK132: 0.052 | AL132: 0.046 | AM132: 0.042 | AO132: 0.64 | AP132: 0.1 | AQ132: 0.077 | AR132: 0.059 | AS132: 0.051 | AT132: 0.046 | AU132: 0.042 | BI132: 6
A133: 0.645 | B133: 0.132 | C133: 0.09 | D133: 0.059 | E133: 0.045 | F133: 0.038 | G133: 0.034 | I133: 0.645 | J133: 0.122 | K133: 0.087 | L133: 0.062 | M133: 0.051 | N133: 0.044 | O133: 0.04 | Q133: 0.645 | R133: 0.115 | S133: 0.085 | T133: 0.062 | U133: 0.051 | V133: 0.045 | W133: 0.041 | Y133: 0.645 | Z133: 0.108 | AA133: 0.081 | AB133: 0.061 | AC133: 0.052 | AD133: 0.046 | AE133: 0.042 | AG133: 0.645 | AH133: 0.103 | AI133: 0.078 | AJ133: 0.06 | AK133: 0.051 | AL133: 0.046 | AM133: 0.042 | AO133: 0.645 | AP133: 0.099 | AQ133: 0.076 | AR133: 0.059 | AS133: 0.051 | AT133: 0.046 | AU133: 0.042
A134: 0.65 | B134: 0.131 | C134: 0.089 | D134: 0.058 | E134: 0.045 | F134: 0.037 | G134: 0.033 | I134: 0.65 | J134: 0.121 | K134: 0.087 | L134: 0.061 | M134: 0.05 | N134: 0.043 | O134: 0.039 | Q134: 0.65 | R134: 0.115 | S134: 0.084 | T134: 0.061 | U134: 0.051 | V134: 0.045 | W134: 0.041 | Y134: 0.65 | Z134: 0.108 | AA134: 0.081 | AB134: 0.06 | AC134: 0.051 | AD134: 0.045 | AE134: 0.041 | AG134: 0.65 | AH134: 0.102 | AI134: 0.078 | AJ134: 0.059 | AK134: 0.051 | AL134: 0.045 | AM134: 0.042 | AO134: 0.65 | AP134: 0.099 | AQ134: 0.076 | AR134: 0.058 | AS134: 0.05 | AT134: 0.045 | AU134: 0.041
A135: 0.655 | B135: 0.13 | C135: 0.088 | D135: 0.057 | E135: 0.044 | F135: 0.036 | G135: 0.032 | I135: 0.655 | J135: 0.12 | K135: 0.086 | L135: 0.06 | M135: 0.049 | N135: 0.043 | O135: 0.038 | Q135: 0.655 | R135: 0.114 | S135: 0.083 | T135: 0.06 | U135: 0.05 | V135: 0.044 | W135: 0.04 | Y135: 0.655 | Z135: 0.107 | AA135: 0.08 | AB135: 0.06 | AC135: 0.051 | AD135: 0.045 | AE135: 0.041 | AG135: 0.655 | AH135: 0.102 | AI135: 0.077 | AJ135: 0.059 | AK135: 0.05 | AL135: 0.045 | AM135: 0.041 | AO135: 0.655 | AP135: 0.099 | AQ135: 0.075 | AR135: 0.058 | AS135: 0.05 | AT135: 0.045 | AU135: 0.041
A136: 0.66 | B136: 0.129 | C136: 0.087 | D136: 0.056 | E136: 0.043 | F136: 0.036 | G136: 0.031 | I136: 0.66 | J136: 0.12 | K136: 0.085 | L136: 0.06 | M136: 0.048 | N136: 0.042 | O136: 0.038 | Q136: 0.66 | R136: 0.113 | S136: 0.083 | T136: 0.06 | U136: 0.05 | V136: 0.044 | W136: 0.04 | Y136: 0.66 | Z136: 0.107 | AA136: 0.08 | AB136: 0.059 | AC136: 0.05 | AD136: 0.044 | AE136: 0.041 | AG136: 0.66 | AH136: 0.102 | AI136: 0.077 | AJ136: 0.058 | AK136: 0.05 | AL136: 0.044 | AM136: 0.041 | AO136: 0.66 | AP136: 0.098 | AQ136: 0.075 | AR136: 0.057 | AS136: 0.049 | AT136: 0.044 | AU136: 0.041
A137: 0.665 | B137: 0.128 | C137: 0.086 | D137: 0.055 | E137: 0.042 | F137: 0.035 | G137: 0.03 | I137: 0.665 | J137: 0.119 | K137: 0.085 | L137: 0.059 | M137: 0.048 | N137: 0.041 | O137: 0.037 | Q137: 0.665 | R137: 0.113 | S137: 0.082 | T137: 0.059 | U137: 0.049 | V137: 0.043 | W137: 0.039 | Y137: 0.665 | Z137: 0.106 | AA137: 0.079 | AB137: 0.059 | AC137: 0.05 | AD137: 0.044 | AE137: 0.04 | AG137: 0.665 | AH137: 0.101 | AI137: 0.076 | AJ137: 0.058 | AK137: 0.049 | AL137: 0.044 | AM137: 0.04 | AO137: 0.665 | AP137: 0.098 | AQ137: 0.075 | AR137: 0.057 | AS137: 0.049 | AT137: 0.044 | AU137: 0.04
A138: 0.67 | B138: 0.127 | C138: 0.085 | D138: 0.054 | E138: 0.041 | F138: 0.034 | G138: 0.029 | I138: 0.67 | J138: 0.118 | K138: 0.084 | L138: 0.058 | M138: 0.047 | N138: 0.041 | O138: 0.036 | Q138: 0.67 | R138: 0.112 | S138: 0.082 | T138: 0.059 | U138: 0.049 | V138: 0.043 | W138: 0.038 | Y138: 0.67 | Z138: 0.106 | AA138: 0.079 | AB138: 0.058 | AC138: 0.049 | AD138: 0.043 | AE138: 0.04 | AG138: 0.67 | AH138: 0.101 | AI138: 0.076 | AJ138: 0.057 | AK138: 0.049 | AL138: 0.044 | AM138: 0.04 | AO138: 0.67 | AP138: 0.097 | AQ138: 0.074 | AR138: 0.057 | AS138: 0.049 | AT138: 0.044 | AU138: 0.04
A139: 0.675 | B139: 0.126 | C139: 0.084 | D139: 0.053 | E139: 0.04 | F139: 0.033 | G139: 0.028 | I139: 0.675 | J139: 0.117 | K139: 0.083 | L139: 0.058 | M139: 0.046 | N139: 0.04 | O139: 0.036 | Q139: 0.675 | R139: 0.111 | S139: 0.081 | T139: 0.058 | U139: 0.048 | V139: 0.042 | W139: 0.038 | Y139: 0.675 | Z139: 0.105 | AA139: 0.078 | AB139: 0.058 | AC139: 0.048 | AD139: 0.043 | AE139: 0.039 | AG139: 0.675 | AH139: 0.1 | AI139: 0.076 | AJ139: 0.057 | AK139: 0.048 | AL139: 0.043 | AM139: 0.039 | AO139: 0.675 | AP139: 0.097 | AQ139: 0.074 | AR139: 0.056 | AS139: 0.048 | AT139: 0.043 | AU139: 0.04
A140: 0.68 | B140: 0.125 | C140: 0.083 | D140: 0.052 | E140: 0.039 | F140: 0.032 | G140: 0.028 | I140: 0.68 | J140: 0.117 | K140: 0.082 | L140: 0.057 | M140: 0.046 | N140: 0.039 | O140: 0.035 | Q140: 0.68 | R140: 0.111 | S140: 0.08 | T140: 0.057 | U140: 0.047 | V140: 0.041 | W140: 0.037 | Y140: 0.68 | Z140: 0.105 | AA140: 0.078 | AB140: 0.057 | AC140: 0.048 | AD140: 0.042 | AE140: 0.039 | AG140: 0.68 | AH140: 0.1 | AI140: 0.075 | AJ140: 0.056 | AK140: 0.048 | AL140: 0.043 | AM140: 0.039 | AO140: 0.68 | AP140: 0.096 | AQ140: 0.073 | AR140: 0.056 | AS140: 0.048 | AT140: 0.043 | AU140: 0.039
A141: 0.685 | B141: 0.124 | C141: 0.082 | D141: 0.051 | E141: 0.038 | F141: 0.031 | G141: 0.027 | I141: 0.685 | J141: 0.116 | K141: 0.082 | L141: 0.056 | M141: 0.045 | N141: 0.039 | O141: 0.034 | Q141: 0.685 | R141: 0.11 | S141: 0.08 | T141: 0.057 | U141: 0.047 | V141: 0.041 | W141: 0.037 | Y141: 0.685 | Z141: 0.104 | AA141: 0.077 | AB141: 0.057 | AC141: 0.047 | AD141: 0.042 | AE141: 0.038 | AG141: 0.685 | AH141: 0.099 | AI141: 0.075 | AJ141: 0.056 | AK141: 0.048 | AL141: 0.042 | AM141: 0.039 | AO141: 0.685 | AP141: 0.096 | AQ141: 0.073 | AR141: 0.055 | AS141: 0.047 | AT141: 0.042 | AU141: 0.039
A142: 0.69 | B142: 0.123 | C142: 0.081 | D142: 0.05 | E142: 0.037 | F142: 0.03 | G142: 0.026 | I142: 0.69 | J142: 0.115 | K142: 0.081 | L142: 0.055 | M142: 0.044 | N142: 0.038 | O142: 0.034 | Q142: 0.69 | R142: 0.11 | S142: 0.079 | T142: 0.056 | U142: 0.046 | V142: 0.04 | W142: 0.036 | Y142: 0.69 | Z142: 0.104 | AA142: 0.076 | AB142: 0.056 | AC142: 0.047 | AD142: 0.041 | AE142: 0.038 | AG142: 0.69 | AH142: 0.099 | AI142: 0.074 | AJ142: 0.055 | AK142: 0.047 | AL142: 0.042 | AM142: 0.038 | AO142: 0.69 | AP142: 0.095 | AQ142: 0.072 | AR142: 0.055 | AS142: 0.047 | AT142: 0.042 | AU142: 0.038
A143: 0.695 | B143: 0.122 | C143: 0.08 | D143: 0.049 | E143: 0.036 | F143: 0.029 | G143: 0.025 | I143: 0.695 | J143: 0.114 | K143: 0.08 | L143: 0.055 | M143: 0.044 | N143: 0.037 | O143: 0.033 | Q143: 0.695 | R143: 0.109 | S143: 0.078 | T143: 0.056 | U143: 0.046 | V143: 0.04 | W143: 0.036 | Y143: 0.695 | Z143: 0.103 | AA143: 0.076 | AB143: 0.056 | AC143: 0.046 | AD143: 0.041 | AE143: 0.037 | AG143: 0.695 | AH143: 0.098 | AI143: 0.074 | AJ143: 0.055 | AK143: 0.047 | AL143: 0.041 | AM143: 0.038 | AO143: 0.695 | AP143: 0.095 | AQ143: 0.072 | AR143: 0.054 | AS143: 0.046 | AT143: 0.042 | AU143: 0.038
A144: 0.7 | B144: 0.121 | C144: 0.079 | D144: 0.048 | E144: 0.035 | F144: 0.028 | G144: 0.024 | I144: 0.7 | J144: 0.114 | K144: 0.079 | L144: 0.054 | M144: 0.043 | N144: 0.037 | O144: 0.032 | Q144: 0.7 | R144: 0.108 | S144: 0.078 | T144: 0.055 | U144: 0.045 | V144: 0.039 | W144: 0.035 | Y144: 0.7 | Z144: 0.102 | AA144: 0.075 | AB144: 0.055 | AC144: 0.046 | AD144: 0.04 | AE144: 0.037 | AG144: 0.7 | AH144: 0.098 | AI144: 0.073 | AJ144: 0.055 | AK144: 0.046 | AL144: 0.041 | AM144: 0.037 | AO144: 0.7 | AP144: 0.095 | AQ144: 0.072 | AR144: 0.054 | AS144: 0.046 | AT144: 0.041 | AU144: 0.038
